Workbook

Sheet Calcul tarif Truf_JDR
A1: Code barre | B1: Code | C1: Genre | D1: Espèce | E1: Variétè | F1: Code famille | G1: Famille | H1: Code état | I1: Etat | J1: Code diam pot | K1: Diam pot | L1: Code litrage | M1: Litrage | N1: Code taille | O1: Taille | P1: Code presentation | Q1: Presentation | R1: Code presentation 2 | S1: Presentation 2 | T1: Code diam tete | U1: Diam tête | V1: Code HT total | W1: HT total | X1: Code tri pour excel | Y1: Tri pour Excel | Z1: Code Emballage | AA1: Qte plantes par niveau | AB1: Code conditionnement | AC1: Conditionnement | AD1: Nb d' étage ou plantes | AE1: Metre linéaire | AF1: Nb de cond ou plantes par ML | AG1: Code camion | AH1: Metrage camion | AI1: Qte plt / camion | AJ1: Code tarif | AK1: Tarif | AL1: Code parcelle | AM1: Parcelle | AN1: Code marquage | AO1: Marquage | AP1: Code fournisseur / initiale | AQ1: Nom fournisseur | AR1: Code fournisseur | AS1: Nom fournisseur | AT1: Code Formato | AU1: Formato | AV1: Code variente | AW1: Variente | AX1: Code coût trpt vrac sud / plt | AY1: coût trpt vrac sud / plt | AZ1: Code coût trpt vrac nord / plt | BA1: coût trpt vrac nord / plt | BB1: Code coût trpt cond sud / plt | BC1: coût trpt cond sud / plt | BD1: Code coût trpt cond nord / plt | BE1: coût trpt cond nord / plt | BF1: Code coût emballage | BG1: Coût emballage | BH1: Prix de revient | BI1: PAAPRIVILEGEDPACKAGE4 | BJ1: PAAQTYPRIVILEGEDPACKAGE4 | BK1: Cond / default | BN1: T14 TARIF TRUFFAUT SUD dans flow | BO1: T13 TARIF TRUFFAUT NORD dans flow | BP1: Dif px T12-T13 | CC1: Choix du coef multiplicateur | CD1: Tarif Truffaut nord Promo | CE1: % PALMACEA Nord promo | CF1: T12 TARIF JDR dans flow | CG1: % PALMACEA Jardinerie nord | CH1: T12 flow / par total new tarif en DU avec margin | CI1: New Choix du coef multiplicateur | CJ1: New Tarif Jardinerie nord et Truf Nord 12 13 16 17 | CK1: New % PALMACEA Jardinerie nord | CL1: % diff Tarif Jardinerie nord / jardinerie départ | CM1: Tarif Jardinerie départ promo | CN1: % Tarif Jardinerie départ promo | CO1: 1.5 | CP1: % Tarif Jardinerie départ | CQ1: Tarif Truffaut sud Promo | CR1: % PALMACEA sud promo | CS1: New Choix du coef multiplicateur | CT1: New Tarif Jardinerie Sud et Truf Sud | CU1: % PALMACEA Jardinerie sud | CV1: 0.9 | CW1: % diff Tarif Jardinerie sud / jardinerie sud depart | CX1: NB / PLTS / CAMION | CY1: Cout emballage | CZ1: Cout de transport sud | DA1: Cout de transport nord | DB1: Coût total transport Nord + emballage | DC1: Coût transport Nord | DD1: Coût emballage Nord | DE1: =DU1 -> 0.05 | DF1: =DV1 -> 0.025 | DG1: =DW1 -> 0.025 | DH1: =DX1 -> 0.015 | DI1: =DY1 -> Total | DJ1: Coût total transport Nord + emballage | DK1: Coût transport Nord promo | DL1: Coût emballage Nord promo | DM1: =EC1 -> 0.05 | DN1: =ED1 -> 0.02 | DO1: =EE1 -> 0 | DP1: =EF1 -> 0.01 | DQ1: =EG1 -> Total | DR1: NORD | DS1: NORD | DT1: NORD | DU1: 0.05 | DV1: 0.025 | DW1: 0.025 | DX1: 0.015 | DY1: Total | DZ1: NORD | EA1: NORD | EB1: NORD | EC1: 0.05 | ED1: 0.02 | EE1: 0 | EF1: 0.01 | EG1: Total | EH1: SUD | EI1: SUD | EJ1: SUD | EK1: =EC1 -> 0.05 | EL1: =ED1 -> 0.02 | EM1: =EE1 -> 0 | EN1: =EF1 -> 0.01 | EO1: =EG1 -> Total | EP1: SUD | EQ1: SUD | ER1: SUD | ES1: =EK1 -> 0.05 | ET1: =EL1 -> 0.02 | EU1: =EM1 -> 0 | EV1: =EN1 -> 0.01 | EW1: Total
A2: ARTBARCODE | B2: ARTNOARTICLE | C2: ARTSORT | D2: ARTSPECIES | E2: ARTVARIETY | F2: ARTFAMILYCODE | G2: PARDESIGNATION | H2: ARTCRITERIA5 | I2: PARDESIGNATION2 | J2: ARTCRITERIA1 | K2: PARDESIGNATION3 | L2: ARTPRESENTATION | M2: PARDESIGNATION4 | N2: ARTSIZE | O2: UNVDESIGNATION | P2: ARTCRITERIA2 | Q2: PARDESIGNATION5 | R2: ARTCRITERIA3 | S2: PARDESIGNATION6 | T2: ARTCRITERIA4 | U2: PARDESIGNATION7 | V2: ARTCRITERIA9 | W2: PARDESIGNATION8 | X2: ARTCRITERIA19 | Y2: PARDESIGNATION9 | Z2: PAACODEPACKAGING | AA2: PAAQUANTITY | AB2: PAAPRIVILEGEDPACKAGE | AC2: PACDESIGNATION | AD2: PAAQTYPRIVILEGEDPACKAGE | AE2: PAAPRIVILEGEDPACKAGE2 | AF2: PAAQTYPRIVILEGEDPACKAGE2 | AG2: PAAPRIVILEGEDPACKAGE3 | AH2: PAAQTYPRIVILEGEDPACKAGE3 | AI2: CALCUL | AJ2: TRFNOCOSTIDENT | AK2: TRFCOSTVALUE | AL2: ARTCRITERIA6 | AM2: PARDESIGNATION10 | AN2: ARTCRITERIA7 | AO2: PARDESIGNATION11 | AP2: ARTCRITERIA8 | AQ2: PARDESIGNATION12 | AR2: ARTMAINSUPPLIER | AS2: CUSNAME | AT2: ARTCRITERIA10 | AU2: PARDESIGNATION13 | AV2: ARTCRITERIA11 | AW2: PARDESIGNATION14 | AX2: ARTCRITERIA12 | AY2: PARDESIGNATION15 | AZ2: ARTCRITERIA13 | BA2: PARDESIGNATION16 | BB2: ARTCRITERIA14 | BC2: PARDESIGNATION17 | BD2: ARTCRITERIA15 | BE2: PARDESIGNATION18 | BF2: ARTCRITERIA16 | BG2: PARDESIGNATION19 | BH2: ARTPRICEREFMARGIN | BI2: PAAPRIVILEGEDPACKAGE4 | BJ2: PAAQTYPRIVILEGEDPACKAGE4 | BK2: PAADEFAULT | BL2: RFTBARCODE | BM2: RFTREFDESIGNATION | BN2: Colonne1 | BO2: Colonne2 | BP2: Dif px T12-T13 | BQ2: TARIF JDR VRAC NORD T12 | BR2: TARIF TRUF VRAC NORD T13 | BS2: TARIF TRUF VRAC nord Promo T13 | BT2: TARIF JDR VRAC SUD T15 | BU2: TARIF TRUF VRAC SUD T14 | BV2: TARIF TRUF VRAC sud Promo T14 | BW2: TARIF JDR COND NORD T16 | BX2: TARIF TRUF COND NORD T17 | BY2: TARIF TRUF COND nord Promo T17 | BZ2: TARIF JDR COND SUD T19 | CA2: TARIF TRUF COND SUD T18 | CB2: TARIF TRUF COND sud promo T18 | CC2: Choix du coef multiplicateur | CD2: Tarif Truffaut nord Promo | CE2: % PALMACEA Nord promo | CF2: T12 TARIF JDR dans flow | CG2: % PALMACEA Jardinerie nord | CH2: T12 flow / par total new tarif en DU avec margin | CI2: New Choix du coef multiplicateur | CJ2: New Tarif Jardinerie nord et Truf Nord | CK2: New % PALMACEA Jardinerie nord | CL2: % diff Tarif Jardinerie nord / jardinerie départ | CM2: Tarif Jardinerie départ promo | CN2: % Tarif Jardinerie départ promo | CO2: Tarif Jardinerie départ | CP2: % Tarif Jardinerie départ | CQ2: Tarif Truffaut sud Promo | CR2: % PALMACEA sud promo | CS2: New Choix du coef multiplicateur | CT2: New Tarif Jardinerie Sud et Truf Sud | CU2: % PALMACEA Jardinerie sud | CV2: Tarif Jardinerie sud ANCIEN CALCUL | CW2: % diff Tarif Jardinerie sud / jardinerie sud depart | CX2: NB / PLTS / CAMION | CY2: Cout emballage | CZ2: Cout de transport sud | DA2: Cout de transport nord | DB2: Coût total transport Nord + emballage | DC2: Coût transport Nord | DD2: Coût emballage Nord | DE2: RFA Nord promo | DF2: % participation Nord promo | DG2: % avoir Nord promo | DH2: % étiquette Nord promo | DI2: pa + tprt + rfa +pp + av + eqt NORD promo | DJ2: Coût total transport Nord + emballage | DK2: Coût transport Nord promo | DL2: Coût emballage Nord promo | DM2: RFA Nord promo | DN2: % participation Nord promo | DO2: % avoir Nord promo | DP2: % étiquette Nord promo | DQ2: pa + tprt + rfa +pp + av + eqt NORD promo | DR2: Coût total transport Nord | DS2: Coût transport Nord | DT2: Coût emballage Nord | DU2: RFA Nord | DV2: % participation Nord | DW2: % avoir Nord | DX2: % étiquette Nord | DY2: pa + tprt + rfa +pp + av + eqt NORD | DZ2: Coût total transport Nord | EA2: Coût transport Nord | EB2: Coût emballage Nord | EC2: RFA Nord | ED2: % participation Nord | EE2: % avoir Nord | EF2: % étiquette Nord | EG2: pa + tprt + rfa +pp + av + eqt NORD | EH2: Coût total transport Sud promo | EI2: Coût transport Sud promo | EJ2: Coût emballage Sud promo | EK2: RFA Sud promo | EL2: % participation Sud promo | EM2: % avoir Sud promo | EN2: % étiquette Sud promo | EO2: pa + tprt + rfa +pp + av + eqt SUD promo | EP2: Coût total transport Sud | EQ2: Coût transport Sud | ER2: Coût emballage Sud | ES2: RFA Sud | ET2: % participation Sud | EU2: % avoir Sud | EV2: % étiquette Sud | EW2: pa + tprt + rfa +pp + av + eqt SUD
A3: 3834000056388 | B3: 5638 | C3: BOUGAINVILLEA | D3: sanderiana | F3: ARBUS | G3: Arbustes | H3: AVR | I3: avril | J3: 037 | K3: 25 | L3: 023 | M3: 10L | N3: 065 | O3: 40/50 | P3: BOU | Q3: boule | X3: A10405 | Y3: AA405010 | Z3: UNI | AA3: 10 | AB3: PE8 | AC3: Palette étages 80 x 120 | AD3: 3 | AE3: ML | AF3: 2 | AG3: CAM | AH3: 13 | AI3: 780 | AJ3: 3 | AK3: 10.8 | AP3: FV | AQ3: Ferriol Viveros | AR3: 20 | AS3: FERRIOL VIVEROS | BH3: 12 | BK3: 0 | BN3: =INDEX(TarifTruffautSudT14,MATCH(B3,CodeTarifTruffautSudT14,0)) ->  | BO3: =INDEX(TarifTruffautNordT13,MATCH(B3,CodeTarifTruffautNordT13,0)) ->  | BP3: =CF3-BO3 ->  | BQ3: =CJ3 -> 23.8 | BR3: =CJ3 -> 23.8 | BS3: =CD3 -> 0 | BT3: =CT3 -> 24.15 | BU3: =CT3 -> 24.15 | BV3: =CQ3 -> 0 | BW3: =CJ3 -> 23.8 | BX3: =CJ3 -> 23.8 | BY3: =CD3 -> 0 | BZ3: =CT3 -> 24.15 | CA3: =CT3 -> 24.15 | CB3: =CQ3 -> 0 | CE3: =CD3/DQ3 -> 0 | CF3: =INDEX(TarifJdrNordT12,MATCH(B3,CodeTarifJdrNordT12,0)) -> 19.05 | CG3: =CF3/DY3 -> 1.019220738 | CH3: =CF3/EG3 -> 0.9717404611 | CI3: 1.3 | CJ3: =ROUNDUP((BH3*CI3+EA3+EB3)/0.896*20,0)/20 -> 23.8 | CK3: =CJ3/EG3 -> 1.214037951 | CL3: =(CJ3-CO3)/CJ3 -> 0.243697479 | CM3: =IF(CD3=0,0,IF(CD3>0,BH3*$CO$1)) -> 0 | CN3: =CM3/(DQ3-DK3) -> 0 | CO3: =$BH3*$CO$1 -> 18 | CP3: =CO3/($EG3-$EA3) -> 1.191737288 | CR3: =CQ3/EO3 -> 0 | CS3: =IF($AB3="VRA","1.20",IF($AB3="VRG","1.20",IF($AB3<>"VRA","1.20",IF($AB3<>"VRG","1.20")))) -> 1.20 | CT3: =ROUNDUP((BH3+EQ3+ER3)*CS3/0.8505*20,0)/20 -> 24.15 | CU3: =CT3/EW3 -> 1.268915511 | CV3: =CF3*$CV$1 -> 17.145 | CW3: =(CT3-CO3)/CT3 -> 0.2546583851 | CX3: =AI3 -> 780 | CY3: =INDEX('Données transport emballage'!$4:$19,MATCH('Calcul tarif Truf_JDR'!AB3,'Données transport emballage'!$M$4:$M$19,0),MATCH('Calcul tarif Truf_JDR'!AR3,'Données transport emballage'!$2:$2,0)+2) -> 35 | CZ3: =INDEX('Données transport emballage'!$4:$19,MATCH('Calcul tarif Truf_JDR'!AB3,'Données transport emballage'!$M$4:$M$19,0),MATCH('Calcul tarif Truf_JDR'!AR3,'Données transport emballage'!$2:$2,0)+5) -> 117 | DA3: =INDEX('Données transport emballage'!$4:$19,MATCH('Calcul tarif Truf_JDR'!AB3,'Données transport emballage'!$M$4:$M$19,0),MATCH('Calcul tarif Truf_JDR'!AR3,'Données transport emballage'!$2:$2,0)+8) -> 135 | DB3: =DC3+DD3 -> 5.7 | DC3: =IF($AB3="VRA",ROUNDUP(($DA3/$AI3)*20,0)/20,IF($AB3="VRG",ROUNDUP(($DA3/$AI3)*20,0)/20,IF($AB3<>"VRA",ROUNDUP(($DA3/($AA3*$AD3))*20,0)/20,IF($AB3<>"VRG",ROUNDUP(($DA3/($AA3*$AD3))*20,0)/20)))) -> 4.5 | DD3: =IF($AB3="VRA",ROUNDUP(($CY3/$AI3)*20,0)/20,IF($AB3="VRG",ROUNDUP(($CY3/$AI3)*20,0)/20,IF($AB3<>"VRA",ROUNDUP(($CY3/($AA3*$AD3))*20,0)/20,IF($AB3<>"VRG",ROUNDUP(($CY3/($AA3*$AD3))*20,0)/20)))) -> 1.2 | DE3: =#REF!*$DE$1 ->  | DF3: =#REF!*$DF$1 ->  | DG3: =#REF!*$DG$1 ->  | DH3: =#REF!*$DH$1 ->  | DI3: =$AK3+DC3+DD3+DE3+DF3+DG3+DH3+$DP3 ->  | DJ3: =$DK3+$DL3 -> 5.7 | DK3: =IF($AB3="VRA",ROUNDUP(($DA3/$AI3)*20,0)/20,IF($AB3="VRG",ROUNDUP(($DA3/$AI3)*20,0)/20,IF($AB3<>"VRA",ROUNDUP(($DA3/($AA3*$AD3))*20,0)/20,IF($AB3<>"VRG",ROUNDUP(($DA3/($AA3*$AD3))*20,0)/20)))) -> 4.5 | DL3: =IF($AB3="VRA",ROUNDUP(($CY3/$AI3)*20,0)/20,IF($AB3="VRG",ROUNDUP(($CY3/$AI3)*20,0)/20,IF($AB3<>"VRA",ROUNDUP(($CY3/($AA3*$AD3))*20,0)/20,IF($AB3<>"VRG",ROUNDUP(($CY3/($AA3*$AD3))*20,0)/20)))) -> 1.2 | DM3: =$CD3*$DM$1 -> 0 | DN3: =$CD3*$DN$1 -> 0 | DO3: =$CD3*$DO$1 -> 0 | DP3: =$CD3*$DP$1 -> 0 | DQ3: =$BH3+$DK3+$DL3+$DM3+$DN3+$DO3+$DP3 -> 17.7 | DR3: =DS3+DT3 -> 5.7 | DS3: =IF($AB3="VRA",ROUNDUP(($DA3/$AI3)*20,0)/20,IF($AB3="VRG",ROUNDUP(($DA3/$AI3)*20,0)/20,IF($AB3<>"VRA",ROUNDUP(($DA3/($AA3*$AD3))*20,0)/20,IF($AB3<>"VRG",ROUNDUP(($DA3/($AA3*$AD3))*20,0)/20)))) -> 4.5 | DT3: =IF($AB3="VRA",ROUNDUP(($CY3/$AI3)*20,0)/20,IF($AB3="VRG",ROUNDUP(($CY3/$AI3)*20,0)/20,IF($AB3<>"VRA",ROUNDUP(($CY3/($AA3*$AD3))*20,0)/20,IF($AB3<>"VRG",ROUNDUP(($CY3/($AA3*$AD3))*20,0)/20)))) -> 1.2 | DU3: =CF3*$DU$1 -> 0.9525 | DV3: =CF3*$DV$1 -> 0.47625 | DW3: =CF3*$DW$1 -> 0.47625 | DX3: =CF3*$DX$1 -> 0.28575 | DY3: =AK3+DS3+DT3+DU3+DV3+DW3+DX3 -> 18.69075 | DZ3: =$EA3+$EB3 -> 5.7 | EA3: =IF($AB3="VRA",ROUNDUP(($DA3/$AI3)*20,0)/20,IF($AB3="VRG",ROUNDUP(($DA3/$AI3)*20,0)/20,IF($AB3<>"VRA",ROUNDUP(($DA3/($AA3*$AD3))*20,0)/20,IF($AB3<>"VRG",ROUNDUP(($DA3/($AA3*$AD3))*20,0)/20)))) -> 4.5 | EB3: =IF($AB3="VRA",ROUNDUP(($CY3/$AI3)*20,0)/20,IF($AB3="VRG",ROUNDUP(($CY3/$AI3)*20,0)/20,IF($AB3<>"VRA",ROUNDUP(($CY3/($AA3*$AD3))*20,0)/20,IF($AB3<>"VRG",ROUNDUP(($CY3/($AA3*$AD3))*20,0)/20)))) -> 1.2 | EC3: =$CJ3*$EC$1 -> 1.19 | ED3: =$CJ3*$ED$1 -> 0.476 | EE3: =$CJ3*$EE$1 -> 0 | EF3: =$CJ3*$EF$1 -> 0.238 | EG3: =BH3+EA3+EB3+EC3+ED3+EE3+EF3 -> 19.604 | EH3: =EI3+EJ3 -> 5.1 | EI3: =IF($AB3="VRA",ROUNDUP(($CZ3/$AI3)*20,0)/20,IF($AB3="VRG",ROUNDUP(($CZ3/$AI3)*20,0)/20,IF($AB3<>"VRA",ROUNDUP(($CZ3/($AA3*$AD3))*20,0)/20,IF($AB3<>"VRG",ROUNDUP(($CZ3/($AA3*$AD3))*20,0)/20)))) -> 3.9 | EJ3: =IF($AB3="VRA",ROUNDUP(($CY3/$AI3)*20,0)/20,IF($AB3="VRG",ROUNDUP(($CY3/$AI3)*20,0)/20,IF($AB3<>"VRA",ROUNDUP(($CY3/($AA3*$AD3))*20,0)/20,IF($AB3<>"VRG",ROUNDUP(($CY3/($AA3*$AD3))*20,0)/20)))) -> 1.2 | EK3: =$CQ3*$EK$1 -> 0 | EL3: =$CQ3*$EL$1 -> 0 | EM3: =$CQ3*$EM$1 -> 0 | EN3: =$CQ3*$EN$1 -> 0 | EO3: =BH3+EI3+EJ3+EK3+EL3+EM3+EN3 -> 17.1 | EP3: =EQ3+ER3 -> 5.1 | EQ3: =IF($AB3="VRA",ROUNDUP(($CZ3/$AI3)*20,0)/20,IF($AB3="VRG",ROUNDUP(($CZ3/$AI3)*20,0)/20,IF($AB3<>"VRA",ROUNDUP(($CZ3/($AA3*$AD3))*20,0)/20,IF($AB3<>"VRG",ROUNDUP(($CZ3/($AA3*$AD3))*20,0)/20)))) -> 3.9 | ER3: =IF($AB3="VRA",ROUNDUP(($CY3/$AI3)*20,0)/20,IF($AB3="VRG",ROUNDUP(($CY3/$AI3)*20,0)/20,IF($AB3<>"VRA",ROUNDUP(($CY3/($AA3*$AD3))*20,0)/20,IF($AB3<>"VRG",ROUNDUP(($CY3/($AA3*$AD3))*20,0)/20)))) -> 1.2 | ES3: =$CT3*$ES$1 -> 1.2075 | ET3: =$CT3*$ET$1 -> 0.483 | EU3: =$CT3*$EU$1 -> 0 | EV3: =$CT3*$EV$1 -> 0.2415 | EW3: =BH3+EQ3+ER3+ES3+ET3+EU3+EV3 -> 19.032
A4: 3834000056388 | B4: 5638 | C4: BOUGAINVILLEA | D4: sanderiana | F4: ARBUS | G4: Arbustes | H4: AVR | I4: avril | J4: 037 | K4: 25 | L4: 023 | M4: 10L | N4: 065 | O4: 40/50 | P4: BOU | Q4: boule | X4: A10405 | Y4: AA405010 | Z4: UNI | AA4: 1 | AB4: VRA | AC4: Vrac | AD4: 1 | AE4: ML | AF4: 148.148 | AG4: CAM | AH4: 13.5 | AI4: 1999.998 | AJ4: 3 | AK4: 10.8 | AP4: FV | AQ4: Ferriol Viveros | AR4: 20 | AS4: FERRIOL VIVEROS | BH4: 12 | BK4: 1 | BQ4: =CJ4 -> 19.1 | BR4: =CJ4 -> 19.1 | BS4: =CD4 -> 0 | BT4: =CT4 -> 18.7 | BU4: =CT4 -> 18.7 | BV4: =CQ4 -> 0 | BW4: =CJ4 -> 19.1 | BX4: =CJ4 -> 19.1 | BY4: =CD4 -> 0 | BZ4: =CT4 -> 18.7 | CA4: =CT4 -> 18.7 | CB4: =CQ4 -> 0 | CE4: =CD4/DQ4 -> 0 | CF4: 19.05 | CG4: =CF4/DY4 -> 1.314631748 | CH4: =CF4/EG4 -> 1.26763375 | CI4: 1.3 | CJ4: =ROUNDUP((BH4*CI4+EA4+EB4)/0.896*20,0)/20 -> 19.1 | CK4: =CJ4/EG4 -> 1.270960873 | CL4: =(CJ4-CO4)/CJ4 -> 0.05759162304 | CM4: 0 | CN4: =CM4/(DQ4-DK4) -> 0 | CO4: 18 | CP4: =CO4/($EG4-$EA4) -> 1.330573625 | CR4: =CQ4/EO4 -> 0 | CS4: =IF($AB4="VRA","1.20",IF($AB4="VRG","1.20",IF($AB4<>"VRA","1.20",IF($AB4<>"VRG","1.20")))) -> 1.20 | CT4: 18.7 | CU4: =CT4/EW4 -> 1.268140513 | CV4: =CF4*$CV$1 -> 17.145 | CW4: =(CT4-CO4)/CT4 -> 0.03743315508 | CX4: 1999.998 | CY4: =INDEX('Données transport emballage'!$4:$19,MATCH('Calcul tarif Truf_JDR'!AB4,'Données transport emballage'!$M$4:$M$19,0),MATCH('Calcul tarif Truf_JDR'!AR4,'Données transport emballage'!$2:$2,0)+2) -> 0 | CZ4: =INDEX('Données transport emballage'!$4:$19,MATCH('Calcul tarif Truf_JDR'!AB4,'Données transport emballage'!$M$4:$M$19,0),MATCH('Calcul tarif Truf_JDR'!AR4,'Données transport emballage'!$2:$2,0)+5) -> 2400 | DA4: =INDEX('Données transport emballage'!$4:$19,MATCH('Calcul tarif Truf_JDR'!AB4,'Données transport emballage'!$M$4:$M$19,0),MATCH('Calcul tarif Truf_JDR'!AR4,'Données transport emballage'!$2:$2,0)+8) -> 2900 | DB4: =DC4+DD4 -> 1.5 | DC4: 1.5 | DD4: 0 | DE4: =#REF!*$DE$1 ->  | DF4: =#REF!*$DF$1 ->  | DG4: =#REF!*$DG$1 ->  | DH4: =#REF!*$DH$1 ->  | DJ4: =$DK4+$DL4 -> 1.5 | DK4: 1.5 | DL4: 0 | DM4: =$CD4*$DM$1 -> 0 | DN4: =$CD4*$DN$1 -> 0 | DO4: =$CD4*$DO$1 -> 0 | DP4: =$CD4*$DP$1 -> 0 | DQ4: 13.5 | DR4: =DS4+DT4 -> 1.5 | DS4: 1.5 | DT4: 0 | DU4: =CF4*$DU$1 -> 0.9525 | DV4: =CF4*$DV$1 -> 0.47625 | DW4: =CF4*$DW$1 -> 0.47625 | DX4: =CF4*$DX$1 -> 0.28575 | DY4: 14.49075 | DZ4: =$EA4+$EB4 -> 1.5 | EA4: 1.5 | EB4: 0 | EC4: =$CJ4*$EC$1 -> 0.955 | ED4: =$CJ4*$ED$1 -> 0.382 | EE4: =$CJ4*$EE$1 -> 0 | EF4: =$CJ4*$EF$1 -> 0.191 | EG4: 15.028 | EH4: =EI4+EJ4 -> 1.25 | EI4: 1.25 | EJ4: 0 | EK4: =$CQ4*$EK$1 -> 0 | EL4: =$CQ4*$EL$1 -> 0 | EM4: =$CQ4*$EM$1 -> 0 | EN4: =$CQ4*$EN$1 -> 0 | EO4: 13.25 | EP4: =EQ4+ER4 -> 1.25 | EQ4: 1.25 | ER4: 0 | ES4: =$CT4*$ES$1 -> 0.935 | ET4: =$CT4*$ET$1 -> 0.374 | EU4: =$CT4*$EU$1 -> 0 | EV4: =$CT4*$EV$1 -> 0.187 | EW4: 14.746
A5: 3834000056395 | B5: 5639 | C5: BUTIA | D5: capitata | F5: PALM | G5: Palmiers | H5: NDI | I5: non dispo | J5: 076 | K5: 50 | L5: 055 | M5: 70L | N5: 055 | O5: 30/40T | X5: PQA6520 | Y5: PQAF203065 | Z5: UNI | AA5: 1 | AB5: VRA | AC5: Vrac | AD5: 1 | AE5: ML | AF5: 8.148 | AG5: CAM | AH5: 13.5 | AI5: 109.998 | AJ5: 3 | AK5: 63 | AP5: FV | AQ5: Ferriol Viveros | AR5: 20 | AS5: FERRIOL VIVEROS | BH5: 70 | BK5: 1 | BQ5: 139.9 | BR5: 139.9 | BS5: 0 | BT5: 129.6 | BU5: 129.6 | BV5: 0 | BW5: 139.9 | BX5: 139.9 | BY5: 0 | BZ5: 129.6 | CA5: 129.6 | CB5: 0 | CE5: 0 | CF5: 136.05 | CG5: 1.29514997 | CH5: 1.264499219 | CI5: 1.3 | CJ5: =ROUNDUP((BH5+EA5+EB5)*CI5/0.896*20,0)/20 -> 139.9 | CK5: 1.300282549 | CL5: 0.2494639028 | CM5: 0 | CN5: 0 | CO5: 105 | CP5: 1.29323086 | CR5: 0 | CS5: 1.20 | CT5: 129.6 | CU5: 1.267878456 | CV5: 122.445 | CW5: 0.1898148148 | CX5: 109.998 | CY5: =INDEX('Données transport emballage'!$4:$19,MATCH('Calcul tarif Truf_JDR'!AB5,'Données transport emballage'!$M$4:$M$19,0),MATCH('Calcul tarif Truf_JDR'!AR5,'Données transport emballage'!$2:$2,0)+2) -> 0 | CZ5: =INDEX('Données transport emballage'!$4:$19,MATCH('Calcul tarif Truf_JDR'!AB5,'Données transport emballage'!$M$4:$M$19,0),MATCH('Calcul tarif Truf_JDR'!AR5,'Données transport emballage'!$2:$2,0)+5) -> 2400 | DA5: =INDEX('Données transport emballage'!$4:$19,MATCH('Calcul tarif Truf_JDR'!AB5,'Données transport emballage'!$M$4:$M$19,0),MATCH('Calcul tarif Truf_JDR'!AR5,'Données transport emballage'!$2:$2,0)+8) -> 2900 | DB5: 26.4 | DC5: 26.4 | DD5: 0 | DE5: =#REF!*$DE$1 ->  | DF5: =#REF!*$DF$1 ->  | DG5: =#REF!*$DG$1 ->  | DH5: =#REF!*$DH$1 ->  | DJ5: 26.4 | DK5: 26.4 | DL5: 0 | DM5: 0 | DN5: 0 | DO5: 0 | DP5: 0 | DQ5: 96.4 | DR5: 26.4 | DS5: 26.4 | DT5: 0 | DU5: 6.8025 | DV5: 3.40125 | DW5: 3.40125 | DX5: 2.04075 | DY5: 105.04575 | DZ5: 26.4 | EA5: 26.4 | EB5: 0 | EC5: 6.995 | ED5: 2.798 | EE5: 0 | EF5: 1.399 | EG5: 107.592 | EH5: 21.85 | EI5: 21.85 | EJ5: 0 | EK5: 0 | EL5: 0 | EM5: 0 | EN5: 0 | EO5: 91.85 | EP5: 21.85 | EQ5: 21.85 | ER5: 0 | ES5: 6.48 | ET5: 2.592 | EU5: 0 | EV5: 1.296 | EW5: 102.218
A6: 3834000056395 | B6: 5639 | C6: BUTIA | D6: capitata | F6: PALM | G6: Palmiers | H6: NDI | I6: non dispo | J6: 076 | K6: 50 | L6: 055 | M6: 70L | N6: 055 | O6: 30/40T | X6: PQA6520 | Y6: PQAF203065 | Z6: ETG | AA6: 4 | AB6: PS1 | AC6: Palette socle 100 x 120 | AD6: 1 | AE6: ML | AF6: 2 | AG6: CAM | AH6: 13 | AI6: 104 | AJ6: 3 | AK6: 63 | AP6: FV | AQ6: Ferriol Viveros | AR6: 20 | AS6: FERRIOL VIVEROS | BH6: 70 | BK6: 0 | BQ6: 154.2 | BR6: 154.2 | BS6: 0 | BT6: 143.6 | BU6: 143.6 | BV6: 0 | BW6: 154.2 | BX6: 154.2 | BY6: 0 | BZ6: 143.6 | CA6: 143.6 | CB6: 0 | CE6: 0 | CF6: 136.05 | CG6: 1.184116906 | CH6: 1.147268649 | CI6: 1.3 | CJ6: =ROUNDUP((BH6+EA6+EB6)*CI6/0.896*20,0)/20 -> 154.2 | CK6: 1.300322129 | CL6: 0.3190661479 | CM6: 0 | CN6: 0 | CO6: 105 | CP6: 1.237682116 | CR6: 0 | CS6: 1.20 | CT6: 143.6 | CU6: 1.268125541 | CV6: 122.445 | CW6: 0.2688022284 | CX6: 104 | CY6: =INDEX('Données transport emballage'!$4:$19,MATCH('Calcul tarif Truf_JDR'!AB6,'Données transport emballage'!$M$4:$M$19,0),MATCH('Calcul tarif Truf_JDR'!AR6,'Données transport emballage'!$2:$2,0)+2) -> 10 | CZ6: =INDEX('Données transport emballage'!$4:$19,MATCH('Calcul tarif Truf_JDR'!AB6,'Données transport emballage'!$M$4:$M$19,0),MATCH('Calcul tarif Truf_JDR'!AR6,'Données transport emballage'!$2:$2,0)+5) -> 117 | DA6: =INDEX('Données transport emballage'!$4:$19,MATCH('Calcul tarif Truf_JDR'!AB6,'Données transport emballage'!$M$4:$M$19,0),MATCH('Calcul tarif Truf_JDR'!AR6,'Données transport emballage'!$2:$2,0)+8) -> 135 | DB6: 36.25 | DC6: 33.75 | DD6: 2.5 | DE6: =#REF!*$DE$1 ->  | DF6: =#REF!*$DF$1 ->  | DG6: =#REF!*$DG$1 ->  | DH6: =#REF!*$DH$1 ->  | DJ6: 36.25 | DK6: 33.75 | DL6: 2.5 | DM6: 0 | DN6: 0 | DO6: 0 | DP6: 0 | DQ6: 106.25 | DR6: 36.25 | DS6: 33.75 | DT6: 2.5 | DU6: 6.8025 | DV6: 3.40125 | DW6: 3.40125 | DX6: 2.04075 | DY6: 114.89575 | DZ6: 36.25 | EA6: 33.75 | EB6: 2.5 | EC6: 7.71 | ED6: 3.084 | EE6: 0 | EF6: 1.542 | EG6: 118.586 | EH6: 31.75 | EI6: 29.25 | EJ6: 2.5 | EK6: 0 | EL6: 0 | EM6: 0 | EN6: 0 | EO6: 101.75 | EP6: 31.75 | EQ6: 29.25 | ER6: 2.5 | ES6: 7.18 | ET6: 2.872 | EU6: 0 | EV6: 1.436 | EW6: 113.238
A7: 3834000056401 | B7: 5640 | C7: DASYLIRION | D7: longissimum | F7: SUCC | G7: Succulentes | J7: 037 | K7: 25 | L7: 023 | M7: 10L | N7: 081 | O7: 50/70 | X7: A10405 | Y7: AA405010 | Z7: UNI | AA7: 80 | AB7: BOX | AC7: Box 100 x 120 | AD7: 1 | AE7: ML | AF7: 2 | AG7: CAM | AH7: 13 | AI7: 2080 | AJ7: 3 | AK7: 11.7 | AP7: FV | AQ7: Ferriol Viveros | AR7: 20 | AS7: FERRIOL VIVEROS | AX7: NST | AY7: Notre Sélection | BH7: 13 | BK7: 0 | BQ7: 21.95 | BR7: 21.95 | BS7: 0 | BT7: 21.05 | BU7: 21.05 | BV7: 0 | BW7: 21.95 | BX7: 21.95 | BY7: 0 | BZ7: 21.05 | CA7: 21.05 | CB7: 0 | CE7: 0 | CF7: 20.5 | CG7: 1.268760637 | CH7: 1.216184148 | CI7: 1.3 | CJ7: =ROUNDUP((BH7+EA7+EB7)*CI7/0.896*20,0)/20 -> 21.95 | CK7: 1.302206929 | CL7: 0.1116173121 | CM7: 0 | CN7: 0 | CO7: 19.5 | CP7: 1.286619161 | CR7: 0 | CS7: 1.20 | CT7: 21.05 | CU7: 1.269295707 | CV7: 18.45 | CW7: 0.07363420428 | CX7: 2080 | CY7: =INDEX('Données transport emballage'!$4:$19,MATCH('Calcul tarif Truf_JDR'!AB7,'Données transport emballage'!$M$4:$M$19,0),MATCH('Calcul tarif Truf_JDR'!AR7,'Données transport emballage'!$2:$2,0)+2) -> 30 | CZ7: =INDEX('Données transport emballage'!$4:$19,MATCH('Calcul tarif Truf_JDR'!AB7,'Données transport emballage'!$M$4:$M$19,0),MATCH('Calcul tarif Truf_JDR'!AR7,'Données transport emballage'!$2:$2,0)+5) -> 117 | DA7: =INDEX('Données transport emballage'!$4:$19,MATCH('Calcul tarif Truf_JDR'!AB7,'Données transport emballage'!$M$4:$M$19,0),MATCH('Calcul tarif Truf_JDR'!AR7,'Données transport emballage'!$2:$2,0)+8) -> 135 | DB7: 2.1 | DC7: 1.7 | DD7: 0.4 | DE7: =#REF!*$DE$1 ->  | DF7: =#REF!*$DF$1 ->  | DG7: =#REF!*$DG$1 ->  | DH7: =#REF!*$DH$1 ->  | DJ7: 2.1 | DK7: 1.7 | DL7: 0.4 | DM7: 0 | DN7: 0 | DO7: 0 | DP7: 0 | DQ7: 15.1 | DR7: 2.1 | DS7: 1.7 | DT7: 0.4 | DU7: 1.025 | DV7: 0.5125 | DW7: 0.5125 | DX7: 0.3075 | DY7: 16.1575 | DZ7: 2.1 | EA7: 1.7 | EB7: 0.4 | EC7: 1.0975 | ED7: 0.439 | EE7: 0 | EF7: 0.2195 | EG7: 16.856 | EH7: 1.9 | EI7: 1.5 | EJ7: 0.4 | EK7: 0 | EL7: 0 | EM7: 0 | EN7: 0 | EO7: 14.9 | EP7: 1.9 | EQ7: 1.5 | ER7: 0.4 | ES7: 1.0525 | ET7: 0.421 | EU7: 0 | EV7: 0.2105 | EW7: 16.584
A8: 3834000056401 | B8: 5640 | C8: DASYLIRION | D8: longissimum | F8: SUCC | G8: Succulentes | J8: 037 | K8: 25 | L8: 023 | M8: 10L | N8: 081 | O8: 50/70 | X8: A10405 | Y8: AA405010 | Z8: UNI | AA8: 1 | AB8: VRA | AC8: Vrac | AD8: 1 | AE8: ML | AF8: 148.148 | AG8: CAM | AH8: 13.5 | AI8: 1999.998 | AJ8: 3 | AK8: 11.7 | AP8: FV | AQ8: Ferriol Viveros | AR8: 20 | AS8: FERRIOL VIVEROS | AX8: NST | AY8: Notre Sélection | BH8: 13 | BK8: 1 | BQ8: 21.05 | BR8: 21.05 | BS8: 0 | BT8: 20.15 | BU8: 20.15 | BV8: 0 | BW8: 21.05 | BX8: 21.05 | BY8: 0 | BZ8: 20.15 | CA8: 20.15 | CB8: 0 | CE8: 0 | CF8: 20.5 | CG8: 1.317692431 | CH8: 1.266683144 | CI8: 1.3 | CJ8: 21.05 | CK8: 1.300667326 | CL8: 0.07363420428 | CM8: 0 | CN8: 0 | CO8: 19.5 | CP8: 1.327976028 | CR8: 0 | CS8: 1.20 | CT8: 20.15 | CU8: 1.27033161 | CV8: 18.45 | CW8: 0.03225806452 | CX8: 1999.998 | CY8: =INDEX('Données transport emballage'!$4:$19,MATCH('Calcul tarif Truf_JDR'!AB8,'Données transport emballage'!$M$4:$M$19,0),MATCH('Calcul tarif Truf_JDR'!AR8,'Données transport emballage'!$2:$2,0)+2) -> 0 | CZ8: =INDEX('Données transport emballage'!$4:$19,MATCH('Calcul tarif Truf_JDR'!AB8,'Données transport emballage'!$M$4:$M$19,0),MATCH('Calcul tarif Truf_JDR'!AR8,'Données transport emballage'!$2:$2,0)+5) -> 2400 | DA8: =INDEX('Données transport emballage'!$4:$19,MATCH('Calcul tarif Truf_JDR'!AB8,'Données transport emballage'!$M$4:$M$19,0),MATCH('Calcul tarif Truf_JDR'!AR8,'Données transport emballage'!$2:$2,0)+8) -> 2900 | DB8: 1.5 | DC8: 1.5 | DD8: 0 | DE8: =#REF!*$DE$1 ->  | DF8: =#REF!*$DF$1 ->  | DG8: =#REF!*$DG$1 ->  | DH8: =#REF!*$DH$1 ->  | DJ8: 1.5 | DK8: 1.5 | DL8: 0 | DM8: 0 | DN8: 0 | DO8: 0 | DP8: 0 | DQ8: 14.5 | DR8: 1.5 | DS8: 1.5 | DT8: 0 | DU8: 1.025 | DV8: 0.5125 | DW8: 0.5125 | DX8: 0.3075 | DY8: 15.5575 | DZ8: 1.5 | EA8: 1.5 | EB8: 0 | EC8: 1.0525 | ED8: 0.421 | EE8: 0 | EF8: 0.2105 | EG8: 16.184 | EH8: 1.25 | EI8: 1.25 | EJ8: 0 | EK8: 0 | EL8: 0 | EM8: 0 | EN8: 0 | EO8: 14.25 | EP8: 1.25 | EQ8: 1.25 | ER8: 0 | ES8: 1.0075 | ET8: 0.403 | EU8: 0 | EV8: 0.2015 | EW8: 15.862
A9: 3834000056418 | B9: 5641 | C9: DASYLIRION | D9: serratifolia | F9: SUCC | G9: Succulentes | J9: 037 | K9: 25 | L9: 023 | M9: 10L | N9: 081 | O9: 50/70 | X9: A10405 | Y9: AA405010 | Z9: UNI | AA9: 80 | AB9: BOX | AC9: Box 100 x 120 | AD9: 1 | AE9: ML | AF9: 2 | AG9: CAM | AH9: 13 | AI9: 2080 | AJ9: 3 | AK9: 11.7 | AP9: FV | AQ9: Ferriol Viveros | AR9: 20 | AS9: FERRIOL VIVEROS | BH9: 13 | BK9: 0 | BQ9: 21.95 | BR9: 21.95 | BS9: 0 | BT9: 21.05 | BU9: 21.05 | BV9: 0 | BW9: 21.95 | BX9: 21.95 | BY9: 0 | BZ9: 21.05 | CA9: 21.05 | CB9: 0 | CE9: 0 | CF9: 20.5 | CG9: 1.268760637 | CH9: 1.216184148 | CI9: 1.3 | CJ9: 21.95 | CK9: 1.302206929 | CL9: 0.1116173121 | CM9: 0 | CN9: 0 | CO9: 19.5 | CP9: 1.286619161 | CR9: 0 | CS9: 1.20 | CT9: 21.05 | CU9: 1.269295707 | CV9: 18.45 | CW9: 0.07363420428 | CX9: 2080 | CY9: =INDEX('Données transport emballage'!$4:$19,MATCH('Calcul tarif Truf_JDR'!AB9,'Données transport emballage'!$M$4:$M$19,0),MATCH('Calcul tarif Truf_JDR'!AR9,'Données transport emballage'!$2:$2,0)+2) -> 30 | CZ9: =INDEX('Données transport emballage'!$4:$19,MATCH('Calcul tarif Truf_JDR'!AB9,'Données transport emballage'!$M$4:$M$19,0),MATCH('Calcul tarif Truf_JDR'!AR9,'Données transport emballage'!$2:$2,0)+5) -> 117 | DA9: =INDEX('Données transport emballage'!$4:$19,MATCH('Calcul tarif Truf_JDR'!AB9,'Données transport emballage'!$M$4:$M$19,0),MATCH('Calcul tarif Truf_JDR'!AR9,'Données transport emballage'!$2:$2,0)+8) -> 135 | DB9: 2.1 | DC9: 1.7 | DD9: 0.4 | DE9: =#REF!*$DE$1 ->  | DF9: =#REF!*$DF$1 ->  | DG9: =#REF!*$DG$1 ->  | DH9: =#REF!*$DH$1 ->  | DJ9: 2.1 | DK9: 1.7 | DL9: 0.4 | DM9: 0 | DN9: 0 | DO9: 0 | DP9: 0 | DQ9: 15.1 | DR9: 2.1 | DS9: 1.7 | DT9: 0.4 | DU9: 1.025 | DV9: 0.5125 | DW9: 0.5125 | DX9: 0.3075 | DY9: 16.1575 | DZ9: 2.1 | EA9: 1.7 | EB9: 0.4 | EC9: 1.0975 | ED9: 0.439 | EE9: 0 | EF9: 0.2195 | EG9: 16.856 | EH9: 1.9 | EI9: 1.5 | EJ9: 0.4 | EK9: 0 | EL9: 0 | EM9: 0 | EN9: 0 | EO9: 14.9 | EP9: 1.9 | EQ9: 1.5 | ER9: 0.4 | ES9: 1.0525 | ET9: 0.421 | EU9: 0 | EV9: 0.2105 | EW9: 16.584
A10: 3834000056418 | B10: 5641 | C10: DASYLIRION | D10: serratifolia | F10: SUCC | G10: Succulentes | J10: 037 | K10: 25 | L10: 023 | M10: 10L | N10: 081 | O10: 50/70 | X10: A10405 | Y10: AA405010 | Z10: UNI | AA10: 1 | AB10: VRA | AC10: Vrac | AD10: 1 | AE10: ML | AF10: 148.148 | AG10: CAM | AH10: 13.5 | AI10: 1999.998 | AJ10: 3 | AK10: 11.7 | AP10: FV | AQ10: Ferriol Viveros | AR10: 20 | AS10: FERRIOL VIVEROS | BH10: 13 | BK10: 1 | BQ10: 21.05 | BR10: 21.05 | BS10: 0 | BT10: 20.15 | BU10: 20.15 | BV10: 0 | BW10: 21.05 | BX10: 21.05 | BY10: 0 | BZ10: 20.15 | CA10: 20.15 | CB10: 0 | CE10: 0 | CF10: 20.5 | CG10: 1.317692431 | CH10: 1.266683144 | CI10: 1.3 | CJ10: 21.05 | CK10: 1.300667326 | CL10: 0.07363420428 | CM10: 0 | CN10: 0 | CO10: 19.5 | CP10: 1.327976028 | CR10: 0 | CS10: 1.20 | CT10: 20.15 | CU10: 1.27033161 | CV10: 18.45 | CW10: 0.03225806452 | CX10: 1999.998 | CY10: =INDEX('Données transport emballage'!$4:$19,MATCH('Calcul tarif Truf_JDR'!AB10,'Données transport emballage'!$M$4:$M$19,0),MATCH('Calcul tarif Truf_JDR'!AR10,'Données transport emballage'!$2:$2,0)+2) -> 0 | CZ10: =INDEX('Données transport emballage'!$4:$19,MATCH('Calcul tarif Truf_JDR'!AB10,'Données transport emballage'!$M$4:$M$19,0),MATCH('Calcul tarif Truf_JDR'!AR10,'Données transport emballage'!$2:$2,0)+5) -> 2400 | DA10: =INDEX('Données transport emballage'!$4:$19,MATCH('Calcul tarif Truf_JDR'!AB10,'Données transport emballage'!$M$4:$M$19,0),MATCH('Calcul tarif Truf_JDR'!AR10,'Données transport emballage'!$2:$2,0)+8) -> 2900 | DB10: 1.5 | DC10: 1.5 | DD10: 0 | DE10: =#REF!*$DE$1 ->  | DF10: =#REF!*$DF$1 ->  | DG10: =#REF!*$DG$1 ->  | DH10: =#REF!*$DH$1 ->  | DJ10: 1.5 | DK10: 1.5 | DL10: 0 | DM10: 0 | DN10: 0 | DO10: 0 | DP10: 0 | DQ10: 14.5 | DR10: 1.5 | DS10: 1.5 | DT10: 0 | DU10: 1.025 | DV10: 0.5125 | DW10: 0.5125 | DX10: 0.3075 | DY10: 15.5575 | DZ10: 1.5 | EA10: 1.5 | EB10: 0 | EC10: 1.0525 | ED10: 0.421 | EE10: 0 | EF10: 0.2105 | EG10: 16.184 | EH10: 1.25 | EI10: 1.25 | EJ10: 0 | EK10: 0 | EL10: 0 | EM10: 0 | EN10: 0 | EO10: 14.25 | EP10: 1.25 | EQ10: 1.25 | ER10: 0 | ES10: 1.0075 | ET10: 0.403 | EU10: 0 | EV10: 0.2015 | EW10: 15.862
A11: 3834000056425 | B11: 5642 | C11: DASYLIRION | D11: serratifolia | F11: SUCC | G11: Succulentes | H11: NDI | I11: non dispo | J11: 049 | K11: 30 | L11: 029 | M11: 15L | N11: 107 | O11: 80/100 | X11: A15607 | Y11: AA607015 | Z11: UNI | AA11: 50 | AB11: BOX | AC11: Box 100 x 120 | AD11: 1 | AE11: ML | AF11: 2 | AG11: CAM | AH11: 13 | AI11: 1300 | AJ11: 3 | AK11: 16.2 | AP11: FV | AQ11: Ferriol Viveros | AR11: 20 | AS11: FERRIOL VIVEROS | BH11: 18 | BK11: 0 | BQ11: 30.95 | BR11: 30.95 | BS11: 0 | BT11: 29.6 | BU11: 29.6 | BV11: 0 | BW11: 30.95 | BX11: 30.95 | BY11: 0 | BZ11: 29.6 | CA11: 29.6 | CB11: 0 | CE11: 0 | CF11: 28.6 | CG11: 1.254991443 | CH11: 1.202893674 | CI11: 1.3 | CJ11: 30.95 | CK11: 1.30173284 | CL11: 0.1276252019 | CM11: 0 | CN11: 0 | CO11: 27 | CP11: 1.281078003 | CR11: 0 | CS11: 1.20 | CT11: 29.6 | CU11: 1.269405609 | CV11: 25.74 | CW11: 0.08783783784 | CX11: 1300 | CY11: =INDEX('Données transport emballage'!$4:$19,MATCH('Calcul tarif Truf_JDR'!AB11,'Données transport emballage'!$M$4:$M$19,0),MATCH('Calcul tarif Truf_JDR'!AR11,'Données transport emballage'!$2:$2,0)+2) -> 30 | CZ11: =INDEX('Données transport emballage'!$4:$19,MATCH('Calcul tarif Truf_JDR'!AB11,'Données transport emballage'!$M$4:$M$19,0),MATCH('Calcul tarif Truf_JDR'!AR11,'Données transport emballage'!$2:$2,0)+5) -> 117 | DA11: =INDEX('Données transport emballage'!$4:$19,MATCH('Calcul tarif Truf_JDR'!AB11,'Données transport emballage'!$M$4:$M$19,0),MATCH('Calcul tarif Truf_JDR'!AR11,'Données transport emballage'!$2:$2,0)+8) -> 135 | DB11: 3.3 | DC11: 2.7 | DD11: 0.6 | DE11: =#REF!*$DE$1 ->  | DF11: =#REF!*$DF$1 ->  | DG11: =#REF!*$DG$1 ->  | DH11: =#REF!*$DH$1 ->  | DJ11: 3.3 | DK11: 2.7 | DL11: 0.6 | DM11: 0 | DN11: 0 | DO11: 0 | DP11: 0 | DQ11: 21.3 | DR11: 3.3 | DS11: 2.7 | DT11: 0.6 | DU11: 1.43 | DV11: 0.715 | DW11: 0.715 | DX11: 0.429 | DY11: 22.789 | DZ11: 3.3 | EA11: 2.7 | EB11: 0.6 | EC11: 1.5475 | ED11: 0.619 | EE11: 0 | EF11: 0.3095 | EG11: 23.776 | EH11: 2.95 | EI11: 2.35 | EJ11: 0.6 | EK11: 0 | EL11: 0 | EM11: 0 | EN11: 0 | EO11: 20.95 | EP11: 2.95 | EQ11: 2.35 | ER11: 0.6 | ES11: 1.48 | ET11: 0.592 | EU11: 0 | EV11: 0.296 | EW11: 23.318
A12: 3834000056425 | B12: 5642 | C12: DASYLIRION | D12: serratifolia | F12: SUCC | G12: Succulentes | H12: NDI | I12: non dispo | J12: 049 | K12: 30 | L12: 029 | M12: 15L | N12: 107 | O12: 80/100 | X12: A15607 | Y12: AA607015 | Z12: UNI | AA12: 1 | AB12: VRA | AC12: Vrac | AD12: 1 | AE12: ML | AF12: 96.444 | AG12: CAM | AH12: 13.5 | AI12: 1301.994 | AJ12: 3 | AK12: 16.2 | AP12: FV | AQ12: Ferriol Viveros | AR12: 20 | AS12: FERRIOL VIVEROS | BH12: 18 | BK12: 1 | BQ12: 29.4 | BR12: 29.4 | BS12: 0 | BT12: 28.05 | BU12: 28.05 | BV12: 0 | BW12: 29.4 | BX12: 29.4 | BY12: 0 | BZ12: 28.05 | CA12: 28.05 | CB12: 0 | CE12: 0 | CF12: 28.6 | CG12: 1.315607894 | CH12: 1.265374746 | CI12: 1.3 | CJ12: 29.4 | CK12: 1.300769843 | CL12: 0.08163265306 | CM12: 0 | CN12: 0 | CO12: 27 | CP12: 1.326650943 | CR12: 0 | CS12: 1.20 | CT12: 28.05 | CU12: 1.26957545 | CV12: 25.74 | CW12: 0.03743315508 | CX12: 1301.994 | CY12: =INDEX('Données transport emballage'!$4:$19,MATCH('Calcul tarif Truf_JDR'!AB12,'Données transport emballage'!$M$4:$M$19,0),MATCH('Calcul tarif Truf_JDR'!AR12,'Données transport emballage'!$2:$2,0)+2) -> 0 | CZ12: =INDEX('Données transport emballage'!$4:$19,MATCH('Calcul tarif Truf_JDR'!AB12,'Données transport emballage'!$M$4:$M$19,0),MATCH('Calcul tarif Truf_JDR'!AR12,'Données transport emballage'!$2:$2,0)+5) -> 2400 | DA12: =INDEX('Données transport emballage'!$4:$19,MATCH('Calcul tarif Truf_JDR'!AB12,'Données transport emballage'!$M$4:$M$19,0),MATCH('Calcul tarif Truf_JDR'!AR12,'Données transport emballage'!$2:$2,0)+8) -> 2900 | DB12: 2.25 | DC12: 2.25 | DD12: 0 | DE12: =#REF!*$DE$1 ->  | DF12: =#REF!*$DF$1 ->  | DG12: =#REF!*$DG$1 ->  | DH12: =#REF!*$DH$1 ->  | DJ12: 2.25 | DK12: 2.25 | DL12: 0 | DM12: 0 | DN12: 0 | DO12: 0 | DP12: 0 | DQ12: 20.25 | DR12: 2.25 | DS12: 2.25 | DT12: 0 | DU12: 1.43 | DV12: 0.715 | DW12: 0.715 | DX12: 0.429 | DY12: 21.739 | DZ12: 2.25 | EA12: 2.25 | EB12: 0 | EC12: 1.47 | ED12: 0.588 | EE12: 0 | EF12: 0.294 | EG12: 22.602 | EH12: 1.85 | EI12: 1.85 | EJ12: 0 | EK12: 0 | EL12: 0 | EM12: 0 | EN12: 0 | EO12: 19.85 | EP12: 1.85 | EQ12: 1.85 | ER12: 0 | ES12: 1.4025 | ET12: 0.561 | EU12: 0 | EV12: 0.2805 | EW12: 22.094
A13: 3834000056432 | B13: 5643 | C13: DASYLIRION | D13: wheeleri | F13: SUCC | G13: Succulentes | J13: 037 | K13: 25 | L13: 023 | M13: 10L | N13: 081 | O13: 50/70 | X13: A10405 | Y13: AA405010 | Z13: UNI | AA13: 80 | AB13: BOX | AC13: Box 100 x 120 | AD13: 1 | AE13: ML | AF13: 2 | AG13: CAM | AH13: 13 | AI13: 2080 | AJ13: 3 | AK13: 11.7 | AP13: FV | AQ13: Ferriol Viveros | AR13: 20 | AS13: FERRIOL VIVEROS | AX13: NST | AY13: Notre Sélection | BH13: 13 | BK13: 0 | BQ13: 21.95 | BR13: 21.95 | BS13: 0 | BT13: 21.05 | BU13: 21.05 | BV13: 0 | BW13: 21.95 | BX13: 21.95 | BY13: 0 | BZ13: 21.05 | CA13: 21.05 | CB13: 0 | CE13: 0 | CF13: 20.5 | CG13: 1.268760637 | CH13: 1.216184148 | CI13: 1.3 | CJ13: 21.95 | CK13: 1.302206929 | CL13: 0.1116173121 | CM13: 0 | CN13: 0 | CO13: 19.5 | CP13: 1.286619161 | CR13: 0 | CS13: 1.20 | CT13: 21.05 | CU13: 1.269295707 | CV13: 18.45 | CW13: 0.07363420428 | CX13: 2080 | CY13: =INDEX('Données transport emballage'!$4:$19,MATCH('Calcul tarif Truf_JDR'!AB13,'Données transport emballage'!$M$4:$M$19,0),MATCH('Calcul tarif Truf_JDR'!AR13,'Données transport emballage'!$2:$2,0)+2) -> 30 | CZ13: =INDEX('Données transport emballage'!$4:$19,MATCH('Calcul tarif Truf_JDR'!AB13,'Données transport emballage'!$M$4:$M$19,0),MATCH('Calcul tarif Truf_JDR'!AR13,'Données transport emballage'!$2:$2,0)+5) -> 117 | DA13: =INDEX('Données transport emballage'!$4:$19,MATCH('Calcul tarif Truf_JDR'!AB13,'Données transport emballage'!$M$4:$M$19,0),MATCH('Calcul tarif Truf_JDR'!AR13,'Données transport emballage'!$2:$2,0)+8) -> 135 | DB13: 2.1 | DC13: 1.7 | DD13: 0.4 | DE13: =#REF!*$DE$1 ->  | DF13: =#REF!*$DF$1 ->  | DG13: =#REF!*$DG$1 ->  | DH13: =#REF!*$DH$1 ->  | DJ13: 2.1 | DK13: 1.7 | DL13: 0.4 | DM13: 0 | DN13: 0 | DO13: 0 | DP13: 0 | DQ13: 15.1 | DR13: 2.1 | DS13: 1.7 | DT13: 0.4 | DU13: 1.025 | DV13: 0.5125 | DW13: 0.5125 | DX13: 0.3075 | DY13: 16.1575 | DZ13: 2.1 | EA13: 1.7 | EB13: 0.4 | EC13: 1.0975 | ED13: 0.439 | EE13: 0 | EF13: 0.2195 | EG13: 16.856 | EH13: 1.9 | EI13: 1.5 | EJ13: 0.4 | EK13: 0 | EL13: 0 | EM13: 0 | EN13: 0 | EO13: 14.9 | EP13: 1.9 | EQ13: 1.5 | ER13: 0.4 | ES13: 1.0525 | ET13: 0.421 | EU13: 0 | EV13: 0.2105 | EW13: 16.584
A14: 3834000056432 | B14: 5643 | C14: DASYLIRION | D14: wheeleri | F14: SUCC | G14: Succulentes | J14: 037 | K14: 25 | L14: 023 | M14: 10L | N14: 081 | O14: 50/70 | X14: A10405 | Y14: AA405010 | Z14: UNI | AA14: 1 | AB14: VRA | AC14: Vrac | AD14: 1 | AE14: ML | AF14: 148.148 | AG14: CAM | AH14: 13.5 | AI14: 1999.998 | AJ14: 3 | AK14: 11.7 | AP14: FV | AQ14: Ferriol Viveros | AR14: 20 | AS14: FERRIOL VIVEROS | AX14: NST | AY14: Notre Sélection | BH14: 13 | BK14: 1 | BQ14: 21.05 | BR14: 21.05 | BS14: 0 | BT14: 20.15 | BU14: 20.15 | BV14: 0 | BW14: 21.05 | BX14: 21.05 | BY14: 0 | BZ14: 20.15 | CA14: 20.15 | CB14: 0 | CE14: 0 | CF14: 20.5 | CG14: 1.317692431 | CH14: 1.266683144 | CI14: 1.3 | CJ14: 21.05 | CK14: 1.300667326 | CL14: 0.07363420428 | CM14: 0 | CN14: 0 | CO14: 19.5 | CP14: 1.327976028 | CR14: 0 | CS14: 1.20 | CT14: 20.15 | CU14: 1.27033161 | CV14: 18.45 | CW14: 0.03225806452 | CX14: 1999.998 | CY14: =INDEX('Données transport emballage'!$4:$19,MATCH('Calcul tarif Truf_JDR'!AB14,'Données transport emballage'!$M$4:$M$19,0),MATCH('Calcul tarif Truf_JDR'!AR14,'Données transport emballage'!$2:$2,0)+2) -> 0 | CZ14: =INDEX('Données transport emballage'!$4:$19,MATCH('Calcul tarif Truf_JDR'!AB14,'Données transport emballage'!$M$4:$M$19,0),MATCH('Calcul tarif Truf_JDR'!AR14,'Données transport emballage'!$2:$2,0)+5) -> 2400 | DA14: =INDEX('Données transport emballage'!$4:$19,MATCH('Calcul tarif Truf_JDR'!AB14,'Données transport emballage'!$M$4:$M$19,0),MATCH('Calcul tarif Truf_JDR'!AR14,'Données transport emballage'!$2:$2,0)+8) -> 2900 | DB14: 1.5 | DC14: 1.5 | DD14: 0 | DE14: =#REF!*$DE$1 ->  | DF14: =#REF!*$DF$1 ->  | DG14: =#REF!*$DG$1 ->  | DH14: =#REF!*$DH$1 ->  | DJ14: 1.5 | DK14: 1.5 | DL14: 0 | DM14: 0 | DN14: 0 | DO14: 0 | DP14: 0 | DQ14: 14.5 | DR14: 1.5 | DS14: 1.5 | DT14: 0 | DU14: 1.025 | DV14: 0.5125 | DW14: 0.5125 | DX14: 0.3075 | DY14: 15.5575 | DZ14: 1.5 | EA14: 1.5 | EB14: 0 | EC14: 1.0525 | ED14: 0.421 | EE14: 0 | EF14: 0.2105 | EG14: 16.184 | EH14: 1.25 | EI14: 1.25 | EJ14: 0 | EK14: 0 | EL14: 0 | EM14: 0 | EN14: 0 | EO14: 14.25 | EP14: 1.25 | EQ14: 1.25 | ER14: 0 | ES14: 1.0075 | ET14: 0.403 | EU14: 0 | EV14: 0.2015 | EW14: 15.862
A15: 3834000056449 | B15: 5644 | C15: DASYLIRION | D15: wheeleri | F15: SUCC | G15: Succulentes | J15: 049 | K15: 30 | L15: 029 | M15: 15L | N15: 107 | O15: 80/100 | X15: A15607 | Y15: AA607015 | Z15: UNI | AA15: 50 | AB15: BOX | AC15: Box 100 x 120 | AD15: 1 | AE15: ML | AF15: 2 | AG15: CAM | AH15: 13 | AI15: 1300 | AJ15: 3 | AK15: 16.2 | AP15: FV | AQ15: Ferriol Viveros | AR15: 20 | AS15: FERRIOL VIVEROS | BH15: 18 | BK15: 0 | BQ15: 30.95 | BR15: 30.95 | BS15: 0 | BT15: 29.6 | BU15: 29.6 | BV15: 0 | BW15: 30.95 | BX15: 30.95 | BY15: 0 | BZ15: 29.6 | CA15: 29.6 | CB15: 0 | CE15: 0 | CF15: 28.6 | CG15: 1.254991443 | CH15: 1.202893674 | CI15: 1.3 | CJ15: 30.95 | CK15: 1.30173284 | CL15: 0.1276252019 | CM15: 0 | CN15: 0 | CO15: 27 | CP15: 1.281078003 | CR15: 0 | CS15: 1.20 | CT15: 29.6 | CU15: 1.269405609 | CV15: 25.74 | CW15: 0.08783783784 | CX15: 1300 | CY15: =INDEX('Données transport emballage'!$4:$19,MATCH('Calcul tarif Truf_JDR'!AB15,'Données transport emballage'!$M$4:$M$19,0),MATCH('Calcul tarif Truf_JDR'!AR15,'Données transport emballage'!$2:$2,0)+2) -> 30 | CZ15: =INDEX('Données transport emballage'!$4:$19,MATCH('Calcul tarif Truf_JDR'!AB15,'Données transport emballage'!$M$4:$M$19,0),MATCH('Calcul tarif Truf_JDR'!AR15,'Données transport emballage'!$2:$2,0)+5) -> 117 | DA15: =INDEX('Données transport emballage'!$4:$19,MATCH('Calcul tarif Truf_JDR'!AB15,'Données transport emballage'!$M$4:$M$19,0),MATCH('Calcul tarif Truf_JDR'!AR15,'Données transport emballage'!$2:$2,0)+8) -> 135 | DB15: 3.3 | DC15: 2.7 | DD15: 0.6 | DE15: =#REF!*$DE$1 ->  | DF15: =#REF!*$DF$1 ->  | DG15: =#REF!*$DG$1 ->  | DH15: =#REF!*$DH$1 ->  | DJ15: 3.3 | DK15: 2.7 | DL15: 0.6 | DM15: 0 | DN15: 0 | DO15: 0 | DP15: 0 | DQ15: 21.3 | DR15: 3.3 | DS15: 2.7 | DT15: 0.6 | DU15: 1.43 | DV15: 0.715 | DW15: 0.715 | DX15: 0.429 | DY15: 22.789 | DZ15: 3.3 | EA15: 2.7 | EB15: 0.6 | EC15: 1.5475 | ED15: 0.619 | EE15: 0 | EF15: 0.3095 | EG15: 23.776 | EH15: 2.95 | EI15: 2.35 | EJ15: 0.6 | EK15: 0 | EL15: 0 | EM15: 0 | EN15: 0 | EO15: 20.95 | EP15: 2.95 | EQ15: 2.35 | ER15: 0.6 | ES15: 1.48 | ET15: 0.592 | EU15: 0 | EV15: 0.296 | EW15: 23.318
A16: 3834000056449 | B16: 5644 | C16: DASYLIRION | D16: wheeleri | F16: SUCC | G16: Succulentes | J16: 049 | K16: 30 | L16: 029 | M16: 15L | N16: 107 | O16: 80/100 | X16: A15607 | Y16: AA607015 | Z16: UNI | AA16: 1 | AB16: VRA | AC16: Vrac | AD16: 1 | AE16: ML | AF16: 96.444 | AG16: CAM | AH16: 13.5 | AI16: 1301.994 | AJ16: 3 | AK16: 16.2 | AP16: FV | AQ16: Ferriol Viveros | AR16: 20 | AS16: FERRIOL VIVEROS | BH16: 18 | BK16: 1 | BQ16: 29.4 | BR16: 29.4 | BS16: 0 | BT16: 28.05 | BU16: 28.05 | BV16: 0 | BW16: 29.4 | BX16: 29.4 | BY16: 0 | BZ16: 28.05 | CA16: 28.05 | CB16: 0 | CE16: 0 | CF16: 28.6 | CG16: 1.315607894 | CH16: 1.265374746 | CI16: 1.3 | CJ16: 29.4 | CK16: 1.300769843 | CL16: 0.08163265306 | CM16: 0 | CN16: 0 | CO16: 27 | CP16: 1.326650943 | CR16: 0 | CS16: 1.20 | CT16: 28.05 | CU16: 1.26957545 | CV16: 25.74 | CW16: 0.03743315508 | CX16: 1301.994 | CY16: =INDEX('Données transport emballage'!$4:$19,MATCH('Calcul tarif Truf_JDR'!AB16,'Données transport emballage'!$M$4:$M$19,0),MATCH('Calcul tarif Truf_JDR'!AR16,'Données transport emballage'!$2:$2,0)+2) -> 0 | CZ16: =INDEX('Données transport emballage'!$4:$19,MATCH('Calcul tarif Truf_JDR'!AB16,'Données transport emballage'!$M$4:$M$19,0),MATCH('Calcul tarif Truf_JDR'!AR16,'Données transport emballage'!$2:$2,0)+5) -> 2400 | DA16: =INDEX('Données transport emballage'!$4:$19,MATCH('Calcul tarif Truf_JDR'!AB16,'Données transport emballage'!$M$4:$M$19,0),MATCH('Calcul tarif Truf_JDR'!AR16,'Données transport emballage'!$2:$2,0)+8) -> 2900 | DB16: 2.25 | DC16: 2.25 | DD16: 0 | DE16: =#REF!*$DE$1 ->  | DF16: =#REF!*$DF$1 ->  | DG16: =#REF!*$DG$1 ->  | DH16: =#REF!*$DH$1 ->  | DJ16: 2.25 | DK16: 2.25 | DL16: 0 | DM16: 0 | DN16: 0 | DO16: 0 | DP16: 0 | DQ16: 20.25 | DR16: 2.25 | DS16: 2.25 | DT16: 0 | DU16: 1.43 | DV16: 0.715 | DW16: 0.715 | DX16: 0.429 | DY16: 21.739 | DZ16: 2.25 | EA16: 2.25 | EB16: 0 | EC16: 1.47 | ED16: 0.588 | EE16: 0 | EF16: 0.294 | EG16: 22.602 | EH16: 1.85 | EI16: 1.85 | EJ16: 0 | EK16: 0 | EL16: 0 | EM16: 0 | EN16: 0 | EO16: 19.85 | EP16: 1.85 | EQ16: 1.85 | ER16: 0 | ES16: 1.4025 | ET16: 0.561 | EU16: 0 | EV16: 0.2805 | EW16: 22.094
A17: 3834000056456 | B17: 5645 | C17: PUNICA | D17: granatum | F17: ARBUS | G17: Arbustes | J17: 049 | K17: 30 | L17: 029 | M17: 15L | N17: 342 | O17: 8/10T | P17: DTI | Q17: 1/2 tige | X17: A1560 | Y17: AA608015 | Z17: ETG | AA17: 26 | AB17: PS1 | AC17: Palette socle 100 x 120 | AD17: 1 | AE17: ML | AF17: 2 | AG17: CAM | AH17: 13 | AI17: 676 | AJ17: 3 | AK17: 16.2 | AP17: FV | AQ17: Ferriol Viveros | AR17: 20 | AS17: FERRIOL VIVEROS | BH17: 18 | BK17: 0 | BQ17: 34.25 | BR17: 34.25 | BS17: 0 | BT17: 32.35 | BU17: 32.35 | BV17: 0 | BW17: 34.25 | BX17: 34.25 | BY17: 0 | BZ17: 32.35 | CA17: 32.35 | CB17: 0 | CE17: 0 | CF17: 28.6 | CG17: 1.139941807 | CH17: 1.085801063 | CI17: 1.3 | CJ17: 34.25 | CK17: 1.300303721 | CL17: 0.2116788321 | CM17: 0 | CN17: 0 | CO17: 27 | CP17: 1.277199622 | CR17: 0 | CS17: 1.20 | CT17: 32.35 | CU17: 1.269224733 | CV17: 25.74 | CW17: 0.1653786708 | CX17: 676 | CY17: =INDEX('Données transport emballage'!$4:$19,MATCH('Calcul tarif Truf_JDR'!AB17,'Données transport emballage'!$M$4:$M$19,0),MATCH('Calcul tarif Truf_JDR'!AR17,'Données transport emballage'!$2:$2,0)+2) -> 10 | CZ17: =INDEX('Données transport emballage'!$4:$19,MATCH('Calcul tarif Truf_JDR'!AB17,'Données transport emballage'!$M$4:$M$19,0),MATCH('Calcul tarif Truf_JDR'!AR17,'Données transport emballage'!$2:$2,0)+5) -> 117 | DA17: =INDEX('Données transport emballage'!$4:$19,MATCH('Calcul tarif Truf_JDR'!AB17,'Données transport emballage'!$M$4:$M$19,0),MATCH('Calcul tarif Truf_JDR'!AR17,'Données transport emballage'!$2:$2,0)+8) -> 135 | DB17: 5.6 | DC17: 5.2 | DD17: 0.4 | DE17: =#REF!*$DE$1 ->  | DF17: =#REF!*$DF$1 ->  | DG17: =#REF!*$DG$1 ->  | DH17: =#REF!*$DH$1 ->  | DJ17: 5.6 | DK17: 5.2 | DL17: 0.4 | DM17: 0 | DN17: 0 | DO17: 0 | DP17: 0 | DQ17: 23.6 | DR17: 5.6 | DS17: 5.2 | DT17: 0.4 | DU17: 1.43 | DV17: 0.715 | DW17: 0.715 | DX17: 0.429 | DY17: 25.089 | DZ17: 5.6 | EA17: 5.2 | EB17: 0.4 | EC17: 1.7125 | ED17: 0.685 | EE17: 0 | EF17: 0.3425 | EG17: 26.34 | EH17: 4.9 | EI17: 4.5 | EJ17: 0.4 | EK17: 0 | EL17: 0 | EM17: 0 | EN17: 0 | EO17: 22.9 | EP17: 4.9 | EQ17: 4.5 | ER17: 0.4 | ES17: 1.6175 | ET17: 0.647 | EU17: 0 | EV17: 0.3235 | EW17: 25.488
A18: 3834000056456 | B18: 5645 | C18: PUNICA | D18: granatum | F18: ARBUS | G18: Arbustes | J18: 049 | K18: 30 | L18: 029 | M18: 15L | N18: 342 | O18: 8/10T | P18: DTI | Q18: 1/2 tige | X18: A1560 | Y18: AA608015 | Z18: UNI | AA18: 1 | AB18: VRA | AC18: Vrac | AD18: 1 | AE18: ML | AF18: 96.444 | AG18: CAM | AH18: 13.5 | AI18: 1301.994 | AJ18: 3 | AK18: 16.2 | AP18: FV | AQ18: Ferriol Viveros | AR18: 20 | AS18: FERRIOL VIVEROS | BH18: 18 | BK18: 1 | BQ18: 29.4 | BR18: 29.4 | BS18: 0 | BT18: 28.05 | BU18: 28.05 | BV18: 0 | BW18: 29.4 | BX18: 29.4 | BY18: 0 | BZ18: 28.05 | CA18: 28.05 | CB18: 0 | CE18: 0 | CF18: 28.6 | CG18: 1.315607894 | CH18: 1.265374746 | CI18: 1.3 | CJ18: 29.4 | CK18: 1.300769843 | CL18: 0.08163265306 | CM18: 0 | CN18: 0 | CO18: 27 | CP18: 1.326650943 | CR18: 0 | CS18: 1.20 | CT18: 28.05 | CU18: 1.26957545 | CV18: 25.74 | CW18: 0.03743315508 | CX18: 1301.994 | CY18: =INDEX('Données transport emballage'!$4:$19,MATCH('Calcul tarif Truf_JDR'!AB18,'Données transport emballage'!$M$4:$M$19,0),MATCH('Calcul tarif Truf_JDR'!AR18,'Données transport emballage'!$2:$2,0)+2) -> 0 | CZ18: =INDEX('Données transport emballage'!$4:$19,MATCH('Calcul tarif Truf_JDR'!AB18,'Données transport emballage'!$M$4:$M$19,0),MATCH('Calcul tarif Truf_JDR'!AR18,'Données transport emballage'!$2:$2,0)+5) -> 2400 | DA18: =INDEX('Données transport emballage'!$4:$19,MATCH('Calcul tarif Truf_JDR'!AB18,'Données transport emballage'!$M$4:$M$19,0),MATCH('Calcul tarif Truf_JDR'!AR18,'Données transport emballage'!$2:$2,0)+8) -> 2900 | DB18: 2.25 | DC18: 2.25 | DD18: 0 | DE18: =#REF!*$DE$1 ->  | DF18: =#REF!*$DF$1 ->  | DG18: =#REF!*$DG$1 ->  | DH18: =#REF!*$DH$1 ->  | DJ18: 2.25 | DK18: 2.25 | DL18: 0 | DM18: 0 | DN18: 0 | DO18: 0 | DP18: 0 | DQ18: 20.25 | DR18: 2.25 | DS18: 2.25 | DT18: 0 | DU18: 1.43 | DV18: 0.715 | DW18: 0.715 | DX18: 0.429 | DY18: 21.739 | DZ18: 2.25 | EA18: 2.25 | EB18: 0 | EC18: 1.47 | ED18: 0.588 | EE18: 0 | EF18: 0.294 | EG18: 22.602 | EH18: 1.85 | EI18: 1.85 | EJ18: 0 | EK18: 0 | EL18: 0 | EM18: 0 | EN18: 0 | EO18: 19.85 | EP18: 1.85 | EQ18: 1.85 | ER18: 0 | ES18: 1.4025 | ET18: 0.561 | EU18: 0 | EV18: 0.2805 | EW18: 22.094
A19: 3834000056463 | B19: 5646 | C19: HESPERALOE | D19: parviflora | F19: SUCC | G19: Succulentes | J19: 037 | K19: 25 | L19: 023 | M19: 10L | N19: 081 | O19: 50/70 | X19: A10405 | Y19: AA405010 | Z19: ETG | AA19: 10 | AB19: PE8 | AC19: Palette étages 80 x 120 | AD19: 3 | AE19: ML | AF19: 2.462 | AG19: CAM | AH19: 13 | AI19: 960.18 | AJ19: 3 | AK19: 11.7 | AP19: FV | AQ19: Ferriol Viveros | AR19: 20 | AS19: FERRIOL VIVEROS | AX19: NST | AY19: Notre Sélection | BH19: 13 | BK19: 0 | BQ19: 27.15 | BR19: 27.15 | BS19: 0 | BT19: 25.55 | BU19: 25.55 | BV19: 0 | BW19: 27.15 | BX19: 27.15 | BY19: 0 | BZ19: 25.55 | CA19: 25.55 | CB19: 0 | CE19: 0 | CF19: 20.5 | CG19: 1.037580666 | CH19: 0.9821770793 | CI19: 1.3 | CJ19: 27.15 | CK19: 1.300785742 | CL19: 0.2817679558 | CM19: 0 | CN19: 0 | CO19: 19.5 | CP19: 1.191057904 | CR19: 0 | CS19: 1.20 | CT19: 25.55 | CU19: 1.268367752 | CV19: 18.45 | CW19: 0.2367906067 | CX19: 960.18 | CY19: =INDEX('Données transport emballage'!$4:$19,MATCH('Calcul tarif Truf_JDR'!AB19,'Données transport emballage'!$M$4:$M$19,0),MATCH('Calcul tarif Truf_JDR'!AR19,'Données transport emballage'!$2:$2,0)+2) -> 35 | CZ19: =INDEX('Données transport emballage'!$4:$19,MATCH('Calcul tarif Truf_JDR'!AB19,'Données transport emballage'!$M$4:$M$19,0),MATCH('Calcul tarif Truf_JDR'!AR19,'Données transport emballage'!$2:$2,0)+5) -> 117 | DA19: =INDEX('Données transport emballage'!$4:$19,MATCH('Calcul tarif Truf_JDR'!AB19,'Données transport emballage'!$M$4:$M$19,0),MATCH('Calcul tarif Truf_JDR'!AR19,'Données transport emballage'!$2:$2,0)+8) -> 135 | DB19: 5.7 | DC19: 4.5 | DD19: 1.2 | DE19: =#REF!*$DE$1 ->  | DF19: =#REF!*$DF$1 ->  | DG19: =#REF!*$DG$1 ->  | DH19: =#REF!*$DH$1 ->  | DJ19: 5.7 | DK19: 4.5 | DL19: 1.2 | DM19: 0 | DN19: 0 | DO19: 0 | DP19: 0 | DQ19: 18.7 | DR19: 5.7 | DS19: 4.5 | DT19: 1.2 | DU19: 1.025 | DV19: 0.5125 | DW19: 0.5125 | DX19: 0.3075 | DY19: 19.7575 | DZ19: 5.7 | EA19: 4.5 | EB19: 1.2 | EC19: 1.3575 | ED19: 0.543 | EE19: 0 | EF19: 0.2715 | EG19: 20.872 | EH19: 5.1 | EI19: 3.9 | EJ19: 1.2 | EK19: 0 | EL19: 0 | EM19: 0 | EN19: 0 | EO19: 18.1 | EP19: 5.1 | EQ19: 3.9 | ER19: 1.2 | ES19: 1.2775 | ET19: 0.511 | EU19: 0 | EV19: 0.2555 | EW19: 20.144
A20: 3834000056463 | B20: 5646 | C20: HESPERALOE | D20: parviflora | F20: SUCC | G20: Succulentes | J20: 037 | K20: 25 | L20: 023 | M20: 10L | N20: 081 | O20: 50/70 | X20: A10405 | Y20: AA405010 | Z20: UNI | AA20: 1 | AB20: VRA | AC20: Vrac | AD20: 1 | AE20: ML | AF20: 148.148 | AG20: CAM | AH20: 13.5 | AI20: 1999.998 | AJ20: 3 | AK20: 11.7 | AP20: FV | AQ20: Ferriol Viveros | AR20: 20 | AS20: FERRIOL VIVEROS | AX20: NST | AY20: Notre Sélection | BH20: 13 | BK20: 1 | BQ20: 21.05 | BR20: 21.05 | BS20: 0 | BT20: 20.15 | BU20: 20.15 | BV20: 0 | BW20: 21.05 | BX20: 21.05 | BY20: 0 | BZ20: 20.15 | CA20: 20.15 | CB20: 0 | CE20: 0 | CF20: 20.5 | CG20: 1.317692431 | CH20: 1.266683144 | CI20: 1.3 | CJ20: 21.05 | CK20: 1.300667326 | CL20: 0.07363420428 | CM20: 0 | CN20: 0 | CO20: 19.5 | CP20: 1.327976028 | CR20: 0 | CS20: 1.20 | CT20: 20.15 | CU20: 1.27033161 | CV20: 18.45 | CW20: 0.03225806452 | CX20: 1999.998 | CY20: =INDEX('Données transport emballage'!$4:$19,MATCH('Calcul tarif Truf_JDR'!AB20,'Données transport emballage'!$M$4:$M$19,0),MATCH('Calcul tarif Truf_JDR'!AR20,'Données transport emballage'!$2:$2,0)+2) -> 0 | CZ20: =INDEX('Données transport emballage'!$4:$19,MATCH('Calcul tarif Truf_JDR'!AB20,'Données transport emballage'!$M$4:$M$19,0),MATCH('Calcul tarif Truf_JDR'!AR20,'Données transport emballage'!$2:$2,0)+5) -> 2400 | DA20: =INDEX('Données transport emballage'!$4:$19,MATCH('Calcul tarif Truf_JDR'!AB20,'Données transport emballage'!$M$4:$M$19,0),MATCH('Calcul tarif Truf_JDR'!AR20,'Données transport emballage'!$2:$2,0)+8) -> 2900 | DB20: 1.5 | DC20: 1.5 | DD20: 0 | DE20: =#REF!*$DE$1 ->  | DF20: =#REF!*$DF$1 ->  | DG20: =#REF!*$DG$1 ->  | DH20: =#REF!*$DH$1 ->  | DJ20: 1.5 | DK20: 1.5 | DL20: 0 | DM20: 0 | DN20: 0 | DO20: 0 | DP20: 0 | DQ20: 14.5 | DR20: 1.5 | DS20: 1.5 | DT20: 0 | DU20: 1.025 | DV20: 0.5125 | DW20: 0.5125 | DX20: 0.3075 | DY20: 15.5575 | DZ20: 1.5 | EA20: 1.5 | EB20: 0 | EC20: 1.0525 | ED20: 0.421 | EE20: 0 | EF20: 0.2105 | EG20: 16.184 | EH20: 1.25 | EI20: 1.25 | EJ20: 0 | EK20: 0 | EL20: 0 | EM20: 0 | EN20: 0 | EO20: 14.25 | EP20: 1.25 | EQ20: 1.25 | ER20: 0 | ES20: 1.0075 | ET20: 0.403 | EU20: 0 | EV20: 0.2015 | EW20: 15.862
A21: 3834000056470 | B21: 5647 | C21: OLEA | D21: europaea | F21: FRUIT | G21: Fruitiers | J21: 037 | K21: 25 | L21: 023 | M21: 10L | N21: 092 | O21: 60/80 | P21: TOU | Q21: touffe | R21: CIP | S21: Cipressino | X21: A840 | Y21: A40608 | Z21: UNI | AA21: 80 | AB21: BOX | AC21: Box 100 x 120 | AD21: 1 | AE21: ML | AF21: 2 | AG21: CAM | AH21: 13 | AI21: 2080 | AJ21: 3 | AK21: 9 | AP21: FV | AQ21: Ferriol Viveros | AR21: 20 | AS21: FERRIOL VIVEROS | AX21: NST | AY21: Notre Sélection | BH21: 9 | BK21: 0 | BQ21: 16.15 | BR21: 16.15 | BS21: 0 | BT21: 15.4 | BU21: 15.4 | BV21: 0 | BW21: 16.15 | BX21: 16.15 | BY21: 0 | BZ21: 15.4 | CA21: 15.4 | CB21: 0 | CE21: 0 | CF21: 14.85 | CG21: 1.159454237 | CH21: 1.198353777 | CI21: 1.3 | CJ21: 16.15 | CK21: 1.303260168 | CL21: 0.1640866873 | CM21: 0 | CN21: 0 | CO21: 13.5 | CP21: 1.262626263 | CR21: 0 | CS21: 1.20 | CT21: 15.4 | CU21: 1.26937026 | CV21: 13.365 | CW21: 0.1233766234 | CX21: 2080 | CY21: =INDEX('Données transport emballage'!$4:$19,MATCH('Calcul tarif Truf_JDR'!AB21,'Données transport emballage'!$M$4:$M$19,0),MATCH('Calcul tarif Truf_JDR'!AR21,'Données transport emballage'!$2:$2,0)+2) -> 30 | CZ21: =INDEX('Données transport emballage'!$4:$19,MATCH('Calcul tarif Truf_JDR'!AB21,'Données transport emballage'!$M$4:$M$19,0),MATCH('Calcul tarif Truf_JDR'!AR21,'Données transport emballage'!$2:$2,0)+5) -> 117 | DA21: =INDEX('Données transport emballage'!$4:$19,MATCH('Calcul tarif Truf_JDR'!AB21,'Données transport emballage'!$M$4:$M$19,0),MATCH('Calcul tarif Truf_JDR'!AR21,'Données transport emballage'!$2:$2,0)+8) -> 135 | DB21: 2.1 | DC21: 1.7 | DD21: 0.4 | DE21: =#REF!*$DE$1 ->  | DF21: =#REF!*$DF$1 ->  | DG21: =#REF!*$DG$1 ->  | DH21: =#REF!*$DH$1 ->  | DJ21: 2.1 | DK21: 1.7 | DL21: 0.4 | DM21: 0 | DN21: 0 | DO21: 0 | DP21: 0 | DQ21: 11.1 | DR21: 2.1 | DS21: 1.7 | DT21: 0.4 | DU21: 0.7425 | DV21: 0.37125 | DW21: 0.37125 | DX21: 0.22275 | DY21: 12.80775 | DZ21: 2.1 | EA21: 1.7 | EB21: 0.4 | EC21: 0.8075 | ED21: 0.323 | EE21: 0 | EF21: 0.1615 | EG21: 12.392 | EH21: 1.9 | EI21: 1.5 | EJ21: 0.4 | EK21: 0 | EL21: 0 | EM21: 0 | EN21: 0 | EO21: 10.9 | EP21: 1.9 | EQ21: 1.5 | ER21: 0.4 | ES21: 0.77 | ET21: 0.308 | EU21: 0 | EV21: 0.154 | EW21: 12.132
A22: 3834000056470 | B22: 5647 | C22: OLEA | D22: europaea | F22: FRUIT | G22: Fruitiers | J22: 037 | K22: 25 | L22: 023 | M22: 10L | N22: 092 | O22: 60/80 | P22: TOU | Q22: touffe | R22: CIP | S22: Cipressino | X22: A840 | Y22: A40608 | Z22: UNI | AA22: 1 | AB22: VRA | AC22: Vrac | AD22: 1 | AE22: ML | AF22: 148.148 | AG22: CAM | AH22: 13.5 | AI22: 1999.998 | AJ22: 3 | AK22: 9 | AP22: FV | AQ22: Ferriol Viveros | AR22: 20 | AS22: FERRIOL VIVEROS | AX22: NST | AY22: Notre Sélection | BH22: 9 | BK22: 1 | BQ22: 15.25 | BR22: 15.25 | BS22: 0 | BT22: 14.5 | BU22: 14.5 | BV22: 0 | BW22: 15.25 | BX22: 15.25 | BY22: 0 | BZ22: 14.5 | CA22: 14.5 | CB22: 0 | CE22: 0 | CF22: 14.85 | CG22: 1.216440376 | CH22: 1.267064846 | CI22: 1.3 | CJ22: 15.25 | CK22: 1.301194539 | CL22: 0.1147540984 | CM22: 0 | CN22: 0 | CO22: 13.5 | CP22: 1.320939335 | CR22: 0 | CS22: 1.20 | CT22: 14.5 | CU22: 1.270815074 | CV22: 13.365 | CW22: 0.06896551724 | CX22: 1999.998 | CY22: =INDEX('Données transport emballage'!$4:$19,MATCH('Calcul tarif Truf_JDR'!AB22,'Données transport emballage'!$M$4:$M$19,0),MATCH('Calcul tarif Truf_JDR'!AR22,'Données transport emballage'!$2:$2,0)+2) -> 0 | CZ22: =INDEX('Données transport emballage'!$4:$19,MATCH('Calcul tarif Truf_JDR'!AB22,'Données transport emballage'!$M$4:$M$19,0),MATCH('Calcul tarif Truf_JDR'!AR22,'Données transport emballage'!$2:$2,0)+5) -> 2400 | DA22: =INDEX('Données transport emballage'!$4:$19,MATCH('Calcul tarif Truf_JDR'!AB22,'Données transport emballage'!$M$4:$M$19,0),MATCH('Calcul tarif Truf_JDR'!AR22,'Données transport emballage'!$2:$2,0)+8) -> 2900 | DB22: 1.5 | DC22: 1.5 | DD22: 0 | DE22: =#REF!*$DE$1 ->  | DF22: =#REF!*$DF$1 ->  | DG22: =#REF!*$DG$1 ->  | DH22: =#REF!*$DH$1 ->  | DJ22: 1.5 | DK22: 1.5 | DL22: 0 | DM22: 0 | DN22: 0 | DO22: 0 | DP22: 0 | DQ22: 10.5 | DR22: 1.5 | DS22: 1.5 | DT22: 0 | DU22: 0.7425 | DV22: 0.37125 | DW22: 0.37125 | DX22: 0.22275 | DY22: 12.20775 | DZ22: 1.5 | EA22: 1.5 | EB22: 0 | EC22: 0.7625 | ED22: 0.305 | EE22: 0 | EF22: 0.1525 | EG22: 11.72 | EH22: 1.25 | EI22: 1.25 | EJ22: 0 | EK22: 0 | EL22: 0 | EM22: 0 | EN22: 0 | EO22: 10.25 | EP22: 1.25 | EQ22: 1.25 | ER22: 0 | ES22: 0.725 | ET22: 0.29 | EU22: 0 | EV22: 0.145 | EW22: 11.41
A23: 3834000056487 | B23: 5648 | C23: OLEA | D23: europaea | F23: FRUIT | G23: Fruitiers | J23: 049 | K23: 30 | L23: 029 | M23: 15L | N23: 107 | O23: 80/100 | P23: TOU | Q23: touffe | R23: CIP | S23: Cipressino | X23: A12 | Y23: AA12 | Z23: UNI | AA23: 50 | AB23: BOX | AC23: Box 100 x 120 | AD23: 1 | AE23: ML | AF23: 2 | AG23: CAM | AH23: 13 | AI23: 1300 | AJ23: 3 | AK23: 12.6 | AP23: FV | AQ23: Ferriol Viveros | AR23: 20 | AS23: FERRIOL VIVEROS | AX23: NST | AY23: Notre Sélection | BH23: 16.2 | BK23: 0 | BQ23: 28.3 | BR23: 28.3 | BS23: 0 | BT23: 27.05 | BU23: 27.05 | BV23: 0 | BW23: 28.3 | BX23: 28.3 | BY23: 0 | BZ23: 27.05 | CA23: 27.05 | CB23: 0 | CE23: 0 | CF23: 26.05 | CG23: 1.378616885 | CH23: 1.196930711 | CI23: 1.3 | CJ23: 28.3 | CK23: 1.300312443 | CL23: 0.1413427562 | CM23: 0 | CN23: 0 | CO23: 24.3 | CP23: 1.274653798 | CR23: 0 | CS23: 1.20 | CT23: 27.05 | CU23: 1.269118889 | CV23: 23.445 | CW23: 0.101663586 | CX23: 1300 | CY23: =INDEX('Données transport emballage'!$4:$19,MATCH('Calcul tarif Truf_JDR'!AB23,'Données transport emballage'!$M$4:$M$19,0),MATCH('Calcul tarif Truf_JDR'!AR23,'Données transport emballage'!$2:$2,0)+2) -> 30 | CZ23: =INDEX('Données transport emballage'!$4:$19,MATCH('Calcul tarif Truf_JDR'!AB23,'Données transport emballage'!$M$4:$M$19,0),MATCH('Calcul tarif Truf_JDR'!AR23,'Données transport emballage'!$2:$2,0)+5) -> 117 | DA23: =INDEX('Données transport emballage'!$4:$19,MATCH('Calcul tarif Truf_JDR'!AB23,'Données transport emballage'!$M$4:$M$19,0),MATCH('Calcul tarif Truf_JDR'!AR23,'Données transport emballage'!$2:$2,0)+8) -> 135 | DB23: 3.3 | DC23: 2.7 | DD23: 0.6 | DE23: =#REF!*$DE$1 ->  | DF23: =#REF!*$DF$1 ->  | DG23: =#REF!*$DG$1 ->  | DH23: =#REF!*$DH$1 ->  | DJ23: 3.3 | DK23: 2.7 | DL23: 0.6 | DM23: 0 | DN23: 0 | DO23: 0 | DP23: 0 | DQ23: 19.5 | DR23: 3.3 | DS23: 2.7 | DT23: 0.6 | DU23: 1.3025 | DV23: 0.65125 | DW23: 0.65125 | DX23: 0.39075 | DY23: 18.89575 | DZ23: 3.3 | EA23: 2.7 | EB23: 0.6 | EC23: 1.415 | ED23: 0.566 | EE23: 0 | EF23: 0.283 | EG23: 21.764 | EH23: 2.95 | EI23: 2.35 | EJ23: 0.6 | EK23: 0 | EL23: 0 | EM23: 0 | EN23: 0 | EO23: 19.15 | EP23: 2.95 | EQ23: 2.35 | ER23: 0.6 | ES23: 1.3525 | ET23: 0.541 | EU23: 0 | EV23: 0.2705 | EW23: 21.314
A24: 3834000056487 | B24: 5648 | C24: OLEA | D24: europaea | F24: FRUIT | G24: Fruitiers | J24: 049 | K24: 30 | L24: 029 | M24: 15L | N24: 107 | O24: 80/100 | P24: TOU | Q24: touffe | R24: CIP | S24: Cipressino | X24: A12 | Y24: AA12 | Z24: UNI | AA24: 1 | AB24: VRA | AC24: Vrac | AD24: 1 | AE24: ML | AF24: 96.444 | AG24: CAM | AH24: 13.5 | AI24: 1301.994 | AJ24: 3 | AK24: 12.6 | AP24: FV | AQ24: Ferriol Viveros | AR24: 20 | AS24: FERRIOL VIVEROS | AX24: NST | AY24: Notre Sélection | BH24: 16.2 | BK24: 1 | BQ24: 26.8 | BR24: 26.8 | BS24: 0 | BT24: 25.5 | BU24: 25.5 | BV24: 0 | BW24: 26.8 | BX24: 26.8 | BY24: 0 | BZ24: 25.5 | CA24: 25.5 | CB24: 0 | CE24: 0 | CF24: 26.05 | CG24: 1.459731309 | CH24: 1.264931533 | CI24: 1.3 | CJ24: 26.8 | CK24: 1.301349908 | CL24: 0.09328358209 | CM24: 0 | CN24: 0 | CO24: 24.3 | CP24: 1.32468382 | CR24: 0 | CS24: 1.20 | CT24: 25.5 | CU24: 1.269288203 | CV24: 23.445 | CW24: 0.04705882353 | CX24: 1301.994 | CY24: =INDEX('Données transport emballage'!$4:$19,MATCH('Calcul tarif Truf_JDR'!AB24,'Données transport emballage'!$M$4:$M$19,0),MATCH('Calcul tarif Truf_JDR'!AR24,'Données transport emballage'!$2:$2,0)+2) -> 0 | CZ24: =INDEX('Données transport emballage'!$4:$19,MATCH('Calcul tarif Truf_JDR'!AB24,'Données transport emballage'!$M$4:$M$19,0),MATCH('Calcul tarif Truf_JDR'!AR24,'Données transport emballage'!$2:$2,0)+5) -> 2400 | DA24: =INDEX('Données transport emballage'!$4:$19,MATCH('Calcul tarif Truf_JDR'!AB24,'Données transport emballage'!$M$4:$M$19,0),MATCH('Calcul tarif Truf_JDR'!AR24,'Données transport emballage'!$2:$2,0)+8) -> 2900 | DB24: 2.25 | DC24: 2.25 | DD24: 0 | DE24: =#REF!*$DE$1 ->  | DF24: =#REF!*$DF$1 ->  | DG24: =#REF!*$DG$1 ->  | DH24: =#REF!*$DH$1 ->  | DJ24: 2.25 | DK24: 2.25 | DL24: 0 | DM24: 0 | DN24: 0 | DO24: 0 | DP24: 0 | DQ24: 18.45 | DR24: 2.25 | DS24: 2.25 | DT24: 0 | DU24: 1.3025 | DV24: 0.65125 | DW24: 0.65125 | DX24: 0.39075 | DY24: 17.84575 | DZ24: 2.25 | EA24: 2.25 | EB24: 0 | EC24: 1.34 | ED24: 0.536 | EE24: 0 | EF24: 0.268 | EG24: 20.594 | EH24: 1.85 | EI24: 1.85 | EJ24: 0 | EK24: 0 | EL24: 0 | EM24: 0 | EN24: 0 | EO24: 18.05 | EP24: 1.85 | EQ24: 1.85 | ER24: 0 | ES24: 1.275 | ET24: 0.51 | EU24: 0 | EV24: 0.255 | EW24: 20.09
A25: 3834000056494 | B25: 5649 | C25: OLEA | D25: europaea | F25: FRUIT | G25: Fruitiers | J25: 037 | K25: 25 | L25: 023 | M25: 10L | N25: 021 | O25: 6/8P | P25: DTI | Q25: 1/2 tige | R25: CIP | S25: Cipressino | X25: DC25810 | Y25: DCB81025 | Z25: ETG | AA25: 37 | AB25: PS1 | AC25: Palette socle 100 x 120 | AD25: 1 | AE25: ML | AF25: 2 | AG25: CAM | AH25: 13 | AI25: 962 | AJ25: 3 | AK25: 11.7 | AP25: FV | AQ25: Ferriol Viveros | AR25: 20 | AS25: FERRIOL VIVEROS | AX25: NST | AY25: Notre Sélection | BH25: 12.1 | BK25: 0 | BQ25: 23.3 | BR25: 23.3 | BS25: 0 | BT25: 22.05 | BU25: 22.05 | BV25: 19.85 | BW25: 23.3 | BX25: 23.3 | BY25: 0 | BZ25: 22.05 | CA25: 22.05 | CB25: 19.85 | CE25: 0 | CF25: 19.2 | CG25: 1.075148393 | CH25: 1.071787429 | CI25: 1.3 | CJ25: 23.3 | CK25: 1.300658703 | CL25: 0.2210300429 | CM25: 0 | CN25: 0 | CO25: 18.15 | CP25: 1.2724341 | CQ25: =ROUNDUP(CT25*0.9*20,0)/20 -> 19.85 | CR25: 1.154875495 | CS25: 1.20 | CT25: 22.05 | CU25: 1.269868694 | CV25: 17.28 | CW25: 0.1768707483 | CX25: 962 | CY25: =INDEX('Données transport emballage'!$4:$19,MATCH('Calcul tarif Truf_JDR'!AB25,'Données transport emballage'!$M$4:$M$19,0),MATCH('Calcul tarif Truf_JDR'!AR25,'Données transport emballage'!$2:$2,0)+2) -> 10 | CZ25: =INDEX('Données transport emballage'!$4:$19,MATCH('Calcul tarif Truf_JDR'!AB25,'Données transport emballage'!$M$4:$M$19,0),MATCH('Calcul tarif Truf_JDR'!AR25,'Données transport emballage'!$2:$2,0)+5) -> 117 | DA25: =INDEX('Données transport emballage'!$4:$19,MATCH('Calcul tarif Truf_JDR'!AB25,'Données transport emballage'!$M$4:$M$19,0),MATCH('Calcul tarif Truf_JDR'!AR25,'Données transport emballage'!$2:$2,0)+8) -> 135 | DB25: 3.95 | DC25: 3.65 | DD25: 0.3 | DE25: =#REF!*$DE$1 ->  | DF25: =#REF!*$DF$1 ->  | DG25: =#REF!*$DG$1 ->  | DH25: =#REF!*$DH$1 ->  | DJ25: 3.95 | DK25: 3.65 | DL25: 0.3 | DM25: 0 | DN25: 0 | DO25: 0 | DP25: 0 | DQ25: 16.05 | DR25: 3.95 | DS25: 3.65 | DT25: 0.3 | DU25: 0.96 | DV25: 0.48 | DW25: 0.48 | DX25: 0.288 | DY25: 17.858 | DZ25: 3.95 | EA25: 3.65 | EB25: 0.3 | EC25: 1.165 | ED25: 0.466 | EE25: 0 | EF25: 0.233 | EG25: 17.914 | EH25: 3.5 | EI25: 3.2 | EJ25: 0.3 | EK25: 0.9925 | EL25: 0.397 | EM25: 0 | EN25: 0.1985 | EO25: 17.188 | EP25: 3.5 | EQ25: 3.2 | ER25: 0.3 | ES25: 1.1025 | ET25: 0.441 | EU25: 0 | EV25: 0.2205 | EW25: 17.364
A26: 3834000056494 | B26: 5649 | C26: OLEA | D26: europaea | F26: FRUIT | G26: Fruitiers | J26: 037 | K26: 25 | L26: 023 | M26: 10L | N26: 021 | O26: 6/8P | P26: DTI | Q26: 1/2 tige | R26: CIP | S26: Cipressino | X26: DC25810 | Y26: DCB81025 | Z26: UNI | AA26: 1 | AB26: VRA | AC26: Vrac | AD26: 1 | AE26: ML | AF26: 148.148 | AG26: CAM | AH26: 13.5 | AI26: 1999.998 | AJ26: 3 | AK26: 11.7 | AP26: FV | AQ26: Ferriol Viveros | AR26: 20 | AS26: FERRIOL VIVEROS | AX26: NST | AY26: Notre Sélection | BH26: 12.1 | BK26: 1 | BQ26: 19.75 | BR26: 19.75 | BS26: 0 | BT26: 18.85 | BU26: 18.85 | BV26: 17 | BW26: 19.75 | BX26: 19.75 | BY26: 0 | BZ26: 18.85 | CA26: 18.85 | CB26: 17 | CE26: 0 | CF26: 19.2 | CG26: 1.246105919 | CH26: 1.264822134 | CI26: 1.3 | CJ26: 19.75 | CK26: 1.301054018 | CL26: 0.08101265823 | CM26: 0 | CN26: 0 | CO26: 18.15 | CP26: 1.326754386 | CQ26: =ROUNDUP(CT26*0.9*20,0)/20 -> 17 | CR26: 1.155676411 | CS26: 1.20 | CT26: 18.85 | CU26: 1.268676807 | CV26: 17.28 | CW26: 0.03713527851 | CX26: 1999.998 | CY26: =INDEX('Données transport emballage'!$4:$19,MATCH('Calcul tarif Truf_JDR'!AB26,'Données transport emballage'!$M$4:$M$19,0),MATCH('Calcul tarif Truf_JDR'!AR26,'Données transport emballage'!$2:$2,0)+2) -> 0 | CZ26: =INDEX('Données transport emballage'!$4:$19,MATCH('Calcul tarif Truf_JDR'!AB26,'Données transport emballage'!$M$4:$M$19,0),MATCH('Calcul tarif Truf_JDR'!AR26,'Données transport emballage'!$2:$2,0)+5) -> 2400 | DA26: =INDEX('Données transport emballage'!$4:$19,MATCH('Calcul tarif Truf_JDR'!AB26,'Données transport emballage'!$M$4:$M$19,0),MATCH('Calcul tarif Truf_JDR'!AR26,'Données transport emballage'!$2:$2,0)+8) -> 2900 | DB26: 1.5 | DC26: 1.5 | DD26: 0 | DE26: =#REF!*$DE$1 ->  | DF26: =#REF!*$DF$1 ->  | DG26: =#REF!*$DG$1 ->  | DH26: =#REF!*$DH$1 ->  | DJ26: 1.5 | DK26: 1.5 | DL26: 0 | DM26: 0 | DN26: 0 | DO26: 0 | DP26: 0 | DQ26: 13.6 | DR26: 1.5 | DS26: 1.5 | DT26: 0 | DU26: 0.96 | DV26: 0.48 | DW26: 0.48 | DX26: 0.288 | DY26: 15.408 | DZ26: 1.5 | EA26: 1.5 | EB26: 0 | EC26: 0.9875 | ED26: 0.395 | EE26: 0 | EF26: 0.1975 | EG26: 15.18 | EH26: 1.25 | EI26: 1.25 | EJ26: 0 | EK26: 0.85 | EL26: 0.34 | EM26: 0 | EN26: 0.17 | EO26: 14.71 | EP26: 1.25 | EQ26: 1.25 | ER26: 0 | ES26: 0.9425 | ET26: 0.377 | EU26: 0 | EV26: 0.1885 | EW26: 14.858
A27: 3834000056500 | B27: 5650 | C27: OLEA | D27: europaea | F27: FRUIT | G27: Fruitiers | J27: 049 | K27: 30 | L27: 029 | M27: 15L | N27: 022 | O27: 8/10P | P27: DTI | Q27: 1/2 tige | R27: CIP | S27: Cipressino | X27: DC251012 | Y27: DCCB101225 | Z27: ETG | AA27: 26 | AB27: PS1 | AC27: Palette socle 100 x 120 | AD27: 1 | AE27: ML | AF27: 2 | AG27: CAM | AH27: 13 | AI27: 676 | AJ27: 3 | AK27: 14.85 | AP27: FV | AQ27: Ferriol Viveros | AR27: 20 | AS27: FERRIOL VIVEROS | AX27: NST | AY27: Notre Sélection | BH27: 16.5 | BK27: 0 | BQ27: 32.1 | BR27: 32.1 | BS27: 0 | BT27: 30.2 | BU27: 30.2 | BV27: 27.2 | BW27: 32.1 | BX27: 32.1 | BY27: 0 | BZ27: 30.2 | CA27: 30.2 | CB27: 27.2 | CE27: 0 | CF27: 26.5 | CG27: 1.127779551 | CH27: 1.074266256 | CI27: 1.3 | CJ27: 32.1 | CK27: 1.301281012 | CL27: 0.2289719626 | CM27: 0 | CN27: 0 | CO27: 24.75 | CP27: 1.271317033 | CQ27: =ROUNDUP(CT27*0.9*20,0)/20 -> 27.2 | CR27: 1.153715643 | CS27: 1.20 | CT27: 30.2 | CU27: 1.268055089 | CV27: 23.85 | CW27: 0.1804635762 | CX27: 676 | CY27: =INDEX('Données transport emballage'!$4:$19,MATCH('Calcul tarif Truf_JDR'!AB27,'Données transport emballage'!$M$4:$M$19,0),MATCH('Calcul tarif Truf_JDR'!AR27,'Données transport emballage'!$2:$2,0)+2) -> 10 | CZ27: =INDEX('Données transport emballage'!$4:$19,MATCH('Calcul tarif Truf_JDR'!AB27,'Données transport emballage'!$M$4:$M$19,0),MATCH('Calcul tarif Truf_JDR'!AR27,'Données transport emballage'!$2:$2,0)+5) -> 117 | DA27: =INDEX('Données transport emballage'!$4:$19,MATCH('Calcul tarif Truf_JDR'!AB27,'Données transport emballage'!$M$4:$M$19,0),MATCH('Calcul tarif Truf_JDR'!AR27,'Données transport emballage'!$2:$2,0)+8) -> 135 | DB27: 5.6 | DC27: 5.2 | DD27: 0.4 | DE27: =#REF!*$DE$1 ->  | DF27: =#REF!*$DF$1 ->  | DG27: =#REF!*$DG$1 ->  | DH27: =#REF!*$DH$1 ->  | DJ27: 5.6 | DK27: 5.2 | DL27: 0.4 | DM27: 0 | DN27: 0 | DO27: 0 | DP27: 0 | DQ27: 22.1 | DR27: 5.6 | DS27: 5.2 | DT27: 0.4 | DU27: 1.325 | DV27: 0.6625 | DW27: 0.6625 | DX27: 0.3975 | DY27: 23.4975 | DZ27: 5.6 | EA27: 5.2 | EB27: 0.4 | EC27: 1.605 | ED27: 0.642 | EE27: 0 | EF27: 0.321 | EG27: 24.668 | EH27: 4.9 | EI27: 4.5 | EJ27: 0.4 | EK27: 1.36 | EL27: 0.544 | EM27: 0 | EN27: 0.272 | EO27: 23.576 | EP27: 4.9 | EQ27: 4.5 | ER27: 0.4 | ES27: 1.51 | ET27: 0.604 | EU27: 0 | EV27: 0.302 | EW27: 23.816
A28: 3834000056500 | B28: 5650 | C28: OLEA | D28: europaea | F28: FRUIT | G28: Fruitiers | J28: 049 | K28: 30 | L28: 029 | M28: 15L | N28: 022 | O28: 8/10P | P28: DTI | Q28: 1/2 tige | R28: CIP | S28: Cipressino | X28: DC251012 | Y28: DCCB101225 | Z28: UNI | AA28: 1 | AB28: VRA | AC28: Vrac | AD28: 1 | AE28: ML | AF28: 96.444 | AG28: CAM | AH28: 13.5 | AI28: 1301.994 | AJ28: 3 | AK28: 14.85 | AP28: FV | AQ28: Ferriol Viveros | AR28: 20 | AS28: FERRIOL VIVEROS | AX28: NST | AY28: Notre Sélection | BH28: 16.5 | BK28: 1 | BQ28: 27.25 | BR28: 27.25 | BS28: 0 | BT28: 25.9 | BU28: 25.9 | BV28: 23.35 | BW28: 27.25 | BX28: 27.25 | BY28: 0 | BZ28: 25.9 | CA28: 25.9 | CB28: 23.35 | CE28: 0 | CF28: 26.5 | CG28: 1.315299665 | CH28: 1.266125179 | CI28: 1.3 | CJ28: 27.25 | CK28: 1.301958911 | CL28: 0.09174311927 | CM28: 0 | CN28: 0 | CO28: 24.75 | CP28: 1.324946467 | CQ28: =ROUNDUP(CT28*0.9*20,0)/20 -> 23.35 | CR28: 1.154911465 | CS28: 1.20 | CT28: 25.9 | CU28: 1.268240133 | CV28: 23.85 | CW28: 0.0444015444 | CX28: 1301.994 | CY28: =INDEX('Données transport emballage'!$4:$19,MATCH('Calcul tarif Truf_JDR'!AB28,'Données transport emballage'!$M$4:$M$19,0),MATCH('Calcul tarif Truf_JDR'!AR28,'Données transport emballage'!$2:$2,0)+2) -> 0 | CZ28: =INDEX('Données transport emballage'!$4:$19,MATCH('Calcul tarif Truf_JDR'!AB28,'Données transport emballage'!$M$4:$M$19,0),MATCH('Calcul tarif Truf_JDR'!AR28,'Données transport emballage'!$2:$2,0)+5) -> 2400 | DA28: =INDEX('Données transport emballage'!$4:$19,MATCH('Calcul tarif Truf_JDR'!AB28,'Données transport emballage'!$M$4:$M$19,0),MATCH('Calcul tarif Truf_JDR'!AR28,'Données transport emballage'!$2:$2,0)+8) -> 2900 | DB28: 2.25 | DC28: 2.25 | DD28: 0 | DE28: =#REF!*$DE$1 ->  | DF28: =#REF!*$DF$1 ->  | DG28: =#REF!*$DG$1 ->  | DH28: =#REF!*$DH$1 ->  | DJ28: 2.25 | DK28: 2.25 | DL28: 0 | DM28: 0 | DN28: 0 | DO28: 0 | DP28: 0 | DQ28: 18.75 | DR28: 2.25 | DS28: 2.25 | DT28: 0 | DU28: 1.325 | DV28: 0.6625 | DW28: 0.6625 | DX28: 0.3975 | DY28: 20.1475 | DZ28: 2.25 | EA28: 2.25 | EB28: 0 | EC28: 1.3625 | ED28: 0.545 | EE28: 0 | EF28: 0.2725 | EG28: 20.93 | EH28: 1.85 | EI28: 1.85 | EJ28: 0 | EK28: 1.1675 | EL28: 0.467 | EM28: 0 | EN28: 0.2335 | EO28: 20.218 | EP28: 1.85 | EQ28: 1.85 | ER28: 0 | ES28: 1.295 | ET28: 0.518 | EU28: 0 | EV28: 0.259 | EW28: 20.422
A29: 3834000056517 | B29: 5651 | C29: OLEA | D29: europaea | F29: FRUIT | G29: Fruitiers | H29: NDI | I29: non dispo | J29: 066 | K29: 40 | L29: 043 | M29: 40L | N29: 032 | O29: 14/16P | P29: DTI | Q29: 1/2 tige | R29: CIP | S29: Cipressino | X29: DC461416 | Y29: DCD141646 | Z29: ETG | AA29: 8 | AB29: PS1 | AC29: Palette socle 100 x 120 | AD29: 1 | AE29: ML | AF29: 2 | AG29: CAM | AH29: 13 | AI29: 208 | AJ29: 3 | AK29: 22.5 | AP29: FV | AQ29: Ferriol Viveros | AR29: 20 | AS29: FERRIOL VIVEROS | BH29: 25 | BK29: 0 | BQ29: 62.65 | BR29: 62.65 | BS29: 0 | BT29: 57.75 | BU29: 57.75 | BV29: 0 | BW29: 62.65 | BX29: 62.65 | BY29: 0 | BZ29: 57.75 | CA29: 57.75 | CB29: 0 | CE29: 0 | CF29: 41.65 | CG29: 0.9165983528 | CH29: 0.8647896682 | CI29: 1.3 | CJ29: 62.65 | CK29: 1.300818072 | CL29: 0.4014365523 | CM29: 0 | CN29: 0 | CO29: 37.5 | CP29: 1.199539377 | CR29: 0 | CS29: 1.20 | CT29: 57.75 | CU29: 1.268673111 | CV29: 37.485 | CW29: 0.3506493506 | CX29: 208 | CY29: =INDEX('Données transport emballage'!$4:$19,MATCH('Calcul tarif Truf_JDR'!AB29,'Données transport emballage'!$M$4:$M$19,0),MATCH('Calcul tarif Truf_JDR'!AR29,'Données transport emballage'!$2:$2,0)+2) -> 10 | CZ29: =INDEX('Données transport emballage'!$4:$19,MATCH('Calcul tarif Truf_JDR'!AB29,'Données transport emballage'!$M$4:$M$19,0),MATCH('Calcul tarif Truf_JDR'!AR29,'Données transport emballage'!$2:$2,0)+5) -> 117 | DA29: =INDEX('Données transport emballage'!$4:$19,MATCH('Calcul tarif Truf_JDR'!AB29,'Données transport emballage'!$M$4:$M$19,0),MATCH('Calcul tarif Truf_JDR'!AR29,'Données transport emballage'!$2:$2,0)+8) -> 135 | DB29: 18.15 | DC29: 16.9 | DD29: 1.25 | DE29: =#REF!*$DE$1 ->  | DF29: =#REF!*$DF$1 ->  | DG29: =#REF!*$DG$1 ->  | DH29: =#REF!*$DH$1 ->  | DJ29: 18.15 | DK29: 16.9 | DL29: 1.25 | DM29: 0 | DN29: 0 | DO29: 0 | DP29: 0 | DQ29: 43.15 | DR29: 18.15 | DS29: 16.9 | DT29: 1.25 | DU29: 2.0825 | DV29: 1.04125 | DW29: 1.04125 | DX29: 0.62475 | DY29: 45.43975 | DZ29: 18.15 | EA29: 16.9 | EB29: 1.25 | EC29: 3.1325 | ED29: 1.253 | EE29: 0 | EF29: 0.6265 | EG29: 48.162 | EH29: 15.9 | EI29: 14.65 | EJ29: 1.25 | EK29: 0 | EL29: 0 | EM29: 0 | EN29: 0 | EO29: 40.9 | EP29: 15.9 | EQ29: 14.65 | ER29: 1.25 | ES29: 2.8875 | ET29: 1.155 | EU29: 0 | EV29: 0.5775 | EW29: 45.52
A30: 3834000056517 | B30: 5651 | C30: OLEA | D30: europaea | F30: FRUIT | G30: Fruitiers | H30: NDI | I30: non dispo | J30: 066 | K30: 40 | L30: 043 | M30: 40L | N30: 032 | O30: 14/16P | P30: DTI | Q30: 1/2 tige | R30: CIP | S30: Cipressino | X30: DC461416 | Y30: DCD141646 | Z30: UNI | AA30: 1 | AB30: VRA | AC30: Vrac | AD30: 1 | AE30: ML | AF30: 48.148 | AG30: CAM | AH30: 13.5 | AI30: 649.998 | AJ30: 3 | AK30: 22.5 | AP30: FV | AQ30: Ferriol Viveros | AR30: 20 | AS30: FERRIOL VIVEROS | BH30: 25 | BK30: 1 | BQ30: 42.85 | BR30: 42.85 | BS30: 0 | BT30: 40.5 | BU30: 40.5 | BV30: 0 | BW30: 42.85 | BX30: 42.85 | BY30: 0 | BZ30: 40.5 | CA30: 40.5 | CB30: 0 | CE30: 0 | CF30: 41.65 | CG30: 1.310170731 | CH30: 1.264880952 | CI30: 1.3 | CJ30: 42.85 | CK30: 1.301324101 | CL30: 0.1248541424 | CM30: 0 | CN30: 0 | CO30: 37.5 | CP30: 1.319121992 | CR30: 0 | CS30: 1.20 | CT30: 40.5 | CU30: 1.268002505 | CV30: 37.485 | CW30: 0.07407407407 | CX30: 649.998 | CY30: =INDEX('Données transport emballage'!$4:$19,MATCH('Calcul tarif Truf_JDR'!AB30,'Données transport emballage'!$M$4:$M$19,0),MATCH('Calcul tarif Truf_JDR'!AR30,'Données transport emballage'!$2:$2,0)+2) -> 0 | CZ30: =INDEX('Données transport emballage'!$4:$19,MATCH('Calcul tarif Truf_JDR'!AB30,'Données transport emballage'!$M$4:$M$19,0),MATCH('Calcul tarif Truf_JDR'!AR30,'Données transport emballage'!$2:$2,0)+5) -> 2400 | DA30: =INDEX('Données transport emballage'!$4:$19,MATCH('Calcul tarif Truf_JDR'!AB30,'Données transport emballage'!$M$4:$M$19,0),MATCH('Calcul tarif Truf_JDR'!AR30,'Données transport emballage'!$2:$2,0)+8) -> 2900 | DB30: 4.5 | DC30: 4.5 | DD30: 0 | DE30: =#REF!*$DE$1 ->  | DF30: =#REF!*$DF$1 ->  | DG30: =#REF!*$DG$1 ->  | DH30: =#REF!*$DH$1 ->  | DJ30: 4.5 | DK30: 4.5 | DL30: 0 | DM30: 0 | DN30: 0 | DO30: 0 | DP30: 0 | DQ30: 29.5 | DR30: 4.5 | DS30: 4.5 | DT30: 0 | DU30: 2.0825 | DV30: 1.04125 | DW30: 1.04125 | DX30: 0.62475 | DY30: 31.78975 | DZ30: 4.5 | EA30: 4.5 | EB30: 0 | EC30: 2.1425 | ED30: 0.857 | EE30: 0 | EF30: 0.4285 | EG30: 32.928 | EH30: 3.7 | EI30: 3.7 | EJ30: 0 | EK30: 0 | EL30: 0 | EM30: 0 | EN30: 0 | EO30: 28.7 | EP30: 3.7 | EQ30: 3.7 | ER30: 0 | ES30: 2.025 | ET30: 0.81 | EU30: 0 | EV30: 0.405 | EW30: 31.94
A31: 3834000056524 | B31: 5652 | C31: OLEA | D31: europaea | F31: FRUIT | G31: Fruitiers | H31: NDI | I31: non dispo | J31: 073 | K31: 45 | L31: 048 | M31: 50L | N31: 164 | O31: 180/200 | P31: PYR | Q31: pyramide | R31: CIP | S31: Cipressino | X31: AC80200 | Y31: APCH20025080 | Z31: ETG | AA31: 6 | AB31: PS1 | AC31: Palette socle 100 x 120 | AD31: 1 | AE31: ML | AF31: 2 | AG31: CAM | AH31: 13 | AI31: 156 | AJ31: 3 | AK31: 45 | AP31: FV | AQ31: Ferriol Viveros | AR31: 20 | AS31: FERRIOL VIVEROS | BH31: 50 | BK31: 0 | BQ31: 107.7 | BR31: 107.7 | BS31: 0 | BT31: 100.5 | BU31: 100.5 | BV31: 0 | BW31: 107.7 | BX31: 107.7 | BY31: 0 | BZ31: 100.5 | CA31: 100.5 | CB31: 0 | CE31: 0 | CF31: 86.45 | CG31: 1.092343801 | CH31: 1.04388041 | CI31: 1.3 | CJ31: 107.7 | CK31: 1.300473338 | CL31: 0.3036211699 | CM31: 0 | CN31: 0 | CO31: 75 | CP31: 1.243451157 | CR31: 0 | CS31: 1.20 | CT31: 100.5 | CU31: 1.268298839 | CV31: 77.805 | CW31: 0.2537313433 | CX31: 156 | CY31: =INDEX('Données transport emballage'!$4:$19,MATCH('Calcul tarif Truf_JDR'!AB31,'Données transport emballage'!$M$4:$M$19,0),MATCH('Calcul tarif Truf_JDR'!AR31,'Données transport emballage'!$2:$2,0)+2) -> 10 | CZ31: =INDEX('Données transport emballage'!$4:$19,MATCH('Calcul tarif Truf_JDR'!AB31,'Données transport emballage'!$M$4:$M$19,0),MATCH('Calcul tarif Truf_JDR'!AR31,'Données transport emballage'!$2:$2,0)+5) -> 117 | DA31: =INDEX('Données transport emballage'!$4:$19,MATCH('Calcul tarif Truf_JDR'!AB31,'Données transport emballage'!$M$4:$M$19,0),MATCH('Calcul tarif Truf_JDR'!AR31,'Données transport emballage'!$2:$2,0)+8) -> 135 | DB31: 24.2 | DC31: 22.5 | DD31: 1.7 | DE31: =#REF!*$DE$1 ->  | DF31: =#REF!*$DF$1 ->  | DG31: =#REF!*$DG$1 ->  | DH31: =#REF!*$DH$1 ->  | DJ31: 24.2 | DK31: 22.5 | DL31: 1.7 | DM31: 0 | DN31: 0 | DO31: 0 | DP31: 0 | DQ31: 74.2 | DR31: 24.2 | DS31: 22.5 | DT31: 1.7 | DU31: 4.3225 | DV31: 2.16125 | DW31: 2.16125 | DX31: 1.29675 | DY31: 79.14175 | DZ31: 24.2 | EA31: 22.5 | EB31: 1.7 | EC31: 5.385 | ED31: 2.154 | EE31: 0 | EF31: 1.077 | EG31: 82.816 | EH31: 21.2 | EI31: 19.5 | EJ31: 1.7 | EK31: 0 | EL31: 0 | EM31: 0 | EN31: 0 | EO31: 71.2 | EP31: 21.2 | EQ31: 19.5 | ER31: 1.7 | ES31: 5.025 | ET31: 2.01 | EU31: 0 | EV31: 1.005 | EW31: 79.24
A32: 3834000056524 | B32: 5652 | C32: OLEA | D32: europaea | F32: FRUIT | G32: Fruitiers | H32: NDI | I32: non dispo | J32: 073 | K32: 45 | L32: 048 | M32: 50L | N32: 164 | O32: 180/200 | P32: PYR | Q32: pyramide | R32: CIP | S32: Cipressino | X32: AC80200 | Y32: APCH20025080 | Z32: UNI | AA32: 1 | AB32: VRA | AC32: Vrac | AD32: 1 | AE32: ML | AF32: 19.111 | AG32: CAM | AH32: 13.5 | AI32: 257.9985 | AJ32: 3 | AK32: 45 | AP32: FV | AQ32: Ferriol Viveros | AR32: 20 | AS32: FERRIOL VIVEROS | BH32: 50 | BK32: 1 | BQ32: 88.9 | BR32: 88.9 | BS32: 0 | BT32: 83.75 | BU32: 83.75 | BV32: 0 | BW32: 88.9 | BX32: 88.9 | BY32: 0 | BZ32: 83.75 | CA32: 83.75 | CB32: 0 | CE32: 0 | CF32: 86.45 | CG32: 1.306054002 | CH32: 1.26459144 | CI32: 1.3 | CJ32: 88.9 | CK32: 1.300430063 | CL32: 0.1563554556 | CM32: 0 | CN32: 0 | CO32: 75 | CP32: 1.313209133 | CR32: 0 | CS32: 1.20 | CT32: 83.75 | CU32: 1.267978804 | CV32: 77.805 | CW32: 0.1044776119 | CX32: 257.9985 | CY32: =INDEX('Données transport emballage'!$4:$19,MATCH('Calcul tarif Truf_JDR'!AB32,'Données transport emballage'!$M$4:$M$19,0),MATCH('Calcul tarif Truf_JDR'!AR32,'Données transport emballage'!$2:$2,0)+2) -> 0 | CZ32: =INDEX('Données transport emballage'!$4:$19,MATCH('Calcul tarif Truf_JDR'!AB32,'Données transport emballage'!$M$4:$M$19,0),MATCH('Calcul tarif Truf_JDR'!AR32,'Données transport emballage'!$2:$2,0)+5) -> 2400 | DA32: =INDEX('Données transport emballage'!$4:$19,MATCH('Calcul tarif Truf_JDR'!AB32,'Données transport emballage'!$M$4:$M$19,0),MATCH('Calcul tarif Truf_JDR'!AR32,'Données transport emballage'!$2:$2,0)+8) -> 2900 | DB32: 11.25 | DC32: 11.25 | DD32: 0 | DE32: =#REF!*$DE$1 ->  | DF32: =#REF!*$DF$1 ->  | DG32: =#REF!*$DG$1 ->  | DH32: =#REF!*$DH$1 ->  | DJ32: 11.25 | DK32: 11.25 | DL32: 0 | DM32: 0 | DN32: 0 | DO32: 0 | DP32: 0 | DQ32: 61.25 | DR32: 11.25 | DS32: 11.25 | DT32: 0 | DU32: 4.3225 | DV32: 2.16125 | DW32: 2.16125 | DX32: 1.29675 | DY32: 66.19175 | DZ32: 11.25 | EA32: 11.25 | EB32: 0 | EC32: 4.445 | ED32: 1.778 | EE32: 0 | EF32: 0.889 | EG32: 68.362 | EH32: 9.35 | EI32: 9.35 | EJ32: 0 | EK32: 0 | EL32: 0 | EM32: 0 | EN32: 0 | EO32: 59.35 | EP32: 9.35 | EQ32: 9.35 | ER32: 0 | ES32: 4.1875 | ET32: 1.675 | EU32: 0 | EV32: 0.8375 | EW32: 66.05
A33: 3834000056531 | B33: 5653 | C33: PITTOSPORUM | D33: tobira | E33: Nana | F33: ARBUS | G33: Arbustes | J33: 037 | K33: 25 | L33: 023 | M33: 10L | N33: 053 | O33: 30/40 | P33: TOU | Q33: touffe | X33: A10405 | Y33: AA405010 | Z33: UNI | AA33: 80 | AB33: BOX | AC33: Box 100 x 120 | AD33: 1 | AE33: ML | AF33: 2 | AG33: CAM | AH33: 13 | AI33: 2080 | AJ33: 3 | AK33: 9 | AP33: FV | AQ33: Ferriol Viveros | AR33: 20 | AS33: FERRIOL VIVEROS | BH33: 10 | BK33: 0 | BQ33: 17.6 | BR33: 17.6 | BS33: 0 | BT33: 16.8 | BU33: 16.8 | BV33: 0 | BW33: 17.6 | BX33: 17.6 | BY33: 0 | BZ33: 16.8 | CA33: 16.8 | CB33: 0 | CE33: 0 | CF33: 16.25 | CG33: 1.253012048 | CH33: 1.20299082 | CI33: 1.3 | CJ33: 17.6 | CK33: 1.302931596 | CL33: 0.1477272727 | CM33: 0 | CN33: 0 | CO33: 15 | CP33: 1.270325203 | CR33: 0 | CS33: 1.20 | CT33: 16.8 | CU33: 1.268498943 | CV33: 14.625 | CW33: 0.1071428571 | CX33: 2080 | CY33: =INDEX('Données transport emballage'!$4:$19,MATCH('Calcul tarif Truf_JDR'!AB33,'Données transport emballage'!$M$4:$M$19,0),MATCH('Calcul tarif Truf_JDR'!AR33,'Données transport emballage'!$2:$2,0)+2) -> 30 | CZ33: =INDEX('Données transport emballage'!$4:$19,MATCH('Calcul tarif Truf_JDR'!AB33,'Données transport emballage'!$M$4:$M$19,0),MATCH('Calcul tarif Truf_JDR'!AR33,'Données transport emballage'!$2:$2,0)+5) -> 117 | DA33: =INDEX('Données transport emballage'!$4:$19,MATCH('Calcul tarif Truf_JDR'!AB33,'Données transport emballage'!$M$4:$M$19,0),MATCH('Calcul tarif Truf_JDR'!AR33,'Données transport emballage'!$2:$2,0)+8) -> 135 | DB33: 2.1 | DC33: 1.7 | DD33: 0.4 | DE33: =#REF!*$DE$1 ->  | DF33: =#REF!*$DF$1 ->  | DG33: =#REF!*$DG$1 ->  | DH33: =#REF!*$DH$1 ->  | DJ33: 2.1 | DK33: 1.7 | DL33: 0.4 | DM33: 0 | DN33: 0 | DO33: 0 | DP33: 0 | DQ33: 12.1 | DR33: 2.1 | DS33: 1.7 | DT33: 0.4 | DU33: 0.8125 | DV33: 0.40625 | DW33: 0.40625 | DX33: 0.24375 | DY33: 12.96875 | DZ33: 2.1 | EA33: 1.7 | EB33: 0.4 | EC33: 0.88 | ED33: 0.352 | EE33: 0 | EF33: 0.176 | EG33: 13.508 | EH33: 1.9 | EI33: 1.5 | EJ33: 0.4 | EK33: 0 | EL33: 0 | EM33: 0 | EN33: 0 | EO33: 11.9 | EP33: 1.9 | EQ33: 1.5 | ER33: 0.4 | ES33: 0.84 | ET33: 0.336 | EU33: 0 | EV33: 0.168 | EW33: 13.244
A34: 3834000056531 | B34: 5653 | C34: PITTOSPORUM | D34: tobira | E34: Nana | F34: ARBUS | G34: Arbustes | J34: 037 | K34: 25 | L34: 023 | M34: 10L | N34: 053 | O34: 30/40 | P34: TOU | Q34: touffe | X34: A10405 | Y34: AA405010 | Z34: UNI | AA34: 1 | AB34: VRA | AC34: Vrac | AD34: 1 | AE34: ML | AF34: 148.148 | AG34: CAM | AH34: 13.5 | AI34: 1999.998 | AJ34: 3 | AK34: 9 | AP34: FV | AQ34: Ferriol Viveros | AR34: 20 | AS34: FERRIOL VIVEROS | BH34: 10 | BK34: 1 | BQ34: 16.7 | BR34: 16.7 | BS34: 0 | BT34: 15.9 | BU34: 15.9 | BV34: 0 | BW34: 16.7 | BX34: 16.7 | BY34: 0 | BZ34: 15.9 | CA34: 15.9 | CB34: 0 | CE34: 0 | CF34: 16.25 | CG34: 1.313794846 | CH34: 1.265970707 | CI34: 1.3 | CJ34: 16.7 | CK34: 1.301028358 | CL34: 0.1017964072 | CM34: 0 | CN34: 0 | CO34: 15 | CP34: 1.323218066 | CR34: 0 | CS34: 1.20 | CT34: 15.9 | CU34: 1.269765213 | CV34: 14.625 | CW34: 0.05660377358 | CX34: 1999.998 | CY34: =INDEX('Données transport emballage'!$4:$19,MATCH('Calcul tarif Truf_JDR'!AB34,'Données transport emballage'!$M$4:$M$19,0),MATCH('Calcul tarif Truf_JDR'!AR34,'Données transport emballage'!$2:$2,0)+2) -> 0 | CZ34: =INDEX('Données transport emballage'!$4:$19,MATCH('Calcul tarif Truf_JDR'!AB34,'Données transport emballage'!$M$4:$M$19,0),MATCH('Calcul tarif Truf_JDR'!AR34,'Données transport emballage'!$2:$2,0)+5) -> 2400 | DA34: =INDEX('Données transport emballage'!$4:$19,MATCH('Calcul tarif Truf_JDR'!AB34,'Données transport emballage'!$M$4:$M$19,0),MATCH('Calcul tarif Truf_JDR'!AR34,'Données transport emballage'!$2:$2,0)+8) -> 2900 | DB34: 1.5 | DC34: 1.5 | DD34: 0 | DE34: =#REF!*$DE$1 ->  | DF34: =#REF!*$DF$1 ->  | DG34: =#REF!*$DG$1 ->  | DH34: =#REF!*$DH$1 ->  | DJ34: 1.5 | DK34: 1.5 | DL34: 0 | DM34: 0 | DN34: 0 | DO34: 0 | DP34: 0 | DQ34: 11.5 | DR34: 1.5 | DS34: 1.5 | DT34: 0 | DU34: 0.8125 | DV34: 0.40625 | DW34: 0.40625 | DX34: 0.24375 | DY34: 12.36875 | DZ34: 1.5 | EA34: 1.5 | EB34: 0 | EC34: 0.835 | ED34: 0.334 | EE34: 0 | EF34: 0.167 | EG34: 12.836 | EH34: 1.25 | EI34: 1.25 | EJ34: 0 | EK34: 0 | EL34: 0 | EM34: 0 | EN34: 0 | EO34: 11.25 | EP34: 1.25 | EQ34: 1.25 | ER34: 0 | ES34: 0.795 | ET34: 0.318 | EU34: 0 | EV34: 0.159 | EW34: 12.522
A35: 3834000056548 | B35: 5654 | C35: PHOENIX | D35: canariensis | F35: PALM | G35: Palmiers | H35: NDI | I35: non dispo | J35: 049 | K35: 30 | L35: 029 | M35: 15L | N35: 142 | O35: 140/160 | X35: A15607 | Y35: AA607015 | Z35: UNI | AA35: 36 | AB35: BOX | AC35: Box 100 x 120 | AD35: 1 | AE35: ML | AF35: 2 | AG35: CAM | AH35: 13 | AI35: 936 | AJ35: 3 | AK35: 9 | AP35: FV | AQ35: Ferriol Viveros | AR35: 20 | AS35: FERRIOL VIVEROS | BH35: 10 | BK35: 0 | BN35: =INDEX(TarifTruffautSudT14,MATCH(B35,CodeTarifTruffautSudT14,0)) ->  | BO35: =INDEX(TarifTruffautNordT13,MATCH(B35,CodeTarifTruffautNordT13,0)) ->  | BQ35: 21.2 | BR35: 21.2 | BS35: 0 | BT35: 19.9 | BU35: 19.9 | BV35: 0 | BW35: 21.2 | BX35: 21.2 | BY35: 0 | BZ35: 19.9 | CA35: 19.9 | CB35: 0 | CE35: 0 | CF35: 17.3 | CG35: 1.109721287 | CH35: 1.061610211 | CI35: 1.3 | CJ35: 21.2 | CK35: 1.300932744 | CL35: 0.2924528302 | CM35: 0 | CN35: 0 | CO35: 15 | CP35: 1.195600191 | CR35: 0 | CS35: 1.20 | CT35: 19.9 | CU35: 1.268162121 | CV35: 15.57 | CW35: 0.2462311558 | CX35: 936 | CY35: =INDEX('Données transport emballage'!$4:$19,MATCH('Calcul tarif Truf_JDR'!AB35,'Données transport emballage'!$M$4:$M$19,0),MATCH('Calcul tarif Truf_JDR'!AR35,'Données transport emballage'!$2:$2,0)+2) -> 30 | CZ35: =INDEX('Données transport emballage'!$4:$19,MATCH('Calcul tarif Truf_JDR'!AB35,'Données transport emballage'!$M$4:$M$19,0),MATCH('Calcul tarif Truf_JDR'!AR35,'Données transport emballage'!$2:$2,0)+5) -> 117 | DA35: =INDEX('Données transport emballage'!$4:$19,MATCH('Calcul tarif Truf_JDR'!AB35,'Données transport emballage'!$M$4:$M$19,0),MATCH('Calcul tarif Truf_JDR'!AR35,'Données transport emballage'!$2:$2,0)+8) -> 135 | DB35: 4.6 | DC35: 3.75 | DD35: 0.85 | DE35: =#REF!*$DE$1 ->  | DF35: =#REF!*$DF$1 ->  | DG35: =#REF!*$DG$1 ->  | DH35: =#REF!*$DH$1 ->  | DJ35: 4.6 | DK35: 3.75 | DL35: 0.85 | DM35: 0 | DN35: 0 | DO35: 0 | DP35: 0 | DQ35: 14.6 | DR35: 4.6 | DS35: 3.75 | DT35: 0.85 | DU35: 0.865 | DV35: 0.4325 | DW35: 0.4325 | DX35: 0.2595 | DY35: 15.5895 | DZ35: 4.6 | EA35: 3.75 | EB35: 0.85 | EC35: 1.06 | ED35: 0.424 | EE35: 0 | EF35: 0.212 | EG35: 16.296 | EH35: 4.1 | EI35: 3.25 | EJ35: 0.85 | EK35: 0 | EL35: 0 | EM35: 0 | EN35: 0 | EO35: 14.1 | EP35: 4.1 | EQ35: 3.25 | ER35: 0.85 | ES35: 0.995 | ET35: 0.398 | EU35: 0 | EV35: 0.199 | EW35: 15.692
A36: 3834000056548 | B36: 5654 | C36: PHOENIX | D36: canariensis | F36: PALM | G36: Palmiers | H36: NDI | I36: non dispo | J36: 049 | K36: 30 | L36: 029 | M36: 15L | N36: 142 | O36: 140/160 | X36: A15607 | Y36: AA607015 | Z36: UNI | AA36: 1 | AB36: VRA | AC36: Vrac | AD36: 1 | AE36: ML | AF36: 96.444 | AG36: CAM | AH36: 13.5 | AI36: 1301.994 | AJ36: 3 | AK36: 9 | AP36: FV | AQ36: Ferriol Viveros | AR36: 20 | AS36: FERRIOL VIVEROS | BH36: 10 | BK36: 1 | BQ36: 17.8 | BR36: 17.8 | BS36: 0 | BT36: 16.75 | BU36: 16.75 | BV36: 0 | BW36: 17.8 | BX36: 17.8 | BY36: 0 | BZ36: 16.75 | CA36: 16.75 | CB36: 0 | CE36: 0 | CF36: 17.3 | CG36: 1.306695872 | CH36: 1.265174784 | CI36: 1.3 | CJ36: 17.8 | CK36: 1.301740529 | CL36: 0.1573033708 | CM36: 0 | CN36: 0 | CO36: 15 | CP36: 1.31302521 | CR36: 0 | CS36: 1.20 | CT36: 16.75 | CU36: 1.26990144 | CV36: 15.57 | CW36: 0.1044776119 | CX36: 1301.994 | CY36: =INDEX('Données transport emballage'!$4:$19,MATCH('Calcul tarif Truf_JDR'!AB36,'Données transport emballage'!$M$4:$M$19,0),MATCH('Calcul tarif Truf_JDR'!AR36,'Données transport emballage'!$2:$2,0)+2) -> 0 | CZ36: =INDEX('Données transport emballage'!$4:$19,MATCH('Calcul tarif Truf_JDR'!AB36,'Données transport emballage'!$M$4:$M$19,0),MATCH('Calcul tarif Truf_JDR'!AR36,'Données transport emballage'!$2:$2,0)+5) -> 2400 | DA36: =INDEX('Données transport emballage'!$4:$19,MATCH('Calcul tarif Truf_JDR'!AB36,'Données transport emballage'!$M$4:$M$19,0),MATCH('Calcul tarif Truf_JDR'!AR36,'Données transport emballage'!$2:$2,0)+8) -> 2900 | DB36: 2.25 | DC36: 2.25 | DD36: 0 | DE36: =#REF!*$DE$1 ->  | DF36: =#REF!*$DF$1 ->  | DG36: =#REF!*$DG$1 ->  | DH36: =#REF!*$DH$1 ->  | DJ36: 2.25 | DK36: 2.25 | DL36: 0 | DM36: 0 | DN36: 0 | DO36: 0 | DP36: 0 | DQ36: 12.25 | DR36: 2.25 | DS36: 2.25 | DT36: 0 | DU36: 0.865 | DV36: 0.4325 | DW36: 0.4325 | DX36: 0.2595 | DY36: 13.2395 | DZ36: 2.25 | EA36: 2.25 | EB36: 0 | EC36: 0.89 | ED36: 0.356 | EE36: 0 | EF36: 0.178 | EG36: 13.674 | EH36: 1.85 | EI36: 1.85 | EJ36: 0 | EK36: 0 | EL36: 0 | EM36: 0 | EN36: 0 | EO36: 11.85 | EP36: 1.85 | EQ36: 1.85 | ER36: 0 | ES36: 0.8375 | ET36: 0.335 | EU36: 0 | EV36: 0.1675 | EW36: 13.19
A37: 3834000056555 | B37: 5655 | C37: POLYGALA | D37: myrtifolia | F37: ARBUS | G37: Arbustes | J37: 037 | K37: 25 | L37: 023 | M37: 10L | N37: 081 | O37: 50/70 | P37: TOU | Q37: touffe | X37: A10405 | Y37: AA405010 | Z37: UNI | AA37: 10 | AB37: PE8 | AC37: Palette étages 80 x 120 | AD37: 3 | AE37: ML | AF37: 2 | AG37: CAM | AH37: 13 | AI37: 780 | AJ37: 3 | AK37: 9 | AP37: FV | AQ37: Ferriol Viveros | AR37: 20 | AS37: FERRIOL VIVEROS | AX37: NST | AY37: Notre Sélection | BH37: 9 | BK37: 0 | BQ37: 21.35 | BR37: 21.35 | BS37: 0 | BT37: 19.9 | BU37: 19.9 | BV37: 0 | BW37: 21.35 | BX37: 21.35 | BY37: 0 | BZ37: 19.9 | CA37: 19.9 | CB37: 0 | CE37: 0 | CF37: 14.85 | CG37: 0.9050601088 | CH37: 0.9050463189 | CI37: 1.3 | CJ37: 21.35 | CK37: 1.301194539 | CL37: 0.3676814988 | CM37: 0 | CN37: 0 | CO37: 13.5 | CP37: 1.133691636 | CR37: 0 | CS37: 1.20 | CT37: 19.9 | CU37: 1.268162121 | CV37: 13.365 | CW37: 0.3216080402 | CX37: 780 | CY37: =INDEX('Données transport emballage'!$4:$19,MATCH('Calcul tarif Truf_JDR'!AB37,'Données transport emballage'!$M$4:$M$19,0),MATCH('Calcul tarif Truf_JDR'!AR37,'Données transport emballage'!$2:$2,0)+2) -> 35 | CZ37: =INDEX('Données transport emballage'!$4:$19,MATCH('Calcul tarif Truf_JDR'!AB37,'Données transport emballage'!$M$4:$M$19,0),MATCH('Calcul tarif Truf_JDR'!AR37,'Données transport emballage'!$2:$2,0)+5) -> 117 | DA37: =INDEX('Données transport emballage'!$4:$19,MATCH('Calcul tarif Truf_JDR'!AB37,'Données transport emballage'!$M$4:$M$19,0),MATCH('Calcul tarif Truf_JDR'!AR37,'Données transport emballage'!$2:$2,0)+8) -> 135 | DB37: 5.7 | DC37: 4.5 | DD37: 1.2 | DE37: =#REF!*$DE$1 ->  | DF37: =#REF!*$DF$1 ->  | DG37: =#REF!*$DG$1 ->  | DH37: =#REF!*$DH$1 ->  | DJ37: 5.7 | DK37: 4.5 | DL37: 1.2 | DM37: 0 | DN37: 0 | DO37: 0 | DP37: 0 | DQ37: 14.7 | DR37: 5.7 | DS37: 4.5 | DT37: 1.2 | DU37: 0.7425 | DV37: 0.37125 | DW37: 0.37125 | DX37: 0.22275 | DY37: 16.40775 | DZ37: 5.7 | EA37: 4.5 | EB37: 1.2 | EC37: 1.0675 | ED37: 0.427 | EE37: 0 | EF37: 0.2135 | EG37: 16.408 | EH37: 5.1 | EI37: 3.9 | EJ37: 1.2 | EK37: 0 | EL37: 0 | EM37: 0 | EN37: 0 | EO37: 14.1 | EP37: 5.1 | EQ37: 3.9 | ER37: 1.2 | ES37: 0.995 | ET37: 0.398 | EU37: 0 | EV37: 0.199 | EW37: 15.692
A38: 3834000056555 | B38: 5655 | C38: POLYGALA | D38: myrtifolia | F38: ARBUS | G38: Arbustes | J38: 037 | K38: 25 | L38: 023 | M38: 10L | N38: 081 | O38: 50/70 | P38: TOU | Q38: touffe | X38: A10405 | Y38: AA405010 | Z38: UNI | AA38: 1 | AB38: VRA | AC38: Vrac | AD38: 1 | AE38: ML | AF38: 148.148 | AG38: CAM | AH38: 13.5 | AI38: 1999.998 | AJ38: 3 | AK38: 9 | AP38: FV | AQ38: Ferriol Viveros | AR38: 20 | AS38: FERRIOL VIVEROS | AX38: NST | AY38: Notre Sélection | BH38: 9 | BK38: 1 | BQ38: 15.25 | BR38: 15.25 | BS38: 0 | BT38: 14.5 | BU38: 14.5 | BV38: 0 | BW38: 15.25 | BX38: 15.25 | BY38: 0 | BZ38: 14.5 | CA38: 14.5 | CB38: 0 | CE38: 0 | CF38: 14.85 | CG38: 1.216440376 | CH38: 1.267064846 | CI38: 1.3 | CJ38: 15.25 | CK38: 1.301194539 | CL38: 0.1147540984 | CM38: 0 | CN38: 0 | CO38: 13.5 | CP38: 1.320939335 | CR38: 0 | CS38: 1.20 | CT38: 14.5 | CU38: 1.270815074 | CV38: 13.365 | CW38: 0.06896551724 | CX38: 1999.998 | CY38: =INDEX('Données transport emballage'!$4:$19,MATCH('Calcul tarif Truf_JDR'!AB38,'Données transport emballage'!$M$4:$M$19,0),MATCH('Calcul tarif Truf_JDR'!AR38,'Données transport emballage'!$2:$2,0)+2) -> 0 | CZ38: =INDEX('Données transport emballage'!$4:$19,MATCH('Calcul tarif Truf_JDR'!AB38,'Données transport emballage'!$M$4:$M$19,0),MATCH('Calcul tarif Truf_JDR'!AR38,'Données transport emballage'!$2:$2,0)+5) -> 2400 | DA38: =INDEX('Données transport emballage'!$4:$19,MATCH('Calcul tarif Truf_JDR'!AB38,'Données transport emballage'!$M$4:$M$19,0),MATCH('Calcul tarif Truf_JDR'!AR38,'Données transport emballage'!$2:$2,0)+8) -> 2900 | DB38: 1.5 | DC38: 1.5 | DD38: 0 | DE38: =#REF!*$DE$1 ->  | DF38: =#REF!*$DF$1 ->  | DG38: =#REF!*$DG$1 ->  | DH38: =#REF!*$DH$1 ->  | DJ38: 1.5 | DK38: 1.5 | DL38: 0 | DM38: 0 | DN38: 0 | DO38: 0 | DP38: 0 | DQ38: 10.5 | DR38: 1.5 | DS38: 1.5 | DT38: 0 | DU38: 0.7425 | DV38: 0.37125 | DW38: 0.37125 | DX38: 0.22275 | DY38: 12.20775 | DZ38: 1.5 | EA38: 1.5 | EB38: 0 | EC38: 0.7625 | ED38: 0.305 | EE38: 0 | EF38: 0.1525 | EG38: 11.72 | EH38: 1.25 | EI38: 1.25 | EJ38: 0 | EK38: 0 | EL38: 0 | EM38: 0 | EN38: 0 | EO38: 10.25 | EP38: 1.25 | EQ38: 1.25 | ER38: 0 | ES38: 0.725 | ET38: 0.29 | EU38: 0 | EV38: 0.145 | EW38: 11.41
A39: 3834000056562 | B39: 5656 | C39: POLYGALA | D39: myrtifolia | F39: ARBUS | G39: Arbustes | J39: 037 | K39: 25 | L39: 023 | M39: 10L | P39: DTI | Q39: 1/2 tige | X39: A10405 | Y39: AA405010 | Z39: ETG | AA39: 37 | AB39: PS1 | AC39: Palette socle 100 x 120 | AD39: 1 | AE39: ML | AF39: 2 | AG39: CAM | AH39: 13 | AI39: 962 | AJ39: 3 | AK39: 14.4 | AP39: FV | AQ39: Ferriol Viveros | AR39: 20 | AS39: FERRIOL VIVEROS | AX39: NST | AY39: Notre Sélection | BH39: 16 | BK39: 0 | BQ39: 28.95 | BR39: 28.95 | BS39: 0 | BT39: 27.55 | BU39: 27.55 | BV39: 0 | BW39: 28.95 | BX39: 28.95 | BY39: 0 | BZ39: 27.55 | CA39: 27.55 | CB39: 0 | CE39: 0 | CF39: 24.7 | CG39: 1.165616668 | CH39: 1.10931465 | CI39: 1.3 | CJ39: 28.95 | CK39: 1.300188628 | CL39: 0.170984456 | CM39: 0 | CN39: 0 | CO39: 24 | CP39: 1.28921358 | CR39: 0 | CS39: 1.20 | CT39: 27.55 | CU39: 1.269351272 | CV39: 22.23 | CW39: 0.1288566243 | CX39: 962 | CY39: =INDEX('Données transport emballage'!$4:$19,MATCH('Calcul tarif Truf_JDR'!AB39,'Données transport emballage'!$M$4:$M$19,0),MATCH('Calcul tarif Truf_JDR'!AR39,'Données transport emballage'!$2:$2,0)+2) -> 10 | CZ39: =INDEX('Données transport emballage'!$4:$19,MATCH('Calcul tarif Truf_JDR'!AB39,'Données transport emballage'!$M$4:$M$19,0),MATCH('Calcul tarif Truf_JDR'!AR39,'Données transport emballage'!$2:$2,0)+5) -> 117 | DA39: =INDEX('Données transport emballage'!$4:$19,MATCH('Calcul tarif Truf_JDR'!AB39,'Données transport emballage'!$M$4:$M$19,0),MATCH('Calcul tarif Truf_JDR'!AR39,'Données transport emballage'!$2:$2,0)+8) -> 135 | DB39: 3.95 | DC39: 3.65 | DD39: 0.3 | DE39: =#REF!*$DE$1 ->  | DF39: =#REF!*$DF$1 ->  | DG39: =#REF!*$DG$1 ->  | DH39: =#REF!*$DH$1 ->  | DJ39: 3.95 | DK39: 3.65 | DL39: 0.3 | DM39: 0 | DN39: 0 | DO39: 0 | DP39: 0 | DQ39: 19.95 | DR39: 3.95 | DS39: 3.65 | DT39: 0.3 | DU39: 1.235 | DV39: 0.6175 | DW39: 0.6175 | DX39: 0.3705 | DY39: 21.1905 | DZ39: 3.95 | EA39: 3.65 | EB39: 0.3 | EC39: 1.4475 | ED39: 0.579 | EE39: 0 | EF39: 0.2895 | EG39: 22.266 | EH39: 3.5 | EI39: 3.2 | EJ39: 0.3 | EK39: 0 | EL39: 0 | EM39: 0 | EN39: 0 | EO39: 19.5 | EP39: 3.5 | EQ39: 3.2 | ER39: 0.3 | ES39: 1.3775 | ET39: 0.551 | EU39: 0 | EV39: 0.2755 | EW39: 21.704
A40: 3834000056562 | B40: 5656 | C40: POLYGALA | D40: myrtifolia | F40: ARBUS | G40: Arbustes | J40: 037 | K40: 25 | L40: 023 | M40: 10L | P40: DTI | Q40: 1/2 tige | X40: A10405 | Y40: AA405010 | Z40: UNI | AA40: 1 | AB40: VRA | AC40: Vrac | AD40: 1 | AE40: ML | AF40: 148.148 | AG40: CAM | AH40: 13.5 | AI40: 1999.998 | AJ40: 3 | AK40: 14.4 | AP40: FV | AQ40: Ferriol Viveros | AR40: 20 | AS40: FERRIOL VIVEROS | AX40: NST | AY40: Notre Sélection | BH40: 16 | BK40: 1 | BQ40: 25.4 | BR40: 25.4 | BS40: 0 | BT40: 24.35 | BU40: 24.35 | BV40: 0 | BW40: 25.4 | BX40: 25.4 | BY40: 0 | BZ40: 24.35 | CA40: 24.35 | CB40: 0 | CE40: 0 | CF40: 24.7 | CG40: 1.318001121 | CH40: 1.26459144 | CI40: 1.3 | CJ40: 25.4 | CK40: 1.300430063 | CL40: 0.05511811024 | CM40: 0 | CN40: 0 | CO40: 24 | CP40: 1.330967169 | CR40: 0 | CS40: 1.20 | CT40: 24.35 | CU40: 1.268361288 | CV40: 22.23 | CW40: 0.01437371663 | CX40: 1999.998 | CY40: =INDEX('Données transport emballage'!$4:$19,MATCH('Calcul tarif Truf_JDR'!AB40,'Données transport emballage'!$M$4:$M$19,0),MATCH('Calcul tarif Truf_JDR'!AR40,'Données transport emballage'!$2:$2,0)+2) -> 0 | CZ40: =INDEX('Données transport emballage'!$4:$19,MATCH('Calcul tarif Truf_JDR'!AB40,'Données transport emballage'!$M$4:$M$19,0),MATCH('Calcul tarif Truf_JDR'!AR40,'Données transport emballage'!$2:$2,0)+5) -> 2400 | DA40: =INDEX('Données transport emballage'!$4:$19,MATCH('Calcul tarif Truf_JDR'!AB40,'Données transport emballage'!$M$4:$M$19,0),MATCH('Calcul tarif Truf_JDR'!AR40,'Données transport emballage'!$2:$2,0)+8) -> 2900 | DB40: 1.5 | DC40: 1.5 | DD40: 0 | DE40: =#REF!*$DE$1 ->  | DF40: =#REF!*$DF$1 ->  | DG40: =#REF!*$DG$1 ->  | DH40: =#REF!*$DH$1 ->  | DJ40: 1.5 | DK40: 1.5 | DL40: 0 | DM40: 0 | DN40: 0 | DO40: 0 | DP40: 0 | DQ40: 17.5 | DR40: 1.5 | DS40: 1.5 | DT40: 0 | DU40: 1.235 | DV40: 0.6175 | DW40: 0.6175 | DX40: 0.3705 | DY40: 18.7405 | DZ40: 1.5 | EA40: 1.5 | EB40: 0 | EC40: 1.27 | ED40: 0.508 | EE40: 0 | EF40: 0.254 | EG40: 19.532 | EH40: 1.25 | EI40: 1.25 | EJ40: 0 | EK40: 0 | EL40: 0 | EM40: 0 | EN40: 0 | EO40: 17.25 | EP40: 1.25 | EQ40: 1.25 | ER40: 0 | ES40: 1.2175 | ET40: 0.487 | EU40: 0 | EV40: 0.2435 | EW40: 19.198
A41: 3834000056579 | B41: 5657 | C41: TEUCRIUM | D41: fruticans | F41: ARBUS | G41: Arbustes | J41: 037 | K41: 25 | L41: 023 | M41: 10L | N41: 065 | O41: 40/50 | P41: TOU | Q41: touffe | X41: A10405 | Y41: AA405010 | Z41: UNI | AA41: 10 | AB41: PE8 | AC41: Palette étages 80 x 120 | AD41: 3 | AE41: ML | AF41: 2 | AG41: CAM | AH41: 13 | AI41: 780 | AJ41: 3 | AK41: 9 | AP41: FV | AQ41: Ferriol Viveros | AR41: 20 | AS41: FERRIOL VIVEROS | BH41: 10 | BK41: 0 | BQ41: 22.8 | BR41: 22.8 | BS41: 0 | BT41: 21.35 | BU41: 21.35 | BV41: 0 | BW41: 22.8 | BX41: 22.8 | BY41: 0 | BZ41: 21.35 | CA41: 21.35 | CB41: 0 | CE41: 0 | CF41: 16.25 | CG41: 0.9807619766 | CH41: 0.9272997033 | CI41: 1.3 | CJ41: 22.8 | CK41: 1.301072814 | CL41: 0.3421052632 | CM41: 0 | CN41: 0 | CO41: 15 | CP41: 1.151719902 | CR41: 0 | CS41: 1.20 | CT41: 21.35 | CU41: 1.270228463 | CV41: 14.625 | CW41: 0.2974238876 | CX41: 780 | CY41: =INDEX('Données transport emballage'!$4:$19,MATCH('Calcul tarif Truf_JDR'!AB41,'Données transport emballage'!$M$4:$M$19,0),MATCH('Calcul tarif Truf_JDR'!AR41,'Données transport emballage'!$2:$2,0)+2) -> 35 | CZ41: =INDEX('Données transport emballage'!$4:$19,MATCH('Calcul tarif Truf_JDR'!AB41,'Données transport emballage'!$M$4:$M$19,0),MATCH('Calcul tarif Truf_JDR'!AR41,'Données transport emballage'!$2:$2,0)+5) -> 117 | DA41: =INDEX('Données transport emballage'!$4:$19,MATCH('Calcul tarif Truf_JDR'!AB41,'Données transport emballage'!$M$4:$M$19,0),MATCH('Calcul tarif Truf_JDR'!AR41,'Données transport emballage'!$2:$2,0)+8) -> 135 | DB41: 5.7 | DC41: 4.5 | DD41: 1.2 | DE41: =#REF!*$DE$1 ->  | DF41: =#REF!*$DF$1 ->  | DG41: =#REF!*$DG$1 ->  | DH41: =#REF!*$DH$1 ->  | DJ41: 5.7 | DK41: 4.5 | DL41: 1.2 | DM41: 0 | DN41: 0 | DO41: 0 | DP41: 0 | DQ41: 15.7 | DR41: 5.7 | DS41: 4.5 | DT41: 1.2 | DU41: 0.8125 | DV41: 0.40625 | DW41: 0.40625 | DX41: 0.24375 | DY41: 16.56875 | DZ41: 5.7 | EA41: 4.5 | EB41: 1.2 | EC41: 1.14 | ED41: 0.456 | EE41: 0 | EF41: 0.228 | EG41: 17.524 | EH41: 5.1 | EI41: 3.9 | EJ41: 1.2 | EK41: 0 | EL41: 0 | EM41: 0 | EN41: 0 | EO41: 15.1 | EP41: 5.1 | EQ41: 3.9 | ER41: 1.2 | ES41: 1.0675 | ET41: 0.427 | EU41: 0 | EV41: 0.2135 | EW41: 16.808
A42: 3834000056579 | B42: 5657 | C42: TEUCRIUM | D42: fruticans | F42: ARBUS | G42: Arbustes | J42: 037 | K42: 25 | L42: 023 | M42: 10L | N42: 065 | O42: 40/50 | P42: TOU | Q42: touffe | X42: A10405 | Y42: AA405010 | Z42: UNI | AA42: 1 | AB42: VRA | AC42: Vrac | AD42: 1 | AE42: ML | AF42: 148.148 | AG42: CAM | AH42: 13.5 | AI42: 1999.998 | AJ42: 3 | AK42: 9 | AP42: FV | AQ42: Ferriol Viveros | AR42: 20 | AS42: FERRIOL VIVEROS | BH42: 10 | BK42: 1 | BQ42: 16.7 | BR42: 16.7 | BS42: 0 | BT42: 15.9 | BU42: 15.9 | BV42: 0 | BW42: 16.7 | BX42: 16.7 | BY42: 0 | BZ42: 15.9 | CA42: 15.9 | CB42: 0 | CE42: 0 | CF42: 16.25 | CG42: 1.313794846 | CH42: 1.265970707 | CI42: 1.3 | CJ42: 16.7 | CK42: 1.301028358 | CL42: 0.1017964072 | CM42: 0 | CN42: 0 | CO42: 15 | CP42: 1.323218066 | CR42: 0 | CS42: 1.20 | CT42: 15.9 | CU42: 1.269765213 | CV42: 14.625 | CW42: 0.05660377358 | CX42: 1999.998 | CY42: =INDEX('Données transport emballage'!$4:$19,MATCH('Calcul tarif Truf_JDR'!AB42,'Données transport emballage'!$M$4:$M$19,0),MATCH('Calcul tarif Truf_JDR'!AR42,'Données transport emballage'!$2:$2,0)+2) -> 0 | CZ42: =INDEX('Données transport emballage'!$4:$19,MATCH('Calcul tarif Truf_JDR'!AB42,'Données transport emballage'!$M$4:$M$19,0),MATCH('Calcul tarif Truf_JDR'!AR42,'Données transport emballage'!$2:$2,0)+5) -> 2400 | DA42: =INDEX('Données transport emballage'!$4:$19,MATCH('Calcul tarif Truf_JDR'!AB42,'Données transport emballage'!$M$4:$M$19,0),MATCH('Calcul tarif Truf_JDR'!AR42,'Données transport emballage'!$2:$2,0)+8) -> 2900 | DB42: 1.5 | DC42: 1.5 | DD42: 0 | DE42: =#REF!*$DE$1 ->  | DF42: =#REF!*$DF$1 ->  | DG42: =#REF!*$DG$1 ->  | DH42: =#REF!*$DH$1 ->  | DJ42: 1.5 | DK42: 1.5 | DL42: 0 | DM42: 0 | DN42: 0 | DO42: 0 | DP42: 0 | DQ42: 11.5 | DR42: 1.5 | DS42: 1.5 | DT42: 0 | DU42: 0.8125 | DV42: 0.40625 | DW42: 0.40625 | DX42: 0.24375 | DY42: 12.36875 | DZ42: 1.5 | EA42: 1.5 | EB42: 0 | EC42: 0.835 | ED42: 0.334 | EE42: 0 | EF42: 0.167 | EG42: 12.836 | EH42: 1.25 | EI42: 1.25 | EJ42: 0 | EK42: 0 | EL42: 0 | EM42: 0 | EN42: 0 | EO42: 11.25 | EP42: 1.25 | EQ42: 1.25 | ER42: 0 | ES42: 0.795 | ET42: 0.318 | EU42: 0 | EV42: 0.159 | EW42: 12.522
A43: 3834000056586 | B43: 5658 | C43: VIBURNUM | D43: lucidum | F43: ARBUS | G43: Arbustes | J43: 037 | K43: 25 | L43: 023 | M43: 10L | N43: 081 | O43: 50/70 | P43: TOU | Q43: touffe | X43: A10405 | Y43: AA405010 | Z43: UNI | AA43: 80 | AB43: BOX | AC43: Box 100 x 120 | AD43: 1 | AE43: ML | AF43: 2 | AG43: CAM | AH43: 13 | AI43: 2080 | AJ43: 3 | AK43: 9 | AP43: FV | AQ43: Ferriol Viveros | AR43: 20 | AS43: FERRIOL VIVEROS | BH43: 9 | BK43: 0 | BQ43: 16.15 | BR43: 16.15 | BS43: 0 | BT43: 15.4 | BU43: 15.4 | BV43: 0 | BW43: 16.15 | BX43: 16.15 | BY43: 0 | BZ43: 15.4 | CA43: 15.4 | CB43: 0 | CE43: 0 | CF43: 14.85 | CG43: 1.159454237 | CH43: 1.198353777 | CI43: 1.3 | CJ43: 16.15 | CK43: 1.303260168 | CL43: 0.1640866873 | CM43: 0 | CN43: 0 | CO43: 13.5 | CP43: 1.262626263 | CR43: 0 | CS43: 1.20 | CT43: 15.4 | CU43: 1.26937026 | CV43: 13.365 | CW43: 0.1233766234 | CX43: 2080 | CY43: =INDEX('Données transport emballage'!$4:$19,MATCH('Calcul tarif Truf_JDR'!AB43,'Données transport emballage'!$M$4:$M$19,0),MATCH('Calcul tarif Truf_JDR'!AR43,'Données transport emballage'!$2:$2,0)+2) -> 30 | CZ43: =INDEX('Données transport emballage'!$4:$19,MATCH('Calcul tarif Truf_JDR'!AB43,'Données transport emballage'!$M$4:$M$19,0),MATCH('Calcul tarif Truf_JDR'!AR43,'Données transport emballage'!$2:$2,0)+5) -> 117 | DA43: =INDEX('Données transport emballage'!$4:$19,MATCH('Calcul tarif Truf_JDR'!AB43,'Données transport emballage'!$M$4:$M$19,0),MATCH('Calcul tarif Truf_JDR'!AR43,'Données transport emballage'!$2:$2,0)+8) -> 135 | DB43: 2.1 | DC43: 1.7 | DD43: 0.4 | DE43: =#REF!*$DE$1 ->  | DF43: =#REF!*$DF$1 ->  | DG43: =#REF!*$DG$1 ->  | DH43: =#REF!*$DH$1 ->  | DJ43: 2.1 | DK43: 1.7 | DL43: 0.4 | DM43: 0 | DN43: 0 | DO43: 0 | DP43: 0 | DQ43: 11.1 | DR43: 2.1 | DS43: 1.7 | DT43: 0.4 | DU43: 0.7425 | DV43: 0.37125 | DW43: 0.37125 | DX43: 0.22275 | DY43: 12.80775 | DZ43: 2.1 | EA43: 1.7 | EB43: 0.4 | EC43: 0.8075 | ED43: 0.323 | EE43: 0 | EF43: 0.1615 | EG43: 12.392 | EH43: 1.9 | EI43: 1.5 | EJ43: 0.4 | EK43: 0 | EL43: 0 | EM43: 0 | EN43: 0 | EO43: 10.9 | EP43: 1.9 | EQ43: 1.5 | ER43: 0.4 | ES43: 0.77 | ET43: 0.308 | EU43: 0 | EV43: 0.154 | EW43: 12.132
A44: 3834000056586 | B44: 5658 | C44: VIBURNUM | D44: lucidum | F44: ARBUS | G44: Arbustes | J44: 037 | K44: 25 | L44: 023 | M44: 10L | N44: 081 | O44: 50/70 | P44: TOU | Q44: touffe | X44: A10405 | Y44: AA405010 | Z44: UNI | AA44: 1 | AB44: VRA | AC44: Vrac | AD44: 1 | AE44: ML | AF44: 148.148 | AG44: CAM | AH44: 13.5 | AI44: 1999.998 | AJ44: 3 | AK44: 9 | AP44: FV | AQ44: Ferriol Viveros | AR44: 20 | AS44: FERRIOL VIVEROS | BH44: 9 | BK44: 1 | BQ44: 15.25 | BR44: 15.25 | BS44: 0 | BT44: 14.5 | BU44: 14.5 | BV44: 0 | BW44: 15.25 | BX44: 15.25 | BY44: 0 | BZ44: 14.5 | CA44: 14.5 | CB44: 0 | CE44: 0 | CF44: 14.85 | CG44: 1.216440376 | CH44: 1.267064846 | CI44: 1.3 | CJ44: 15.25 | CK44: 1.301194539 | CL44: 0.1147540984 | CM44: 0 | CN44: 0 | CO44: 13.5 | CP44: 1.320939335 | CR44: 0 | CS44: 1.20 | CT44: 14.5 | CU44: 1.270815074 | CV44: 13.365 | CW44: 0.06896551724 | CX44: 1999.998 | CY44: =INDEX('Données transport emballage'!$4:$19,MATCH('Calcul tarif Truf_JDR'!AB44,'Données transport emballage'!$M$4:$M$19,0),MATCH('Calcul tarif Truf_JDR'!AR44,'Données transport emballage'!$2:$2,0)+2) -> 0 | CZ44: =INDEX('Données transport emballage'!$4:$19,MATCH('Calcul tarif Truf_JDR'!AB44,'Données transport emballage'!$M$4:$M$19,0),MATCH('Calcul tarif Truf_JDR'!AR44,'Données transport emballage'!$2:$2,0)+5) -> 2400 | DA44: =INDEX('Données transport emballage'!$4:$19,MATCH('Calcul tarif Truf_JDR'!AB44,'Données transport emballage'!$M$4:$M$19,0),MATCH('Calcul tarif Truf_JDR'!AR44,'Données transport emballage'!$2:$2,0)+8) -> 2900 | DB44: 1.5 | DC44: 1.5 | DD44: 0 | DE44: =#REF!*$DE$1 ->  | DF44: =#REF!*$DF$1 ->  | DG44: =#REF!*$DG$1 ->  | DH44: =#REF!*$DH$1 ->  | DJ44: 1.5 | DK44: 1.5 | DL44: 0 | DM44: 0 | DN44: 0 | DO44: 0 | DP44: 0 | DQ44: 10.5 | DR44: 1.5 | DS44: 1.5 | DT44: 0 | DU44: 0.7425 | DV44: 0.37125 | DW44: 0.37125 | DX44: 0.22275 | DY44: 12.20775 | DZ44: 1.5 | EA44: 1.5 | EB44: 0 | EC44: 0.7625 | ED44: 0.305 | EE44: 0 | EF44: 0.1525 | EG44: 11.72 | EH44: 1.25 | EI44: 1.25 | EJ44: 0 | EK44: 0 | EL44: 0 | EM44: 0 | EN44: 0 | EO44: 10.25 | EP44: 1.25 | EQ44: 1.25 | ER44: 0 | ES44: 0.725 | ET44: 0.29 | EU44: 0 | EV44: 0.145 | EW44: 11.41
A45: 3834000056593 | B45: 5659 | C45: WASHINGTONIA | D45: robusta | F45: PALM | G45: Palmiers | J45: 037 | K45: 25 | L45: 023 | M45: 10L | N45: 107 | O45: 80/100 | P45: 1PL | Q45: 1 plante | X45: A10405 | Y45: AA405010 | Z45: UNI | AA45: 68 | AB45: BOX | AC45: Box 100 x 120 | AD45: 1 | AE45: ML | AF45: 2 | AG45: CAM | AH45: 13 | AI45: 1768 | AJ45: 3 | AK45: 7.2 | AP45: FV | AQ45: Ferriol Viveros | AR45: 20 | AS45: FERRIOL VIVEROS | AX45: NST | AY45: Notre Sélection | BH45: 8 | BK45: 0 | BQ45: 15.2 | BR45: 15.2 | BS45: 0 | BT45: 14.4 | BU45: 14.4 | BV45: 0 | BW45: 15.2 | BX45: 15.2 | BY45: 0 | BZ45: 14.4 | CA45: 14.4 | CB45: 0 | CE45: 0 | CF45: 13.45 | CG45: 1.201241432 | CH45: 1.152923024 | CI45: 1.3 | CJ45: 15.2 | CK45: 1.302931596 | CL45: 0.2105263158 | CM45: 0 | CN45: 0 | CO45: 12 | CP45: 1.241464929 | CR45: 0 | CS45: 1.20 | CT45: 14.4 | CU45: 1.268498943 | CV45: 12.105 | CW45: 0.1666666667 | CX45: 1768 | CY45: =INDEX('Données transport emballage'!$4:$19,MATCH('Calcul tarif Truf_JDR'!AB45,'Données transport emballage'!$M$4:$M$19,0),MATCH('Calcul tarif Truf_JDR'!AR45,'Données transport emballage'!$2:$2,0)+2) -> 30 | CZ45: =INDEX('Données transport emballage'!$4:$19,MATCH('Calcul tarif Truf_JDR'!AB45,'Données transport emballage'!$M$4:$M$19,0),MATCH('Calcul tarif Truf_JDR'!AR45,'Données transport emballage'!$2:$2,0)+5) -> 117 | DA45: =INDEX('Données transport emballage'!$4:$19,MATCH('Calcul tarif Truf_JDR'!AB45,'Données transport emballage'!$M$4:$M$19,0),MATCH('Calcul tarif Truf_JDR'!AR45,'Données transport emballage'!$2:$2,0)+8) -> 135 | DB45: 2.45 | DC45: 2 | DD45: 0.45 | DE45: =#REF!*$DE$1 ->  | DF45: =#REF!*$DF$1 ->  | DG45: =#REF!*$DG$1 ->  | DH45: =#REF!*$DH$1 ->  | DJ45: 2.45 | DK45: 2 | DL45: 0.45 | DM45: 0 | DN45: 0 | DO45: 0 | DP45: 0 | DQ45: 10.45 | DR45: 2.45 | DS45: 2 | DT45: 0.45 | DU45: 0.6725 | DV45: 0.33625 | DW45: 0.33625 | DX45: 0.20175 | DY45: 11.19675 | DZ45: 2.45 | EA45: 2 | EB45: 0.45 | EC45: 0.76 | ED45: 0.304 | EE45: 0 | EF45: 0.152 | EG45: 11.666 | EH45: 2.2 | EI45: 1.75 | EJ45: 0.45 | EK45: 0 | EL45: 0 | EM45: 0 | EN45: 0 | EO45: 10.2 | EP45: 2.2 | EQ45: 1.75 | ER45: 0.45 | ES45: 0.72 | ET45: 0.288 | EU45: 0 | EV45: 0.144 | EW45: 11.352
A46: 3834000056593 | B46: 5659 | C46: WASHINGTONIA | D46: robusta | F46: PALM | G46: Palmiers | J46: 037 | K46: 25 | L46: 023 | M46: 10L | N46: 107 | O46: 80/100 | P46: 1PL | Q46: 1 plante | X46: A10405 | Y46: AA405010 | Z46: UNI | AA46: 1 | AB46: VRA | AC46: Vrac | AD46: 1 | AE46: ML | AF46: 148.148 | AG46: CAM | AH46: 13.5 | AI46: 1999.998 | AJ46: 3 | AK46: 7.2 | AP46: FV | AQ46: Ferriol Viveros | AR46: 20 | AS46: FERRIOL VIVEROS | AX46: NST | AY46: Notre Sélection | BH46: 8 | BK46: 1 | BQ46: 13.8 | BR46: 13.8 | BS46: 0 | BT46: 13.1 | BU46: 13.1 | BV46: 0 | BW46: 13.8 | BX46: 13.8 | BY46: 0 | BZ46: 13.1 | CA46: 13.1 | CB46: 0 | CE46: 0 | CF46: 13.45 | CG46: 1.312611316 | CH46: 1.268389287 | CI46: 1.3 | CJ46: 13.8 | CK46: 1.3013957 | CL46: 0.1304347826 | CM46: 0 | CN46: 0 | CO46: 12 | CP46: 1.318101933 | CR46: 0 | CS46: 1.20 | CT46: 13.1 | CU46: 1.272091668 | CV46: 12.105 | CW46: 0.08396946565 | CX46: 1999.998 | CY46: =INDEX('Données transport emballage'!$4:$19,MATCH('Calcul tarif Truf_JDR'!AB46,'Données transport emballage'!$M$4:$M$19,0),MATCH('Calcul tarif Truf_JDR'!AR46,'Données transport emballage'!$2:$2,0)+2) -> 0 | CZ46: =INDEX('Données transport emballage'!$4:$19,MATCH('Calcul tarif Truf_JDR'!AB46,'Données transport emballage'!$M$4:$M$19,0),MATCH('Calcul tarif Truf_JDR'!AR46,'Données transport emballage'!$2:$2,0)+5) -> 2400 | DA46: =INDEX('Données transport emballage'!$4:$19,MATCH('Calcul tarif Truf_JDR'!AB46,'Données transport emballage'!$M$4:$M$19,0),MATCH('Calcul tarif Truf_JDR'!AR46,'Données transport emballage'!$2:$2,0)+8) -> 2900 | DB46: 1.5 | DC46: 1.5 | DD46: 0 | DE46: =#REF!*$DE$1 ->  | DF46: =#REF!*$DF$1 ->  | DG46: =#REF!*$DG$1 ->  | DH46: =#REF!*$DH$1 ->  | DJ46: 1.5 | DK46: 1.5 | DL46: 0 | DM46: 0 | DN46: 0 | DO46: 0 | DP46: 0 | DQ46: 9.5 | DR46: 1.5 | DS46: 1.5 | DT46: 0 | DU46: 0.6725 | DV46: 0.33625 | DW46: 0.33625 | DX46: 0.20175 | DY46: 10.24675 | DZ46: 1.5 | EA46: 1.5 | EB46: 0 | EC46: 0.69 | ED46: 0.276 | EE46: 0 | EF46: 0.138 | EG46: 10.604 | EH46: 1.25 | EI46: 1.25 | EJ46: 0 | EK46: 0 | EL46: 0 | EM46: 0 | EN46: 0 | EO46: 9.25 | EP46: 1.25 | EQ46: 1.25 | ER46: 0 | ES46: 0.655 | ET46: 0.262 | EU46: 0 | EV46: 0.131 | EW46: 10.298
A47: 3834000056609 | B47: 5660 | C47: WASHINGTONIA | D47: robusta | F47: PALM | G47: Palmiers | J47: 049 | K47: 30 | L47: 029 | M47: 15L | N47: 142 | O47: 140/160 | P47: 1PL | Q47: 1 plante | X47: A15607 | Y47: AA607015 | Z47: UNI | AA47: 48 | AB47: BOX | AC47: Box 100 x 120 | AD47: 1 | AE47: ML | AF47: 2 | AG47: CAM | AH47: 13 | AI47: 1248 | AJ47: 3 | AK47: 10.8 | AP47: FV | AQ47: Ferriol Viveros | AR47: 20 | AS47: FERRIOL VIVEROS | BH47: 12 | BK47: 0 | BQ47: 22.5 | BR47: 22.5 | BS47: 0 | BT47: 21.35 | BU47: 21.35 | BV47: 0 | BW47: 22.5 | BX47: 22.5 | BY47: 0 | BZ47: 21.35 | CA47: 21.35 | CB47: 0 | CE47: 0 | CF47: 20.15 | CG47: 1.212595345 | CH47: 1.164739884 | CI47: 1.3 | CJ47: 22.5 | CK47: 1.300578035 | CL47: 0.2 | CM47: 0 | CN47: 0 | CO47: 18 | CP47: 1.24567474 | CR47: 0 | CS47: 1.20 | CT47: 21.35 | CU47: 1.270228463 | CV47: 18.135 | CW47: 0.1569086651 | CX47: 1248 | CY47: =INDEX('Données transport emballage'!$4:$19,MATCH('Calcul tarif Truf_JDR'!AB47,'Données transport emballage'!$M$4:$M$19,0),MATCH('Calcul tarif Truf_JDR'!AR47,'Données transport emballage'!$2:$2,0)+2) -> 30 | CZ47: =INDEX('Données transport emballage'!$4:$19,MATCH('Calcul tarif Truf_JDR'!AB47,'Données transport emballage'!$M$4:$M$19,0),MATCH('Calcul tarif Truf_JDR'!AR47,'Données transport emballage'!$2:$2,0)+5) -> 117 | DA47: =INDEX('Données transport emballage'!$4:$19,MATCH('Calcul tarif Truf_JDR'!AB47,'Données transport emballage'!$M$4:$M$19,0),MATCH('Calcul tarif Truf_JDR'!AR47,'Données transport emballage'!$2:$2,0)+8) -> 135 | DB47: 3.5 | DC47: 2.85 | DD47: 0.65 | DE47: =#REF!*$DE$1 ->  | DF47: =#REF!*$DF$1 ->  | DG47: =#REF!*$DG$1 ->  | DH47: =#REF!*$DH$1 ->  | DJ47: 3.5 | DK47: 2.85 | DL47: 0.65 | DM47: 0 | DN47: 0 | DO47: 0 | DP47: 0 | DQ47: 15.5 | DR47: 3.5 | DS47: 2.85 | DT47: 0.65 | DU47: 1.0075 | DV47: 0.50375 | DW47: 0.50375 | DX47: 0.30225 | DY47: 16.61725 | DZ47: 3.5 | EA47: 2.85 | EB47: 0.65 | EC47: 1.125 | ED47: 0.45 | EE47: 0 | EF47: 0.225 | EG47: 17.3 | EH47: 3.1 | EI47: 2.45 | EJ47: 0.65 | EK47: 0 | EL47: 0 | EM47: 0 | EN47: 0 | EO47: 15.1 | EP47: 3.1 | EQ47: 2.45 | ER47: 0.65 | ES47: 1.0675 | ET47: 0.427 | EU47: 0 | EV47: 0.2135 | EW47: 16.808
A48: 3834000056609 | B48: 5660 | C48: WASHINGTONIA | D48: robusta | F48: PALM | G48: Palmiers | J48: 049 | K48: 30 | L48: 029 | M48: 15L | N48: 142 | O48: 140/160 | P48: 1PL | Q48: 1 plante | X48: A15607 | Y48: AA607015 | Z48: UNI | AA48: 1 | AB48: VRA | AC48: Vrac | AD48: 1 | AE48: ML | AF48: 96.4444 | AG48: CAM | AH48: 13.5 | AI48: 1301.9994 | AJ48: 3 | AK48: 10.8 | AP48: FV | AQ48: Ferriol Viveros | AR48: 20 | AS48: FERRIOL VIVEROS | BH48: 12 | BK48: 1 | BQ48: 20.7 | BR48: 20.7 | BS48: 0 | BT48: 19.55 | BU48: 19.55 | BV48: 0 | BW48: 20.7 | BX48: 20.7 | BY48: 0 | BZ48: 19.55 | CA48: 19.55 | CB48: 0 | CE48: 0 | CF48: 20.15 | CG48: 1.311230051 | CH48: 1.266817553 | CI48: 1.3 | CJ48: 20.7 | CK48: 1.3013957 | CL48: 0.1304347826 | CM48: 0 | CN48: 0 | CO48: 18 | CP48: 1.318101933 | CR48: 0 | CS48: 1.20 | CT48: 19.55 | CU48: 1.268327494 | CV48: 18.135 | CW48: 0.07928388747 | CX48: 1301.9994 | CY48: =INDEX('Données transport emballage'!$4:$19,MATCH('Calcul tarif Truf_JDR'!AB48,'Données transport emballage'!$M$4:$M$19,0),MATCH('Calcul tarif Truf_JDR'!AR48,'Données transport emballage'!$2:$2,0)+2) -> 0 | CZ48: =INDEX('Données transport emballage'!$4:$19,MATCH('Calcul tarif Truf_JDR'!AB48,'Données transport emballage'!$M$4:$M$19,0),MATCH('Calcul tarif Truf_JDR'!AR48,'Données transport emballage'!$2:$2,0)+5) -> 2400 | DA48: =INDEX('Données transport emballage'!$4:$19,MATCH('Calcul tarif Truf_JDR'!AB48,'Données transport emballage'!$M$4:$M$19,0),MATCH('Calcul tarif Truf_JDR'!AR48,'Données transport emballage'!$2:$2,0)+8) -> 2900 | DB48: 2.25 | DC48: 2.25 | DD48: 0 | DE48: =#REF!*$DE$1 ->  | DF48: =#REF!*$DF$1 ->  | DG48: =#REF!*$DG$1 ->  | DH48: =#REF!*$DH$1 ->  | DJ48: 2.25 | DK48: 2.25 | DL48: 0 | DM48: 0 | DN48: 0 | DO48: 0 | DP48: 0 | DQ48: 14.25 | DR48: 2.25 | DS48: 2.25 | DT48: 0 | DU48: 1.0075 | DV48: 0.50375 | DW48: 0.50375 | DX48: 0.30225 | DY48: 15.36725 | DZ48: 2.25 | EA48: 2.25 | EB48: 0 | EC48: 1.035 | ED48: 0.414 | EE48: 0 | EF48: 0.207 | EG48: 15.906 | EH48: 1.85 | EI48: 1.85 | EJ48: 0 | EK48: 0 | EL48: 0 | EM48: 0 | EN48: 0 | EO48: 13.85 | EP48: 1.85 | EQ48: 1.85 | ER48: 0 | ES48: 0.9775 | ET48: 0.391 | EU48: 0 | EV48: 0.1955 | EW48: 15.414
A49: 3834000056616 | B49: 5661 | C49: WESTRINGIA | D49: fruticosa | F49: ARBUS | G49: Arbustes | J49: 037 | K49: 25 | L49: 023 | M49: 10L | N49: 078 | O49: 50/60 | P49: BOU | Q49: boule | X49: A10405 | Y49: AA405010 | Z49: UNI | AA49: 80 | AB49: BOX | AC49: Box 100 x 120 | AD49: 1 | AE49: ML | AF49: 2 | AG49: CAM | AH49: 13 | AI49: 2080 | AJ49: 3 | AK49: 9 | AP49: FV | AQ49: Ferriol Viveros | AR49: 20 | AS49: FERRIOL VIVEROS | BH49: 9 | BK49: 0 | BQ49: 16.15 | BR49: 16.15 | BS49: 0 | BT49: 15.4 | BU49: 15.4 | BV49: 0 | BW49: 16.15 | BX49: 16.15 | BY49: 0 | BZ49: 15.4 | CA49: 15.4 | CB49: 0 | CE49: 0 | CF49: 14.85 | CG49: 1.159454237 | CH49: 1.198353777 | CI49: 1.3 | CJ49: 16.15 | CK49: 1.303260168 | CL49: 0.1640866873 | CM49: 0 | CN49: 0 | CO49: 13.5 | CP49: 1.262626263 | CR49: 0 | CS49: 1.20 | CT49: 15.4 | CU49: 1.26937026 | CV49: 13.365 | CW49: 0.1233766234 | CX49: 2080 | CY49: =INDEX('Données transport emballage'!$4:$19,MATCH('Calcul tarif Truf_JDR'!AB49,'Données transport emballage'!$M$4:$M$19,0),MATCH('Calcul tarif Truf_JDR'!AR49,'Données transport emballage'!$2:$2,0)+2) -> 30 | CZ49: =INDEX('Données transport emballage'!$4:$19,MATCH('Calcul tarif Truf_JDR'!AB49,'Données transport emballage'!$M$4:$M$19,0),MATCH('Calcul tarif Truf_JDR'!AR49,'Données transport emballage'!$2:$2,0)+5) -> 117 | DA49: =INDEX('Données transport emballage'!$4:$19,MATCH('Calcul tarif Truf_JDR'!AB49,'Données transport emballage'!$M$4:$M$19,0),MATCH('Calcul tarif Truf_JDR'!AR49,'Données transport emballage'!$2:$2,0)+8) -> 135 | DB49: 2.1 | DC49: 1.7 | DD49: 0.4 | DE49: =#REF!*$DE$1 ->  | DF49: =#REF!*$DF$1 ->  | DG49: =#REF!*$DG$1 ->  | DH49: =#REF!*$DH$1 ->  | DJ49: 2.1 | DK49: 1.7 | DL49: 0.4 | DM49: 0 | DN49: 0 | DO49: 0 | DP49: 0 | DQ49: 11.1 | DR49: 2.1 | DS49: 1.7 | DT49: 0.4 | DU49: 0.7425 | DV49: 0.37125 | DW49: 0.37125 | DX49: 0.22275 | DY49: 12.80775 | DZ49: 2.1 | EA49: 1.7 | EB49: 0.4 | EC49: 0.8075 | ED49: 0.323 | EE49: 0 | EF49: 0.1615 | EG49: 12.392 | EH49: 1.9 | EI49: 1.5 | EJ49: 0.4 | EK49: 0 | EL49: 0 | EM49: 0 | EN49: 0 | EO49: 10.9 | EP49: 1.9 | EQ49: 1.5 | ER49: 0.4 | ES49: 0.77 | ET49: 0.308 | EU49: 0 | EV49: 0.154 | EW49: 12.132
A50: 3834000056616 | B50: 5661 | C50: WESTRINGIA | D50: fruticosa | F50: ARBUS | G50: Arbustes | J50: 037 | K50: 25 | L50: 023 | M50: 10L | N50: 078 | O50: 50/60 | P50: BOU | Q50: boule | X50: A10405 | Y50: AA405010 | Z50: UNI | AA50: 1 | AB50: VRA | AC50: Vrac | AD50: 1 | AE50: ML | AF50: 148.148 | AG50: CAM | AH50: 13.5 | AI50: 1999.998 | AJ50: 3 | AK50: 9 | AP50: FV | AQ50: Ferriol Viveros | AR50: 20 | AS50: FERRIOL VIVEROS | BH50: 9 | BK50: 1 | BQ50: 15.25 | BR50: 15.25 | BS50: 0 | BT50: 14.5 | BU50: 14.5 | BV50: 0 | BW50: 15.25 | BX50: 15.25 | BY50: 0 | BZ50: 14.5 | CA50: 14.5 | CB50: 0 | CE50: 0 | CF50: 14.85 | CG50: 1.216440376 | CH50: 1.267064846 | CI50: 1.3 | CJ50: 15.25 | CK50: 1.301194539 | CL50: 0.1147540984 | CM50: 0 | CN50: 0 | CO50: 13.5 | CP50: 1.320939335 | CR50: 0 | CS50: 1.20 | CT50: 14.5 | CU50: 1.270815074 | CV50: 13.365 | CW50: 0.06896551724 | CX50: 1999.998 | CY50: =INDEX('Données transport emballage'!$4:$19,MATCH('Calcul tarif Truf_JDR'!AB50,'Données transport emballage'!$M$4:$M$19,0),MATCH('Calcul tarif Truf_JDR'!AR50,'Données transport emballage'!$2:$2,0)+2) -> 0 | CZ50: =INDEX('Données transport emballage'!$4:$19,MATCH('Calcul tarif Truf_JDR'!AB50,'Données transport emballage'!$M$4:$M$19,0),MATCH('Calcul tarif Truf_JDR'!AR50,'Données transport emballage'!$2:$2,0)+5) -> 2400 | DA50: =INDEX('Données transport emballage'!$4:$19,MATCH('Calcul tarif Truf_JDR'!AB50,'Données transport emballage'!$M$4:$M$19,0),MATCH('Calcul tarif Truf_JDR'!AR50,'Données transport emballage'!$2:$2,0)+8) -> 2900 | DB50: 1.5 | DC50: 1.5 | DD50: 0 | DE50: =#REF!*$DE$1 ->  | DF50: =#REF!*$DF$1 ->  | DG50: =#REF!*$DG$1 ->  | DH50: =#REF!*$DH$1 ->  | DJ50: 1.5 | DK50: 1.5 | DL50: 0 | DM50: 0 | DN50: 0 | DO50: 0 | DP50: 0 | DQ50: 10.5 | DR50: 1.5 | DS50: 1.5 | DT50: 0 | DU50: 0.7425 | DV50: 0.37125 | DW50: 0.37125 | DX50: 0.22275 | DY50: 12.20775 | DZ50: 1.5 | EA50: 1.5 | EB50: 0 | EC50: 0.7625 | ED50: 0.305 | EE50: 0 | EF50: 0.1525 | EG50: 11.72 | EH50: 1.25 | EI50: 1.25 | EJ50: 0 | EK50: 0 | EL50: 0 | EM50: 0 | EN50: 0 | EO50: 10.25 | EP50: 1.25 | EQ50: 1.25 | ER50: 0 | ES50: 0.725 | ET50: 0.29 | EU50: 0 | EV50: 0.145 | EW50: 11.41
A51: 3834000056623 | B51: 5662 | C51: WESTRINGIA | D51: longifolia | F51: ARBUS | G51: Arbustes | J51: 037 | K51: 25 | L51: 023 | M51: 10L | N51: 078 | O51: 50/60 | P51: BOU | Q51: boule | X51: A10405 | Y51: AA405010 | Z51: UNI | AA51: 80 | AB51: BOX | AC51: Box 100 x 120 | AD51: 1 | AE51: ML | AF51: 2 | AG51: CAM | AH51: 13 | AI51: 2080 | AJ51: 3 | AK51: 9 | AP51: FV | AQ51: Ferriol Viveros | AR51: 20 | AS51: FERRIOL VIVEROS | BH51: 9 | BK51: 0 | BQ51: 16.15 | BR51: 16.15 | BS51: 0 | BT51: 15.4 | BU51: 15.4 | BV51: 0 | BW51: 16.15 | BX51: 16.15 | BY51: 0 | BZ51: 15.4 | CA51: 15.4 | CB51: 0 | CE51: 0 | CF51: 14.85 | CG51: 1.159454237 | CH51: 1.198353777 | CI51: 1.3 | CJ51: 16.15 | CK51: 1.303260168 | CL51: 0.1640866873 | CM51: 0 | CN51: 0 | CO51: 13.5 | CP51: 1.262626263 | CR51: 0 | CS51: 1.20 | CT51: 15.4 | CU51: 1.26937026 | CV51: 13.365 | CW51: 0.1233766234 | CX51: 2080 | CY51: =INDEX('Données transport emballage'!$4:$19,MATCH('Calcul tarif Truf_JDR'!AB51,'Données transport emballage'!$M$4:$M$19,0),MATCH('Calcul tarif Truf_JDR'!AR51,'Données transport emballage'!$2:$2,0)+2) -> 30 | CZ51: =INDEX('Données transport emballage'!$4:$19,MATCH('Calcul tarif Truf_JDR'!AB51,'Données transport emballage'!$M$4:$M$19,0),MATCH('Calcul tarif Truf_JDR'!AR51,'Données transport emballage'!$2:$2,0)+5) -> 117 | DA51: =INDEX('Données transport emballage'!$4:$19,MATCH('Calcul tarif Truf_JDR'!AB51,'Données transport emballage'!$M$4:$M$19,0),MATCH('Calcul tarif Truf_JDR'!AR51,'Données transport emballage'!$2:$2,0)+8) -> 135 | DB51: 2.1 | DC51: 1.7 | DD51: 0.4 | DE51: =#REF!*$DE$1 ->  | DF51: =#REF!*$DF$1 ->  | DG51: =#REF!*$DG$1 ->  | DH51: =#REF!*$DH$1 ->  | DJ51: 2.1 | DK51: 1.7 | DL51: 0.4 | DM51: 0 | DN51: 0 | DO51: 0 | DP51: 0 | DQ51: 11.1 | DR51: 2.1 | DS51: 1.7 | DT51: 0.4 | DU51: 0.7425 | DV51: 0.37125 | DW51: 0.37125 | DX51: 0.22275 | DY51: 12.80775 | DZ51: 2.1 | EA51: 1.7 | EB51: 0.4 | EC51: 0.8075 | ED51: 0.323 | EE51: 0 | EF51: 0.1615 | EG51: 12.392 | EH51: 1.9 | EI51: 1.5 | EJ51: 0.4 | EK51: 0 | EL51: 0 | EM51: 0 | EN51: 0 | EO51: 10.9 | EP51: 1.9 | EQ51: 1.5 | ER51: 0.4 | ES51: 0.77 | ET51: 0.308 | EU51: 0 | EV51: 0.154 | EW51: 12.132
A52: 3834000056623 | B52: 5662 | C52: WESTRINGIA | D52: longifolia | F52: ARBUS | G52: Arbustes | J52: 037 | K52: 25 | L52: 023 | M52: 10L | N52: 078 | O52: 50/60 | P52: BOU | Q52: boule | X52: A10405 | Y52: AA405010 | Z52: UNI | AA52: 1 | AB52: VRA | AC52: Vrac | AD52: 1 | AE52: ML | AF52: 148.148 | AG52: CAM | AH52: 13.5 | AI52: 1999.998 | AJ52: 3 | AK52: 9 | AP52: FV | AQ52: Ferriol Viveros | AR52: 20 | AS52: FERRIOL VIVEROS | BH52: 9 | BK52: 1 | BQ52: 15.25 | BR52: 15.25 | BS52: 0 | BT52: 14.5 | BU52: 14.5 | BV52: 0 | BW52: 15.25 | BX52: 15.25 | BY52: 0 | BZ52: 14.5 | CA52: 14.5 | CB52: 0 | CE52: 0 | CF52: 14.85 | CG52: 1.216440376 | CH52: 1.267064846 | CI52: 1.3 | CJ52: 15.25 | CK52: 1.301194539 | CL52: 0.1147540984 | CM52: 0 | CN52: 0 | CO52: 13.5 | CP52: 1.320939335 | CR52: 0 | CS52: 1.20 | CT52: 14.5 | CU52: 1.270815074 | CV52: 13.365 | CW52: 0.06896551724 | CX52: 1999.998 | CY52: =INDEX('Données transport emballage'!$4:$19,MATCH('Calcul tarif Truf_JDR'!AB52,'Données transport emballage'!$M$4:$M$19,0),MATCH('Calcul tarif Truf_JDR'!AR52,'Données transport emballage'!$2:$2,0)+2) -> 0 | CZ52: =INDEX('Données transport emballage'!$4:$19,MATCH('Calcul tarif Truf_JDR'!AB52,'Données transport emballage'!$M$4:$M$19,0),MATCH('Calcul tarif Truf_JDR'!AR52,'Données transport emballage'!$2:$2,0)+5) -> 2400 | DA52: =INDEX('Données transport emballage'!$4:$19,MATCH('Calcul tarif Truf_JDR'!AB52,'Données transport emballage'!$M$4:$M$19,0),MATCH('Calcul tarif Truf_JDR'!AR52,'Données transport emballage'!$2:$2,0)+8) -> 2900 | DB52: 1.5 | DC52: 1.5 | DD52: 0 | DE52: =#REF!*$DE$1 ->  | DF52: =#REF!*$DF$1 ->  | DG52: =#REF!*$DG$1 ->  | DH52: =#REF!*$DH$1 ->  | DJ52: 1.5 | DK52: 1.5 | DL52: 0 | DM52: 0 | DN52: 0 | DO52: 0 | DP52: 0 | DQ52: 10.5 | DR52: 1.5 | DS52: 1.5 | DT52: 0 | DU52: 0.7425 | DV52: 0.37125 | DW52: 0.37125 | DX52: 0.22275 | DY52: 12.20775 | DZ52: 1.5 | EA52: 1.5 | EB52: 0 | EC52: 0.7625 | ED52: 0.305 | EE52: 0 | EF52: 0.1525 | EG52: 11.72 | EH52: 1.25 | EI52: 1.25 | EJ52: 0 | EK52: 0 | EL52: 0 | EM52: 0 | EN52: 0 | EO52: 10.25 | EP52: 1.25 | EQ52: 1.25 | ER52: 0 | ES52: 0.725 | ET52: 0.29 | EU52: 0 | EV52: 0.145 | EW52: 11.41
A53: 3834000056630 | B53: 5663 | C53: YUCCA | D53: rostrata | F53: SUCC | G53: Succulentes | J53: 037 | K53: 25 | L53: 023 | M53: 10L | N53: 065 | O53: 40/50 | X53: A10405 | Y53: AA405010 | Z53: UNI | AA53: 80 | AB53: BOX | AC53: Box 100 x 120 | AD53: 1 | AE53: ML | AF53: 2 | AG53: CAM | AH53: 13 | AI53: 2080 | AJ53: 3 | AK53: 11.7 | AP53: FV | AQ53: Ferriol Viveros | AR53: 20 | AS53: FERRIOL VIVEROS | AX53: NST | AY53: Notre Sélection | BH53: 13 | BK53: 0 | BQ53: 21.95 | BR53: 21.95 | BS53: 0 | BT53: 21.05 | BU53: 21.05 | BV53: 0 | BW53: 21.95 | BX53: 21.95 | BY53: 0 | BZ53: 21.05 | CA53: 21.05 | CB53: 0 | CE53: 0 | CF53: 20.5 | CG53: 1.268760637 | CH53: 1.216184148 | CI53: 1.3 | CJ53: 21.95 | CK53: 1.302206929 | CL53: 0.1116173121 | CM53: 0 | CN53: 0 | CO53: 19.5 | CP53: 1.286619161 | CR53: 0 | CS53: 1.20 | CT53: 21.05 | CU53: 1.269295707 | CV53: 18.45 | CW53: 0.07363420428 | CX53: 2080 | CY53: =INDEX('Données transport emballage'!$4:$19,MATCH('Calcul tarif Truf_JDR'!AB53,'Données transport emballage'!$M$4:$M$19,0),MATCH('Calcul tarif Truf_JDR'!AR53,'Données transport emballage'!$2:$2,0)+2) -> 30 | CZ53: =INDEX('Données transport emballage'!$4:$19,MATCH('Calcul tarif Truf_JDR'!AB53,'Données transport emballage'!$M$4:$M$19,0),MATCH('Calcul tarif Truf_JDR'!AR53,'Données transport emballage'!$2:$2,0)+5) -> 117 | DA53: =INDEX('Données transport emballage'!$4:$19,MATCH('Calcul tarif Truf_JDR'!AB53,'Données transport emballage'!$M$4:$M$19,0),MATCH('Calcul tarif Truf_JDR'!AR53,'Données transport emballage'!$2:$2,0)+8) -> 135 | DB53: 2.1 | DC53: 1.7 | DD53: 0.4 | DE53: =#REF!*$DE$1 ->  | DF53: =#REF!*$DF$1 ->  | DG53: =#REF!*$DG$1 ->  | DH53: =#REF!*$DH$1 ->  | DJ53: 2.1 | DK53: 1.7 | DL53: 0.4 | DM53: 0 | DN53: 0 | DO53: 0 | DP53: 0 | DQ53: 15.1 | DR53: 2.1 | DS53: 1.7 | DT53: 0.4 | DU53: 1.025 | DV53: 0.5125 | DW53: 0.5125 | DX53: 0.3075 | DY53: 16.1575 | DZ53: 2.1 | EA53: 1.7 | EB53: 0.4 | EC53: 1.0975 | ED53: 0.439 | EE53: 0 | EF53: 0.2195 | EG53: 16.856 | EH53: 1.9 | EI53: 1.5 | EJ53: 0.4 | EK53: 0 | EL53: 0 | EM53: 0 | EN53: 0 | EO53: 14.9 | EP53: 1.9 | EQ53: 1.5 | ER53: 0.4 | ES53: 1.0525 | ET53: 0.421 | EU53: 0 | EV53: 0.2105 | EW53: 16.584
A54: 3834000056630 | B54: 5663 | C54: YUCCA | D54: rostrata | F54: SUCC | G54: Succulentes | J54: 037 | K54: 25 | L54: 023 | M54: 10L | N54: 065 | O54: 40/50 | X54: A10405 | Y54: AA405010 | Z54: UNI | AA54: 1 | AB54: VRA | AC54: Vrac | AD54: 1 | AE54: ML | AF54: 148.148 | AG54: CAM | AH54: 13.5 | AI54: 1999.998 | AJ54: 3 | AK54: 11.7 | AP54: FV | AQ54: Ferriol Viveros | AR54: 20 | AS54: FERRIOL VIVEROS | AX54: NST | AY54: Notre Sélection | BH54: 13 | BK54: 1 | BQ54: 21.05 | BR54: 21.05 | BS54: 0 | BT54: 20.15 | BU54: 20.15 | BV54: 0 | BW54: 21.05 | BX54: 21.05 | BY54: 0 | BZ54: 20.15 | CA54: 20.15 | CB54: 0 | CE54: 0 | CF54: 20.5 | CG54: 1.317692431 | CH54: 1.266683144 | CI54: 1.3 | CJ54: 21.05 | CK54: 1.300667326 | CL54: 0.07363420428 | CM54: 0 | CN54: 0 | CO54: 19.5 | CP54: 1.327976028 | CR54: 0 | CS54: 1.20 | CT54: 20.15 | CU54: 1.27033161 | CV54: 18.45 | CW54: 0.03225806452 | CX54: 1999.998 | CY54: =INDEX('Données transport emballage'!$4:$19,MATCH('Calcul tarif Truf_JDR'!AB54,'Données transport emballage'!$M$4:$M$19,0),MATCH('Calcul tarif Truf_JDR'!AR54,'Données transport emballage'!$2:$2,0)+2) -> 0 | CZ54: =INDEX('Données transport emballage'!$4:$19,MATCH('Calcul tarif Truf_JDR'!AB54,'Données transport emballage'!$M$4:$M$19,0),MATCH('Calcul tarif Truf_JDR'!AR54,'Données transport emballage'!$2:$2,0)+5) -> 2400 | DA54: =INDEX('Données transport emballage'!$4:$19,MATCH('Calcul tarif Truf_JDR'!AB54,'Données transport emballage'!$M$4:$M$19,0),MATCH('Calcul tarif Truf_JDR'!AR54,'Données transport emballage'!$2:$2,0)+8) -> 2900 | DB54: 1.5 | DC54: 1.5 | DD54: 0 | DE54: =#REF!*$DE$1 ->  | DF54: =#REF!*$DF$1 ->  | DG54: =#REF!*$DG$1 ->  | DH54: =#REF!*$DH$1 ->  | DJ54: 1.5 | DK54: 1.5 | DL54: 0 | DM54: 0 | DN54: 0 | DO54: 0 | DP54: 0 | DQ54: 14.5 | DR54: 1.5 | DS54: 1.5 | DT54: 0 | DU54: 1.025 | DV54: 0.5125 | DW54: 0.5125 | DX54: 0.3075 | DY54: 15.5575 | DZ54: 1.5 | EA54: 1.5 | EB54: 0 | EC54: 1.0525 | ED54: 0.421 | EE54: 0 | EF54: 0.2105 | EG54: 16.184 | EH54: 1.25 | EI54: 1.25 | EJ54: 0 | EK54: 0 | EL54: 0 | EM54: 0 | EN54: 0 | EO54: 14.25 | EP54: 1.25 | EQ54: 1.25 | ER54: 0 | ES54: 1.0075 | ET54: 0.403 | EU54: 0 | EV54: 0.2015 | EW54: 15.862
A55: 3834000056647 | B55: 5664 | C55: YUCCA | D55: rostrata | F55: SUCC | G55: Succulentes | J55: 049 | K55: 30 | L55: 029 | M55: 15L | N55: 089 | O55: 60/70 | X55: A15607 | Y55: AA607015 | Z55: UNI | AA55: 50 | AB55: BOX | AC55: Box 100 x 120 | AD55: 1 | AE55: ML | AF55: 2 | AG55: CAM | AH55: 13 | AI55: 1300 | AJ55: 3 | AK55: 16.2 | AP55: FV | AQ55: Ferriol Viveros | AR55: 20 | AS55: FERRIOL VIVEROS | BH55: 18 | BK55: 0 | BQ55: 30.95 | BR55: 30.95 | BS55: 0 | BT55: 29.6 | BU55: 29.6 | BV55: 0 | BW55: 30.95 | BX55: 30.95 | BY55: 0 | BZ55: 29.6 | CA55: 29.6 | CB55: 0 | CE55: 0 | CF55: 28.6 | CG55: 1.254991443 | CH55: 1.202893674 | CI55: 1.3 | CJ55: 30.95 | CK55: 1.30173284 | CL55: 0.1276252019 | CM55: 0 | CN55: 0 | CO55: 27 | CP55: 1.281078003 | CR55: 0 | CS55: 1.20 | CT55: 29.6 | CU55: 1.269405609 | CV55: 25.74 | CW55: 0.08783783784 | CX55: 1300 | CY55: =INDEX('Données transport emballage'!$4:$19,MATCH('Calcul tarif Truf_JDR'!AB55,'Données transport emballage'!$M$4:$M$19,0),MATCH('Calcul tarif Truf_JDR'!AR55,'Données transport emballage'!$2:$2,0)+2) -> 30 | CZ55: =INDEX('Données transport emballage'!$4:$19,MATCH('Calcul tarif Truf_JDR'!AB55,'Données transport emballage'!$M$4:$M$19,0),MATCH('Calcul tarif Truf_JDR'!AR55,'Données transport emballage'!$2:$2,0)+5) -> 117 | DA55: =INDEX('Données transport emballage'!$4:$19,MATCH('Calcul tarif Truf_JDR'!AB55,'Données transport emballage'!$M$4:$M$19,0),MATCH('Calcul tarif Truf_JDR'!AR55,'Données transport emballage'!$2:$2,0)+8) -> 135 | DB55: 3.3 | DC55: 2.7 | DD55: 0.6 | DE55: =#REF!*$DE$1 ->  | DF55: =#REF!*$DF$1 ->  | DG55: =#REF!*$DG$1 ->  | DH55: =#REF!*$DH$1 ->  | DJ55: 3.3 | DK55: 2.7 | DL55: 0.6 | DM55: 0 | DN55: 0 | DO55: 0 | DP55: 0 | DQ55: 21.3 | DR55: 3.3 | DS55: 2.7 | DT55: 0.6 | DU55: 1.43 | DV55: 0.715 | DW55: 0.715 | DX55: 0.429 | DY55: 22.789 | DZ55: 3.3 | EA55: 2.7 | EB55: 0.6 | EC55: 1.5475 | ED55: 0.619 | EE55: 0 | EF55: 0.3095 | EG55: 23.776 | EH55: 2.95 | EI55: 2.35 | EJ55: 0.6 | EK55: 0 | EL55: 0 | EM55: 0 | EN55: 0 | EO55: 20.95 | EP55: 2.95 | EQ55: 2.35 | ER55: 0.6 | ES55: 1.48 | ET55: 0.592 | EU55: 0 | EV55: 0.296 | EW55: 23.318
A56: 3834000056647 | B56: 5664 | C56: YUCCA | D56: rostrata | F56: SUCC | G56: Succulentes | J56: 049 | K56: 30 | L56: 029 | M56: 15L | N56: 089 | O56: 60/70 | X56: A15607 | Y56: AA607015 | Z56: UNI | AA56: 1 | AB56: VRA | AC56: Vrac | AD56: 1 | AE56: ML | AF56: 96.444 | AG56: CAM | AH56: 13.5 | AI56: 1301.994 | AJ56: 3 | AK56: 16.2 | AP56: FV | AQ56: Ferriol Viveros | AR56: 20 | AS56: FERRIOL VIVEROS | BH56: 18 | BK56: 1 | BQ56: 29.4 | BR56: 29.4 | BS56: 0 | BT56: 28.05 | BU56: 28.05 | BV56: 0 | BW56: 29.4 | BX56: 29.4 | BY56: 0 | BZ56: 28.05 | CA56: 28.05 | CB56: 0 | CE56: 0 | CF56: 28.6 | CG56: 1.315607894 | CH56: 1.265374746 | CI56: 1.3 | CJ56: 29.4 | CK56: 1.300769843 | CL56: 0.08163265306 | CM56: 0 | CN56: 0 | CO56: 27 | CP56: 1.326650943 | CR56: 0 | CS56: 1.20 | CT56: 28.05 | CU56: 1.26957545 | CV56: 25.74 | CW56: 0.03743315508 | CX56: 1301.994 | CY56: =INDEX('Données transport emballage'!$4:$19,MATCH('Calcul tarif Truf_JDR'!AB56,'Données transport emballage'!$M$4:$M$19,0),MATCH('Calcul tarif Truf_JDR'!AR56,'Données transport emballage'!$2:$2,0)+2) -> 0 | CZ56: =INDEX('Données transport emballage'!$4:$19,MATCH('Calcul tarif Truf_JDR'!AB56,'Données transport emballage'!$M$4:$M$19,0),MATCH('Calcul tarif Truf_JDR'!AR56,'Données transport emballage'!$2:$2,0)+5) -> 2400 | DA56: =INDEX('Données transport emballage'!$4:$19,MATCH('Calcul tarif Truf_JDR'!AB56,'Données transport emballage'!$M$4:$M$19,0),MATCH('Calcul tarif Truf_JDR'!AR56,'Données transport emballage'!$2:$2,0)+8) -> 2900 | DB56: 2.25 | DC56: 2.25 | DD56: 0 | DE56: =#REF!*$DE$1 ->  | DF56: =#REF!*$DF$1 ->  | DG56: =#REF!*$DG$1 ->  | DH56: =#REF!*$DH$1 ->  | DJ56: 2.25 | DK56: 2.25 | DL56: 0 | DM56: 0 | DN56: 0 | DO56: 0 | DP56: 0 | DQ56: 20.25 | DR56: 2.25 | DS56: 2.25 | DT56: 0 | DU56: 1.43 | DV56: 0.715 | DW56: 0.715 | DX56: 0.429 | DY56: 21.739 | DZ56: 2.25 | EA56: 2.25 | EB56: 0 | EC56: 1.47 | ED56: 0.588 | EE56: 0 | EF56: 0.294 | EG56: 22.602 | EH56: 1.85 | EI56: 1.85 | EJ56: 0 | EK56: 0 | EL56: 0 | EM56: 0 | EN56: 0 | EO56: 19.85 | EP56: 1.85 | EQ56: 1.85 | ER56: 0 | ES56: 1.4025 | ET56: 0.561 | EU56: 0 | EV56: 0.2805 | EW56: 22.094
A57: 3834000056654 | B57: 5665 | C57: TRACHYCARPUS | D57: fortunei | F57: PALM | G57: Palmiers | J57: 037 | K57: 25 | L57: 023 | M57: 10L | N57: 068 | O57: 40/60 | P57: 3PL | Q57: 3 plantes | X57: A10405 | Y57: AA405010 | Z57: UNI | AA57: 68 | AB57: BOX | AC57: Box 100 x 120 | AD57: 1 | AE57: ML | AF57: 2 | AG57: CAM | AH57: 13 | AI57: 1768 | AJ57: 3 | AK57: 9 | AP57: FV | AQ57: Ferriol Viveros | AR57: 20 | AS57: FERRIOL VIVEROS | AX57: NST | AY57: Notre Sélection | BH57: 10 | BK57: 0 | BQ57: 18.1 | BR57: 18.1 | BS57: 0 | BT57: 17.25 | BU57: 17.25 | BV57: 0 | BW57: 18.1 | BX57: 18.1 | BY57: 0 | BZ57: 17.25 | CA57: 17.25 | CB57: 0 | CE57: 0 | CF57: 16.25 | CG57: 1.220084467 | CH57: 1.169232983 | CI57: 1.3 | CJ57: 18.1 | CK57: 1.302345661 | CL57: 0.1712707182 | CM57: 0 | CN57: 0 | CO57: 15 | CP57: 1.260716087 | CR57: 0 | CS57: 1.20 | CT57: 17.25 | CU57: 1.270250368 | CV57: 14.625 | CW57: 0.1304347826 | CX57: 1768 | CY57: =INDEX('Données transport emballage'!$4:$19,MATCH('Calcul tarif Truf_JDR'!AB57,'Données transport emballage'!$M$4:$M$19,0),MATCH('Calcul tarif Truf_JDR'!AR57,'Données transport emballage'!$2:$2,0)+2) -> 30 | CZ57: =INDEX('Données transport emballage'!$4:$19,MATCH('Calcul tarif Truf_JDR'!AB57,'Données transport emballage'!$M$4:$M$19,0),MATCH('Calcul tarif Truf_JDR'!AR57,'Données transport emballage'!$2:$2,0)+5) -> 117 | DA57: =INDEX('Données transport emballage'!$4:$19,MATCH('Calcul tarif Truf_JDR'!AB57,'Données transport emballage'!$M$4:$M$19,0),MATCH('Calcul tarif Truf_JDR'!AR57,'Données transport emballage'!$2:$2,0)+8) -> 135 | DB57: 2.45 | DC57: 2 | DD57: 0.45 | DE57: =#REF!*$DE$1 ->  | DF57: =#REF!*$DF$1 ->  | DG57: =#REF!*$DG$1 ->  | DH57: =#REF!*$DH$1 ->  | DJ57: 2.45 | DK57: 2 | DL57: 0.45 | DM57: 0 | DN57: 0 | DO57: 0 | DP57: 0 | DQ57: 12.45 | DR57: 2.45 | DS57: 2 | DT57: 0.45 | DU57: 0.8125 | DV57: 0.40625 | DW57: 0.40625 | DX57: 0.24375 | DY57: 13.31875 | DZ57: 2.45 | EA57: 2 | EB57: 0.45 | EC57: 0.905 | ED57: 0.362 | EE57: 0 | EF57: 0.181 | EG57: 13.898 | EH57: 2.2 | EI57: 1.75 | EJ57: 0.45 | EK57: 0 | EL57: 0 | EM57: 0 | EN57: 0 | EO57: 12.2 | EP57: 2.2 | EQ57: 1.75 | ER57: 0.45 | ES57: 0.8625 | ET57: 0.345 | EU57: 0 | EV57: 0.1725 | EW57: 13.58
A58: 3834000056654 | B58: 5665 | C58: TRACHYCARPUS | D58: fortunei | F58: PALM | G58: Palmiers | J58: 037 | K58: 25 | L58: 023 | M58: 10L | N58: 068 | O58: 40/60 | P58: 3PL | Q58: 3 plantes | X58: A10405 | Y58: AA405010 | Z58: UNI | AA58: 1 | AB58: VRA | AC58: Vrac | AD58: 1 | AE58: ML | AF58: 148.148 | AG58: CAM | AH58: 13.5 | AI58: 1999.998 | AJ58: 3 | AK58: 9 | AP58: FV | AQ58: Ferriol Viveros | AR58: 20 | AS58: FERRIOL VIVEROS | AX58: NST | AY58: Notre Sélection | BH58: 10 | BK58: 1 | BQ58: 16.7 | BR58: 16.7 | BS58: 0 | BT58: 15.9 | BU58: 15.9 | BV58: 0 | BW58: 16.7 | BX58: 16.7 | BY58: 0 | BZ58: 15.9 | CA58: 15.9 | CB58: 0 | CE58: 0 | CF58: 16.25 | CG58: 1.313794846 | CH58: 1.265970707 | CI58: 1.3 | CJ58: 16.7 | CK58: 1.301028358 | CL58: 0.1017964072 | CM58: 0 | CN58: 0 | CO58: 15 | CP58: 1.323218066 | CR58: 0 | CS58: 1.20 | CT58: 15.9 | CU58: 1.269765213 | CV58: 14.625 | CW58: 0.05660377358 | CX58: 1999.998 | CY58: =INDEX('Données transport emballage'!$4:$19,MATCH('Calcul tarif Truf_JDR'!AB58,'Données transport emballage'!$M$4:$M$19,0),MATCH('Calcul tarif Truf_JDR'!AR58,'Données transport emballage'!$2:$2,0)+2) -> 0 | CZ58: =INDEX('Données transport emballage'!$4:$19,MATCH('Calcul tarif Truf_JDR'!AB58,'Données transport emballage'!$M$4:$M$19,0),MATCH('Calcul tarif Truf_JDR'!AR58,'Données transport emballage'!$2:$2,0)+5) -> 2400 | DA58: =INDEX('Données transport emballage'!$4:$19,MATCH('Calcul tarif Truf_JDR'!AB58,'Données transport emballage'!$M$4:$M$19,0),MATCH('Calcul tarif Truf_JDR'!AR58,'Données transport emballage'!$2:$2,0)+8) -> 2900 | DB58: 1.5 | DC58: 1.5 | DD58: 0 | DE58: =#REF!*$DE$1 ->  | DF58: =#REF!*$DF$1 ->  | DG58: =#REF!*$DG$1 ->  | DH58: =#REF!*$DH$1 ->  | DJ58: 1.5 | DK58: 1.5 | DL58: 0 | DM58: 0 | DN58: 0 | DO58: 0 | DP58: 0 | DQ58: 11.5 | DR58: 1.5 | DS58: 1.5 | DT58: 0 | DU58: 0.8125 | DV58: 0.40625 | DW58: 0.40625 | DX58: 0.24375 | DY58: 12.36875 | DZ58: 1.5 | EA58: 1.5 | EB58: 0 | EC58: 0.835 | ED58: 0.334 | EE58: 0 | EF58: 0.167 | EG58: 12.836 | EH58: 1.25 | EI58: 1.25 | EJ58: 0 | EK58: 0 | EL58: 0 | EM58: 0 | EN58: 0 | EO58: 11.25 | EP58: 1.25 | EQ58: 1.25 | ER58: 0 | ES58: 0.795 | ET58: 0.318 | EU58: 0 | EV58: 0.159 | EW58: 12.522
A59: 3834000056661 | B59: 5666 | C59: TRACHYCARPUS | D59: fortunei | F59: PALM | G59: Palmiers | J59: 018 | K59: 20 | L59: 013 | M59: 5L | P59: 3PL | Q59: 3 plantes | X59: A5 | Y59: A5 | Z59: UNI | AA59: 130 | AB59: BOX | AC59: Box 100 x 120 | AD59: 1 | AE59: ML | AF59: 2 | AG59: CAM | AH59: 13 | AI59: 3380 | AJ59: 3 | AK59: 6.3 | AP59: FV | AQ59: Ferriol Viveros | AR59: 20 | AS59: FERRIOL VIVEROS | BH59: 7 | BK59: 0 | BQ59: 12.05 | BR59: 12.05 | BS59: 0 | BT59: 11.5 | BU59: 11.5 | BV59: 0 | BW59: 12.05 | BX59: 12.05 | BY59: 0 | BZ59: 11.5 | CA59: 11.5 | CB59: 0 | CE59: 0 | CF59: 10.9 | CG59: 1.231151522 | CH59: 1.176597582 | CI59: 1.3 | CJ59: 12.05 | CK59: 1.300734024 | CL59: 0.1286307054 | CM59: 0 | CN59: 0 | CO59: 10.5 | CP59: 1.278305332 | CR59: 0 | CS59: 1.20 | CT59: 11.5 | CU59: 1.267916207 | CV59: 9.81 | CW59: 0.08695652174 | CX59: 3380 | CY59: =INDEX('Données transport emballage'!$4:$19,MATCH('Calcul tarif Truf_JDR'!AB59,'Données transport emballage'!$M$4:$M$19,0),MATCH('Calcul tarif Truf_JDR'!AR59,'Données transport emballage'!$2:$2,0)+2) -> 30 | CZ59: =INDEX('Données transport emballage'!$4:$19,MATCH('Calcul tarif Truf_JDR'!AB59,'Données transport emballage'!$M$4:$M$19,0),MATCH('Calcul tarif Truf_JDR'!AR59,'Données transport emballage'!$2:$2,0)+5) -> 117 | DA59: =INDEX('Données transport emballage'!$4:$19,MATCH('Calcul tarif Truf_JDR'!AB59,'Données transport emballage'!$M$4:$M$19,0),MATCH('Calcul tarif Truf_JDR'!AR59,'Données transport emballage'!$2:$2,0)+8) -> 135 | DB59: 1.3 | DC59: 1.05 | DD59: 0.25 | DE59: =#REF!*$DE$1 ->  | DF59: =#REF!*$DF$1 ->  | DG59: =#REF!*$DG$1 ->  | DH59: =#REF!*$DH$1 ->  | DJ59: 1.3 | DK59: 1.05 | DL59: 0.25 | DM59: 0 | DN59: 0 | DO59: 0 | DP59: 0 | DQ59: 8.3 | DR59: 1.3 | DS59: 1.05 | DT59: 0.25 | DU59: 0.545 | DV59: 0.2725 | DW59: 0.2725 | DX59: 0.1635 | DY59: 8.8535 | DZ59: 1.3 | EA59: 1.05 | EB59: 0.25 | EC59: 0.6025 | ED59: 0.241 | EE59: 0 | EF59: 0.1205 | EG59: 9.264 | EH59: 1.15 | EI59: 0.9 | EJ59: 0.25 | EK59: 0 | EL59: 0 | EM59: 0 | EN59: 0 | EO59: 8.15 | EP59: 1.15 | EQ59: 0.9 | ER59: 0.25 | ES59: 0.575 | ET59: 0.23 | EU59: 0 | EV59: 0.115 | EW59: 9.07
A60: 3834000056661 | B60: 5666 | C60: TRACHYCARPUS | D60: fortunei | F60: PALM | G60: Palmiers | J60: 018 | K60: 20 | L60: 013 | M60: 5L | P60: 3PL | Q60: 3 plantes | X60: A5 | Y60: A5 | Z60: UNI | AA60: 1 | AB60: VRA | AC60: Vrac | AD60: 1 | AE60: ML | AF60: 322.222 | AG60: CAM | AH60: 13.5 | AI60: 4349.997 | AJ60: 3 | AK60: 6.3 | AP60: FV | AQ60: Ferriol Viveros | AR60: 20 | AS60: FERRIOL VIVEROS | BH60: 7 | BK60: 1 | BQ60: 11.2 | BR60: 11.2 | BS60: 0 | BT60: 10.75 | BU60: 10.75 | BV60: 0 | BW60: 11.2 | BX60: 11.2 | BY60: 0 | BZ60: 10.75 | CA60: 10.75 | CB60: 0 | CE60: 0 | CF60: 10.9 | CG60: 1.320651845 | CH60: 1.268031643 | CI60: 1.3 | CJ60: 11.2 | CK60: 1.302931596 | CL60: 0.0625 | CM60: 0 | CN60: 0 | CO60: 10.5 | CP60: 1.329787234 | CR60: 0 | CS60: 1.20 | CT60: 10.75 | CU60: 1.270685579 | CV60: 9.81 | CW60: 0.02325581395 | CX60: 4349.997 | CY60: =INDEX('Données transport emballage'!$4:$19,MATCH('Calcul tarif Truf_JDR'!AB60,'Données transport emballage'!$M$4:$M$19,0),MATCH('Calcul tarif Truf_JDR'!AR60,'Données transport emballage'!$2:$2,0)+2) -> 0 | CZ60: =INDEX('Données transport emballage'!$4:$19,MATCH('Calcul tarif Truf_JDR'!AB60,'Données transport emballage'!$M$4:$M$19,0),MATCH('Calcul tarif Truf_JDR'!AR60,'Données transport emballage'!$2:$2,0)+5) -> 2400 | DA60: =INDEX('Données transport emballage'!$4:$19,MATCH('Calcul tarif Truf_JDR'!AB60,'Données transport emballage'!$M$4:$M$19,0),MATCH('Calcul tarif Truf_JDR'!AR60,'Données transport emballage'!$2:$2,0)+8) -> 2900 | DB60: 0.7 | DC60: 0.7 | DD60: 0 | DE60: =#REF!*$DE$1 ->  | DF60: =#REF!*$DF$1 ->  | DG60: =#REF!*$DG$1 ->  | DH60: =#REF!*$DH$1 ->  | DJ60: 0.7 | DK60: 0.7 | DL60: 0 | DM60: 0 | DN60: 0 | DO60: 0 | DP60: 0 | DQ60: 7.7 | DR60: 0.7 | DS60: 0.7 | DT60: 0 | DU60: 0.545 | DV60: 0.2725 | DW60: 0.2725 | DX60: 0.1635 | DY60: 8.2535 | DZ60: 0.7 | EA60: 0.7 | EB60: 0 | EC60: 0.56 | ED60: 0.224 | EE60: 0 | EF60: 0.112 | EG60: 8.596 | EH60: 0.6 | EI60: 0.6 | EJ60: 0 | EK60: 0 | EL60: 0 | EM60: 0 | EN60: 0 | EO60: 7.6 | EP60: 0.6 | EQ60: 0.6 | ER60: 0 | ES60: 0.5375 | ET60: 0.215 | EU60: 0 | EV60: 0.1075 | EW60: 8.46
A61: 3834000057460 | B61: 5746 | C61: AGAVE | D61: mediopicta | F61: SUCC | G61: Succulentes | H61: NDI | I61: non dispo | J61: 113 | K61: 25 tarrina | L61: 013 | M61: 5L | X61: A5 | Y61: A5 | Z61: UNI | AA61: 10 | AB61: PE8 | AC61: Palette étages 80 x 120 | AD61: 5 | AE61: ML | AF61: 2 | AG61: CAM | AH61: 13 | AI61: 1300 | AJ61: 3 | AK61: 8.1 | AP61: FV | AQ61: Ferriol Viveros | AR61: 20 | AS61: FERRIOL VIVEROS | BH61: 8.4 | BK61: 0 | BQ61: 17.15 | BR61: 17.15 | BS61: 0 | BT61: 16.2 | BU61: 16.2 | BV61: 0 | BW61: 17.15 | BX61: 17.15 | BY61: 0 | BZ61: 16.2 | CA61: 16.2 | CB61: 0 | CE61: 0 | CF61: 12.85 | CG61: 0.9901562289 | CH61: 0.9755542059 | CI61: 1.3 | CJ61: 17.15 | CK61: 1.302004251 | CL61: 0.2653061224 | CM61: 0 | CN61: 0 | CO61: 12.6 | CP61: 1.203208556 | CR61: 0 | CS61: 1.20 | CT61: 16.2 | CU61: 1.270986976 | CV61: 11.565 | CW61: 0.2222222222 | CX61: 1300 | CY61: =INDEX('Données transport emballage'!$4:$19,MATCH('Calcul tarif Truf_JDR'!AB61,'Données transport emballage'!$M$4:$M$19,0),MATCH('Calcul tarif Truf_JDR'!AR61,'Données transport emballage'!$2:$2,0)+2) -> 35 | CZ61: =INDEX('Données transport emballage'!$4:$19,MATCH('Calcul tarif Truf_JDR'!AB61,'Données transport emballage'!$M$4:$M$19,0),MATCH('Calcul tarif Truf_JDR'!AR61,'Données transport emballage'!$2:$2,0)+5) -> 117 | DA61: =INDEX('Données transport emballage'!$4:$19,MATCH('Calcul tarif Truf_JDR'!AB61,'Données transport emballage'!$M$4:$M$19,0),MATCH('Calcul tarif Truf_JDR'!AR61,'Données transport emballage'!$2:$2,0)+8) -> 135 | DB61: 3.4 | DC61: 2.7 | DD61: 0.7 | DE61: =#REF!*$DE$1 ->  | DF61: =#REF!*$DF$1 ->  | DG61: =#REF!*$DG$1 ->  | DH61: =#REF!*$DH$1 ->  | DJ61: 3.4 | DK61: 2.7 | DL61: 0.7 | DM61: 0 | DN61: 0 | DO61: 0 | DP61: 0 | DQ61: 11.8 | DR61: 3.4 | DS61: 2.7 | DT61: 0.7 | DU61: 0.6425 | DV61: 0.32125 | DW61: 0.32125 | DX61: 0.19275 | DY61: 12.97775 | DZ61: 3.4 | EA61: 2.7 | EB61: 0.7 | EC61: 0.8575 | ED61: 0.343 | EE61: 0 | EF61: 0.1715 | EG61: 13.172 | EH61: 3.05 | EI61: 2.35 | EJ61: 0.7 | EK61: 0 | EL61: 0 | EM61: 0 | EN61: 0 | EO61: 11.45 | EP61: 3.05 | EQ61: 2.35 | ER61: 0.7 | ES61: 0.81 | ET61: 0.324 | EU61: 0 | EV61: 0.162 | EW61: 12.746
A62: 3834000057460 | B62: 5746 | C62: AGAVE | D62: mediopicta | F62: SUCC | G62: Succulentes | H62: NDI | I62: non dispo | J62: 113 | K62: 25 tarrina | L62: 013 | M62: 5L | X62: A5 | Y62: A5 | Z62: UNI | AA62: 1 | AB62: VRA | AC62: Vrac | AD62: 1 | AE62: ML | AF62: 322.222 | AG62: CAM | AH62: 13.5 | AI62: 4349.997 | AJ62: 3 | AK62: 8.1 | AP62: FV | AQ62: Ferriol Viveros | AR62: 20 | AS62: FERRIOL VIVEROS | BH62: 8.4 | BK62: 1 | BQ62: 13.25 | BR62: 13.25 | BS62: 0 | BT62: 12.7 | BU62: 12.7 | BV62: 0 | BW62: 13.25 | BX62: 13.25 | BY62: 0 | BZ62: 12.7 | CA62: 12.7 | CB62: 0 | CE62: 0 | CF62: 12.85 | CG62: 1.250273649 | CH62: 1.26476378 | CI62: 1.3 | CJ62: 13.25 | CK62: 1.304133858 | CL62: 0.04905660377 | CM62: 0 | CN62: 0 | CO62: 12.6 | CP62: 1.33192389 | CR62: 0 | CS62: 1.20 | CT62: 12.7 | CU62: 1.267971246 | CV62: 11.565 | CW62: 0.007874015748 | CX62: 4349.997 | CY62: =INDEX('Données transport emballage'!$4:$19,MATCH('Calcul tarif Truf_JDR'!AB62,'Données transport emballage'!$M$4:$M$19,0),MATCH('Calcul tarif Truf_JDR'!AR62,'Données transport emballage'!$2:$2,0)+2) -> 0 | CZ62: =INDEX('Données transport emballage'!$4:$19,MATCH('Calcul tarif Truf_JDR'!AB62,'Données transport emballage'!$M$4:$M$19,0),MATCH('Calcul tarif Truf_JDR'!AR62,'Données transport emballage'!$2:$2,0)+5) -> 2400 | DA62: =INDEX('Données transport emballage'!$4:$19,MATCH('Calcul tarif Truf_JDR'!AB62,'Données transport emballage'!$M$4:$M$19,0),MATCH('Calcul tarif Truf_JDR'!AR62,'Données transport emballage'!$2:$2,0)+8) -> 2900 | DB62: 0.7 | DC62: 0.7 | DD62: 0 | DE62: =#REF!*$DE$1 ->  | DF62: =#REF!*$DF$1 ->  | DG62: =#REF!*$DG$1 ->  | DH62: =#REF!*$DH$1 ->  | DJ62: 0.7 | DK62: 0.7 | DL62: 0 | DM62: 0 | DN62: 0 | DO62: 0 | DP62: 0 | DQ62: 9.1 | DR62: 0.7 | DS62: 0.7 | DT62: 0 | DU62: 0.6425 | DV62: 0.32125 | DW62: 0.32125 | DX62: 0.19275 | DY62: 10.27775 | DZ62: 0.7 | EA62: 0.7 | EB62: 0 | EC62: 0.6625 | ED62: 0.265 | EE62: 0 | EF62: 0.1325 | EG62: 10.16 | EH62: 0.6 | EI62: 0.6 | EJ62: 0 | EK62: 0 | EL62: 0 | EM62: 0 | EN62: 0 | EO62: 9 | EP62: 0.6 | EQ62: 0.6 | ER62: 0 | ES62: 0.635 | ET62: 0.254 | EU62: 0 | EV62: 0.127 | EW62: 10.016
A63: 3834000057477 | B63: 5747 | C63: AGAVE | D63: macroacantha | E63: Viridis | F63: SUCC | G63: Succulentes | H63: DIS | I63: dispo | J63: 113 | K63: 25 tarrina | L63: 013 | M63: 5L | X63: A5 | Y63: A5 | Z63: UNI | AA63: 10 | AB63: PE8 | AC63: Palette étages 80 x 120 | AD63: 5 | AE63: ML | AF63: 2 | AG63: CAM | AH63: 13 | AI63: 1300 | AJ63: 3 | AK63: 8.1 | AP63: FV | AQ63: Ferriol Viveros | AR63: 20 | AS63: FERRIOL VIVEROS | BH63: 8.4 | BK63: 0 | BQ63: 17.15 | BR63: 17.15 | BS63: 0 | BT63: 16.2 | BU63: 16.2 | BV63: 0 | BW63: 17.15 | BX63: 17.15 | BY63: 0 | BZ63: 16.2 | CA63: 16.2 | CB63: 0 | CE63: 0 | CF63: 12.85 | CG63: 0.9901562289 | CH63: 0.9755542059 | CI63: 1.3 | CJ63: 17.15 | CK63: 1.302004251 | CL63: 0.2653061224 | CM63: 0 | CN63: 0 | CO63: 12.6 | CP63: 1.203208556 | CR63: 0 | CS63: 1.20 | CT63: 16.2 | CU63: 1.270986976 | CV63: 11.565 | CW63: 0.2222222222 | CX63: 1300 | CY63: =INDEX('Données transport emballage'!$4:$19,MATCH('Calcul tarif Truf_JDR'!AB63,'Données transport emballage'!$M$4:$M$19,0),MATCH('Calcul tarif Truf_JDR'!AR63,'Données transport emballage'!$2:$2,0)+2) -> 35 | CZ63: =INDEX('Données transport emballage'!$4:$19,MATCH('Calcul tarif Truf_JDR'!AB63,'Données transport emballage'!$M$4:$M$19,0),MATCH('Calcul tarif Truf_JDR'!AR63,'Données transport emballage'!$2:$2,0)+5) -> 117 | DA63: =INDEX('Données transport emballage'!$4:$19,MATCH('Calcul tarif Truf_JDR'!AB63,'Données transport emballage'!$M$4:$M$19,0),MATCH('Calcul tarif Truf_JDR'!AR63,'Données transport emballage'!$2:$2,0)+8) -> 135 | DB63: 3.4 | DC63: 2.7 | DD63: 0.7 | DE63: =#REF!*$DE$1 ->  | DF63: =#REF!*$DF$1 ->  | DG63: =#REF!*$DG$1 ->  | DH63: =#REF!*$DH$1 ->  | DJ63: 3.4 | DK63: 2.7 | DL63: 0.7 | DM63: 0 | DN63: 0 | DO63: 0 | DP63: 0 | DQ63: 11.8 | DR63: 3.4 | DS63: 2.7 | DT63: 0.7 | DU63: 0.6425 | DV63: 0.32125 | DW63: 0.32125 | DX63: 0.19275 | DY63: 12.97775 | DZ63: 3.4 | EA63: 2.7 | EB63: 0.7 | EC63: 0.8575 | ED63: 0.343 | EE63: 0 | EF63: 0.1715 | EG63: 13.172 | EH63: 3.05 | EI63: 2.35 | EJ63: 0.7 | EK63: 0 | EL63: 0 | EM63: 0 | EN63: 0 | EO63: 11.45 | EP63: 3.05 | EQ63: 2.35 | ER63: 0.7 | ES63: 0.81 | ET63: 0.324 | EU63: 0 | EV63: 0.162 | EW63: 12.746
A64: 3834000057477 | B64: 5747 | C64: AGAVE | D64: macroacantha | E64: Viridis | F64: SUCC | G64: Succulentes | H64: DIS | I64: dispo | J64: 113 | K64: 25 tarrina | L64: 013 | M64: 5L | X64: A5 | Y64: A5 | Z64: UNI | AA64: 1 | AB64: VRA | AC64: Vrac | AD64: 1 | AE64: ML | AF64: 322.222 | AG64: CAM | AH64: 13.5 | AI64: 4349.997 | AJ64: 3 | AK64: 8.1 | AP64: FV | AQ64: Ferriol Viveros | AR64: 20 | AS64: FERRIOL VIVEROS | BH64: 8.4 | BK64: 1 | BQ64: 13.25 | BR64: 13.25 | BS64: 0 | BT64: 12.7 | BU64: 12.7 | BV64: 0 | BW64: 13.25 | BX64: 13.25 | BY64: 0 | BZ64: 12.7 | CA64: 12.7 | CB64: 0 | CE64: 0 | CF64: 12.85 | CG64: 1.250273649 | CH64: 1.26476378 | CI64: 1.3 | CJ64: 13.25 | CK64: 1.304133858 | CL64: 0.04905660377 | CM64: 0 | CN64: 0 | CO64: 12.6 | CP64: 1.33192389 | CR64: 0 | CS64: 1.20 | CT64: 12.7 | CU64: 1.267971246 | CV64: 11.565 | CW64: 0.007874015748 | CX64: 4349.997 | CY64: =INDEX('Données transport emballage'!$4:$19,MATCH('Calcul tarif Truf_JDR'!AB64,'Données transport emballage'!$M$4:$M$19,0),MATCH('Calcul tarif Truf_JDR'!AR64,'Données transport emballage'!$2:$2,0)+2) -> 0 | CZ64: =INDEX('Données transport emballage'!$4:$19,MATCH('Calcul tarif Truf_JDR'!AB64,'Données transport emballage'!$M$4:$M$19,0),MATCH('Calcul tarif Truf_JDR'!AR64,'Données transport emballage'!$2:$2,0)+5) -> 2400 | DA64: =INDEX('Données transport emballage'!$4:$19,MATCH('Calcul tarif Truf_JDR'!AB64,'Données transport emballage'!$M$4:$M$19,0),MATCH('Calcul tarif Truf_JDR'!AR64,'Données transport emballage'!$2:$2,0)+8) -> 2900 | DB64: 0.7 | DC64: 0.7 | DD64: 0 | DE64: =#REF!*$DE$1 ->  | DF64: =#REF!*$DF$1 ->  | DG64: =#REF!*$DG$1 ->  | DH64: =#REF!*$DH$1 ->  | DJ64: 0.7 | DK64: 0.7 | DL64: 0 | DM64: 0 | DN64: 0 | DO64: 0 | DP64: 0 | DQ64: 9.1 | DR64: 0.7 | DS64: 0.7 | DT64: 0 | DU64: 0.6425 | DV64: 0.32125 | DW64: 0.32125 | DX64: 0.19275 | DY64: 10.27775 | DZ64: 0.7 | EA64: 0.7 | EB64: 0 | EC64: 0.6625 | ED64: 0.265 | EE64: 0 | EF64: 0.1325 | EG64: 10.16 | EH64: 0.6 | EI64: 0.6 | EJ64: 0 | EK64: 0 | EL64: 0 | EM64: 0 | EN64: 0 | EO64: 9 | EP64: 0.6 | EQ64: 0.6 | ER64: 0 | ES64: 0.635 | ET64: 0.254 | EU64: 0 | EV64: 0.127 | EW64: 10.016
A65: 3834000057484 | B65: 5748 | C65: AGAVE | D65: macroacantha | E65: Blue ribbon | F65: SUCC | G65: Succulentes | H65: DIS | I65: dispo | J65: 113 | K65: 25 tarrina | L65: 013 | M65: 5L | X65: A5 | Y65: A5 | Z65: UNI | AA65: 10 | AB65: PE8 | AC65: Palette étages 80 x 120 | AD65: 5 | AE65: ML | AF65: 2 | AG65: CAM | AH65: 13 | AI65: 1300 | AJ65: 3 | AK65: 8.1 | AP65: FV | AQ65: Ferriol Viveros | AR65: 20 | AS65: FERRIOL VIVEROS | BH65: 8.4 | BK65: 0 | BQ65: 17.15 | BR65: 17.15 | BS65: 0 | BT65: 16.2 | BU65: 16.2 | BV65: 0 | BW65: 17.15 | BX65: 17.15 | BY65: 0 | BZ65: 16.2 | CA65: 16.2 | CB65: 0 | CE65: 0 | CF65: 12.85 | CG65: 0.9901562289 | CH65: 0.9755542059 | CI65: 1.3 | CJ65: 17.15 | CK65: 1.302004251 | CL65: 0.2653061224 | CM65: 0 | CN65: 0 | CO65: 12.6 | CP65: 1.203208556 | CR65: 0 | CS65: 1.20 | CT65: 16.2 | CU65: 1.270986976 | CV65: 11.565 | CW65: 0.2222222222 | CX65: 1300 | CY65: =INDEX('Données transport emballage'!$4:$19,MATCH('Calcul tarif Truf_JDR'!AB65,'Données transport emballage'!$M$4:$M$19,0),MATCH('Calcul tarif Truf_JDR'!AR65,'Données transport emballage'!$2:$2,0)+2) -> 35 | CZ65: =INDEX('Données transport emballage'!$4:$19,MATCH('Calcul tarif Truf_JDR'!AB65,'Données transport emballage'!$M$4:$M$19,0),MATCH('Calcul tarif Truf_JDR'!AR65,'Données transport emballage'!$2:$2,0)+5) -> 117 | DA65: =INDEX('Données transport emballage'!$4:$19,MATCH('Calcul tarif Truf_JDR'!AB65,'Données transport emballage'!$M$4:$M$19,0),MATCH('Calcul tarif Truf_JDR'!AR65,'Données transport emballage'!$2:$2,0)+8) -> 135 | DB65: 3.4 | DC65: 2.7 | DD65: 0.7 | DE65: =#REF!*$DE$1 ->  | DF65: =#REF!*$DF$1 ->  | DG65: =#REF!*$DG$1 ->  | DH65: =#REF!*$DH$1 ->  | DJ65: 3.4 | DK65: 2.7 | DL65: 0.7 | DM65: 0 | DN65: 0 | DO65: 0 | DP65: 0 | DQ65: 11.8 | DR65: 3.4 | DS65: 2.7 | DT65: 0.7 | DU65: 0.6425 | DV65: 0.32125 | DW65: 0.32125 | DX65: 0.19275 | DY65: 12.97775 | DZ65: 3.4 | EA65: 2.7 | EB65: 0.7 | EC65: 0.8575 | ED65: 0.343 | EE65: 0 | EF65: 0.1715 | EG65: 13.172 | EH65: 3.05 | EI65: 2.35 | EJ65: 0.7 | EK65: 0 | EL65: 0 | EM65: 0 | EN65: 0 | EO65: 11.45 | EP65: 3.05 | EQ65: 2.35 | ER65: 0.7 | ES65: 0.81 | ET65: 0.324 | EU65: 0 | EV65: 0.162 | EW65: 12.746
A66: 3834000057484 | B66: 5748 | C66: AGAVE | D66: macroacantha | E66: Blue ribbon | F66: SUCC | G66: Succulentes | H66: DIS | I66: dispo | J66: 113 | K66: 25 tarrina | L66: 013 | M66: 5L | X66: A5 | Y66: A5 | Z66: UNI | AA66: 1 | AB66: VRA | AC66: Vrac | AD66: 1 | AE66: ML | AF66: 322.222 | AG66: CAM | AH66: 13.5 | AI66: 4349.997 | AJ66: 3 | AK66: 8.1 | AP66: FV | AQ66: Ferriol Viveros | AR66: 20 | AS66: FERRIOL VIVEROS | BH66: 8.4 | BK66: 1 | BQ66: 13.25 | BR66: 13.25 | BS66: 0 | BT66: 12.7 | BU66: 12.7 | BV66: 0 | BW66: 13.25 | BX66: 13.25 | BY66: 0 | BZ66: 12.7 | CA66: 12.7 | CB66: 0 | CE66: 0 | CF66: 12.85 | CG66: 1.250273649 | CH66: 1.26476378 | CI66: 1.3 | CJ66: 13.25 | CK66: 1.304133858 | CL66: 0.04905660377 | CM66: 0 | CN66: 0 | CO66: 12.6 | CP66: 1.33192389 | CR66: 0 | CS66: 1.20 | CT66: 12.7 | CU66: 1.267971246 | CV66: 11.565 | CW66: 0.007874015748 | CX66: 4349.997 | CY66: =INDEX('Données transport emballage'!$4:$19,MATCH('Calcul tarif Truf_JDR'!AB66,'Données transport emballage'!$M$4:$M$19,0),MATCH('Calcul tarif Truf_JDR'!AR66,'Données transport emballage'!$2:$2,0)+2) -> 0 | CZ66: =INDEX('Données transport emballage'!$4:$19,MATCH('Calcul tarif Truf_JDR'!AB66,'Données transport emballage'!$M$4:$M$19,0),MATCH('Calcul tarif Truf_JDR'!AR66,'Données transport emballage'!$2:$2,0)+5) -> 2400 | DA66: =INDEX('Données transport emballage'!$4:$19,MATCH('Calcul tarif Truf_JDR'!AB66,'Données transport emballage'!$M$4:$M$19,0),MATCH('Calcul tarif Truf_JDR'!AR66,'Données transport emballage'!$2:$2,0)+8) -> 2900 | DB66: 0.7 | DC66: 0.7 | DD66: 0 | DE66: =#REF!*$DE$1 ->  | DF66: =#REF!*$DF$1 ->  | DG66: =#REF!*$DG$1 ->  | DH66: =#REF!*$DH$1 ->  | DJ66: 0.7 | DK66: 0.7 | DL66: 0 | DM66: 0 | DN66: 0 | DO66: 0 | DP66: 0 | DQ66: 9.1 | DR66: 0.7 | DS66: 0.7 | DT66: 0 | DU66: 0.6425 | DV66: 0.32125 | DW66: 0.32125 | DX66: 0.19275 | DY66: 10.27775 | DZ66: 0.7 | EA66: 0.7 | EB66: 0 | EC66: 0.6625 | ED66: 0.265 | EE66: 0 | EF66: 0.1325 | EG66: 10.16 | EH66: 0.6 | EI66: 0.6 | EJ66: 0 | EK66: 0 | EL66: 0 | EM66: 0 | EN66: 0 | EO66: 9 | EP66: 0.6 | EQ66: 0.6 | ER66: 0 | ES66: 0.635 | ET66: 0.254 | EU66: 0 | EV66: 0.127 | EW66: 10.016
A67: 3834000057491 | B67: 5749 | C67: AGAVE | D67: angustifolia | F67: SUCC | G67: Succulentes | H67: NDI | I67: non dispo | J67: 113 | K67: 25 tarrina | L67: 013 | M67: 5L | X67: A5 | Y67: A5 | Z67: UNI | AA67: 10 | AB67: PE8 | AC67: Palette étages 80 x 120 | AD67: 5 | AE67: ML | AF67: 2 | AG67: CAM | AH67: 13 | AI67: 1300 | AJ67: 3 | AK67: 8.1 | AP67: FV | AQ67: Ferriol Viveros | AR67: 20 | AS67: FERRIOL VIVEROS | BH67: 8.4 | BK67: 0 | BN67: =INDEX(TarifTruffautSudT14,MATCH(B67,CodeTarifTruffautSudT14,0)) ->  | BO67: =INDEX(TarifTruffautNordT13,MATCH(B67,CodeTarifTruffautNordT13,0)) ->  | BP67: =CF67-BO67 ->  | BQ67: 17.15 | BR67: 17.15 | BS67: 0 | BT67: 16.2 | BU67: 16.2 | BV67: 0 | BW67: 17.15 | BX67: 17.15 | BY67: 0 | BZ67: 16.2 | CA67: 16.2 | CB67: 0 | CE67: 0 | CF67: =INDEX(TarifJdrNordT12,MATCH(B67,CodeTarifJdrNordT12,0)) -> 12.85 | CG67: 0.9901562289 | CH67: 0.9755542059 | CI67: 1.3 | CJ67: 17.15 | CK67: 1.302004251 | CL67: 0.2653061224 | CM67: =IF(CD67=0,0,IF(CD67>0,BH67*$CO$1)) -> 0 | CN67: 0 | CO67: =$BH67*$CO$1 -> 12.6 | CP67: 1.203208556 | CR67: 0 | CS67: 1.20 | CT67: =ROUNDUP((BH67+EQ67+ER67)*CS67/0.8505*20,0)/20 -> 16.2 | CU67: 1.270986976 | CV67: 11.565 | CW67: 0.2222222222 | CX67: =AI67 -> 1300 | CY67: =INDEX('Données transport emballage'!$4:$19,MATCH('Calcul tarif Truf_JDR'!AB67,'Données transport emballage'!$M$4:$M$19,0),MATCH('Calcul tarif Truf_JDR'!AR67,'Données transport emballage'!$2:$2,0)+2) -> 35 | CZ67: =INDEX('Données transport emballage'!$4:$19,MATCH('Calcul tarif Truf_JDR'!AB67,'Données transport emballage'!$M$4:$M$19,0),MATCH('Calcul tarif Truf_JDR'!AR67,'Données transport emballage'!$2:$2,0)+5) -> 117 | DA67: =INDEX('Données transport emballage'!$4:$19,MATCH('Calcul tarif Truf_JDR'!AB67,'Données transport emballage'!$M$4:$M$19,0),MATCH('Calcul tarif Truf_JDR'!AR67,'Données transport emballage'!$2:$2,0)+8) -> 135 | DB67: 3.4 | DC67: =IF($AB67="VRA",ROUNDUP(($DA67/$AI67)*20,0)/20,IF($AB67="VRG",ROUNDUP(($DA67/$AI67)*20,0)/20,IF($AB67<>"VRA",ROUNDUP(($DA67/($AA67*$AD67))*20,0)/20,IF($AB67<>"VRG",ROUNDUP(($DA67/($AA67*$AD67))*20,0)/20)))) -> 2.7 | DD67: =IF($AB67="VRA",ROUNDUP(($CY67/$AI67)*20,0)/20,IF($AB67="VRG",ROUNDUP(($CY67/$AI67)*20,0)/20,IF($AB67<>"VRA",ROUNDUP(($CY67/($AA67*$AD67))*20,0)/20,IF($AB67<>"VRG",ROUNDUP(($CY67/($AA67*$AD67))*20,0)/20)))) -> 0.7 | DE67: =#REF!*$DE$1 ->  | DF67: =#REF!*$DF$1 ->  | DG67: =#REF!*$DG$1 ->  | DH67: =#REF!*$DH$1 ->  | DI67: =$AK67+DC67+DD67+DE67+DF67+DG67+DH67+$DP67 ->  | DJ67: 3.4 | DK67: =IF($AB67="VRA",ROUNDUP(($DA67/$AI67)*20,0)/20,IF($AB67="VRG",ROUNDUP(($DA67/$AI67)*20,0)/20,IF($AB67<>"VRA",ROUNDUP(($DA67/($AA67*$AD67))*20,0)/20,IF($AB67<>"VRG",ROUNDUP(($DA67/($AA67*$AD67))*20,0)/20)))) -> 2.7 | DL67: =IF($AB67="VRA",ROUNDUP(($CY67/$AI67)*20,0)/20,IF($AB67="VRG",ROUNDUP(($CY67/$AI67)*20,0)/20,IF($AB67<>"VRA",ROUNDUP(($CY67/($AA67*$AD67))*20,0)/20,IF($AB67<>"VRG",ROUNDUP(($CY67/($AA67*$AD67))*20,0)/20)))) -> 0.7 | DM67: 0 | DN67: 0 | DO67: 0 | DP67: 0 | DQ67: =$BH67+$DK67+$DL67+$DM67+$DN67+$DO67+$DP67 -> 11.8 | DR67: 3.4 | DS67: =IF($AB67="VRA",ROUNDUP(($DA67/$AI67)*20,0)/20,IF($AB67="VRG",ROUNDUP(($DA67/$AI67)*20,0)/20,IF($AB67<>"VRA",ROUNDUP(($DA67/($AA67*$AD67))*20,0)/20,IF($AB67<>"VRG",ROUNDUP(($DA67/($AA67*$AD67))*20,0)/20)))) -> 2.7 | DT67: =IF($AB67="VRA",ROUNDUP(($CY67/$AI67)*20,0)/20,IF($AB67="VRG",ROUNDUP(($CY67/$AI67)*20,0)/20,IF($AB67<>"VRA",ROUNDUP(($CY67/($AA67*$AD67))*20,0)/20,IF($AB67<>"VRG",ROUNDUP(($CY67/($AA67*$AD67))*20,0)/20)))) -> 0.7 | DU67: 0.6425 | DV67: 0.32125 | DW67: 0.32125 | DX67: 0.19275 | DY67: =AK67+DS67+DT67+DU67+DV67+DW67+DX67 -> 12.97775 | DZ67: 3.4 | EA67: =IF($AB67="VRA",ROUNDUP(($DA67/$AI67)*20,0)/20,IF($AB67="VRG",ROUNDUP(($DA67/$AI67)*20,0)/20,IF($AB67<>"VRA",ROUNDUP(($DA67/($AA67*$AD67))*20,0)/20,IF($AB67<>"VRG",ROUNDUP(($DA67/($AA67*$AD67))*20,0)/20)))) -> 2.7 | EB67: =IF($AB67="VRA",ROUNDUP(($CY67/$AI67)*20,0)/20,IF($AB67="VRG",ROUNDUP(($CY67/$AI67)*20,0)/20,IF($AB67<>"VRA",ROUNDUP(($CY67/($AA67*$AD67))*20,0)/20,IF($AB67<>"VRG",ROUNDUP(($CY67/($AA67*$AD67))*20,0)/20)))) -> 0.7 | EC67: 0.8575 | ED67: 0.343 | EE67: 0 | EF67: 0.1715 | EG67: =BH67+EA67+EB67+EC67+ED67+EE67+EF67 -> 13.172 | EH67: 3.05 | EI67: =IF($AB67="VRA",ROUNDUP(($CZ67/$AI67)*20,0)/20,IF($AB67="VRG",ROUNDUP(($CZ67/$AI67)*20,0)/20,IF($AB67<>"VRA",ROUNDUP(($CZ67/($AA67*$AD67))*20,0)/20,IF($AB67<>"VRG",ROUNDUP(($CZ67/($AA67*$AD67))*20,0)/20)))) -> 2.35 | EJ67: =IF($AB67="VRA",ROUNDUP(($CY67/$AI67)*20,0)/20,IF($AB67="VRG",ROUNDUP(($CY67/$AI67)*20,0)/20,IF($AB67<>"VRA",ROUNDUP(($CY67/($AA67*$AD67))*20,0)/20,IF($AB67<>"VRG",ROUNDUP(($CY67/($AA67*$AD67))*20,0)/20)))) -> 0.7 | EK67: 0 | EL67: 0 | EM67: 0 | EN67: 0 | EO67: =BH67+EI67+EJ67+EK67+EL67+EM67+EN67 -> 11.45 | EP67: 3.05 | EQ67: =IF($AB67="VRA",ROUNDUP(($CZ67/$AI67)*20,0)/20,IF($AB67="VRG",ROUNDUP(($CZ67/$AI67)*20,0)/20,IF($AB67<>"VRA",ROUNDUP(($CZ67/($AA67*$AD67))*20,0)/20,IF($AB67<>"VRG",ROUNDUP(($CZ67/($AA67*$AD67))*20,0)/20)))) -> 2.35 | ER67: =IF($AB67="VRA",ROUNDUP(($CY67/$AI67)*20,0)/20,IF($AB67="VRG",ROUNDUP(($CY67/$AI67)*20,0)/20,IF($AB67<>"VRA",ROUNDUP(($CY67/($AA67*$AD67))*20,0)/20,IF($AB67<>"VRG",ROUNDUP(($CY67/($AA67*$AD67))*20,0)/20)))) -> 0.7 | ES67: 0.81 | ET67: 0.324 | EU67: 0 | EV67: 0.162 | EW67: =BH67+EQ67+ER67+ES67+ET67+EU67+EV67 -> 12.746
A68: 3834000057491 | B68: 5749 | C68: AGAVE | D68: angustifolia | F68: SUCC | G68: Succulentes | H68: NDI | I68: non dispo | J68: 113 | K68: 25 tarrina | L68: 013 | M68: 5L | X68: A5 | Y68: A5 | Z68: UNI | AA68: 1 | AB68: VRA | AC68: Vrac | AD68: 1 | AE68: ML | AF68: 322.222 | AG68: CAM | AH68: 13.5 | AI68: 4349.997 | AJ68: 3 | AK68: 8.1 | AP68: FV | AQ68: Ferriol Viveros | AR68: 20 | AS68: FERRIOL VIVEROS | BH68: 8.4 | BK68: 1 | BQ68: =CJ68 -> 13.25 | BR68: =CJ68 -> 13.25 | BS68: =CD68 -> 0 | BT68: =CT68 -> 12.7 | BU68: =CT68 -> 12.7 | BV68: =CQ68 -> 0 | BW68: =CJ68 -> 13.25 | BX68: =CJ68 -> 13.25 | BY68: =CD68 -> 0 | BZ68: =CT68 -> 12.7 | CA68: =CT68 -> 12.7 | CB68: =CQ68 -> 0 | CE68: =CD68/DQ68 -> 0 | CF68: 12.85 | CG68: =CF68/DY68 -> 1.250273649 | CH68: =CF68/EG68 -> 1.26476378 | CI68: 1.3 | CJ68: 13.25 | CK68: =CJ68/EG68 -> 1.304133858 | CL68: =(CJ68-CO68)/CJ68 -> 0.04905660377 | CM68: 0 | CN68: =CM68/(DQ68-DK68) -> 0 | CO68: 12.6 | CP68: =CO68/($EG68-$EA68) -> 1.33192389 | CR68: =CQ68/EO68 -> 0 | CS68: =IF($AB68="VRA","1.20",IF($AB68="VRG","1.20",IF($AB68<>"VRA","1.20",IF($AB68<>"VRG","1.20")))) -> 1.20 | CT68: 12.7 | CU68: =CT68/EW68 -> 1.267971246 | CV68: =CF68*$CV$1 -> 11.565 | CW68: =(CT68-CO68)/CT68 -> 0.007874015748 | CX68: 4349.997 | CY68: =INDEX('Données transport emballage'!$4:$19,MATCH('Calcul tarif Truf_JDR'!AB68,'Données transport emballage'!$M$4:$M$19,0),MATCH('Calcul tarif Truf_JDR'!AR68,'Données transport emballage'!$2:$2,0)+2) -> 0 | CZ68: =INDEX('Données transport emballage'!$4:$19,MATCH('Calcul tarif Truf_JDR'!AB68,'Données transport emballage'!$M$4:$M$19,0),MATCH('Calcul tarif Truf_JDR'!AR68,'Données transport emballage'!$2:$2,0)+5) -> 2400 | DA68: =INDEX('Données transport emballage'!$4:$19,MATCH('Calcul tarif Truf_JDR'!AB68,'Données transport emballage'!$M$4:$M$19,0),MATCH('Calcul tarif Truf_JDR'!AR68,'Données transport emballage'!$2:$2,0)+8) -> 2900 | DB68: =DC68+DD68 -> 0.7 | DC68: 0.7 | DD68: 0 | DE68: =#REF!*$DE$1 ->  | DF68: =#REF!*$DF$1 ->  | DG68: =#REF!*$DG$1 ->  | DH68: =#REF!*$DH$1 ->  | DJ68: =$DK68+$DL68 -> 0.7 | DK68: 0.7 | DL68: 0 | DM68: =$CD68*$DM$1 -> 0 | DN68: =$CD68*$DN$1 -> 0 | DO68: =$CD68*$DO$1 -> 0 | DP68: =$CD68*$DP$1 -> 0 | DQ68: 9.1 | DR68: =DS68+DT68 -> 0.7 | DS68: 0.7 | DT68: 0 | DU68: =CF68*$DU$1 -> 0.6425 | DV68: =CF68*$DV$1 -> 0.32125 | DW68: =CF68*$DW$1 -> 0.32125 | DX68: =CF68*$DX$1 -> 0.19275 | DY68: 10.27775 | DZ68: =$EA68+$EB68 -> 0.7 | EA68: 0.7 | EB68: 0 | EC68: =$CJ68*$EC$1 -> 0.6625 | ED68: =$CJ68*$ED$1 -> 0.265 | EE68: =$CJ68*$EE$1 -> 0 | EF68: =$CJ68*$EF$1 -> 0.1325 | EG68: 10.16 | EH68: =EI68+EJ68 -> 0.6 | EI68: 0.6 | EJ68: 0 | EK68: =$CQ68*$EK$1 -> 0 | EL68: =$CQ68*$EL$1 -> 0 | EM68: =$CQ68*$EM$1 -> 0 | EN68: =$CQ68*$EN$1 -> 0 | EO68: 9 | EP68: =EQ68+ER68 -> 0.6 | EQ68: 0.6 | ER68: 0 | ES68: =$CT68*$ES$1 -> 0.635 | ET68: =$CT68*$ET$1 -> 0.254 | EU68: =$CT68*$EU$1 -> 0 | EV68: =$CT68*$EV$1 -> 0.127 | EW68: 10.016
A69: 3834000057507 | B69: 5750 | C69: AGAVE | D69: decipiens | F69: SUCC | G69: Succulentes | H69: DIS | I69: dispo | J69: 113 | K69: 25 tarrina | L69: 013 | M69: 5L | X69: A5 | Y69: A5 | Z69: UNI | AA69: 10 | AB69: PE8 | AC69: Palette étages 80 x 120 | AD69: 5 | AE69: ML | AF69: 2 | AG69: CAM | AH69: 13 | AI69: 1300 | AJ69: 3 | AK69: 8.1 | AP69: FV | AQ69: Ferriol Viveros | AR69: 20 | AS69: FERRIOL VIVEROS | BH69: 8.4 | BK69: 0 | BQ69: 17.15 | BR69: 17.15 | BS69: 0 | BT69: 16.2 | BU69: 16.2 | BV69: 0 | BW69: 17.15 | BX69: 17.15 | BY69: 0 | BZ69: 16.2 | CA69: 16.2 | CB69: 0 | CE69: 0 | CF69: 12.85 | CG69: 0.9901562289 | CH69: 0.9755542059 | CI69: 1.3 | CJ69: 17.15 | CK69: 1.302004251 | CL69: 0.2653061224 | CM69: 0 | CN69: 0 | CO69: 12.6 | CP69: 1.203208556 | CR69: 0 | CS69: 1.20 | CT69: 16.2 | CU69: 1.270986976 | CV69: 11.565 | CW69: 0.2222222222 | CX69: 1300 | CY69: =INDEX('Données transport emballage'!$4:$19,MATCH('Calcul tarif Truf_JDR'!AB69,'Données transport emballage'!$M$4:$M$19,0),MATCH('Calcul tarif Truf_JDR'!AR69,'Données transport emballage'!$2:$2,0)+2) -> 35 | CZ69: =INDEX('Données transport emballage'!$4:$19,MATCH('Calcul tarif Truf_JDR'!AB69,'Données transport emballage'!$M$4:$M$19,0),MATCH('Calcul tarif Truf_JDR'!AR69,'Données transport emballage'!$2:$2,0)+5) -> 117 | DA69: =INDEX('Données transport emballage'!$4:$19,MATCH('Calcul tarif Truf_JDR'!AB69,'Données transport emballage'!$M$4:$M$19,0),MATCH('Calcul tarif Truf_JDR'!AR69,'Données transport emballage'!$2:$2,0)+8) -> 135 | DB69: 3.4 | DC69: 2.7 | DD69: 0.7 | DE69: =#REF!*$DE$1 ->  | DF69: =#REF!*$DF$1 ->  | DG69: =#REF!*$DG$1 ->  | DH69: =#REF!*$DH$1 ->  | DJ69: 3.4 | DK69: 2.7 | DL69: 0.7 | DM69: 0 | DN69: 0 | DO69: 0 | DP69: 0 | DQ69: 11.8 | DR69: 3.4 | DS69: 2.7 | DT69: 0.7 | DU69: 0.6425 | DV69: 0.32125 | DW69: 0.32125 | DX69: 0.19275 | DY69: 12.97775 | DZ69: 3.4 | EA69: 2.7 | EB69: 0.7 | EC69: 0.8575 | ED69: 0.343 | EE69: 0 | EF69: 0.1715 | EG69: 13.172 | EH69: 3.05 | EI69: 2.35 | EJ69: 0.7 | EK69: 0 | EL69: 0 | EM69: 0 | EN69: 0 | EO69: 11.45 | EP69: 3.05 | EQ69: 2.35 | ER69: 0.7 | ES69: 0.81 | ET69: 0.324 | EU69: 0 | EV69: 0.162 | EW69: 12.746
A70: 3834000057507 | B70: 5750 | C70: AGAVE | D70: decipiens | F70: SUCC | G70: Succulentes | H70: DIS | I70: dispo | J70: 113 | K70: 25 tarrina | L70: 013 | M70: 5L | X70: A5 | Y70: A5 | Z70: UNI | AA70: 1 | AB70: VRA | AC70: Vrac | AD70: 1 | AE70: ML | AF70: 322.222 | AG70: CAM | AH70: 13.5 | AI70: 4349.997 | AJ70: 3 | AK70: 8.1 | AP70: FV | AQ70: Ferriol Viveros | AR70: 20 | AS70: FERRIOL VIVEROS | BH70: 8.4 | BK70: 1 | BQ70: 13.25 | BR70: 13.25 | BS70: 0 | BT70: 12.7 | BU70: 12.7 | BV70: 0 | BW70: 13.25 | BX70: 13.25 | BY70: 0 | BZ70: 12.7 | CA70: 12.7 | CB70: 0 | CE70: 0 | CF70: 12.85 | CG70: 1.250273649 | CH70: 1.26476378 | CI70: 1.3 | CJ70: 13.25 | CK70: 1.304133858 | CL70: 0.04905660377 | CM70: 0 | CN70: 0 | CO70: 12.6 | CP70: 1.33192389 | CR70: 0 | CS70: 1.20 | CT70: 12.7 | CU70: 1.267971246 | CV70: 11.565 | CW70: 0.007874015748 | CX70: 4349.997 | CY70: =INDEX('Données transport emballage'!$4:$19,MATCH('Calcul tarif Truf_JDR'!AB70,'Données transport emballage'!$M$4:$M$19,0),MATCH('Calcul tarif Truf_JDR'!AR70,'Données transport emballage'!$2:$2,0)+2) -> 0 | CZ70: =INDEX('Données transport emballage'!$4:$19,MATCH('Calcul tarif Truf_JDR'!AB70,'Données transport emballage'!$M$4:$M$19,0),MATCH('Calcul tarif Truf_JDR'!AR70,'Données transport emballage'!$2:$2,0)+5) -> 2400 | DA70: =INDEX('Données transport emballage'!$4:$19,MATCH('Calcul tarif Truf_JDR'!AB70,'Données transport emballage'!$M$4:$M$19,0),MATCH('Calcul tarif Truf_JDR'!AR70,'Données transport emballage'!$2:$2,0)+8) -> 2900 | DB70: 0.7 | DC70: 0.7 | DD70: 0 | DE70: =#REF!*$DE$1 ->  | DF70: =#REF!*$DF$1 ->  | DG70: =#REF!*$DG$1 ->  | DH70: =#REF!*$DH$1 ->  | DJ70: 0.7 | DK70: 0.7 | DL70: 0 | DM70: 0 | DN70: 0 | DO70: 0 | DP70: 0 | DQ70: 9.1 | DR70: 0.7 | DS70: 0.7 | DT70: 0 | DU70: 0.6425 | DV70: 0.32125 | DW70: 0.32125 | DX70: 0.19275 | DY70: 10.27775 | DZ70: 0.7 | EA70: 0.7 | EB70: 0 | EC70: 0.6625 | ED70: 0.265 | EE70: 0 | EF70: 0.1325 | EG70: 10.16 | EH70: 0.6 | EI70: 0.6 | EJ70: 0 | EK70: 0 | EL70: 0 | EM70: 0 | EN70: 0 | EO70: 9 | EP70: 0.6 | EQ70: 0.6 | ER70: 0 | ES70: 0.635 | ET70: 0.254 | EU70: 0 | EV70: 0.127 | EW70: 10.016
A71: 3834000057514 | B71: 5751 | C71: AGAVE | D71: parryi | E71: Neomexicana | F71: SUCC | G71: Succulentes | H71: NDI | I71: non dispo | J71: 113 | K71: 25 tarrina | L71: 013 | M71: 5L | X71: A5 | Y71: A5 | Z71: UNI | AA71: 10 | AB71: PE8 | AC71: Palette étages 80 x 120 | AD71: 5 | AE71: ML | AF71: 2 | AG71: CAM | AH71: 13 | AI71: 1300 | AJ71: 3 | AK71: 8.1 | AP71: FV | AQ71: Ferriol Viveros | AR71: 20 | AS71: FERRIOL VIVEROS | BH71: 8.4 | BK71: 0 | BQ71: 17.15 | BR71: 17.15 | BS71: 0 | BT71: 16.2 | BU71: 16.2 | BV71: 0 | BW71: 17.15 | BX71: 17.15 | BY71: 0 | BZ71: 16.2 | CA71: 16.2 | CB71: 0 | CE71: 0 | CF71: 12.85 | CG71: 0.9901562289 | CH71: 0.9755542059 | CI71: 1.3 | CJ71: =ROUNDUP((BH71+EA71+EB71)*CI71/0.896*20,0)/20 -> 17.15 | CK71: 1.302004251 | CL71: 0.2653061224 | CM71: 0 | CN71: 0 | CO71: 12.6 | CP71: 1.203208556 | CR71: 0 | CS71: 1.20 | CT71: 16.2 | CU71: 1.270986976 | CV71: 11.565 | CW71: 0.2222222222 | CX71: 1300 | CY71: =INDEX('Données transport emballage'!$4:$19,MATCH('Calcul tarif Truf_JDR'!AB71,'Données transport emballage'!$M$4:$M$19,0),MATCH('Calcul tarif Truf_JDR'!AR71,'Données transport emballage'!$2:$2,0)+2) -> 35 | CZ71: =INDEX('Données transport emballage'!$4:$19,MATCH('Calcul tarif Truf_JDR'!AB71,'Données transport emballage'!$M$4:$M$19,0),MATCH('Calcul tarif Truf_JDR'!AR71,'Données transport emballage'!$2:$2,0)+5) -> 117 | DA71: =INDEX('Données transport emballage'!$4:$19,MATCH('Calcul tarif Truf_JDR'!AB71,'Données transport emballage'!$M$4:$M$19,0),MATCH('Calcul tarif Truf_JDR'!AR71,'Données transport emballage'!$2:$2,0)+8) -> 135 | DB71: 3.4 | DC71: 2.7 | DD71: 0.7 | DE71: =#REF!*$DE$1 ->  | DF71: =#REF!*$DF$1 ->  | DG71: =#REF!*$DG$1 ->  | DH71: =#REF!*$DH$1 ->  | DJ71: 3.4 | DK71: 2.7 | DL71: 0.7 | DM71: 0 | DN71: 0 | DO71: 0 | DP71: 0 | DQ71: 11.8 | DR71: 3.4 | DS71: 2.7 | DT71: 0.7 | DU71: 0.6425 | DV71: 0.32125 | DW71: 0.32125 | DX71: 0.19275 | DY71: 12.97775 | DZ71: 3.4 | EA71: 2.7 | EB71: 0.7 | EC71: 0.8575 | ED71: 0.343 | EE71: 0 | EF71: 0.1715 | EG71: 13.172 | EH71: 3.05 | EI71: 2.35 | EJ71: 0.7 | EK71: 0 | EL71: 0 | EM71: 0 | EN71: 0 | EO71: 11.45 | EP71: 3.05 | EQ71: 2.35 | ER71: 0.7 | ES71: 0.81 | ET71: 0.324 | EU71: 0 | EV71: 0.162 | EW71: 12.746
A72: 3834000057514 | B72: 5751 | C72: AGAVE | D72: parryi | E72: Neomexicana | F72: SUCC | G72: Succulentes | H72: NDI | I72: non dispo | J72: 113 | K72: 25 tarrina | L72: 013 | M72: 5L | X72: A5 | Y72: A5 | Z72: UNI | AA72: 1 | AB72: VRA | AC72: Vrac | AD72: 1 | AE72: ML | AF72: 322.222 | AG72: CAM | AH72: 13.5 | AI72: 4349.997 | AJ72: 3 | AK72: 8.1 | AP72: FV | AQ72: Ferriol Viveros | AR72: 20 | AS72: FERRIOL VIVEROS | BH72: 8.4 | BK72: 1 | BQ72: 13.25 | BR72: 13.25 | BS72: 0 | BT72: 12.7 | BU72: 12.7 | BV72: 0 | BW72: 13.25 | BX72: 13.25 | BY72: 0 | BZ72: 12.7 | CA72: 12.7 | CB72: 0 | CE72: 0 | CF72: 12.85 | CG72: 1.250273649 | CH72: 1.26476378 | CI72: 1.3 | CJ72: 13.25 | CK72: 1.304133858 | CL72: 0.04905660377 | CM72: 0 | CN72: 0 | CO72: 12.6 | CP72: 1.33192389 | CR72: 0 | CS72: 1.20 | CT72: 12.7 | CU72: 1.267971246 | CV72: 11.565 | CW72: 0.007874015748 | CX72: 4349.997 | CY72: =INDEX('Données transport emballage'!$4:$19,MATCH('Calcul tarif Truf_JDR'!AB72,'Données transport emballage'!$M$4:$M$19,0),MATCH('Calcul tarif Truf_JDR'!AR72,'Données transport emballage'!$2:$2,0)+2) -> 0 | CZ72: =INDEX('Données transport emballage'!$4:$19,MATCH('Calcul tarif Truf_JDR'!AB72,'Données transport emballage'!$M$4:$M$19,0),MATCH('Calcul tarif Truf_JDR'!AR72,'Données transport emballage'!$2:$2,0)+5) -> 2400 | DA72: =INDEX('Données transport emballage'!$4:$19,MATCH('Calcul tarif Truf_JDR'!AB72,'Données transport emballage'!$M$4:$M$19,0),MATCH('Calcul tarif Truf_JDR'!AR72,'Données transport emballage'!$2:$2,0)+8) -> 2900 | DB72: 0.7 | DC72: 0.7 | DD72: 0 | DE72: =#REF!*$DE$1 ->  | DF72: =#REF!*$DF$1 ->  | DG72: =#REF!*$DG$1 ->  | DH72: =#REF!*$DH$1 ->  | DJ72: 0.7 | DK72: 0.7 | DL72: 0 | DM72: 0 | DN72: 0 | DO72: 0 | DP72: 0 | DQ72: 9.1 | DR72: 0.7 | DS72: 0.7 | DT72: 0 | DU72: 0.6425 | DV72: 0.32125 | DW72: 0.32125 | DX72: 0.19275 | DY72: 10.27775 | DZ72: 0.7 | EA72: 0.7 | EB72: 0 | EC72: 0.6625 | ED72: 0.265 | EE72: 0 | EF72: 0.1325 | EG72: 10.16 | EH72: 0.6 | EI72: 0.6 | EJ72: 0 | EK72: 0 | EL72: 0 | EM72: 0 | EN72: 0 | EO72: 9 | EP72: 0.6 | EQ72: 0.6 | ER72: 0 | ES72: 0.635 | ET72: 0.254 | EU72: 0 | EV72: 0.127 | EW72: 10.016
A73: 3834000057521 | B73: 5752 | C73: ALOE | D73: saponaria | F73: SUCC | G73: Succulentes | H73: NDI | I73: non dispo | J73: 113 | K73: 25 tarrina | L73: 013 | M73: 5L | X73: A5 | Y73: A5 | Z73: UNI | AA73: 10 | AB73: PE8 | AC73: Palette étages 80 x 120 | AD73: 5 | AE73: ML | AF73: 2 | AG73: CAM | AH73: 13 | AI73: 1300 | AJ73: 3 | AK73: 8.1 | AP73: FV | AQ73: Ferriol Viveros | AR73: 20 | AS73: FERRIOL VIVEROS | BH73: 8.4 | BK73: 0 | BQ73: 17.15 | BR73: 17.15 | BS73: 0 | BT73: 16.2 | BU73: 16.2 | BV73: 0 | BW73: 17.15 | BX73: 17.15 | BY73: 0 | BZ73: 16.2 | CA73: 16.2 | CB73: 0 | CE73: 0 | CF73: 12.85 | CG73: 0.9901562289 | CH73: 0.9755542059 | CI73: 1.3 | CJ73: 17.15 | CK73: 1.302004251 | CL73: 0.2653061224 | CM73: 0 | CN73: 0 | CO73: 12.6 | CP73: 1.203208556 | CR73: 0 | CS73: 1.20 | CT73: 16.2 | CU73: 1.270986976 | CV73: 11.565 | CW73: 0.2222222222 | CX73: 1300 | CY73: =INDEX('Données transport emballage'!$4:$19,MATCH('Calcul tarif Truf_JDR'!AB73,'Données transport emballage'!$M$4:$M$19,0),MATCH('Calcul tarif Truf_JDR'!AR73,'Données transport emballage'!$2:$2,0)+2) -> 35 | CZ73: =INDEX('Données transport emballage'!$4:$19,MATCH('Calcul tarif Truf_JDR'!AB73,'Données transport emballage'!$M$4:$M$19,0),MATCH('Calcul tarif Truf_JDR'!AR73,'Données transport emballage'!$2:$2,0)+5) -> 117 | DA73: =INDEX('Données transport emballage'!$4:$19,MATCH('Calcul tarif Truf_JDR'!AB73,'Données transport emballage'!$M$4:$M$19,0),MATCH('Calcul tarif Truf_JDR'!AR73,'Données transport emballage'!$2:$2,0)+8) -> 135 | DB73: 3.4 | DC73: 2.7 | DD73: 0.7 | DE73: =#REF!*$DE$1 ->  | DF73: =#REF!*$DF$1 ->  | DG73: =#REF!*$DG$1 ->  | DH73: =#REF!*$DH$1 ->  | DJ73: 3.4 | DK73: 2.7 | DL73: 0.7 | DM73: 0 | DN73: 0 | DO73: 0 | DP73: 0 | DQ73: 11.8 | DR73: 3.4 | DS73: 2.7 | DT73: 0.7 | DU73: 0.6425 | DV73: 0.32125 | DW73: 0.32125 | DX73: 0.19275 | DY73: 12.97775 | DZ73: 3.4 | EA73: 2.7 | EB73: 0.7 | EC73: 0.8575 | ED73: 0.343 | EE73: 0 | EF73: 0.1715 | EG73: 13.172 | EH73: 3.05 | EI73: 2.35 | EJ73: 0.7 | EK73: 0 | EL73: 0 | EM73: 0 | EN73: 0 | EO73: 11.45 | EP73: 3.05 | EQ73: 2.35 | ER73: 0.7 | ES73: 0.81 | ET73: 0.324 | EU73: 0 | EV73: 0.162 | EW73: 12.746
A74: 3834000057521 | B74: 5752 | C74: ALOE | D74: saponaria | F74: SUCC | G74: Succulentes | H74: NDI | I74: non dispo | J74: 113 | K74: 25 tarrina | L74: 013 | M74: 5L | X74: A5 | Y74: A5 | Z74: UNI | AA74: 1 | AB74: VRA | AC74: Vrac | AD74: 1 | AE74: ML | AF74: 322.222 | AG74: CAM | AH74: 13.5 | AI74: 4349.997 | AJ74: 3 | AK74: 8.1 | AP74: FV | AQ74: Ferriol Viveros | AR74: 20 | AS74: FERRIOL VIVEROS | BH74: 8.4 | BK74: 1 | BQ74: 13.25 | BR74: 13.25 | BS74: 0 | BT74: 12.7 | BU74: 12.7 | BV74: 0 | BW74: 13.25 | BX74: 13.25 | BY74: 0 | BZ74: 12.7 | CA74: 12.7 | CB74: 0 | CE74: 0 | CF74: 12.85 | CG74: 1.250273649 | CH74: 1.26476378 | CI74: 1.3 | CJ74: 13.25 | CK74: 1.304133858 | CL74: 0.04905660377 | CM74: 0 | CN74: 0 | CO74: 12.6 | CP74: 1.33192389 | CR74: 0 | CS74: 1.20 | CT74: 12.7 | CU74: 1.267971246 | CV74: 11.565 | CW74: 0.007874015748 | CX74: 4349.997 | CY74: =INDEX('Données transport emballage'!$4:$19,MATCH('Calcul tarif Truf_JDR'!AB74,'Données transport emballage'!$M$4:$M$19,0),MATCH('Calcul tarif Truf_JDR'!AR74,'Données transport emballage'!$2:$2,0)+2) -> 0 | CZ74: =INDEX('Données transport emballage'!$4:$19,MATCH('Calcul tarif Truf_JDR'!AB74,'Données transport emballage'!$M$4:$M$19,0),MATCH('Calcul tarif Truf_JDR'!AR74,'Données transport emballage'!$2:$2,0)+5) -> 2400 | DA74: =INDEX('Données transport emballage'!$4:$19,MATCH('Calcul tarif Truf_JDR'!AB74,'Données transport emballage'!$M$4:$M$19,0),MATCH('Calcul tarif Truf_JDR'!AR74,'Données transport emballage'!$2:$2,0)+8) -> 2900 | DB74: 0.7 | DC74: 0.7 | DD74: 0 | DE74: =#REF!*$DE$1 ->  | DF74: =#REF!*$DF$1 ->  | DG74: =#REF!*$DG$1 ->  | DH74: =#REF!*$DH$1 ->  | DJ74: 0.7 | DK74: 0.7 | DL74: 0 | DM74: 0 | DN74: 0 | DO74: 0 | DP74: 0 | DQ74: 9.1 | DR74: 0.7 | DS74: 0.7 | DT74: 0 | DU74: 0.6425 | DV74: 0.32125 | DW74: 0.32125 | DX74: 0.19275 | DY74: 10.27775 | DZ74: 0.7 | EA74: 0.7 | EB74: 0 | EC74: 0.6625 | ED74: 0.265 | EE74: 0 | EF74: 0.1325 | EG74: 10.16 | EH74: 0.6 | EI74: 0.6 | EJ74: 0 | EK74: 0 | EL74: 0 | EM74: 0 | EN74: 0 | EO74: 9 | EP74: 0.6 | EQ74: 0.6 | ER74: 0 | ES74: 0.635 | ET74: 0.254 | EU74: 0 | EV74: 0.127 | EW74: 10.016
A75: 3834000057538 | B75: 5753 | C75: AGAVE | D75: scabra | F75: SUCC | G75: Succulentes | H75: DIS | I75: dispo | J75: 037 | K75: 25 | L75: 023 | M75: 10L | X75: A10 | Y75: AA10 | Z75: UNI | AA75: 10 | AB75: PE8 | AC75: Palette étages 80 x 120 | AD75: 3 | AE75: ML | AF75: 2 | AG75: CAM | AH75: 13 | AI75: 780 | AJ75: 3 | AK75: 11.7 | AP75: FV | AQ75: Ferriol Viveros | AR75: 20 | AS75: FERRIOL VIVEROS | BH75: 13 | BK75: 0 | BQ75: 27.15 | BR75: 27.15 | BS75: 0 | BT75: 25.55 | BU75: 25.55 | BV75: 0 | BW75: 27.15 | BX75: 27.15 | BY75: 0 | BZ75: 25.55 | CA75: 25.55 | CB75: 0 | CE75: 0 | CF75: 20.5 | CG75: 1.037580666 | CH75: 0.9821770793 | CI75: 1.3 | CJ75: 27.15 | CK75: 1.300785742 | CL75: 0.2817679558 | CM75: 0 | CN75: 0 | CO75: 19.5 | CP75: 1.191057904 | CR75: 0 | CS75: 1.20 | CT75: 25.55 | CU75: 1.268367752 | CV75: 18.45 | CW75: 0.2367906067 | CX75: 780 | CY75: =INDEX('Données transport emballage'!$4:$19,MATCH('Calcul tarif Truf_JDR'!AB75,'Données transport emballage'!$M$4:$M$19,0),MATCH('Calcul tarif Truf_JDR'!AR75,'Données transport emballage'!$2:$2,0)+2) -> 35 | CZ75: =INDEX('Données transport emballage'!$4:$19,MATCH('Calcul tarif Truf_JDR'!AB75,'Données transport emballage'!$M$4:$M$19,0),MATCH('Calcul tarif Truf_JDR'!AR75,'Données transport emballage'!$2:$2,0)+5) -> 117 | DA75: =INDEX('Données transport emballage'!$4:$19,MATCH('Calcul tarif Truf_JDR'!AB75,'Données transport emballage'!$M$4:$M$19,0),MATCH('Calcul tarif Truf_JDR'!AR75,'Données transport emballage'!$2:$2,0)+8) -> 135 | DB75: 5.7 | DC75: 4.5 | DD75: 1.2 | DE75: =#REF!*$DE$1 ->  | DF75: =#REF!*$DF$1 ->  | DG75: =#REF!*$DG$1 ->  | DH75: =#REF!*$DH$1 ->  | DJ75: 5.7 | DK75: 4.5 | DL75: 1.2 | DM75: 0 | DN75: 0 | DO75: 0 | DP75: 0 | DQ75: 18.7 | DR75: 5.7 | DS75: 4.5 | DT75: 1.2 | DU75: 1.025 | DV75: 0.5125 | DW75: 0.5125 | DX75: 0.3075 | DY75: 19.7575 | DZ75: 5.7 | EA75: 4.5 | EB75: 1.2 | EC75: 1.3575 | ED75: 0.543 | EE75: 0 | EF75: 0.2715 | EG75: 20.872 | EH75: 5.1 | EI75: 3.9 | EJ75: 1.2 | EK75: 0 | EL75: 0 | EM75: 0 | EN75: 0 | EO75: 18.1 | EP75: 5.1 | EQ75: 3.9 | ER75: 1.2 | ES75: 1.2775 | ET75: 0.511 | EU75: 0 | EV75: 0.2555 | EW75: 20.144
A76: 3834000057538 | B76: 5753 | C76: AGAVE | D76: scabra | F76: SUCC | G76: Succulentes | H76: DIS | I76: dispo | J76: 037 | K76: 25 | L76: 023 | M76: 10L | X76: A10 | Y76: AA10 | Z76: UNI | AA76: 1 | AB76: VRA | AC76: Vrac | AD76: 1 | AE76: ML | AF76: 148.148 | AG76: CAM | AH76: 13.5 | AI76: 1999.998 | AJ76: 3 | AK76: 11.7 | AP76: FV | AQ76: Ferriol Viveros | AR76: 20 | AS76: FERRIOL VIVEROS | BH76: 13 | BK76: 1 | BQ76: 21.05 | BR76: 21.05 | BS76: 0 | BT76: 20.15 | BU76: 20.15 | BV76: 0 | BW76: 21.05 | BX76: 21.05 | BY76: 0 | BZ76: 20.15 | CA76: 20.15 | CB76: 0 | CE76: 0 | CF76: 20.5 | CG76: 1.317692431 | CH76: 1.266683144 | CI76: 1.3 | CJ76: 21.05 | CK76: 1.300667326 | CL76: 0.07363420428 | CM76: 0 | CN76: 0 | CO76: 19.5 | CP76: 1.327976028 | CR76: 0 | CS76: 1.20 | CT76: 20.15 | CU76: 1.27033161 | CV76: 18.45 | CW76: 0.03225806452 | CX76: 1999.998 | CY76: =INDEX('Données transport emballage'!$4:$19,MATCH('Calcul tarif Truf_JDR'!AB76,'Données transport emballage'!$M$4:$M$19,0),MATCH('Calcul tarif Truf_JDR'!AR76,'Données transport emballage'!$2:$2,0)+2) -> 0 | CZ76: =INDEX('Données transport emballage'!$4:$19,MATCH('Calcul tarif Truf_JDR'!AB76,'Données transport emballage'!$M$4:$M$19,0),MATCH('Calcul tarif Truf_JDR'!AR76,'Données transport emballage'!$2:$2,0)+5) -> 2400 | DA76: =INDEX('Données transport emballage'!$4:$19,MATCH('Calcul tarif Truf_JDR'!AB76,'Données transport emballage'!$M$4:$M$19,0),MATCH('Calcul tarif Truf_JDR'!AR76,'Données transport emballage'!$2:$2,0)+8) -> 2900 | DB76: 1.5 | DC76: 1.5 | DD76: 0 | DE76: =#REF!*$DE$1 ->  | DF76: =#REF!*$DF$1 ->  | DG76: =#REF!*$DG$1 ->  | DH76: =#REF!*$DH$1 ->  | DJ76: 1.5 | DK76: 1.5 | DL76: 0 | DM76: 0 | DN76: 0 | DO76: 0 | DP76: 0 | DQ76: 14.5 | DR76: 1.5 | DS76: 1.5 | DT76: 0 | DU76: 1.025 | DV76: 0.5125 | DW76: 0.5125 | DX76: 0.3075 | DY76: 15.5575 | DZ76: 1.5 | EA76: 1.5 | EB76: 0 | EC76: 1.0525 | ED76: 0.421 | EE76: 0 | EF76: 0.2105 | EG76: 16.184 | EH76: 1.25 | EI76: 1.25 | EJ76: 0 | EK76: 0 | EL76: 0 | EM76: 0 | EN76: 0 | EO76: 14.25 | EP76: 1.25 | EQ76: 1.25 | ER76: 0 | ES76: 1.0075 | ET76: 0.403 | EU76: 0 | EV76: 0.2015 | EW76: 15.862
A77: 3834000057545 | B77: 5754 | C77: AGAVE | D77: mediopicta | F77: SUCC | G77: Succulentes | H77: DIS | I77: dispo | J77: 037 | K77: 25 | L77: 023 | M77: 10L | X77: A10 | Y77: AA10 | Z77: UNI | AA77: 10 | AB77: PE8 | AC77: Palette étages 80 x 120 | AD77: 3 | AE77: ML | AF77: 2 | AG77: CAM | AH77: 13 | AI77: 780 | AJ77: 3 | AK77: 11.7 | AP77: FV | AQ77: Ferriol Viveros | AR77: 20 | AS77: FERRIOL VIVEROS | AX77: NST | AY77: Notre Sélection | BH77: 13 | BK77: 0 | BQ77: 27.15 | BR77: 27.15 | BS77: 0 | BT77: 25.55 | BU77: 25.55 | BV77: 0 | BW77: 27.15 | BX77: 27.15 | BY77: 0 | BZ77: 25.55 | CA77: 25.55 | CB77: 0 | CE77: 0 | CF77: 20.5 | CG77: 1.037580666 | CH77: 0.9821770793 | CI77: 1.3 | CJ77: 27.15 | CK77: 1.300785742 | CL77: 0.2817679558 | CM77: 0 | CN77: 0 | CO77: 19.5 | CP77: 1.191057904 | CR77: 0 | CS77: 1.20 | CT77: 25.55 | CU77: 1.268367752 | CV77: 18.45 | CW77: 0.2367906067 | CX77: 780 | CY77: =INDEX('Données transport emballage'!$4:$19,MATCH('Calcul tarif Truf_JDR'!AB77,'Données transport emballage'!$M$4:$M$19,0),MATCH('Calcul tarif Truf_JDR'!AR77,'Données transport emballage'!$2:$2,0)+2) -> 35 | CZ77: =INDEX('Données transport emballage'!$4:$19,MATCH('Calcul tarif Truf_JDR'!AB77,'Données transport emballage'!$M$4:$M$19,0),MATCH('Calcul tarif Truf_JDR'!AR77,'Données transport emballage'!$2:$2,0)+5) -> 117 | DA77: =INDEX('Données transport emballage'!$4:$19,MATCH('Calcul tarif Truf_JDR'!AB77,'Données transport emballage'!$M$4:$M$19,0),MATCH('Calcul tarif Truf_JDR'!AR77,'Données transport emballage'!$2:$2,0)+8) -> 135 | DB77: 5.7 | DC77: 4.5 | DD77: 1.2 | DE77: =#REF!*$DE$1 ->  | DF77: =#REF!*$DF$1 ->  | DG77: =#REF!*$DG$1 ->  | DH77: =#REF!*$DH$1 ->  | DJ77: 5.7 | DK77: 4.5 | DL77: 1.2 | DM77: 0 | DN77: 0 | DO77: 0 | DP77: 0 | DQ77: 18.7 | DR77: 5.7 | DS77: 4.5 | DT77: 1.2 | DU77: 1.025 | DV77: 0.5125 | DW77: 0.5125 | DX77: 0.3075 | DY77: 19.7575 | DZ77: 5.7 | EA77: 4.5 | EB77: 1.2 | EC77: 1.3575 | ED77: 0.543 | EE77: 0 | EF77: 0.2715 | EG77: 20.872 | EH77: 5.1 | EI77: 3.9 | EJ77: 1.2 | EK77: 0 | EL77: 0 | EM77: 0 | EN77: 0 | EO77: 18.1 | EP77: 5.1 | EQ77: 3.9 | ER77: 1.2 | ES77: 1.2775 | ET77: 0.511 | EU77: 0 | EV77: 0.2555 | EW77: 20.144
A78: 3834000057545 | B78: 5754 | C78: AGAVE | D78: mediopicta | F78: SUCC | G78: Succulentes | H78: DIS | I78: dispo | J78: 037 | K78: 25 | L78: 023 | M78: 10L | X78: A10 | Y78: AA10 | Z78: UNI | AA78: 1 | AB78: VRA | AC78: Vrac | AD78: 1 | AE78: ML | AF78: 148.148 | AG78: CAM | AH78: 13.5 | AI78: 1999.998 | AJ78: 3 | AK78: 11.7 | AP78: FV | AQ78: Ferriol Viveros | AR78: 20 | AS78: FERRIOL VIVEROS | AX78: NST | AY78: Notre Sélection | BH78: 13 | BK78: 1 | BQ78: 21.05 | BR78: 21.05 | BS78: 0 | BT78: 20.15 | BU78: 20.15 | BV78: 0 | BW78: 21.05 | BX78: 21.05 | BY78: 0 | BZ78: 20.15 | CA78: 20.15 | CB78: 0 | CE78: 0 | CF78: 20.5 | CG78: 1.317692431 | CH78: 1.266683144 | CI78: 1.3 | CJ78: 21.05 | CK78: 1.300667326 | CL78: 0.07363420428 | CM78: 0 | CN78: 0 | CO78: 19.5 | CP78: 1.327976028 | CR78: 0 | CS78: 1.20 | CT78: 20.15 | CU78: 1.27033161 | CV78: 18.45 | CW78: 0.03225806452 | CX78: 1999.998 | CY78: =INDEX('Données transport emballage'!$4:$19,MATCH('Calcul tarif Truf_JDR'!AB78,'Données transport emballage'!$M$4:$M$19,0),MATCH('Calcul tarif Truf_JDR'!AR78,'Données transport emballage'!$2:$2,0)+2) -> 0 | CZ78: =INDEX('Données transport emballage'!$4:$19,MATCH('Calcul tarif Truf_JDR'!AB78,'Données transport emballage'!$M$4:$M$19,0),MATCH('Calcul tarif Truf_JDR'!AR78,'Données transport emballage'!$2:$2,0)+5) -> 2400 | DA78: =INDEX('Données transport emballage'!$4:$19,MATCH('Calcul tarif Truf_JDR'!AB78,'Données transport emballage'!$M$4:$M$19,0),MATCH('Calcul tarif Truf_JDR'!AR78,'Données transport emballage'!$2:$2,0)+8) -> 2900 | DB78: 1.5 | DC78: 1.5 | DD78: 0 | DE78: =#REF!*$DE$1 ->  | DF78: =#REF!*$DF$1 ->  | DG78: =#REF!*$DG$1 ->  | DH78: =#REF!*$DH$1 ->  | DJ78: 1.5 | DK78: 1.5 | DL78: 0 | DM78: 0 | DN78: 0 | DO78: 0 | DP78: 0 | DQ78: 14.5 | DR78: 1.5 | DS78: 1.5 | DT78: 0 | DU78: 1.025 | DV78: 0.5125 | DW78: 0.5125 | DX78: 0.3075 | DY78: 15.5575 | DZ78: 1.5 | EA78: 1.5 | EB78: 0 | EC78: 1.0525 | ED78: 0.421 | EE78: 0 | EF78: 0.2105 | EG78: 16.184 | EH78: 1.25 | EI78: 1.25 | EJ78: 0 | EK78: 0 | EL78: 0 | EM78: 0 | EN78: 0 | EO78: 14.25 | EP78: 1.25 | EQ78: 1.25 | ER78: 0 | ES78: 1.0075 | ET78: 0.403 | EU78: 0 | EV78: 0.2015 | EW78: 15.862
A79: 3834000057552 | B79: 5755 | C79: AGAVE | D79: horrida | F79: SUCC | G79: Succulentes | H79: NDI | I79: non dispo | J79: 037 | K79: 25 | L79: 023 | M79: 10L | X79: A10 | Y79: AA10 | Z79: UNI | AA79: 10 | AB79: PE8 | AC79: Palette étages 80 x 120 | AD79: 3 | AE79: ML | AF79: 2 | AG79: CAM | AH79: 13 | AI79: 780 | AJ79: 3 | AK79: 11.7 | AP79: FV | AQ79: Ferriol Viveros | AR79: 20 | AS79: FERRIOL VIVEROS | BH79: 13 | BK79: 0 | BQ79: 27.15 | BR79: 27.15 | BS79: 0 | BT79: 25.55 | BU79: 25.55 | BV79: 0 | BW79: 27.15 | BX79: 27.15 | BY79: 0 | BZ79: 25.55 | CA79: 25.55 | CB79: 0 | CE79: 0 | CF79: 20.5 | CG79: 1.037580666 | CH79: 0.9821770793 | CI79: 1.3 | CJ79: 27.15 | CK79: 1.300785742 | CL79: 0.2817679558 | CM79: 0 | CN79: 0 | CO79: 19.5 | CP79: 1.191057904 | CR79: 0 | CS79: 1.20 | CT79: 25.55 | CU79: 1.268367752 | CV79: 18.45 | CW79: 0.2367906067 | CX79: 780 | CY79: =INDEX('Données transport emballage'!$4:$19,MATCH('Calcul tarif Truf_JDR'!AB79,'Données transport emballage'!$M$4:$M$19,0),MATCH('Calcul tarif Truf_JDR'!AR79,'Données transport emballage'!$2:$2,0)+2) -> 35 | CZ79: =INDEX('Données transport emballage'!$4:$19,MATCH('Calcul tarif Truf_JDR'!AB79,'Données transport emballage'!$M$4:$M$19,0),MATCH('Calcul tarif Truf_JDR'!AR79,'Données transport emballage'!$2:$2,0)+5) -> 117 | DA79: =INDEX('Données transport emballage'!$4:$19,MATCH('Calcul tarif Truf_JDR'!AB79,'Données transport emballage'!$M$4:$M$19,0),MATCH('Calcul tarif Truf_JDR'!AR79,'Données transport emballage'!$2:$2,0)+8) -> 135 | DB79: 5.7 | DC79: 4.5 | DD79: 1.2 | DE79: =#REF!*$DE$1 ->  | DF79: =#REF!*$DF$1 ->  | DG79: =#REF!*$DG$1 ->  | DH79: =#REF!*$DH$1 ->  | DJ79: 5.7 | DK79: 4.5 | DL79: 1.2 | DM79: 0 | DN79: 0 | DO79: 0 | DP79: 0 | DQ79: 18.7 | DR79: 5.7 | DS79: 4.5 | DT79: 1.2 | DU79: 1.025 | DV79: 0.5125 | DW79: 0.5125 | DX79: 0.3075 | DY79: 19.7575 | DZ79: 5.7 | EA79: 4.5 | EB79: 1.2 | EC79: 1.3575 | ED79: 0.543 | EE79: 0 | EF79: 0.2715 | EG79: 20.872 | EH79: 5.1 | EI79: 3.9 | EJ79: 1.2 | EK79: 0 | EL79: 0 | EM79: 0 | EN79: 0 | EO79: 18.1 | EP79: 5.1 | EQ79: 3.9 | ER79: 1.2 | ES79: 1.2775 | ET79: 0.511 | EU79: 0 | EV79: 0.2555 | EW79: 20.144
A80: 3834000057552 | B80: 5755 | C80: AGAVE | D80: horrida | F80: SUCC | G80: Succulentes | H80: NDI | I80: non dispo | J80: 037 | K80: 25 | L80: 023 | M80: 10L | X80: A10 | Y80: AA10 | Z80: UNI | AA80: 1 | AB80: VRA | AC80: Vrac | AD80: 1 | AE80: ML | AF80: 148.148 | AG80: CAM | AH80: 13.5 | AI80: 1999.998 | AJ80: 3 | AK80: 11.7 | AP80: FV | AQ80: Ferriol Viveros | AR80: 20 | AS80: FERRIOL VIVEROS | BH80: 13 | BK80: 1 | BQ80: 21.05 | BR80: 21.05 | BS80: 0 | BT80: 20.15 | BU80: 20.15 | BV80: 0 | BW80: 21.05 | BX80: 21.05 | BY80: 0 | BZ80: 20.15 | CA80: 20.15 | CB80: 0 | CE80: 0 | CF80: 20.5 | CG80: 1.317692431 | CH80: 1.266683144 | CI80: 1.3 | CJ80: 21.05 | CK80: 1.300667326 | CL80: 0.07363420428 | CM80: 0 | CN80: 0 | CO80: 19.5 | CP80: 1.327976028 | CR80: 0 | CS80: 1.20 | CT80: 20.15 | CU80: 1.27033161 | CV80: 18.45 | CW80: 0.03225806452 | CX80: 1999.998 | CY80: =INDEX('Données transport emballage'!$4:$19,MATCH('Calcul tarif Truf_JDR'!AB80,'Données transport emballage'!$M$4:$M$19,0),MATCH('Calcul tarif Truf_JDR'!AR80,'Données transport emballage'!$2:$2,0)+2) -> 0 | CZ80: =INDEX('Données transport emballage'!$4:$19,MATCH('Calcul tarif Truf_JDR'!AB80,'Données transport emballage'!$M$4:$M$19,0),MATCH('Calcul tarif Truf_JDR'!AR80,'Données transport emballage'!$2:$2,0)+5) -> 2400 | DA80: =INDEX('Données transport emballage'!$4:$19,MATCH('Calcul tarif Truf_JDR'!AB80,'Données transport emballage'!$M$4:$M$19,0),MATCH('Calcul tarif Truf_JDR'!AR80,'Données transport emballage'!$2:$2,0)+8) -> 2900 | DB80: 1.5 | DC80: 1.5 | DD80: 0 | DE80: =#REF!*$DE$1 ->  | DF80: =#REF!*$DF$1 ->  | DG80: =#REF!*$DG$1 ->  | DH80: =#REF!*$DH$1 ->  | DJ80: 1.5 | DK80: 1.5 | DL80: 0 | DM80: 0 | DN80: 0 | DO80: 0 | DP80: 0 | DQ80: 14.5 | DR80: 1.5 | DS80: 1.5 | DT80: 0 | DU80: 1.025 | DV80: 0.5125 | DW80: 0.5125 | DX80: 0.3075 | DY80: 15.5575 | DZ80: 1.5 | EA80: 1.5 | EB80: 0 | EC80: 1.0525 | ED80: 0.421 | EE80: 0 | EF80: 0.2105 | EG80: 16.184 | EH80: 1.25 | EI80: 1.25 | EJ80: 0 | EK80: 0 | EL80: 0 | EM80: 0 | EN80: 0 | EO80: 14.25 | EP80: 1.25 | EQ80: 1.25 | ER80: 0 | ES80: 1.0075 | ET80: 0.403 | EU80: 0 | EV80: 0.2015 | EW80: 15.862
A81: 3834000057569 | B81: 5756 | C81: AGAVE | D81: obscura | F81: SUCC | G81: Succulentes | H81: NDI | I81: non dispo | J81: 037 | K81: 25 | L81: 023 | M81: 10L | X81: A10 | Y81: AA10 | Z81: UNI | AA81: 10 | AB81: PE8 | AC81: Palette étages 80 x 120 | AD81: 3 | AE81: ML | AF81: 2 | AG81: CAM | AH81: 13 | AI81: 780 | AJ81: 3 | AK81: 11.7 | AP81: FV | AQ81: Ferriol Viveros | AR81: 20 | AS81: FERRIOL VIVEROS | BH81: 13 | BK81: 0 | BQ81: 27.15 | BR81: 27.15 | BS81: 0 | BT81: 25.55 | BU81: 25.55 | BV81: 0 | BW81: 27.15 | BX81: 27.15 | BY81: 0 | BZ81: 25.55 | CA81: 25.55 | CB81: 0 | CE81: 0 | CF81: 20.5 | CG81: 1.037580666 | CH81: 0.9821770793 | CI81: 1.3 | CJ81: 27.15 | CK81: 1.300785742 | CL81: 0.2817679558 | CM81: 0 | CN81: 0 | CO81: 19.5 | CP81: 1.191057904 | CR81: 0 | CS81: 1.20 | CT81: 25.55 | CU81: 1.268367752 | CV81: 18.45 | CW81: 0.2367906067 | CX81: 780 | CY81: =INDEX('Données transport emballage'!$4:$19,MATCH('Calcul tarif Truf_JDR'!AB81,'Données transport emballage'!$M$4:$M$19,0),MATCH('Calcul tarif Truf_JDR'!AR81,'Données transport emballage'!$2:$2,0)+2) -> 35 | CZ81: =INDEX('Données transport emballage'!$4:$19,MATCH('Calcul tarif Truf_JDR'!AB81,'Données transport emballage'!$M$4:$M$19,0),MATCH('Calcul tarif Truf_JDR'!AR81,'Données transport emballage'!$2:$2,0)+5) -> 117 | DA81: =INDEX('Données transport emballage'!$4:$19,MATCH('Calcul tarif Truf_JDR'!AB81,'Données transport emballage'!$M$4:$M$19,0),MATCH('Calcul tarif Truf_JDR'!AR81,'Données transport emballage'!$2:$2,0)+8) -> 135 | DB81: 5.7 | DC81: 4.5 | DD81: 1.2 | DE81: =#REF!*$DE$1 ->  | DF81: =#REF!*$DF$1 ->  | DG81: =#REF!*$DG$1 ->  | DH81: =#REF!*$DH$1 ->  | DJ81: 5.7 | DK81: 4.5 | DL81: 1.2 | DM81: 0 | DN81: 0 | DO81: 0 | DP81: 0 | DQ81: 18.7 | DR81: 5.7 | DS81: 4.5 | DT81: 1.2 | DU81: 1.025 | DV81: 0.5125 | DW81: 0.5125 | DX81: 0.3075 | DY81: 19.7575 | DZ81: 5.7 | EA81: 4.5 | EB81: 1.2 | EC81: 1.3575 | ED81: 0.543 | EE81: 0 | EF81: 0.2715 | EG81: 20.872 | EH81: 5.1 | EI81: 3.9 | EJ81: 1.2 | EK81: 0 | EL81: 0 | EM81: 0 | EN81: 0 | EO81: 18.1 | EP81: 5.1 | EQ81: 3.9 | ER81: 1.2 | ES81: 1.2775 | ET81: 0.511 | EU81: 0 | EV81: 0.2555 | EW81: 20.144
A82: 3834000057569 | B82: 5756 | C82: AGAVE | D82: obscura | F82: SUCC | G82: Succulentes | H82: NDI | I82: non dispo | J82: 037 | K82: 25 | L82: 023 | M82: 10L | X82: A10 | Y82: AA10 | Z82: UNI | AA82: 1 | AB82: VRA | AC82: Vrac | AD82: 1 | AE82: ML | AF82: 148.148 | AG82: CAM | AH82: 13.5 | AI82: 1999.998 | AJ82: 3 | AK82: 11.7 | AP82: FV | AQ82: Ferriol Viveros | AR82: 20 | AS82: FERRIOL VIVEROS | BH82: 13 | BK82: 1 | BQ82: 21.05 | BR82: 21.05 | BS82: 0 | BT82: 20.15 | BU82: 20.15 | BV82: 0 | BW82: 21.05 | BX82: 21.05 | BY82: 0 | BZ82: 20.15 | CA82: 20.15 | CB82: 0 | CE82: 0 | CF82: 20.5 | CG82: 1.317692431 | CH82: 1.266683144 | CI82: 1.3 | CJ82: 21.05 | CK82: 1.300667326 | CL82: 0.07363420428 | CM82: 0 | CN82: 0 | CO82: 19.5 | CP82: 1.327976028 | CR82: 0 | CS82: 1.20 | CT82: 20.15 | CU82: 1.27033161 | CV82: 18.45 | CW82: 0.03225806452 | CX82: 1999.998 | CY82: =INDEX('Données transport emballage'!$4:$19,MATCH('Calcul tarif Truf_JDR'!AB82,'Données transport emballage'!$M$4:$M$19,0),MATCH('Calcul tarif Truf_JDR'!AR82,'Données transport emballage'!$2:$2,0)+2) -> 0 | CZ82: =INDEX('Données transport emballage'!$4:$19,MATCH('Calcul tarif Truf_JDR'!AB82,'Données transport emballage'!$M$4:$M$19,0),MATCH('Calcul tarif Truf_JDR'!AR82,'Données transport emballage'!$2:$2,0)+5) -> 2400 | DA82: =INDEX('Données transport emballage'!$4:$19,MATCH('Calcul tarif Truf_JDR'!AB82,'Données transport emballage'!$M$4:$M$19,0),MATCH('Calcul tarif Truf_JDR'!AR82,'Données transport emballage'!$2:$2,0)+8) -> 2900 | DB82: 1.5 | DC82: 1.5 | DD82: 0 | DE82: =#REF!*$DE$1 ->  | DF82: =#REF!*$DF$1 ->  | DG82: =#REF!*$DG$1 ->  | DH82: =#REF!*$DH$1 ->  | DJ82: 1.5 | DK82: 1.5 | DL82: 0 | DM82: 0 | DN82: 0 | DO82: 0 | DP82: 0 | DQ82: 14.5 | DR82: 1.5 | DS82: 1.5 | DT82: 0 | DU82: 1.025 | DV82: 0.5125 | DW82: 0.5125 | DX82: 0.3075 | DY82: 15.5575 | DZ82: 1.5 | EA82: 1.5 | EB82: 0 | EC82: 1.0525 | ED82: 0.421 | EE82: 0 | EF82: 0.2105 | EG82: 16.184 | EH82: 1.25 | EI82: 1.25 | EJ82: 0 | EK82: 0 | EL82: 0 | EM82: 0 | EN82: 0 | EO82: 14.25 | EP82: 1.25 | EQ82: 1.25 | ER82: 0 | ES82: 1.0075 | ET82: 0.403 | EU82: 0 | EV82: 0.2015 | EW82: 15.862
A83: 3834000057576 | B83: 5757 | C83: AGAVE | D83: purpusorum | F83: SUCC | G83: Succulentes | H83: NDI | I83: non dispo | J83: 037 | K83: 25 | L83: 023 | M83: 10L | X83: A10 | Y83: AA10 | Z83: UNI | AA83: 10 | AB83: PE8 | AC83: Palette étages 80 x 120 | AD83: 3 | AE83: ML | AF83: 2 | AG83: CAM | AH83: 13 | AI83: 780 | AJ83: 3 | AK83: 11.7 | AP83: FV | AQ83: Ferriol Viveros | AR83: 20 | AS83: FERRIOL VIVEROS | BH83: 13 | BK83: 0 | BQ83: 27.15 | BR83: 27.15 | BS83: 0 | BT83: 25.55 | BU83: 25.55 | BV83: 0 | BW83: 27.15 | BX83: 27.15 | BY83: 0 | BZ83: 25.55 | CA83: 25.55 | CB83: 0 | CE83: 0 | CF83: 20.5 | CG83: 1.037580666 | CH83: 0.9821770793 | CI83: 1.3 | CJ83: 27.15 | CK83: 1.300785742 | CL83: 0.2817679558 | CM83: 0 | CN83: 0 | CO83: 19.5 | CP83: 1.191057904 | CR83: 0 | CS83: 1.20 | CT83: 25.55 | CU83: 1.268367752 | CV83: 18.45 | CW83: 0.2367906067 | CX83: 780 | CY83: =INDEX('Données transport emballage'!$4:$19,MATCH('Calcul tarif Truf_JDR'!AB83,'Données transport emballage'!$M$4:$M$19,0),MATCH('Calcul tarif Truf_JDR'!AR83,'Données transport emballage'!$2:$2,0)+2) -> 35 | CZ83: =INDEX('Données transport emballage'!$4:$19,MATCH('Calcul tarif Truf_JDR'!AB83,'Données transport emballage'!$M$4:$M$19,0),MATCH('Calcul tarif Truf_JDR'!AR83,'Données transport emballage'!$2:$2,0)+5) -> 117 | DA83: =INDEX('Données transport emballage'!$4:$19,MATCH('Calcul tarif Truf_JDR'!AB83,'Données transport emballage'!$M$4:$M$19,0),MATCH('Calcul tarif Truf_JDR'!AR83,'Données transport emballage'!$2:$2,0)+8) -> 135 | DB83: 5.7 | DC83: 4.5 | DD83: 1.2 | DE83: =#REF!*$DE$1 ->  | DF83: =#REF!*$DF$1 ->  | DG83: =#REF!*$DG$1 ->  | DH83: =#REF!*$DH$1 ->  | DJ83: 5.7 | DK83: 4.5 | DL83: 1.2 | DM83: 0 | DN83: 0 | DO83: 0 | DP83: 0 | DQ83: 18.7 | DR83: 5.7 | DS83: 4.5 | DT83: 1.2 | DU83: 1.025 | DV83: 0.5125 | DW83: 0.5125 | DX83: 0.3075 | DY83: 19.7575 | DZ83: 5.7 | EA83: 4.5 | EB83: 1.2 | EC83: 1.3575 | ED83: 0.543 | EE83: 0 | EF83: 0.2715 | EG83: 20.872 | EH83: 5.1 | EI83: 3.9 | EJ83: 1.2 | EK83: 0 | EL83: 0 | EM83: 0 | EN83: 0 | EO83: 18.1 | EP83: 5.1 | EQ83: 3.9 | ER83: 1.2 | ES83: 1.2775 | ET83: 0.511 | EU83: 0 | EV83: 0.2555 | EW83: 20.144
A84: 3834000057576 | B84: 5757 | C84: AGAVE | D84: purpusorum | F84: SUCC | G84: Succulentes | H84: NDI | I84: non dispo | J84: 037 | K84: 25 | L84: 023 | M84: 10L | X84: A10 | Y84: AA10 | Z84: UNI | AA84: 1 | AB84: VRA | AC84: Vrac | AD84: 1 | AE84: ML | AF84: 148.148 | AG84: CAM | AH84: 13.5 | AI84: 1999.998 | AJ84: 3 | AK84: 11.7 | AP84: FV | AQ84: Ferriol Viveros | AR84: 20 | AS84: FERRIOL VIVEROS | BH84: 13 | BK84: 1 | BQ84: 21.05 | BR84: 21.05 | BS84: 0 | BT84: 20.15 | BU84: 20.15 | BV84: 0 | BW84: 21.05 | BX84: 21.05 | BY84: 0 | BZ84: 20.15 | CA84: 20.15 | CB84: 0 | CE84: 0 | CF84: 20.5 | CG84: 1.317692431 | CH84: 1.266683144 | CI84: 1.3 | CJ84: 21.05 | CK84: 1.300667326 | CL84: 0.07363420428 | CM84: 0 | CN84: 0 | CO84: 19.5 | CP84: 1.327976028 | CR84: 0 | CS84: 1.20 | CT84: 20.15 | CU84: 1.27033161 | CV84: 18.45 | CW84: 0.03225806452 | CX84: 1999.998 | CY84: =INDEX('Données transport emballage'!$4:$19,MATCH('Calcul tarif Truf_JDR'!AB84,'Données transport emballage'!$M$4:$M$19,0),MATCH('Calcul tarif Truf_JDR'!AR84,'Données transport emballage'!$2:$2,0)+2) -> 0 | CZ84: =INDEX('Données transport emballage'!$4:$19,MATCH('Calcul tarif Truf_JDR'!AB84,'Données transport emballage'!$M$4:$M$19,0),MATCH('Calcul tarif Truf_JDR'!AR84,'Données transport emballage'!$2:$2,0)+5) -> 2400 | DA84: =INDEX('Données transport emballage'!$4:$19,MATCH('Calcul tarif Truf_JDR'!AB84,'Données transport emballage'!$M$4:$M$19,0),MATCH('Calcul tarif Truf_JDR'!AR84,'Données transport emballage'!$2:$2,0)+8) -> 2900 | DB84: 1.5 | DC84: 1.5 | DD84: 0 | DE84: =#REF!*$DE$1 ->  | DF84: =#REF!*$DF$1 ->  | DG84: =#REF!*$DG$1 ->  | DH84: =#REF!*$DH$1 ->  | DJ84: 1.5 | DK84: 1.5 | DL84: 0 | DM84: 0 | DN84: 0 | DO84: 0 | DP84: 0 | DQ84: 14.5 | DR84: 1.5 | DS84: 1.5 | DT84: 0 | DU84: 1.025 | DV84: 0.5125 | DW84: 0.5125 | DX84: 0.3075 | DY84: 15.5575 | DZ84: 1.5 | EA84: 1.5 | EB84: 0 | EC84: 1.0525 | ED84: 0.421 | EE84: 0 | EF84: 0.2105 | EG84: 16.184 | EH84: 1.25 | EI84: 1.25 | EJ84: 0 | EK84: 0 | EL84: 0 | EM84: 0 | EN84: 0 | EO84: 14.25 | EP84: 1.25 | EQ84: 1.25 | ER84: 0 | ES84: 1.0075 | ET84: 0.403 | EU84: 0 | EV84: 0.2015 | EW84: 15.862
A85: 3834000057583 | B85: 5758 | C85: AGAVE | D85: ghiesberchttii | E85: Huehueteca | F85: SUCC | G85: Succulentes | H85: NDI | I85: non dispo | J85: 037 | K85: 25 | L85: 023 | M85: 10L | X85: A10 | Y85: AA10 | Z85: UNI | AA85: 10 | AB85: PE8 | AC85: Palette étages 80 x 120 | AD85: 3 | AE85: ML | AF85: 2 | AG85: CAM | AH85: 13 | AI85: 780 | AJ85: 3 | AK85: 11.7 | AP85: FV | AQ85: Ferriol Viveros | AR85: 20 | AS85: FERRIOL VIVEROS | BH85: 13 | BK85: 0 | BQ85: 27.15 | BR85: 27.15 | BS85: 0 | BT85: 25.55 | BU85: 25.55 | BV85: 0 | BW85: 27.15 | BX85: 27.15 | BY85: 0 | BZ85: 25.55 | CA85: 25.55 | CB85: 0 | CE85: 0 | CF85: 20.5 | CG85: 1.037580666 | CH85: 0.9821770793 | CI85: 1.3 | CJ85: 27.15 | CK85: 1.300785742 | CL85: 0.2817679558 | CM85: 0 | CN85: 0 | CO85: 19.5 | CP85: 1.191057904 | CR85: 0 | CS85: 1.20 | CT85: 25.55 | CU85: 1.268367752 | CV85: 18.45 | CW85: 0.2367906067 | CX85: 780 | CY85: =INDEX('Données transport emballage'!$4:$19,MATCH('Calcul tarif Truf_JDR'!AB85,'Données transport emballage'!$M$4:$M$19,0),MATCH('Calcul tarif Truf_JDR'!AR85,'Données transport emballage'!$2:$2,0)+2) -> 35 | CZ85: =INDEX('Données transport emballage'!$4:$19,MATCH('Calcul tarif Truf_JDR'!AB85,'Données transport emballage'!$M$4:$M$19,0),MATCH('Calcul tarif Truf_JDR'!AR85,'Données transport emballage'!$2:$2,0)+5) -> 117 | DA85: =INDEX('Données transport emballage'!$4:$19,MATCH('Calcul tarif Truf_JDR'!AB85,'Données transport emballage'!$M$4:$M$19,0),MATCH('Calcul tarif Truf_JDR'!AR85,'Données transport emballage'!$2:$2,0)+8) -> 135 | DB85: 5.7 | DC85: 4.5 | DD85: 1.2 | DE85: =#REF!*$DE$1 ->  | DF85: =#REF!*$DF$1 ->  | DG85: =#REF!*$DG$1 ->  | DH85: =#REF!*$DH$1 ->  | DJ85: 5.7 | DK85: 4.5 | DL85: 1.2 | DM85: 0 | DN85: 0 | DO85: 0 | DP85: 0 | DQ85: 18.7 | DR85: 5.7 | DS85: 4.5 | DT85: 1.2 | DU85: 1.025 | DV85: 0.5125 | DW85: 0.5125 | DX85: 0.3075 | DY85: 19.7575 | DZ85: 5.7 | EA85: 4.5 | EB85: 1.2 | EC85: 1.3575 | ED85: 0.543 | EE85: 0 | EF85: 0.2715 | EG85: 20.872 | EH85: 5.1 | EI85: 3.9 | EJ85: 1.2 | EK85: 0 | EL85: 0 | EM85: 0 | EN85: 0 | EO85: 18.1 | EP85: 5.1 | EQ85: 3.9 | ER85: 1.2 | ES85: 1.2775 | ET85: 0.511 | EU85: 0 | EV85: 0.2555 | EW85: 20.144
A86: 3834000057583 | B86: 5758 | C86: AGAVE | D86: ghiesberchttii | E86: Huehueteca | F86: SUCC | G86: Succulentes | H86: NDI | I86: non dispo | J86: 037 | K86: 25 | L86: 023 | M86: 10L | X86: A10 | Y86: AA10 | Z86: UNI | AA86: 1 | AB86: VRA | AC86: Vrac | AD86: 1 | AE86: ML | AF86: 148.148 | AG86: CAM | AH86: 13.5 | AI86: 1999.998 | AJ86: 3 | AK86: 11.7 | AP86: FV | AQ86: Ferriol Viveros | AR86: 20 | AS86: FERRIOL VIVEROS | BH86: 13 | BK86: 1 | BQ86: 21.05 | BR86: 21.05 | BS86: 0 | BT86: 20.15 | BU86: 20.15 | BV86: 0 | BW86: 21.05 | BX86: 21.05 | BY86: 0 | BZ86: 20.15 | CA86: 20.15 | CB86: 0 | CE86: 0 | CF86: 20.5 | CG86: 1.317692431 | CH86: 1.266683144 | CI86: 1.3 | CJ86: 21.05 | CK86: 1.300667326 | CL86: 0.07363420428 | CM86: 0 | CN86: 0 | CO86: 19.5 | CP86: 1.327976028 | CR86: 0 | CS86: 1.20 | CT86: 20.15 | CU86: 1.27033161 | CV86: 18.45 | CW86: 0.03225806452 | CX86: 1999.998 | CY86: =INDEX('Données transport emballage'!$4:$19,MATCH('Calcul tarif Truf_JDR'!AB86,'Données transport emballage'!$M$4:$M$19,0),MATCH('Calcul tarif Truf_JDR'!AR86,'Données transport emballage'!$2:$2,0)+2) -> 0 | CZ86: =INDEX('Données transport emballage'!$4:$19,MATCH('Calcul tarif Truf_JDR'!AB86,'Données transport emballage'!$M$4:$M$19,0),MATCH('Calcul tarif Truf_JDR'!AR86,'Données transport emballage'!$2:$2,0)+5) -> 2400 | DA86: =INDEX('Données transport emballage'!$4:$19,MATCH('Calcul tarif Truf_JDR'!AB86,'Données transport emballage'!$M$4:$M$19,0),MATCH('Calcul tarif Truf_JDR'!AR86,'Données transport emballage'!$2:$2,0)+8) -> 2900 | DB86: 1.5 | DC86: 1.5 | DD86: 0 | DE86: =#REF!*$DE$1 ->  | DF86: =#REF!*$DF$1 ->  | DG86: =#REF!*$DG$1 ->  | DH86: =#REF!*$DH$1 ->  | DJ86: 1.5 | DK86: 1.5 | DL86: 0 | DM86: 0 | DN86: 0 | DO86: 0 | DP86: 0 | DQ86: 14.5 | DR86: 1.5 | DS86: 1.5 | DT86: 0 | DU86: 1.025 | DV86: 0.5125 | DW86: 0.5125 | DX86: 0.3075 | DY86: 15.5575 | DZ86: 1.5 | EA86: 1.5 | EB86: 0 | EC86: 1.0525 | ED86: 0.421 | EE86: 0 | EF86: 0.2105 | EG86: 16.184 | EH86: 1.25 | EI86: 1.25 | EJ86: 0 | EK86: 0 | EL86: 0 | EM86: 0 | EN86: 0 | EO86: 14.25 | EP86: 1.25 | EQ86: 1.25 | ER86: 0 | ES86: 1.0075 | ET86: 0.403 | EU86: 0 | EV86: 0.2015 | EW86: 15.862
A87: 3834000057590 | B87: 5759 | C87: AGAVE | D87: pseudopotatorum | F87: SUCC | G87: Succulentes | H87: NDI | I87: non dispo | J87: 037 | K87: 25 | L87: 023 | M87: 10L | X87: A10 | Y87: AA10 | Z87: UNI | AA87: 10 | AB87: PE8 | AC87: Palette étages 80 x 120 | AD87: 3 | AE87: ML | AF87: 2 | AG87: CAM | AH87: 13 | AI87: 780 | AJ87: 3 | AK87: 11.7 | AP87: FV | AQ87: Ferriol Viveros | AR87: 20 | AS87: FERRIOL VIVEROS | BH87: 13 | BK87: 0 | BQ87: 27.15 | BR87: 27.15 | BS87: 0 | BT87: 25.55 | BU87: 25.55 | BV87: 0 | BW87: 27.15 | BX87: 27.15 | BY87: 0 | BZ87: 25.55 | CA87: 25.55 | CB87: 0 | CE87: 0 | CF87: 20.5 | CG87: 1.037580666 | CH87: 0.9821770793 | CI87: 1.3 | CJ87: 27.15 | CK87: 1.300785742 | CL87: 0.2817679558 | CM87: 0 | CN87: 0 | CO87: 19.5 | CP87: 1.191057904 | CR87: 0 | CS87: 1.20 | CT87: 25.55 | CU87: 1.268367752 | CV87: 18.45 | CW87: 0.2367906067 | CX87: 780 | CY87: =INDEX('Données transport emballage'!$4:$19,MATCH('Calcul tarif Truf_JDR'!AB87,'Données transport emballage'!$M$4:$M$19,0),MATCH('Calcul tarif Truf_JDR'!AR87,'Données transport emballage'!$2:$2,0)+2) -> 35 | CZ87: =INDEX('Données transport emballage'!$4:$19,MATCH('Calcul tarif Truf_JDR'!AB87,'Données transport emballage'!$M$4:$M$19,0),MATCH('Calcul tarif Truf_JDR'!AR87,'Données transport emballage'!$2:$2,0)+5) -> 117 | DA87: =INDEX('Données transport emballage'!$4:$19,MATCH('Calcul tarif Truf_JDR'!AB87,'Données transport emballage'!$M$4:$M$19,0),MATCH('Calcul tarif Truf_JDR'!AR87,'Données transport emballage'!$2:$2,0)+8) -> 135 | DB87: 5.7 | DC87: 4.5 | DD87: 1.2 | DE87: =#REF!*$DE$1 ->  | DF87: =#REF!*$DF$1 ->  | DG87: =#REF!*$DG$1 ->  | DH87: =#REF!*$DH$1 ->  | DJ87: 5.7 | DK87: 4.5 | DL87: 1.2 | DM87: 0 | DN87: 0 | DO87: 0 | DP87: 0 | DQ87: 18.7 | DR87: 5.7 | DS87: 4.5 | DT87: 1.2 | DU87: 1.025 | DV87: 0.5125 | DW87: 0.5125 | DX87: 0.3075 | DY87: 19.7575 | DZ87: 5.7 | EA87: 4.5 | EB87: 1.2 | EC87: 1.3575 | ED87: 0.543 | EE87: 0 | EF87: 0.2715 | EG87: 20.872 | EH87: 5.1 | EI87: 3.9 | EJ87: 1.2 | EK87: 0 | EL87: 0 | EM87: 0 | EN87: 0 | EO87: 18.1 | EP87: 5.1 | EQ87: 3.9 | ER87: 1.2 | ES87: 1.2775 | ET87: 0.511 | EU87: 0 | EV87: 0.2555 | EW87: 20.144
A88: 3834000057590 | B88: 5759 | C88: AGAVE | D88: pseudopotatorum | F88: SUCC | G88: Succulentes | H88: NDI | I88: non dispo | J88: 037 | K88: 25 | L88: 023 | M88: 10L | X88: A10 | Y88: AA10 | Z88: UNI | AA88: 1 | AB88: VRA | AC88: Vrac | AD88: 1 | AE88: ML | AF88: 148.148 | AG88: CAM | AH88: 13.5 | AI88: 1999.998 | AJ88: 3 | AK88: 11.7 | AP88: FV | AQ88: Ferriol Viveros | AR88: 20 | AS88: FERRIOL VIVEROS | BH88: 13 | BK88: 1 | BQ88: 21.05 | BR88: 21.05 | BS88: 0 | BT88: 20.15 | BU88: 20.15 | BV88: 0 | BW88: 21.05 | BX88: 21.05 | BY88: 0 | BZ88: 20.15 | CA88: 20.15 | CB88: 0 | CE88: 0 | CF88: 20.5 | CG88: 1.317692431 | CH88: 1.266683144 | CI88: 1.3 | CJ88: 21.05 | CK88: 1.300667326 | CL88: 0.07363420428 | CM88: 0 | CN88: 0 | CO88: 19.5 | CP88: 1.327976028 | CR88: 0 | CS88: 1.20 | CT88: 20.15 | CU88: 1.27033161 | CV88: 18.45 | CW88: 0.03225806452 | CX88: 1999.998 | CY88: =INDEX('Données transport emballage'!$4:$19,MATCH('Calcul tarif Truf_JDR'!AB88,'Données transport emballage'!$M$4:$M$19,0),MATCH('Calcul tarif Truf_JDR'!AR88,'Données transport emballage'!$2:$2,0)+2) -> 0 | CZ88: =INDEX('Données transport emballage'!$4:$19,MATCH('Calcul tarif Truf_JDR'!AB88,'Données transport emballage'!$M$4:$M$19,0),MATCH('Calcul tarif Truf_JDR'!AR88,'Données transport emballage'!$2:$2,0)+5) -> 2400 | DA88: =INDEX('Données transport emballage'!$4:$19,MATCH('Calcul tarif Truf_JDR'!AB88,'Données transport emballage'!$M$4:$M$19,0),MATCH('Calcul tarif Truf_JDR'!AR88,'Données transport emballage'!$2:$2,0)+8) -> 2900 | DB88: 1.5 | DC88: 1.5 | DD88: 0 | DE88: =#REF!*$DE$1 ->  | DF88: =#REF!*$DF$1 ->  | DG88: =#REF!*$DG$1 ->  | DH88: =#REF!*$DH$1 ->  | DJ88: 1.5 | DK88: 1.5 | DL88: 0 | DM88: 0 | DN88: 0 | DO88: 0 | DP88: 0 | DQ88: 14.5 | DR88: 1.5 | DS88: 1.5 | DT88: 0 | DU88: 1.025 | DV88: 0.5125 | DW88: 0.5125 | DX88: 0.3075 | DY88: 15.5575 | DZ88: 1.5 | EA88: 1.5 | EB88: 0 | EC88: 1.0525 | ED88: 0.421 | EE88: 0 | EF88: 0.2105 | EG88: 16.184 | EH88: 1.25 | EI88: 1.25 | EJ88: 0 | EK88: 0 | EL88: 0 | EM88: 0 | EN88: 0 | EO88: 14.25 | EP88: 1.25 | EQ88: 1.25 | ER88: 0 | ES88: 1.0075 | ET88: 0.403 | EU88: 0 | EV88: 0.2015 | EW88: 15.862
A89: 3834000057606 | B89: 5760 | C89: AGAVE | D89: filifera | F89: SUCC | G89: Succulentes | H89: DIS | I89: dispo | J89: 037 | K89: 25 | L89: 023 | M89: 10L | X89: A10 | Y89: AA10 | Z89: UNI | AA89: 10 | AB89: PE8 | AC89: Palette étages 80 x 120 | AD89: 3 | AE89: ML | AF89: 2 | AG89: CAM | AH89: 13 | AI89: 780 | AJ89: 3 | AK89: 11.7 | AP89: FV | AQ89: Ferriol Viveros | AR89: 20 | AS89: FERRIOL VIVEROS | BH89: 13 | BK89: 0 | BQ89: 27.15 | BR89: 27.15 | BS89: 0 | BT89: 25.55 | BU89: 25.55 | BV89: 0 | BW89: 27.15 | BX89: 27.15 | BY89: 0 | BZ89: 25.55 | CA89: 25.55 | CB89: 0 | CE89: 0 | CF89: 20.5 | CG89: 1.037580666 | CH89: 0.9821770793 | CI89: 1.3 | CJ89: 27.15 | CK89: 1.300785742 | CL89: 0.2817679558 | CM89: 0 | CN89: 0 | CO89: 19.5 | CP89: 1.191057904 | CR89: 0 | CS89: 1.20 | CT89: 25.55 | CU89: 1.268367752 | CV89: 18.45 | CW89: 0.2367906067 | CX89: 780 | CY89: =INDEX('Données transport emballage'!$4:$19,MATCH('Calcul tarif Truf_JDR'!AB89,'Données transport emballage'!$M$4:$M$19,0),MATCH('Calcul tarif Truf_JDR'!AR89,'Données transport emballage'!$2:$2,0)+2) -> 35 | CZ89: =INDEX('Données transport emballage'!$4:$19,MATCH('Calcul tarif Truf_JDR'!AB89,'Données transport emballage'!$M$4:$M$19,0),MATCH('Calcul tarif Truf_JDR'!AR89,'Données transport emballage'!$2:$2,0)+5) -> 117 | DA89: =INDEX('Données transport emballage'!$4:$19,MATCH('Calcul tarif Truf_JDR'!AB89,'Données transport emballage'!$M$4:$M$19,0),MATCH('Calcul tarif Truf_JDR'!AR89,'Données transport emballage'!$2:$2,0)+8) -> 135 | DB89: 5.7 | DC89: 4.5 | DD89: 1.2 | DE89: =#REF!*$DE$1 ->  | DF89: =#REF!*$DF$1 ->  | DG89: =#REF!*$DG$1 ->  | DH89: =#REF!*$DH$1 ->  | DJ89: 5.7 | DK89: 4.5 | DL89: 1.2 | DM89: 0 | DN89: 0 | DO89: 0 | DP89: 0 | DQ89: 18.7 | DR89: 5.7 | DS89: 4.5 | DT89: 1.2 | DU89: 1.025 | DV89: 0.5125 | DW89: 0.5125 | DX89: 0.3075 | DY89: 19.7575 | DZ89: 5.7 | EA89: 4.5 | EB89: 1.2 | EC89: 1.3575 | ED89: 0.543 | EE89: 0 | EF89: 0.2715 | EG89: 20.872 | EH89: 5.1 | EI89: 3.9 | EJ89: 1.2 | EK89: 0 | EL89: 0 | EM89: 0 | EN89: 0 | EO89: 18.1 | EP89: 5.1 | EQ89: 3.9 | ER89: 1.2 | ES89: 1.2775 | ET89: 0.511 | EU89: 0 | EV89: 0.2555 | EW89: 20.144
A90: 3834000057606 | B90: 5760 | C90: AGAVE | D90: filifera | F90: SUCC | G90: Succulentes | H90: DIS | I90: dispo | J90: 037 | K90: 25 | L90: 023 | M90: 10L | X90: A10 | Y90: AA10 | Z90: UNI | AA90: 1 | AB90: VRA | AC90: Vrac | AD90: 1 | AE90: ML | AF90: 148.148 | AG90: CAM | AH90: 13.5 | AI90: 1999.998 | AJ90: 3 | AK90: 11.7 | AP90: FV | AQ90: Ferriol Viveros | AR90: 20 | AS90: FERRIOL VIVEROS | BH90: 13 | BK90: 1 | BQ90: 21.05 | BR90: 21.05 | BS90: 0 | BT90: 20.15 | BU90: 20.15 | BV90: 0 | BW90: 21.05 | BX90: 21.05 | BY90: 0 | BZ90: 20.15 | CA90: 20.15 | CB90: 0 | CE90: 0 | CF90: 20.5 | CG90: 1.317692431 | CH90: 1.266683144 | CI90: 1.3 | CJ90: 21.05 | CK90: 1.300667326 | CL90: 0.07363420428 | CM90: 0 | CN90: 0 | CO90: 19.5 | CP90: 1.327976028 | CR90: 0 | CS90: 1.20 | CT90: 20.15 | CU90: 1.27033161 | CV90: 18.45 | CW90: 0.03225806452 | CX90: 1999.998 | CY90: =INDEX('Données transport emballage'!$4:$19,MATCH('Calcul tarif Truf_JDR'!AB90,'Données transport emballage'!$M$4:$M$19,0),MATCH('Calcul tarif Truf_JDR'!AR90,'Données transport emballage'!$2:$2,0)+2) -> 0 | CZ90: =INDEX('Données transport emballage'!$4:$19,MATCH('Calcul tarif Truf_JDR'!AB90,'Données transport emballage'!$M$4:$M$19,0),MATCH('Calcul tarif Truf_JDR'!AR90,'Données transport emballage'!$2:$2,0)+5) -> 2400 | DA90: =INDEX('Données transport emballage'!$4:$19,MATCH('Calcul tarif Truf_JDR'!AB90,'Données transport emballage'!$M$4:$M$19,0),MATCH('Calcul tarif Truf_JDR'!AR90,'Données transport emballage'!$2:$2,0)+8) -> 2900 | DB90: 1.5 | DC90: 1.5 | DD90: 0 | DE90: =#REF!*$DE$1 ->  | DF90: =#REF!*$DF$1 ->  | DG90: =#REF!*$DG$1 ->  | DH90: =#REF!*$DH$1 ->  | DJ90: 1.5 | DK90: 1.5 | DL90: 0 | DM90: 0 | DN90: 0 | DO90: 0 | DP90: 0 | DQ90: 14.5 | DR90: 1.5 | DS90: 1.5 | DT90: 0 | DU90: 1.025 | DV90: 0.5125 | DW90: 0.5125 | DX90: 0.3075 | DY90: 15.5575 | DZ90: 1.5 | EA90: 1.5 | EB90: 0 | EC90: 1.0525 | ED90: 0.421 | EE90: 0 | EF90: 0.2105 | EG90: 16.184 | EH90: 1.25 | EI90: 1.25 | EJ90: 0 | EK90: 0 | EL90: 0 | EM90: 0 | EN90: 0 | EO90: 14.25 | EP90: 1.25 | EQ90: 1.25 | ER90: 0 | ES90: 1.0075 | ET90: 0.403 | EU90: 0 | EV90: 0.2015 | EW90: 15.862
A91: 3834000057613 | B91: 5761 | C91: AGAVE | D91: lechuguilla | F91: SUCC | G91: Succulentes | H91: DIS | I91: dispo | J91: 037 | K91: 25 | L91: 023 | M91: 10L | X91: A10 | Y91: AA10 | Z91: UNI | AA91: 10 | AB91: PE8 | AC91: Palette étages 80 x 120 | AD91: 3 | AE91: ML | AF91: 2 | AG91: CAM | AH91: 13 | AI91: 780 | AJ91: 3 | AK91: 11.7 | AP91: FV | AQ91: Ferriol Viveros | AR91: 20 | AS91: FERRIOL VIVEROS | BH91: 13 | BK91: 0 | BQ91: 27.15 | BR91: 27.15 | BS91: 0 | BT91: 25.55 | BU91: 25.55 | BV91: 0 | BW91: 27.15 | BX91: 27.15 | BY91: 0 | BZ91: 25.55 | CA91: 25.55 | CB91: 0 | CE91: 0 | CF91: 20.5 | CG91: 1.037580666 | CH91: 0.9821770793 | CI91: 1.3 | CJ91: 27.15 | CK91: 1.300785742 | CL91: 0.2817679558 | CM91: 0 | CN91: 0 | CO91: 19.5 | CP91: 1.191057904 | CR91: 0 | CS91: 1.20 | CT91: 25.55 | CU91: 1.268367752 | CV91: 18.45 | CW91: 0.2367906067 | CX91: 780 | CY91: =INDEX('Données transport emballage'!$4:$19,MATCH('Calcul tarif Truf_JDR'!AB91,'Données transport emballage'!$M$4:$M$19,0),MATCH('Calcul tarif Truf_JDR'!AR91,'Données transport emballage'!$2:$2,0)+2) -> 35 | CZ91: =INDEX('Données transport emballage'!$4:$19,MATCH('Calcul tarif Truf_JDR'!AB91,'Données transport emballage'!$M$4:$M$19,0),MATCH('Calcul tarif Truf_JDR'!AR91,'Données transport emballage'!$2:$2,0)+5) -> 117 | DA91: =INDEX('Données transport emballage'!$4:$19,MATCH('Calcul tarif Truf_JDR'!AB91,'Données transport emballage'!$M$4:$M$19,0),MATCH('Calcul tarif Truf_JDR'!AR91,'Données transport emballage'!$2:$2,0)+8) -> 135 | DB91: 5.7 | DC91: 4.5 | DD91: 1.2 | DE91: =#REF!*$DE$1 ->  | DF91: =#REF!*$DF$1 ->  | DG91: =#REF!*$DG$1 ->  | DH91: =#REF!*$DH$1 ->  | DJ91: 5.7 | DK91: 4.5 | DL91: 1.2 | DM91: 0 | DN91: 0 | DO91: 0 | DP91: 0 | DQ91: 18.7 | DR91: 5.7 | DS91: 4.5 | DT91: 1.2 | DU91: 1.025 | DV91: 0.5125 | DW91: 0.5125 | DX91: 0.3075 | DY91: 19.7575 | DZ91: 5.7 | EA91: 4.5 | EB91: 1.2 | EC91: 1.3575 | ED91: 0.543 | EE91: 0 | EF91: 0.2715 | EG91: 20.872 | EH91: 5.1 | EI91: 3.9 | EJ91: 1.2 | EK91: 0 | EL91: 0 | EM91: 0 | EN91: 0 | EO91: 18.1 | EP91: 5.1 | EQ91: 3.9 | ER91: 1.2 | ES91: 1.2775 | ET91: 0.511 | EU91: 0 | EV91: 0.2555 | EW91: 20.144
A92: 3834000057613 | B92: 5761 | C92: AGAVE | D92: lechuguilla | F92: SUCC | G92: Succulentes | H92: DIS | I92: dispo | J92: 037 | K92: 25 | L92: 023 | M92: 10L | X92: A10 | Y92: AA10 | Z92: UNI | AA92: 1 | AB92: VRA | AC92: Vrac | AD92: 1 | AE92: ML | AF92: 148.148 | AG92: CAM | AH92: 13.5 | AI92: 1999.998 | AJ92: 3 | AK92: 11.7 | AP92: FV | AQ92: Ferriol Viveros | AR92: 20 | AS92: FERRIOL VIVEROS | BH92: 13 | BK92: 1 | BQ92: 21.05 | BR92: 21.05 | BS92: 0 | BT92: 20.15 | BU92: 20.15 | BV92: 0 | BW92: 21.05 | BX92: 21.05 | BY92: 0 | BZ92: 20.15 | CA92: 20.15 | CB92: 0 | CE92: 0 | CF92: 20.5 | CG92: 1.317692431 | CH92: 1.266683144 | CI92: 1.3 | CJ92: 21.05 | CK92: 1.300667326 | CL92: 0.07363420428 | CM92: 0 | CN92: 0 | CO92: 19.5 | CP92: 1.327976028 | CR92: 0 | CS92: 1.20 | CT92: 20.15 | CU92: 1.27033161 | CV92: 18.45 | CW92: 0.03225806452 | CX92: 1999.998 | CY92: =INDEX('Données transport emballage'!$4:$19,MATCH('Calcul tarif Truf_JDR'!AB92,'Données transport emballage'!$M$4:$M$19,0),MATCH('Calcul tarif Truf_JDR'!AR92,'Données transport emballage'!$2:$2,0)+2) -> 0 | CZ92: =INDEX('Données transport emballage'!$4:$19,MATCH('Calcul tarif Truf_JDR'!AB92,'Données transport emballage'!$M$4:$M$19,0),MATCH('Calcul tarif Truf_JDR'!AR92,'Données transport emballage'!$2:$2,0)+5) -> 2400 | DA92: =INDEX('Données transport emballage'!$4:$19,MATCH('Calcul tarif Truf_JDR'!AB92,'Données transport emballage'!$M$4:$M$19,0),MATCH('Calcul tarif Truf_JDR'!AR92,'Données transport emballage'!$2:$2,0)+8) -> 2900 | DB92: 1.5 | DC92: 1.5 | DD92: 0 | DE92: =#REF!*$DE$1 ->  | DF92: =#REF!*$DF$1 ->  | DG92: =#REF!*$DG$1 ->  | DH92: =#REF!*$DH$1 ->  | DJ92: 1.5 | DK92: 1.5 | DL92: 0 | DM92: 0 | DN92: 0 | DO92: 0 | DP92: 0 | DQ92: 14.5 | DR92: 1.5 | DS92: 1.5 | DT92: 0 | DU92: 1.025 | DV92: 0.5125 | DW92: 0.5125 | DX92: 0.3075 | DY92: 15.5575 | DZ92: 1.5 | EA92: 1.5 | EB92: 0 | EC92: 1.0525 | ED92: 0.421 | EE92: 0 | EF92: 0.2105 | EG92: 16.184 | EH92: 1.25 | EI92: 1.25 | EJ92: 0 | EK92: 0 | EL92: 0 | EM92: 0 | EN92: 0 | EO92: 14.25 | EP92: 1.25 | EQ92: 1.25 | ER92: 0 | ES92: 1.0075 | ET92: 0.403 | EU92: 0 | EV92: 0.2015 | EW92: 15.862
A93: 3834000057620 | B93: 5762 | C93: AGAVE | D93: fourcroydes | F93: SUCC | G93: Succulentes | H93: NDI | I93: non dispo | J93: 037 | K93: 25 | L93: 023 | M93: 10L | X93: A10 | Y93: AA10 | Z93: UNI | AA93: 10 | AB93: PE8 | AC93: Palette étages 80 x 120 | AD93: 3 | AE93: ML | AF93: 2 | AG93: CAM | AH93: 13 | AI93: 780 | AJ93: 3 | AK93: 11.7 | AP93: FV | AQ93: Ferriol Viveros | AR93: 20 | AS93: FERRIOL VIVEROS | BH93: 13 | BK93: 0 | BQ93: 27.15 | BR93: 27.15 | BS93: 0 | BT93: 25.55 | BU93: 25.55 | BV93: 0 | BW93: 27.15 | BX93: 27.15 | BY93: 0 | BZ93: 25.55 | CA93: 25.55 | CB93: 0 | CE93: 0 | CF93: 20.5 | CG93: 1.037580666 | CH93: 0.9821770793 | CI93: 1.3 | CJ93: 27.15 | CK93: 1.300785742 | CL93: 0.2817679558 | CM93: 0 | CN93: 0 | CO93: 19.5 | CP93: 1.191057904 | CR93: 0 | CS93: 1.20 | CT93: 25.55 | CU93: 1.268367752 | CV93: 18.45 | CW93: 0.2367906067 | CX93: 780 | CY93: =INDEX('Données transport emballage'!$4:$19,MATCH('Calcul tarif Truf_JDR'!AB93,'Données transport emballage'!$M$4:$M$19,0),MATCH('Calcul tarif Truf_JDR'!AR93,'Données transport emballage'!$2:$2,0)+2) -> 35 | CZ93: =INDEX('Données transport emballage'!$4:$19,MATCH('Calcul tarif Truf_JDR'!AB93,'Données transport emballage'!$M$4:$M$19,0),MATCH('Calcul tarif Truf_JDR'!AR93,'Données transport emballage'!$2:$2,0)+5) -> 117 | DA93: =INDEX('Données transport emballage'!$4:$19,MATCH('Calcul tarif Truf_JDR'!AB93,'Données transport emballage'!$M$4:$M$19,0),MATCH('Calcul tarif Truf_JDR'!AR93,'Données transport emballage'!$2:$2,0)+8) -> 135 | DB93: 5.7 | DC93: 4.5 | DD93: 1.2 | DE93: =#REF!*$DE$1 ->  | DF93: =#REF!*$DF$1 ->  | DG93: =#REF!*$DG$1 ->  | DH93: =#REF!*$DH$1 ->  | DJ93: 5.7 | DK93: 4.5 | DL93: 1.2 | DM93: 0 | DN93: 0 | DO93: 0 | DP93: 0 | DQ93: 18.7 | DR93: 5.7 | DS93: 4.5 | DT93: 1.2 | DU93: 1.025 | DV93: 0.5125 | DW93: 0.5125 | DX93: 0.3075 | DY93: 19.7575 | DZ93: 5.7 | EA93: 4.5 | EB93: 1.2 | EC93: 1.3575 | ED93: 0.543 | EE93: 0 | EF93: 0.2715 | EG93: 20.872 | EH93: 5.1 | EI93: 3.9 | EJ93: 1.2 | EK93: 0 | EL93: 0 | EM93: 0 | EN93: 0 | EO93: 18.1 | EP93: 5.1 | EQ93: 3.9 | ER93: 1.2 | ES93: 1.2775 | ET93: 0.511 | EU93: 0 | EV93: 0.2555 | EW93: 20.144
A94: 3834000057620 | B94: 5762 | C94: AGAVE | D94: fourcroydes | F94: SUCC | G94: Succulentes | H94: NDI | I94: non dispo | J94: 037 | K94: 25 | L94: 023 | M94: 10L | X94: A10 | Y94: AA10 | Z94: UNI | AA94: 1 | AB94: VRA | AC94: Vrac | AD94: 1 | AE94: ML | AF94: 148.148 | AG94: CAM | AH94: 13.5 | AI94: 1999.998 | AJ94: 3 | AK94: 11.7 | AP94: FV | AQ94: Ferriol Viveros | AR94: 20 | AS94: FERRIOL VIVEROS | BH94: 13 | BK94: 1 | BQ94: 21.05 | BR94: 21.05 | BS94: 0 | BT94: 20.15 | BU94: 20.15 | BV94: 0 | BW94: 21.05 | BX94: 21.05 | BY94: 0 | BZ94: 20.15 | CA94: 20.15 | CB94: 0 | CE94: 0 | CF94: 20.5 | CG94: 1.317692431 | CH94: 1.266683144 | CI94: 1.3 | CJ94: 21.05 | CK94: 1.300667326 | CL94: 0.07363420428 | CM94: 0 | CN94: 0 | CO94: 19.5 | CP94: 1.327976028 | CR94: 0 | CS94: 1.20 | CT94: 20.15 | CU94: 1.27033161 | CV94: 18.45 | CW94: 0.03225806452 | CX94: 1999.998 | CY94: =INDEX('Données transport emballage'!$4:$19,MATCH('Calcul tarif Truf_JDR'!AB94,'Données transport emballage'!$M$4:$M$19,0),MATCH('Calcul tarif Truf_JDR'!AR94,'Données transport emballage'!$2:$2,0)+2) -> 0 | CZ94: =INDEX('Données transport emballage'!$4:$19,MATCH('Calcul tarif Truf_JDR'!AB94,'Données transport emballage'!$M$4:$M$19,0),MATCH('Calcul tarif Truf_JDR'!AR94,'Données transport emballage'!$2:$2,0)+5) -> 2400 | DA94: =INDEX('Données transport emballage'!$4:$19,MATCH('Calcul tarif Truf_JDR'!AB94,'Données transport emballage'!$M$4:$M$19,0),MATCH('Calcul tarif Truf_JDR'!AR94,'Données transport emballage'!$2:$2,0)+8) -> 2900 | DB94: 1.5 | DC94: 1.5 | DD94: 0 | DE94: =#REF!*$DE$1 ->  | DF94: =#REF!*$DF$1 ->  | DG94: =#REF!*$DG$1 ->  | DH94: =#REF!*$DH$1 ->  | DJ94: 1.5 | DK94: 1.5 | DL94: 0 | DM94: 0 | DN94: 0 | DO94: 0 | DP94: 0 | DQ94: 14.5 | DR94: 1.5 | DS94: 1.5 | DT94: 0 | DU94: 1.025 | DV94: 0.5125 | DW94: 0.5125 | DX94: 0.3075 | DY94: 15.5575 | DZ94: 1.5 | EA94: 1.5 | EB94: 0 | EC94: 1.0525 | ED94: 0.421 | EE94: 0 | EF94: 0.2105 | EG94: 16.184 | EH94: 1.25 | EI94: 1.25 | EJ94: 0 | EK94: 0 | EL94: 0 | EM94: 0 | EN94: 0 | EO94: 14.25 | EP94: 1.25 | EQ94: 1.25 | ER94: 0 | ES94: 1.0075 | ET94: 0.403 | EU94: 0 | EV94: 0.2015 | EW94: 15.862
A95: 3834000057637 | B95: 5763 | C95: AGAVE | D95: mediopicta | F95: SUCC | G95: Succulentes | H95: DIS | I95: dispo | J95: 049 | K95: 30 | L95: 029 | M95: 15L | X95: A15 | Y95: AA15 | Z95: UNI | AA95: 8 | AB95: PE8 | AC95: Palette étages 80 x 120 | AD95: 3 | AE95: ML | AF95: 2 | AG95: CAM | AH95: 13 | AI95: 624 | AJ95: 3 | AK95: 14.4 | AP95: FV | AQ95: Ferriol Viveros | AR95: 20 | AS95: FERRIOL VIVEROS | BH95: 16 | BK95: 0 | BQ95: 33.6 | BR95: 33.6 | BS95: 0 | BT95: 31.65 | BU95: 31.65 | BV95: 0 | BW95: 33.6 | BX95: 33.6 | BY95: 0 | BZ95: 31.65 | CA95: 31.65 | CB95: 0 | CE95: 0 | CF95: 25.75 | CG95: 1.050538018 | CH95: 0.9965941636 | CI95: 1.3 | CJ95: 33.6 | CK95: 1.300410248 | CL95: 0.2857142857 | CM95: 0 | CN95: 0 | CO95: 24 | CP95: 1.188825045 | CR95: 0 | CS95: 1.20 | CT95: 31.65 | CU95: 1.269452912 | CV95: 23.175 | CW95: 0.2417061611 | CX95: 624 | CY95: =INDEX('Données transport emballage'!$4:$19,MATCH('Calcul tarif Truf_JDR'!AB95,'Données transport emballage'!$M$4:$M$19,0),MATCH('Calcul tarif Truf_JDR'!AR95,'Données transport emballage'!$2:$2,0)+2) -> 35 | CZ95: =INDEX('Données transport emballage'!$4:$19,MATCH('Calcul tarif Truf_JDR'!AB95,'Données transport emballage'!$M$4:$M$19,0),MATCH('Calcul tarif Truf_JDR'!AR95,'Données transport emballage'!$2:$2,0)+5) -> 117 | DA95: =INDEX('Données transport emballage'!$4:$19,MATCH('Calcul tarif Truf_JDR'!AB95,'Données transport emballage'!$M$4:$M$19,0),MATCH('Calcul tarif Truf_JDR'!AR95,'Données transport emballage'!$2:$2,0)+8) -> 135 | DB95: 7.15 | DC95: 5.65 | DD95: 1.5 | DE95: =#REF!*$DE$1 ->  | DF95: =#REF!*$DF$1 ->  | DG95: =#REF!*$DG$1 ->  | DH95: =#REF!*$DH$1 ->  | DJ95: 7.15 | DK95: 5.65 | DL95: 1.5 | DM95: 0 | DN95: 0 | DO95: 0 | DP95: 0 | DQ95: 23.15 | DR95: 7.15 | DS95: 5.65 | DT95: 1.5 | DU95: 1.2875 | DV95: 0.64375 | DW95: 0.64375 | DX95: 0.38625 | DY95: 24.51125 | DZ95: 7.15 | EA95: 5.65 | EB95: 1.5 | EC95: 1.68 | ED95: 0.672 | EE95: 0 | EF95: 0.336 | EG95: 25.838 | EH95: 6.4 | EI95: 4.9 | EJ95: 1.5 | EK95: 0 | EL95: 0 | EM95: 0 | EN95: 0 | EO95: 22.4 | EP95: 6.4 | EQ95: 4.9 | ER95: 1.5 | ES95: 1.5825 | ET95: 0.633 | EU95: 0 | EV95: 0.3165 | EW95: 24.932
A96: 3834000057637 | B96: 5763 | C96: AGAVE | D96: mediopicta | F96: SUCC | G96: Succulentes | H96: DIS | I96: dispo | J96: 049 | K96: 30 | L96: 029 | M96: 15L | X96: A15 | Y96: AA15 | Z96: UNI | AA96: 1 | AB96: VRA | AC96: Vrac | AD96: 1 | AE96: ML | AF96: 96.444 | AG96: CAM | AH96: 13.5 | AI96: 1301.994 | AJ96: 3 | AK96: 14.4 | AP96: FV | AQ96: Ferriol Viveros | AR96: 20 | AS96: FERRIOL VIVEROS | BH96: 16 | BK96: 1 | BQ96: 26.5 | BR96: 26.5 | BS96: 0 | BT96: 25.2 | BU96: 25.2 | BV96: 0 | BW96: 26.5 | BX96: 26.5 | BY96: 0 | BZ96: 25.2 | CA96: 25.2 | CB96: 0 | CE96: 0 | CF96: 25.75 | CG96: 1.313021862 | CH96: 1.264113893 | CI96: 1.3 | CJ96: 26.5 | CK96: 1.300932744 | CL96: 0.09433962264 | CM96: 0 | CN96: 0 | CO96: 24 | CP96: 1.324503311 | CR96: 0 | CS96: 1.20 | CT96: 25.2 | CU96: 1.268498943 | CV96: 23.175 | CW96: 0.04761904762 | CX96: 1301.994 | CY96: =INDEX('Données transport emballage'!$4:$19,MATCH('Calcul tarif Truf_JDR'!AB96,'Données transport emballage'!$M$4:$M$19,0),MATCH('Calcul tarif Truf_JDR'!AR96,'Données transport emballage'!$2:$2,0)+2) -> 0 | CZ96: =INDEX('Données transport emballage'!$4:$19,MATCH('Calcul tarif Truf_JDR'!AB96,'Données transport emballage'!$M$4:$M$19,0),MATCH('Calcul tarif Truf_JDR'!AR96,'Données transport emballage'!$2:$2,0)+5) -> 2400 | DA96: =INDEX('Données transport emballage'!$4:$19,MATCH('Calcul tarif Truf_JDR'!AB96,'Données transport emballage'!$M$4:$M$19,0),MATCH('Calcul tarif Truf_JDR'!AR96,'Données transport emballage'!$2:$2,0)+8) -> 2900 | DB96: 2.25 | DC96: 2.25 | DD96: 0 | DE96: =#REF!*$DE$1 ->  | DF96: =#REF!*$DF$1 ->  | DG96: =#REF!*$DG$1 ->  | DH96: =#REF!*$DH$1 ->  | DJ96: 2.25 | DK96: 2.25 | DL96: 0 | DM96: 0 | DN96: 0 | DO96: 0 | DP96: 0 | DQ96: 18.25 | DR96: 2.25 | DS96: 2.25 | DT96: 0 | DU96: 1.2875 | DV96: 0.64375 | DW96: 0.64375 | DX96: 0.38625 | DY96: 19.61125 | DZ96: 2.25 | EA96: 2.25 | EB96: 0 | EC96: 1.325 | ED96: 0.53 | EE96: 0 | EF96: 0.265 | EG96: 20.37 | EH96: 1.85 | EI96: 1.85 | EJ96: 0 | EK96: 0 | EL96: 0 | EM96: 0 | EN96: 0 | EO96: 17.85 | EP96: 1.85 | EQ96: 1.85 | ER96: 0 | ES96: 1.26 | ET96: 0.504 | EU96: 0 | EV96: 0.252 | EW96: 19.866
A97: 3834000057644 | B97: 5764 | C97: AGAVE | D97: decipiens | F97: SUCC | G97: Succulentes | H97: DIS | I97: dispo | J97: 049 | K97: 30 | L97: 029 | M97: 15L | X97: A15 | Y97: AA15 | Z97: UNI | AA97: 8 | AB97: PE8 | AC97: Palette étages 80 x 120 | AD97: 3 | AE97: ML | AF97: 2 | AG97: CAM | AH97: 13 | AI97: 624 | AJ97: 3 | AK97: 14.4 | AP97: FV | AQ97: Ferriol Viveros | AR97: 20 | AS97: FERRIOL VIVEROS | BH97: 16 | BK97: 0 | BQ97: 33.6 | BR97: 33.6 | BS97: 0 | BT97: 31.65 | BU97: 31.65 | BV97: 0 | BW97: 33.6 | BX97: 33.6 | BY97: 0 | BZ97: 31.65 | CA97: 31.65 | CB97: 0 | CE97: 0 | CF97: 25.75 | CG97: 1.050538018 | CH97: 0.9965941636 | CI97: 1.3 | CJ97: 33.6 | CK97: 1.300410248 | CL97: 0.2857142857 | CM97: 0 | CN97: 0 | CO97: 24 | CP97: 1.188825045 | CR97: 0 | CS97: 1.20 | CT97: 31.65 | CU97: 1.269452912 | CV97: 23.175 | CW97: 0.2417061611 | CX97: 624 | CY97: =INDEX('Données transport emballage'!$4:$19,MATCH('Calcul tarif Truf_JDR'!AB97,'Données transport emballage'!$M$4:$M$19,0),MATCH('Calcul tarif Truf_JDR'!AR97,'Données transport emballage'!$2:$2,0)+2) -> 35 | CZ97: =INDEX('Données transport emballage'!$4:$19,MATCH('Calcul tarif Truf_JDR'!AB97,'Données transport emballage'!$M$4:$M$19,0),MATCH('Calcul tarif Truf_JDR'!AR97,'Données transport emballage'!$2:$2,0)+5) -> 117 | DA97: =INDEX('Données transport emballage'!$4:$19,MATCH('Calcul tarif Truf_JDR'!AB97,'Données transport emballage'!$M$4:$M$19,0),MATCH('Calcul tarif Truf_JDR'!AR97,'Données transport emballage'!$2:$2,0)+8) -> 135 | DB97: 7.15 | DC97: 5.65 | DD97: 1.5 | DE97: =#REF!*$DE$1 ->  | DF97: =#REF!*$DF$1 ->  | DG97: =#REF!*$DG$1 ->  | DH97: =#REF!*$DH$1 ->  | DJ97: 7.15 | DK97: 5.65 | DL97: 1.5 | DM97: 0 | DN97: 0 | DO97: 0 | DP97: 0 | DQ97: 23.15 | DR97: 7.15 | DS97: 5.65 | DT97: 1.5 | DU97: 1.2875 | DV97: 0.64375 | DW97: 0.64375 | DX97: 0.38625 | DY97: 24.51125 | DZ97: 7.15 | EA97: 5.65 | EB97: 1.5 | EC97: 1.68 | ED97: 0.672 | EE97: 0 | EF97: 0.336 | EG97: 25.838 | EH97: 6.4 | EI97: 4.9 | EJ97: 1.5 | EK97: 0 | EL97: 0 | EM97: 0 | EN97: 0 | EO97: 22.4 | EP97: 6.4 | EQ97: 4.9 | ER97: 1.5 | ES97: 1.5825 | ET97: 0.633 | EU97: 0 | EV97: 0.3165 | EW97: 24.932
A98: 3834000057644 | B98: 5764 | C98: AGAVE | D98: decipiens | F98: SUCC | G98: Succulentes | H98: DIS | I98: dispo | J98: 049 | K98: 30 | L98: 029 | M98: 15L | X98: A15 | Y98: AA15 | Z98: UNI | AA98: 1 | AB98: VRA | AC98: Vrac | AD98: 1 | AE98: ML | AF98: 96.444 | AG98: CAM | AH98: 13.5 | AI98: 1301.994 | AJ98: 3 | AK98: 14.4 | AP98: FV | AQ98: Ferriol Viveros | AR98: 20 | AS98: FERRIOL VIVEROS | BH98: 16 | BK98: 1 | BQ98: 26.5 | BR98: 26.5 | BS98: 0 | BT98: 25.2 | BU98: 25.2 | BV98: 0 | BW98: 26.5 | BX98: 26.5 | BY98: 0 | BZ98: 25.2 | CA98: 25.2 | CB98: 0 | CE98: 0 | CF98: 25.75 | CG98: 1.313021862 | CH98: 1.264113893 | CI98: 1.3 | CJ98: 26.5 | CK98: 1.300932744 | CL98: 0.09433962264 | CM98: 0 | CN98: 0 | CO98: 24 | CP98: 1.324503311 | CR98: 0 | CS98: 1.20 | CT98: 25.2 | CU98: 1.268498943 | CV98: 23.175 | CW98: 0.04761904762 | CX98: 1301.994 | CY98: =INDEX('Données transport emballage'!$4:$19,MATCH('Calcul tarif Truf_JDR'!AB98,'Données transport emballage'!$M$4:$M$19,0),MATCH('Calcul tarif Truf_JDR'!AR98,'Données transport emballage'!$2:$2,0)+2) -> 0 | CZ98: =INDEX('Données transport emballage'!$4:$19,MATCH('Calcul tarif Truf_JDR'!AB98,'Données transport emballage'!$M$4:$M$19,0),MATCH('Calcul tarif Truf_JDR'!AR98,'Données transport emballage'!$2:$2,0)+5) -> 2400 | DA98: =INDEX('Données transport emballage'!$4:$19,MATCH('Calcul tarif Truf_JDR'!AB98,'Données transport emballage'!$M$4:$M$19,0),MATCH('Calcul tarif Truf_JDR'!AR98,'Données transport emballage'!$2:$2,0)+8) -> 2900 | DB98: 2.25 | DC98: 2.25 | DD98: 0 | DE98: =#REF!*$DE$1 ->  | DF98: =#REF!*$DF$1 ->  | DG98: =#REF!*$DG$1 ->  | DH98: =#REF!*$DH$1 ->  | DJ98: 2.25 | DK98: 2.25 | DL98: 0 | DM98: 0 | DN98: 0 | DO98: 0 | DP98: 0 | DQ98: 18.25 | DR98: 2.25 | DS98: 2.25 | DT98: 0 | DU98: 1.2875 | DV98: 0.64375 | DW98: 0.64375 | DX98: 0.38625 | DY98: 19.61125 | DZ98: 2.25 | EA98: 2.25 | EB98: 0 | EC98: 1.325 | ED98: 0.53 | EE98: 0 | EF98: 0.265 | EG98: 20.37 | EH98: 1.85 | EI98: 1.85 | EJ98: 0 | EK98: 0 | EL98: 0 | EM98: 0 | EN98: 0 | EO98: 17.85 | EP98: 1.85 | EQ98: 1.85 | ER98: 0 | ES98: 1.26 | ET98: 0.504 | EU98: 0 | EV98: 0.252 | EW98: 19.866
A99: 3834000057651 | B99: 5765 | C99: AGAVE | D99: attenuata | F99: SUCC | G99: Succulentes | H99: DIS | I99: dispo | J99: 049 | K99: 30 | L99: 029 | M99: 15L | X99: A15 | Y99: AA15 | Z99: UNI | AA99: 8 | AB99: PE8 | AC99: Palette étages 80 x 120 | AD99: 3 | AE99: ML | AF99: 2 | AG99: CAM | AH99: 13 | AI99: 624 | AJ99: 3 | AK99: 14.4 | AP99: FV | AQ99: Ferriol Viveros | AR99: 20 | AS99: FERRIOL VIVEROS | BH99: 16 | BK99: 0 | BN99: =INDEX(TarifTruffautSudT14,MATCH(B99,CodeTarifTruffautSudT14,0)) ->  | BO99: =INDEX(TarifTruffautNordT13,MATCH(B99,CodeTarifTruffautNordT13,0)) ->  | BQ99: 33.6 | BR99: 33.6 | BS99: 0 | BT99: 31.65 | BU99: 31.65 | BV99: 0 | BW99: 33.6 | BX99: 33.6 | BY99: 0 | BZ99: 31.65 | CA99: 31.65 | CB99: 0 | CE99: 0 | CF99: 25.75 | CG99: 1.050538018 | CH99: 0.9965941636 | CI99: 1.3 | CJ99: 33.6 | CK99: 1.300410248 | CL99: 0.2857142857 | CM99: 0 | CN99: 0 | CO99: 24 | CP99: 1.188825045 | CR99: 0 | CS99: 1.20 | CT99: 31.65 | CU99: 1.269452912 | CV99: 23.175 | CW99: 0.2417061611 | CX99: 624 | CY99: =INDEX('Données transport emballage'!$4:$19,MATCH('Calcul tarif Truf_JDR'!AB99,'Données transport emballage'!$M$4:$M$19,0),MATCH('Calcul tarif Truf_JDR'!AR99,'Données transport emballage'!$2:$2,0)+2) -> 35 | CZ99: =INDEX('Données transport emballage'!$4:$19,MATCH('Calcul tarif Truf_JDR'!AB99,'Données transport emballage'!$M$4:$M$19,0),MATCH('Calcul tarif Truf_JDR'!AR99,'Données transport emballage'!$2:$2,0)+5) -> 117 | DA99: =INDEX('Données transport emballage'!$4:$19,MATCH('Calcul tarif Truf_JDR'!AB99,'Données transport emballage'!$M$4:$M$19,0),MATCH('Calcul tarif Truf_JDR'!AR99,'Données transport emballage'!$2:$2,0)+8) -> 135 | DB99: 7.15 | DC99: 5.65 | DD99: 1.5 | DE99: =#REF!*$DE$1 ->  | DF99: =#REF!*$DF$1 ->  | DG99: =#REF!*$DG$1 ->  | DH99: =#REF!*$DH$1 ->  | DJ99: 7.15 | DK99: 5.65 | DL99: 1.5 | DM99: 0 | DN99: 0 | DO99: 0 | DP99: 0 | DQ99: 23.15 | DR99: 7.15 | DS99: 5.65 | DT99: 1.5 | DU99: 1.2875 | DV99: 0.64375 | DW99: 0.64375 | DX99: 0.38625 | DY99: 24.51125 | DZ99: 7.15 | EA99: 5.65 | EB99: 1.5 | EC99: 1.68 | ED99: 0.672 | EE99: 0 | EF99: 0.336 | EG99: 25.838 | EH99: 6.4 | EI99: 4.9 | EJ99: 1.5 | EK99: 0 | EL99: 0 | EM99: 0 | EN99: 0 | EO99: 22.4 | EP99: 6.4 | EQ99: 4.9 | ER99: 1.5 | ES99: 1.5825 | ET99: 0.633 | EU99: 0 | EV99: 0.3165 | EW99: 24.932
A100: 3834000057651 | B100: 5765 | C100: AGAVE | D100: attenuata | F100: SUCC | G100: Succulentes | H100: DIS | I100: dispo | J100: 049 | K100: 30 | L100: 029 | M100: 15L | X100: A15 | Y100: AA15 | Z100: UNI | AA100: 1 | AB100: VRA | AC100: Vrac | AD100: 1 | AE100: ML | AF100: 96.444 | AG100: CAM | AH100: 13.5 | AI100: 1301.994 | AJ100: 3 | AK100: 14.4 | AP100: FV | AQ100: Ferriol Viveros | AR100: 20 | AS100: FERRIOL VIVEROS | BH100: 16 | BK100: 1 | BQ100: 26.5 | BR100: 26.5 | BS100: 0 | BT100: 25.2 | BU100: 25.2 | BV100: 0 | BW100: 26.5 | BX100: 26.5 | BY100: 0 | BZ100: 25.2 | CA100: 25.2 | CB100: 0 | CE100: 0 | CF100: 25.75 | CG100: 1.313021862 | CH100: 1.264113893 | CI100: 1.3 | CJ100: 26.5 | CK100: 1.300932744 | CL100: 0.09433962264 | CM100: 0 | CN100: 0 | CO100: 24 | CP100: 1.324503311 | CR100: 0 | CS100: 1.20 | CT100: 25.2 | CU100: 1.268498943 | CV100: 23.175 | CW100: 0.04761904762 | CX100: 1301.994 | CY100: =INDEX('Données transport emballage'!$4:$19,MATCH('Calcul tarif Truf_JDR'!AB100,'Données transport emballage'!$M$4:$M$19,0),MATCH('Calcul tarif Truf_JDR'!AR100,'Données transport emballage'!$2:$2,0)+2) -> 0 | CZ100: =INDEX('Données transport emballage'!$4:$19,MATCH('Calcul tarif Truf_JDR'!AB100,'Données transport emballage'!$M$4:$M$19,0),MATCH('Calcul tarif Truf_JDR'!AR100,'Données transport emballage'!$2:$2,0)+5) -> 2400 | DA100: =INDEX('Données transport emballage'!$4:$19,MATCH('Calcul tarif Truf_JDR'!AB100,'Données transport emballage'!$M$4:$M$19,0),MATCH('Calcul tarif Truf_JDR'!AR100,'Données transport emballage'!$2:$2,0)+8) -> 2900 | DB100: 2.25 | DC100: 2.25 | DD100: 0 | DE100: =#REF!*$DE$1 ->  | DF100: =#REF!*$DF$1 ->  | DG100: =#REF!*$DG$1 ->  | DH100: =#REF!*$DH$1 ->  | DJ100: 2.25 | DK100: 2.25 | DL100: 0 | DM100: 0 | DN100: 0 | DO100: 0 | DP100: 0 | DQ100: 18.25 | DR100: 2.25 | DS100: 2.25 | DT100: 0 | DU100: 1.2875 | DV100: 0.64375 | DW100: 0.64375 | DX100: 0.38625 | DY100: 19.61125 | DZ100: 2.25 | EA100: 2.25 | EB100: 0 | EC100: 1.325 | ED100: 0.53 | EE100: 0 | EF100: 0.265 | EG100: 20.37 | EH100: 1.85 | EI100: 1.85 | EJ100: 0 | EK100: 0 | EL100: 0 | EM100: 0 | EN100: 0 | EO100: 17.85 | EP100: 1.85 | EQ100: 1.85 | ER100: 0 | ES100: 1.26 | ET100: 0.504 | EU100: 0 | EV100: 0.252 | EW100: 19.866
A101: 3834000057668 | B101: 5766 | C101: AGAVE | D101: mediopicta | F101: SUCC | G101: Succulentes | H101: NDI | I101: non dispo | J101: 066 | K101: 40 | L101: 043 | M101: 40L | X101: A40 | Y101: AD40 | Z101: UNI | AA101: 6 | AB101: PE8 | AC101: Palette étages 80 x 120 | AD101: 2 | AE101: ML | AF101: 2 | AG101: CAM | AH101: 13 | AI101: 312 | AJ101: 3 | AK101: 22.5 | AP101: FV | AQ101: Ferriol Viveros | AR101: 20 | AS101: FERRIOL VIVEROS | BH101: 25 | BK101: 0 | BQ101: 56.9 | BR101: 56.9 | BS101: 0 | BT101: 53.2 | BU101: 53.2 | BV101: 0 | BW101: 56.9 | BX101: 56.9 | BY101: 0 | BZ101: 53.2 | CA101: 53.2 | CB101: 0 | CE101: 0 | CF101: 41.65 | CG101: 1.0038624 | CH101: 0.951956482 | CI101: 1.3 | CJ101: 56.9 | CK101: 1.300511977 | CL101: 0.3409490334 | CM101: 0 | CN101: 0 | CO101: 37.5 | CP101: 1.153775152 | CR101: 0 | CS101: 1.20 | CT101: 53.2 | CU101: 1.267995042 | CV101: 37.485 | CW101: 0.295112782 | CX101: 312 | CY101: =INDEX('Données transport emballage'!$4:$19,MATCH('Calcul tarif Truf_JDR'!AB101,'Données transport emballage'!$M$4:$M$19,0),MATCH('Calcul tarif Truf_JDR'!AR101,'Données transport emballage'!$2:$2,0)+2) -> 35 | CZ101: =INDEX('Données transport emballage'!$4:$19,MATCH('Calcul tarif Truf_JDR'!AB101,'Données transport emballage'!$M$4:$M$19,0),MATCH('Calcul tarif Truf_JDR'!AR101,'Données transport emballage'!$2:$2,0)+5) -> 117 | DA101: =INDEX('Données transport emballage'!$4:$19,MATCH('Calcul tarif Truf_JDR'!AB101,'Données transport emballage'!$M$4:$M$19,0),MATCH('Calcul tarif Truf_JDR'!AR101,'Données transport emballage'!$2:$2,0)+8) -> 135 | DB101: 14.2 | DC101: 11.25 | DD101: 2.95 | DE101: =#REF!*$DE$1 ->  | DF101: =#REF!*$DF$1 ->  | DG101: =#REF!*$DG$1 ->  | DH101: =#REF!*$DH$1 ->  | DJ101: 14.2 | DK101: 11.25 | DL101: 2.95 | DM101: 0 | DN101: 0 | DO101: 0 | DP101: 0 | DQ101: 39.2 | DR101: 14.2 | DS101: 11.25 | DT101: 2.95 | DU101: 2.0825 | DV101: 1.04125 | DW101: 1.04125 | DX101: 0.62475 | DY101: 41.48975 | DZ101: 14.2 | EA101: 11.25 | EB101: 2.95 | EC101: 2.845 | ED101: 1.138 | EE101: 0 | EF101: 0.569 | EG101: 43.752 | EH101: 12.7 | EI101: 9.75 | EJ101: 2.95 | EK101: 0 | EL101: 0 | EM101: 0 | EN101: 0 | EO101: 37.7 | EP101: 12.7 | EQ101: 9.75 | ER101: 2.95 | ES101: 2.66 | ET101: 1.064 | EU101: 0 | EV101: 0.532 | EW101: 41.956
A102: 3834000057668 | B102: 5766 | C102: AGAVE | D102: mediopicta | F102: SUCC | G102: Succulentes | H102: NDI | I102: non dispo | J102: 066 | K102: 40 | L102: 043 | M102: 40L | X102: A40 | Y102: AD40 | Z102: UNI | AA102: 1 | AB102: VRA | AC102: Vrac | AD102: 1 | AE102: ML | AF102: 48.148 | AG102: CAM | AH102: 13.5 | AI102: 649.998 | AJ102: 3 | AK102: 22.5 | AP102: FV | AQ102: Ferriol Viveros | AR102: 20 | AS102: FERRIOL VIVEROS | BH102: 25 | BK102: 1 | BQ102: 42.85 | BR102: 42.85 | BS102: 0 | BT102: 40.5 | BU102: 40.5 | BV102: 0 | BW102: 42.85 | BX102: 42.85 | BY102: 0 | BZ102: 40.5 | CA102: 40.5 | CB102: 0 | CE102: 0 | CF102: 41.65 | CG102: 1.310170731 | CH102: 1.264880952 | CI102: 1.3 | CJ102: 42.85 | CK102: 1.301324101 | CL102: 0.1248541424 | CM102: 0 | CN102: 0 | CO102: 37.5 | CP102: 1.319121992 | CR102: 0 | CS102: 1.20 | CT102: 40.5 | CU102: 1.268002505 | CV102: 37.485 | CW102: 0.07407407407 | CX102: 649.998 | CY102: =INDEX('Données transport emballage'!$4:$19,MATCH('Calcul tarif Truf_JDR'!AB102,'Données transport emballage'!$M$4:$M$19,0),MATCH('Calcul tarif Truf_JDR'!AR102,'Données transport emballage'!$2:$2,0)+2) -> 0 | CZ102: =INDEX('Données transport emballage'!$4:$19,MATCH('Calcul tarif Truf_JDR'!AB102,'Données transport emballage'!$M$4:$M$19,0),MATCH('Calcul tarif Truf_JDR'!AR102,'Données transport emballage'!$2:$2,0)+5) -> 2400 | DA102: =INDEX('Données transport emballage'!$4:$19,MATCH('Calcul tarif Truf_JDR'!AB102,'Données transport emballage'!$M$4:$M$19,0),MATCH('Calcul tarif Truf_JDR'!AR102,'Données transport emballage'!$2:$2,0)+8) -> 2900 | DB102: 4.5 | DC102: 4.5 | DD102: 0 | DE102: =#REF!*$DE$1 ->  | DF102: =#REF!*$DF$1 ->  | DG102: =#REF!*$DG$1 ->  | DH102: =#REF!*$DH$1 ->  | DJ102: 4.5 | DK102: 4.5 | DL102: 0 | DM102: 0 | DN102: 0 | DO102: 0 | DP102: 0 | DQ102: 29.5 | DR102: 4.5 | DS102: 4.5 | DT102: 0 | DU102: 2.0825 | DV102: 1.04125 | DW102: 1.04125 | DX102: 0.62475 | DY102: 31.78975 | DZ102: 4.5 | EA102: 4.5 | EB102: 0 | EC102: 2.1425 | ED102: 0.857 | EE102: 0 | EF102: 0.4285 | EG102: 32.928 | EH102: 3.7 | EI102: 3.7 | EJ102: 0 | EK102: 0 | EL102: 0 | EM102: 0 | EN102: 0 | EO102: 28.7 | EP102: 3.7 | EQ102: 3.7 | ER102: 0 | ES102: 2.025 | ET102: 0.81 | EU102: 0 | EV102: 0.405 | EW102: 31.94
A103: 3834000057675 | B103: 5767 | C103: AGAVE | D103: salmiana | F103: SUCC | G103: Succulentes | H103: NDI | I103: non dispo | J103: 066 | K103: 40 | L103: 043 | M103: 40L | X103: A40 | Y103: AD40 | Z103: UNI | AA103: 6 | AB103: PE8 | AC103: Palette étages 80 x 120 | AD103: 2 | AE103: ML | AF103: 2 | AG103: CAM | AH103: 13 | AI103: 312 | AJ103: 3 | AK103: 22.5 | AP103: FV | AQ103: Ferriol Viveros | AR103: 20 | AS103: FERRIOL VIVEROS | BH103: 25 | BK103: 0 | BQ103: 56.9 | BR103: 56.9 | BS103: 0 | BT103: 53.2 | BU103: 53.2 | BV103: 0 | BW103: 56.9 | BX103: 56.9 | BY103: 0 | BZ103: 53.2 | CA103: 53.2 | CB103: 0 | CE103: 0 | CF103: 41.65 | CG103: 1.0038624 | CH103: 0.951956482 | CI103: 1.3 | CJ103: 56.9 | CK103: 1.300511977 | CL103: 0.3409490334 | CM103: 0 | CN103: 0 | CO103: 37.5 | CP103: 1.153775152 | CR103: 0 | CS103: 1.20 | CT103: 53.2 | CU103: 1.267995042 | CV103: 37.485 | CW103: 0.295112782 | CX103: 312 | CY103: =INDEX('Données transport emballage'!$4:$19,MATCH('Calcul tarif Truf_JDR'!AB103,'Données transport emballage'!$M$4:$M$19,0),MATCH('Calcul tarif Truf_JDR'!AR103,'Données transport emballage'!$2:$2,0)+2) -> 35 | CZ103: =INDEX('Données transport emballage'!$4:$19,MATCH('Calcul tarif Truf_JDR'!AB103,'Données transport emballage'!$M$4:$M$19,0),MATCH('Calcul tarif Truf_JDR'!AR103,'Données transport emballage'!$2:$2,0)+5) -> 117 | DA103: =INDEX('Données transport emballage'!$4:$19,MATCH('Calcul tarif Truf_JDR'!AB103,'Données transport emballage'!$M$4:$M$19,0),MATCH('Calcul tarif Truf_JDR'!AR103,'Données transport emballage'!$2:$2,0)+8) -> 135 | DB103: 14.2 | DC103: 11.25 | DD103: 2.95 | DE103: =#REF!*$DE$1 ->  | DF103: =#REF!*$DF$1 ->  | DG103: =#REF!*$DG$1 ->  | DH103: =#REF!*$DH$1 ->  | DJ103: 14.2 | DK103: 11.25 | DL103: 2.95 | DM103: 0 | DN103: 0 | DO103: 0 | DP103: 0 | DQ103: 39.2 | DR103: 14.2 | DS103: 11.25 | DT103: 2.95 | DU103: 2.0825 | DV103: 1.04125 | DW103: 1.04125 | DX103: 0.62475 | DY103: 41.48975 | DZ103: 14.2 | EA103: 11.25 | EB103: 2.95 | EC103: 2.845 | ED103: 1.138 | EE103: 0 | EF103: 0.569 | EG103: 43.752 | EH103: 12.7 | EI103: 9.75 | EJ103: 2.95 | EK103: 0 | EL103: 0 | EM103: 0 | EN103: 0 | EO103: 37.7 | EP103: 12.7 | EQ103: 9.75 | ER103: 2.95 | ES103: 2.66 | ET103: 1.064 | EU103: 0 | EV103: 0.532 | EW103: 41.956
A104: 3834000057675 | B104: 5767 | C104: AGAVE | D104: salmiana | F104: SUCC | G104: Succulentes | H104: NDI | I104: non dispo | J104: 066 | K104: 40 | L104: 043 | M104: 40L | X104: A40 | Y104: AD40 | Z104: UNI | AA104: 1 | AB104: VRA | AC104: Vrac | AD104: 1 | AE104: ML | AF104: 48.148 | AG104: CAM | AH104: 13.5 | AI104: 649.998 | AJ104: 3 | AK104: 22.5 | AP104: FV | AQ104: Ferriol Viveros | AR104: 20 | AS104: FERRIOL VIVEROS | BH104: 25 | BK104: 1 | BQ104: 42.85 | BR104: 42.85 | BS104: 0 | BT104: 40.5 | BU104: 40.5 | BV104: 0 | BW104: 42.85 | BX104: 42.85 | BY104: 0 | BZ104: 40.5 | CA104: 40.5 | CB104: 0 | CE104: 0 | CF104: 41.65 | CG104: 1.310170731 | CH104: 1.264880952 | CI104: 1.3 | CJ104: 42.85 | CK104: 1.301324101 | CL104: 0.1248541424 | CM104: 0 | CN104: 0 | CO104: 37.5 | CP104: 1.319121992 | CR104: 0 | CS104: 1.20 | CT104: 40.5 | CU104: 1.268002505 | CV104: 37.485 | CW104: 0.07407407407 | CX104: 649.998 | CY104: =INDEX('Données transport emballage'!$4:$19,MATCH('Calcul tarif Truf_JDR'!AB104,'Données transport emballage'!$M$4:$M$19,0),MATCH('Calcul tarif Truf_JDR'!AR104,'Données transport emballage'!$2:$2,0)+2) -> 0 | CZ104: =INDEX('Données transport emballage'!$4:$19,MATCH('Calcul tarif Truf_JDR'!AB104,'Données transport emballage'!$M$4:$M$19,0),MATCH('Calcul tarif Truf_JDR'!AR104,'Données transport emballage'!$2:$2,0)+5) -> 2400 | DA104: =INDEX('Données transport emballage'!$4:$19,MATCH('Calcul tarif Truf_JDR'!AB104,'Données transport emballage'!$M$4:$M$19,0),MATCH('Calcul tarif Truf_JDR'!AR104,'Données transport emballage'!$2:$2,0)+8) -> 2900 | DB104: 4.5 | DC104: 4.5 | DD104: 0 | DE104: =#REF!*$DE$1 ->  | DF104: =#REF!*$DF$1 ->  | DG104: =#REF!*$DG$1 ->  | DH104: =#REF!*$DH$1 ->  | DJ104: 4.5 | DK104: 4.5 | DL104: 0 | DM104: 0 | DN104: 0 | DO104: 0 | DP104: 0 | DQ104: 29.5 | DR104: 4.5 | DS104: 4.5 | DT104: 0 | DU104: 2.0825 | DV104: 1.04125 | DW104: 1.04125 | DX104: 0.62475 | DY104: 31.78975 | DZ104: 4.5 | EA104: 4.5 | EB104: 0 | EC104: 2.1425 | ED104: 0.857 | EE104: 0 | EF104: 0.4285 | EG104: 32.928 | EH104: 3.7 | EI104: 3.7 | EJ104: 0 | EK104: 0 | EL104: 0 | EM104: 0 | EN104: 0 | EO104: 28.7 | EP104: 3.7 | EQ104: 3.7 | ER104: 0 | ES104: 2.025 | ET104: 0.81 | EU104: 0 | EV104: 0.405 | EW104: 31.94
A105: 3834000057682 | B105: 5768 | C105: AGAVE | D105: ferox | F105: SUCC | G105: Succulentes | H105: NDI | I105: non dispo | J105: 066 | K105: 40 | L105: 043 | M105: 40L | X105: A40 | Y105: AD40 | Z105: UNI | AA105: 6 | AB105: PE8 | AC105: Palette étages 80 x 120 | AD105: 2 | AE105: ML | AF105: 2 | AG105: CAM | AH105: 13 | AI105: 312 | AJ105: 3 | AK105: 22.5 | AP105: FV | AQ105: Ferriol Viveros | AR105: 20 | AS105: FERRIOL VIVEROS | BH105: 25 | BK105: 0 | BQ105: 56.9 | BR105: 56.9 | BS105: 0 | BT105: 53.2 | BU105: 53.2 | BV105: 0 | BW105: 56.9 | BX105: 56.9 | BY105: 0 | BZ105: 53.2 | CA105: 53.2 | CB105: 0 | CE105: 0 | CF105: 41.65 | CG105: 1.0038624 | CH105: 0.951956482 | CI105: 1.3 | CJ105: 56.9 | CK105: 1.300511977 | CL105: 0.3409490334 | CM105: 0 | CN105: 0 | CO105: 37.5 | CP105: 1.153775152 | CR105: 0 | CS105: 1.20 | CT105: 53.2 | CU105: 1.267995042 | CV105: 37.485 | CW105: 0.295112782 | CX105: 312 | CY105: =INDEX('Données transport emballage'!$4:$19,MATCH('Calcul tarif Truf_JDR'!AB105,'Données transport emballage'!$M$4:$M$19,0),MATCH('Calcul tarif Truf_JDR'!AR105,'Données transport emballage'!$2:$2,0)+2) -> 35 | CZ105: =INDEX('Données transport emballage'!$4:$19,MATCH('Calcul tarif Truf_JDR'!AB105,'Données transport emballage'!$M$4:$M$19,0),MATCH('Calcul tarif Truf_JDR'!AR105,'Données transport emballage'!$2:$2,0)+5) -> 117 | DA105: =INDEX('Données transport emballage'!$4:$19,MATCH('Calcul tarif Truf_JDR'!AB105,'Données transport emballage'!$M$4:$M$19,0),MATCH('Calcul tarif Truf_JDR'!AR105,'Données transport emballage'!$2:$2,0)+8) -> 135 | DB105: 14.2 | DC105: 11.25 | DD105: 2.95 | DE105: =#REF!*$DE$1 ->  | DF105: =#REF!*$DF$1 ->  | DG105: =#REF!*$DG$1 ->  | DH105: =#REF!*$DH$1 ->  | DJ105: 14.2 | DK105: 11.25 | DL105: 2.95 | DM105: 0 | DN105: 0 | DO105: 0 | DP105: 0 | DQ105: 39.2 | DR105: 14.2 | DS105: 11.25 | DT105: 2.95 | DU105: 2.0825 | DV105: 1.04125 | DW105: 1.04125 | DX105: 0.62475 | DY105: 41.48975 | DZ105: 14.2 | EA105: 11.25 | EB105: 2.95 | EC105: 2.845 | ED105: 1.138 | EE105: 0 | EF105: 0.569 | EG105: 43.752 | EH105: 12.7 | EI105: 9.75 | EJ105: 2.95 | EK105: 0 | EL105: 0 | EM105: 0 | EN105: 0 | EO105: 37.7 | EP105: 12.7 | EQ105: 9.75 | ER105: 2.95 | ES105: 2.66 | ET105: 1.064 | EU105: 0 | EV105: 0.532 | EW105: 41.956
A106: 3834000057682 | B106: 5768 | C106: AGAVE | D106: ferox | F106: SUCC | G106: Succulentes | H106: NDI | I106: non dispo | J106: 066 | K106: 40 | L106: 043 | M106: 40L | X106: A40 | Y106: AD40 | Z106: UNI | AA106: 1 | AB106: VRA | AC106: Vrac | AD106: 1 | AE106: ML | AF106: 48.148 | AG106: CAM | AH106: 13.5 | AI106: 649.998 | AJ106: 3 | AK106: 22.5 | AP106: FV | AQ106: Ferriol Viveros | AR106: 20 | AS106: FERRIOL VIVEROS | BH106: 25 | BK106: 1 | BQ106: 42.85 | BR106: 42.85 | BS106: 0 | BT106: 40.5 | BU106: 40.5 | BV106: 0 | BW106: 42.85 | BX106: 42.85 | BY106: 0 | BZ106: 40.5 | CA106: 40.5 | CB106: 0 | CE106: 0 | CF106: 41.65 | CG106: 1.310170731 | CH106: 1.264880952 | CI106: 1.3 | CJ106: 42.85 | CK106: 1.301324101 | CL106: 0.1248541424 | CM106: 0 | CN106: 0 | CO106: 37.5 | CP106: 1.319121992 | CR106: 0 | CS106: 1.20 | CT106: 40.5 | CU106: 1.268002505 | CV106: 37.485 | CW106: 0.07407407407 | CX106: 649.998 | CY106: =INDEX('Données transport emballage'!$4:$19,MATCH('Calcul tarif Truf_JDR'!AB106,'Données transport emballage'!$M$4:$M$19,0),MATCH('Calcul tarif Truf_JDR'!AR106,'Données transport emballage'!$2:$2,0)+2) -> 0 | CZ106: =INDEX('Données transport emballage'!$4:$19,MATCH('Calcul tarif Truf_JDR'!AB106,'Données transport emballage'!$M$4:$M$19,0),MATCH('Calcul tarif Truf_JDR'!AR106,'Données transport emballage'!$2:$2,0)+5) -> 2400 | DA106: =INDEX('Données transport emballage'!$4:$19,MATCH('Calcul tarif Truf_JDR'!AB106,'Données transport emballage'!$M$4:$M$19,0),MATCH('Calcul tarif Truf_JDR'!AR106,'Données transport emballage'!$2:$2,0)+8) -> 2900 | DB106: 4.5 | DC106: 4.5 | DD106: 0 | DE106: =#REF!*$DE$1 ->  | DF106: =#REF!*$DF$1 ->  | DG106: =#REF!*$DG$1 ->  | DH106: =#REF!*$DH$1 ->  | DJ106: 4.5 | DK106: 4.5 | DL106: 0 | DM106: 0 | DN106: 0 | DO106: 0 | DP106: 0 | DQ106: 29.5 | DR106: 4.5 | DS106: 4.5 | DT106: 0 | DU106: 2.0825 | DV106: 1.04125 | DW106: 1.04125 | DX106: 0.62475 | DY106: 31.78975 | DZ106: 4.5 | EA106: 4.5 | EB106: 0 | EC106: 2.1425 | ED106: 0.857 | EE106: 0 | EF106: 0.4285 | EG106: 32.928 | EH106: 3.7 | EI106: 3.7 | EJ106: 0 | EK106: 0 | EL106: 0 | EM106: 0 | EN106: 0 | EO106: 28.7 | EP106: 3.7 | EQ106: 3.7 | ER106: 0 | ES106: 2.025 | ET106: 0.81 | EU106: 0 | EV106: 0.405 | EW106: 31.94
A107: 3834000057699 | B107: 5769 | C107: AGAVE | D107: scabra | F107: SUCC | G107: Succulentes | H107: NDI | I107: non dispo | J107: 066 | K107: 40 | L107: 043 | M107: 40L | X107: A40 | Y107: AD40 | Z107: UNI | AA107: 6 | AB107: PE8 | AC107: Palette étages 80 x 120 | AD107: 2 | AE107: ML | AF107: 2 | AG107: CAM | AH107: 13 | AI107: 312 | AJ107: 3 | AK107: 22.5 | AP107: FV | AQ107: Ferriol Viveros | AR107: 20 | AS107: FERRIOL VIVEROS | BH107: 25 | BK107: 0 | BQ107: 56.9 | BR107: 56.9 | BS107: 0 | BT107: 53.2 | BU107: 53.2 | BV107: 0 | BW107: 56.9 | BX107: 56.9 | BY107: 0 | BZ107: 53.2 | CA107: 53.2 | CB107: 0 | CE107: 0 | CF107: 41.65 | CG107: 1.0038624 | CH107: 0.951956482 | CI107: 1.3 | CJ107: 56.9 | CK107: 1.300511977 | CL107: 0.3409490334 | CM107: 0 | CN107: 0 | CO107: 37.5 | CP107: 1.153775152 | CR107: 0 | CS107: 1.20 | CT107: 53.2 | CU107: 1.267995042 | CV107: 37.485 | CW107: 0.295112782 | CX107: 312 | CY107: =INDEX('Données transport emballage'!$4:$19,MATCH('Calcul tarif Truf_JDR'!AB107,'Données transport emballage'!$M$4:$M$19,0),MATCH('Calcul tarif Truf_JDR'!AR107,'Données transport emballage'!$2:$2,0)+2) -> 35 | CZ107: =INDEX('Données transport emballage'!$4:$19,MATCH('Calcul tarif Truf_JDR'!AB107,'Données transport emballage'!$M$4:$M$19,0),MATCH('Calcul tarif Truf_JDR'!AR107,'Données transport emballage'!$2:$2,0)+5) -> 117 | DA107: =INDEX('Données transport emballage'!$4:$19,MATCH('Calcul tarif Truf_JDR'!AB107,'Données transport emballage'!$M$4:$M$19,0),MATCH('Calcul tarif Truf_JDR'!AR107,'Données transport emballage'!$2:$2,0)+8) -> 135 | DB107: 14.2 | DC107: 11.25 | DD107: 2.95 | DE107: =#REF!*$DE$1 ->  | DF107: =#REF!*$DF$1 ->  | DG107: =#REF!*$DG$1 ->  | DH107: =#REF!*$DH$1 ->  | DJ107: 14.2 | DK107: 11.25 | DL107: 2.95 | DM107: 0 | DN107: 0 | DO107: 0 | DP107: 0 | DQ107: 39.2 | DR107: 14.2 | DS107: 11.25 | DT107: 2.95 | DU107: 2.0825 | DV107: 1.04125 | DW107: 1.04125 | DX107: 0.62475 | DY107: 41.48975 | DZ107: 14.2 | EA107: 11.25 | EB107: 2.95 | EC107: 2.845 | ED107: 1.138 | EE107: 0 | EF107: 0.569 | EG107: 43.752 | EH107: 12.7 | EI107: 9.75 | EJ107: 2.95 | EK107: 0 | EL107: 0 | EM107: 0 | EN107: 0 | EO107: 37.7 | EP107: 12.7 | EQ107: 9.75 | ER107: 2.95 | ES107: 2.66 | ET107: 1.064 | EU107: 0 | EV107: 0.532 | EW107: 41.956
A108: 3834000057699 | B108: 5769 | C108: AGAVE | D108: scabra | F108: SUCC | G108: Succulentes | H108: NDI | I108: non dispo | J108: 066 | K108: 40 | L108: 043 | M108: 40L | X108: A40 | Y108: AD40 | Z108: UNI | AA108: 1 | AB108: VRA | AC108: Vrac | AD108: 1 | AE108: ML | AF108: 48.148 | AG108: CAM | AH108: 13.5 | AI108: 649.998 | AJ108: 3 | AK108: 22.5 | AP108: FV | AQ108: Ferriol Viveros | AR108: 20 | AS108: FERRIOL VIVEROS | BH108: 25 | BK108: 1 | BQ108: 42.85 | BR108: 42.85 | BS108: 0 | BT108: 40.5 | BU108: 40.5 | BV108: 0 | BW108: 42.85 | BX108: 42.85 | BY108: 0 | BZ108: 40.5 | CA108: 40.5 | CB108: 0 | CE108: 0 | CF108: 41.65 | CG108: 1.310170731 | CH108: 1.264880952 | CI108: 1.3 | CJ108: 42.85 | CK108: 1.301324101 | CL108: 0.1248541424 | CM108: 0 | CN108: 0 | CO108: 37.5 | CP108: 1.319121992 | CR108: 0 | CS108: 1.20 | CT108: 40.5 | CU108: 1.268002505 | CV108: 37.485 | CW108: 0.07407407407 | CX108: 649.998 | CY108: =INDEX('Données transport emballage'!$4:$19,MATCH('Calcul tarif Truf_JDR'!AB108,'Données transport emballage'!$M$4:$M$19,0),MATCH('Calcul tarif Truf_JDR'!AR108,'Données transport emballage'!$2:$2,0)+2) -> 0 | CZ108: =INDEX('Données transport emballage'!$4:$19,MATCH('Calcul tarif Truf_JDR'!AB108,'Données transport emballage'!$M$4:$M$19,0),MATCH('Calcul tarif Truf_JDR'!AR108,'Données transport emballage'!$2:$2,0)+5) -> 2400 | DA108: =INDEX('Données transport emballage'!$4:$19,MATCH('Calcul tarif Truf_JDR'!AB108,'Données transport emballage'!$M$4:$M$19,0),MATCH('Calcul tarif Truf_JDR'!AR108,'Données transport emballage'!$2:$2,0)+8) -> 2900 | DB108: 4.5 | DC108: 4.5 | DD108: 0 | DE108: =#REF!*$DE$1 ->  | DF108: =#REF!*$DF$1 ->  | DG108: =#REF!*$DG$1 ->  | DH108: =#REF!*$DH$1 ->  | DJ108: 4.5 | DK108: 4.5 | DL108: 0 | DM108: 0 | DN108: 0 | DO108: 0 | DP108: 0 | DQ108: 29.5 | DR108: 4.5 | DS108: 4.5 | DT108: 0 | DU108: 2.0825 | DV108: 1.04125 | DW108: 1.04125 | DX108: 0.62475 | DY108: 31.78975 | DZ108: 4.5 | EA108: 4.5 | EB108: 0 | EC108: 2.1425 | ED108: 0.857 | EE108: 0 | EF108: 0.4285 | EG108: 32.928 | EH108: 3.7 | EI108: 3.7 | EJ108: 0 | EK108: 0 | EL108: 0 | EM108: 0 | EN108: 0 | EO108: 28.7 | EP108: 3.7 | EQ108: 3.7 | ER108: 0 | ES108: 2.025 | ET108: 0.81 | EU108: 0 | EV108: 0.405 | EW108: 31.94
A109: 3834000057743 | B109: 5774 | C109: BOUGAINVILLEA | D109: sanderiana | F109: ARBUS | G109: Arbustes | H109: AVR | I109: avril | J109: 037 | K109: 25 | L109: 023 | M109: 10L | P109: TRI | Q109: tripode | X109: A10405 | Y109: AA405010 | Z109: UNI | AA109: 10 | AB109: PE8 | AC109: Palette étages 80 x 120 | AD109: 3 | AE109: ML | AF109: 2 | AG109: CAM | AH109: 13 | AI109: 780 | AJ109: 3 | AK109: 10.8 | AP109: FV | AQ109: Ferriol Viveros | AR109: 20 | AS109: FERRIOL VIVEROS | AX109: NST | AY109: Notre Sélection | BH109: 12 | BK109: 0 | BQ109: 25.7 | BR109: 25.7 | BS109: 0 | BT109: 24.15 | BU109: 24.15 | BV109: 0 | BW109: 25.7 | BX109: 25.7 | BY109: 0 | BZ109: 24.15 | CA109: 24.15 | CB109: 0 | CE109: 0 | CF109: 19.05 | CG109: 1.019220738 | CH109: 0.9642640211 | CI109: 1.3 | CJ109: 25.7 | CK109: 1.300870622 | CL109: 0.2996108949 | CM109: 0 | CN109: 0 | CO109: 18 | CP109: 1.17986366 | CR109: 0 | CS109: 1.20 | CT109: 24.15 | CU109: 1.268915511 | CV109: 17.145 | CW109: 0.2546583851 | CX109: 780 | CY109: =INDEX('Données transport emballage'!$4:$19,MATCH('Calcul tarif Truf_JDR'!AB109,'Données transport emballage'!$M$4:$M$19,0),MATCH('Calcul tarif Truf_JDR'!AR109,'Données transport emballage'!$2:$2,0)+2) -> 35 | CZ109: =INDEX('Données transport emballage'!$4:$19,MATCH('Calcul tarif Truf_JDR'!AB109,'Données transport emballage'!$M$4:$M$19,0),MATCH('Calcul tarif Truf_JDR'!AR109,'Données transport emballage'!$2:$2,0)+5) -> 117 | DA109: =INDEX('Données transport emballage'!$4:$19,MATCH('Calcul tarif Truf_JDR'!AB109,'Données transport emballage'!$M$4:$M$19,0),MATCH('Calcul tarif Truf_JDR'!AR109,'Données transport emballage'!$2:$2,0)+8) -> 135 | DB109: 5.7 | DC109: 4.5 | DD109: 1.2 | DE109: =#REF!*$DE$1 ->  | DF109: =#REF!*$DF$1 ->  | DG109: =#REF!*$DG$1 ->  | DH109: =#REF!*$DH$1 ->  | DJ109: 5.7 | DK109: 4.5 | DL109: 1.2 | DM109: 0 | DN109: 0 | DO109: 0 | DP109: 0 | DQ109: 17.7 | DR109: 5.7 | DS109: 4.5 | DT109: 1.2 | DU109: 0.9525 | DV109: 0.47625 | DW109: 0.47625 | DX109: 0.28575 | DY109: 18.69075 | DZ109: 5.7 | EA109: 4.5 | EB109: 1.2 | EC109: 1.285 | ED109: 0.514 | EE109: 0 | EF109: 0.257 | EG109: 19.756 | EH109: 5.1 | EI109: 3.9 | EJ109: 1.2 | EK109: 0 | EL109: 0 | EM109: 0 | EN109: 0 | EO109: 17.1 | EP109: 5.1 | EQ109: 3.9 | ER109: 1.2 | ES109: 1.2075 | ET109: 0.483 | EU109: 0 | EV109: 0.2415 | EW109: 19.032
A110: 3834000057743 | B110: 5774 | C110: BOUGAINVILLEA | D110: sanderiana | F110: ARBUS | G110: Arbustes | H110: AVR | I110: avril | J110: 037 | K110: 25 | L110: 023 | M110: 10L | P110: TRI | Q110: tripode | X110: A10405 | Y110: AA405010 | Z110: UNI | AA110: 1 | AB110: VRA | AC110: Vrac | AD110: 1 | AE110: ML | AF110: 148.148 | AG110: CAM | AH110: 13.5 | AI110: 1999.998 | AJ110: 3 | AK110: 10.8 | AP110: FV | AQ110: Ferriol Viveros | AR110: 20 | AS110: FERRIOL VIVEROS | AX110: NST | AY110: Notre Sélection | BH110: 12 | BK110: 1 | BQ110: 19.6 | BR110: 19.6 | BS110: 0 | BT110: 18.7 | BU110: 18.7 | BV110: 0 | BW110: 19.6 | BX110: 19.6 | BY110: 0 | BZ110: 18.7 | CA110: 18.7 | CB110: 0 | CE110: 0 | CF110: 19.05 | CG110: 1.314631748 | CH110: 1.264268649 | CI110: 1.3 | CJ110: 19.6 | CK110: 1.300769843 | CL110: 0.08163265306 | CM110: 0 | CN110: 0 | CO110: 18 | CP110: 1.326650943 | CR110: 0 | CS110: 1.20 | CT110: 18.7 | CU110: 1.268140513 | CV110: 17.145 | CW110: 0.03743315508 | CX110: 1999.998 | CY110: =INDEX('Données transport emballage'!$4:$19,MATCH('Calcul tarif Truf_JDR'!AB110,'Données transport emballage'!$M$4:$M$19,0),MATCH('Calcul tarif Truf_JDR'!AR110,'Données transport emballage'!$2:$2,0)+2) -> 0 | CZ110: =INDEX('Données transport emballage'!$4:$19,MATCH('Calcul tarif Truf_JDR'!AB110,'Données transport emballage'!$M$4:$M$19,0),MATCH('Calcul tarif Truf_JDR'!AR110,'Données transport emballage'!$2:$2,0)+5) -> 2400 | DA110: =INDEX('Données transport emballage'!$4:$19,MATCH('Calcul tarif Truf_JDR'!AB110,'Données transport emballage'!$M$4:$M$19,0),MATCH('Calcul tarif Truf_JDR'!AR110,'Données transport emballage'!$2:$2,0)+8) -> 2900 | DB110: 1.5 | DC110: 1.5 | DD110: 0 | DE110: =#REF!*$DE$1 ->  | DF110: =#REF!*$DF$1 ->  | DG110: =#REF!*$DG$1 ->  | DH110: =#REF!*$DH$1 ->  | DJ110: 1.5 | DK110: 1.5 | DL110: 0 | DM110: 0 | DN110: 0 | DO110: 0 | DP110: 0 | DQ110: 13.5 | DR110: 1.5 | DS110: 1.5 | DT110: 0 | DU110: 0.9525 | DV110: 0.47625 | DW110: 0.47625 | DX110: 0.28575 | DY110: 14.49075 | DZ110: 1.5 | EA110: 1.5 | EB110: 0 | EC110: 0.98 | ED110: 0.392 | EE110: 0 | EF110: 0.196 | EG110: 15.068 | EH110: 1.25 | EI110: 1.25 | EJ110: 0 | EK110: 0 | EL110: 0 | EM110: 0 | EN110: 0 | EO110: 13.25 | EP110: 1.25 | EQ110: 1.25 | ER110: 0 | ES110: 0.935 | ET110: 0.374 | EU110: 0 | EV110: 0.187 | EW110: 14.746
A111: 3834000057750 | B111: 5775 | C111: CITRUS | D111: mix | F111: AGRUM | G111: Agrumes | H111: NDI | I111: non dispo | J111: 037 | K111: 25 | L111: 023 | M111: 10L | P111: DTI | Q111: 1/2 tige | X111: A10405 | Y111: AA405010 | Z111: ETG | AA111: 34 | AB111: PS1 | AC111: Palette socle 100 x 120 | AD111: 1 | AE111: ML | AF111: 2 | AG111: CAM | AH111: 13 | AI111: 884 | AJ111: 3 | AK111: 18 | AP111: FV | AQ111: Ferriol Viveros | AR111: 20 | AS111: FERRIOL VIVEROS | BH111: 20 | BK111: 0 | BQ111: 35.3 | BR111: 35.3 | BS111: 0 | BT111: 33.55 | BU111: 33.55 | BV111: 0 | BW111: 35.3 | BX111: 35.3 | BY111: 0 | BZ111: 33.55 | CA111: 33.55 | CB111: 0 | CE111: 0 | CF111: 30.35 | CG111: 1.176801311 | CH111: 1.11893526 | CI111: 1.3 | CJ111: 35.3 | CK111: 1.301430467 | CL111: 0.1501416431 | CM111: 0 | CN111: 0 | CO111: 30 | CP111: 1.297353399 | CR111: 0 | CS111: 1.20 | CT111: 33.55 | CU111: 1.269198759 | CV111: 27.315 | CW111: 0.1058122206 | CX111: 884 | CY111: =INDEX('Données transport emballage'!$4:$19,MATCH('Calcul tarif Truf_JDR'!AB111,'Données transport emballage'!$M$4:$M$19,0),MATCH('Calcul tarif Truf_JDR'!AR111,'Données transport emballage'!$2:$2,0)+2) -> 10 | CZ111: =INDEX('Données transport emballage'!$4:$19,MATCH('Calcul tarif Truf_JDR'!AB111,'Données transport emballage'!$M$4:$M$19,0),MATCH('Calcul tarif Truf_JDR'!AR111,'Données transport emballage'!$2:$2,0)+5) -> 117 | DA111: =INDEX('Données transport emballage'!$4:$19,MATCH('Calcul tarif Truf_JDR'!AB111,'Données transport emballage'!$M$4:$M$19,0),MATCH('Calcul tarif Truf_JDR'!AR111,'Données transport emballage'!$2:$2,0)+8) -> 135 | DB111: 4.3 | DC111: 4 | DD111: 0.3 | DE111: =#REF!*$DE$1 ->  | DF111: =#REF!*$DF$1 ->  | DG111: =#REF!*$DG$1 ->  | DH111: =#REF!*$DH$1 ->  | DJ111: 4.3 | DK111: 4 | DL111: 0.3 | DM111: 0 | DN111: 0 | DO111: 0 | DP111: 0 | DQ111: 24.3 | DR111: 4.3 | DS111: 4 | DT111: 0.3 | DU111: 1.5175 | DV111: 0.75875 | DW111: 0.75875 | DX111: 0.45525 | DY111: 25.79025 | DZ111: 4.3 | EA111: 4 | EB111: 0.3 | EC111: 1.765 | ED111: 0.706 | EE111: 0 | EF111: 0.353 | EG111: 27.124 | EH111: 3.75 | EI111: 3.45 | EJ111: 0.3 | EK111: 0 | EL111: 0 | EM111: 0 | EN111: 0 | EO111: 23.75 | EP111: 3.75 | EQ111: 3.45 | ER111: 0.3 | ES111: 1.6775 | ET111: 0.671 | EU111: 0 | EV111: 0.3355 | EW111: 26.434
A112: 3834000057750 | B112: 5775 | C112: CITRUS | D112: mix | F112: AGRUM | G112: Agrumes | H112: NDI | I112: non dispo | J112: 037 | K112: 25 | L112: 023 | M112: 10L | P112: DTI | Q112: 1/2 tige | X112: A10405 | Y112: AA405010 | Z112: UNI | AA112: 1 | AB112: VRA | AC112: Vrac | AD112: 1 | AE112: ML | AF112: 148.148 | AG112: CAM | AH112: 13.5 | AI112: 1999.998 | AJ112: 3 | AK112: 18 | AP112: FV | AQ112: Ferriol Viveros | AR112: 20 | AS112: FERRIOL VIVEROS | BH112: 20 | BK112: 1 | BQ112: 31.2 | BR112: 31.2 | BS112: 0 | BT112: 30 | BU112: 30 | BV112: 0 | BW112: 31.2 | BX112: 31.2 | BY112: 0 | BZ112: 30 | CA112: 30 | CB112: 0 | CE112: 0 | CF112: 30.35 | CG112: 1.320124836 | CH112: 1.264794132 | CI112: 1.3 | CJ112: 31.2 | CK112: 1.300216703 | CL112: 0.03846153846 | CM112: 0 | CN112: 0 | CO112: 30 | CP112: 1.333570413 | CR112: 0 | CS112: 1.20 | CT112: 30 | CU112: 1.268498943 | CV112: 27.315 | CW112: 0 | CX112: 1999.998 | CY112: =INDEX('Données transport emballage'!$4:$19,MATCH('Calcul tarif Truf_JDR'!AB112,'Données transport emballage'!$M$4:$M$19,0),MATCH('Calcul tarif Truf_JDR'!AR112,'Données transport emballage'!$2:$2,0)+2) -> 0 | CZ112: =INDEX('Données transport emballage'!$4:$19,MATCH('Calcul tarif Truf_JDR'!AB112,'Données transport emballage'!$M$4:$M$19,0),MATCH('Calcul tarif Truf_JDR'!AR112,'Données transport emballage'!$2:$2,0)+5) -> 2400 | DA112: =INDEX('Données transport emballage'!$4:$19,MATCH('Calcul tarif Truf_JDR'!AB112,'Données transport emballage'!$M$4:$M$19,0),MATCH('Calcul tarif Truf_JDR'!AR112,'Données transport emballage'!$2:$2,0)+8) -> 2900 | DB112: 1.5 | DC112: 1.5 | DD112: 0 | DE112: =#REF!*$DE$1 ->  | DF112: =#REF!*$DF$1 ->  | DG112: =#REF!*$DG$1 ->  | DH112: =#REF!*$DH$1 ->  | DJ112: 1.5 | DK112: 1.5 | DL112: 0 | DM112: 0 | DN112: 0 | DO112: 0 | DP112: 0 | DQ112: 21.5 | DR112: 1.5 | DS112: 1.5 | DT112: 0 | DU112: 1.5175 | DV112: 0.75875 | DW112: 0.75875 | DX112: 0.45525 | DY112: 22.99025 | DZ112: 1.5 | EA112: 1.5 | EB112: 0 | EC112: 1.56 | ED112: 0.624 | EE112: 0 | EF112: 0.312 | EG112: 23.996 | EH112: 1.25 | EI112: 1.25 | EJ112: 0 | EK112: 0 | EL112: 0 | EM112: 0 | EN112: 0 | EO112: 21.25 | EP112: 1.25 | EQ112: 1.25 | ER112: 0 | ES112: 1.5 | ET112: 0.6 | EU112: 0 | EV112: 0.3 | EW112: 23.65
A113: 3834000057767 | B113: 5776 | C113: CITRUS | D113: mix | F113: AGRUM | G113: Agrumes | H113: NDI | I113: non dispo | J113: 049 | K113: 30 | L113: 029 | M113: 15L | P113: DTI | Q113: 1/2 tige | X113: A15607 | Y113: AA607015 | Z113: ETG | AA113: 26 | AB113: PS1 | AC113: Palette socle 100 x 120 | AD113: 1 | AE113: ML | AF113: 2 | AG113: CAM | AH113: 13 | AI113: 676 | AJ113: 3 | AK113: 22.5 | AP113: FV | AQ113: Ferriol Viveros | AR113: 20 | AS113: FERRIOL VIVEROS | BH113: 25 | BK113: 0 | BQ113: 44.4 | BR113: 44.4 | BS113: 0 | BT113: 42.2 | BU113: 42.2 | BV113: 0 | BW113: 44.4 | BX113: 44.4 | BY113: 0 | BZ113: 42.2 | CA113: 42.2 | CB113: 0 | CE113: 0 | CF113: 38.45 | CG113: 1.182285701 | CH113: 1.125849145 | CI113: 1.3 | CJ113: 44.4 | CK113: 1.300070274 | CL113: 0.1554054054 | CM113: 0 | CN113: 0 | CO113: 37.5 | CP113: 1.295247306 | CR113: 0 | CS113: 1.20 | CT113: 42.2 | CU113: 1.268181272 | CV113: 34.605 | CW113: 0.1113744076 | CX113: 676 | CY113: =INDEX('Données transport emballage'!$4:$19,MATCH('Calcul tarif Truf_JDR'!AB113,'Données transport emballage'!$M$4:$M$19,0),MATCH('Calcul tarif Truf_JDR'!AR113,'Données transport emballage'!$2:$2,0)+2) -> 10 | CZ113: =INDEX('Données transport emballage'!$4:$19,MATCH('Calcul tarif Truf_JDR'!AB113,'Données transport emballage'!$M$4:$M$19,0),MATCH('Calcul tarif Truf_JDR'!AR113,'Données transport emballage'!$2:$2,0)+5) -> 117 | DA113: =INDEX('Données transport emballage'!$4:$19,MATCH('Calcul tarif Truf_JDR'!AB113,'Données transport emballage'!$M$4:$M$19,0),MATCH('Calcul tarif Truf_JDR'!AR113,'Données transport emballage'!$2:$2,0)+8) -> 135 | DB113: 5.6 | DC113: 5.2 | DD113: 0.4 | DE113: =#REF!*$DE$1 ->  | DF113: =#REF!*$DF$1 ->  | DG113: =#REF!*$DG$1 ->  | DH113: =#REF!*$DH$1 ->  | DJ113: 5.6 | DK113: 5.2 | DL113: 0.4 | DM113: 0 | DN113: 0 | DO113: 0 | DP113: 0 | DQ113: 30.6 | DR113: 5.6 | DS113: 5.2 | DT113: 0.4 | DU113: 1.9225 | DV113: 0.96125 | DW113: 0.96125 | DX113: 0.57675 | DY113: 32.52175 | DZ113: 5.6 | EA113: 5.2 | EB113: 0.4 | EC113: 2.22 | ED113: 0.888 | EE113: 0 | EF113: 0.444 | EG113: 34.152 | EH113: 4.9 | EI113: 4.5 | EJ113: 0.4 | EK113: 0 | EL113: 0 | EM113: 0 | EN113: 0 | EO113: 29.9 | EP113: 4.9 | EQ113: 4.5 | ER113: 0.4 | ES113: 2.11 | ET113: 0.844 | EU113: 0 | EV113: 0.422 | EW113: 33.276
A114: 3834000057767 | B114: 5776 | C114: CITRUS | D114: mix | F114: AGRUM | G114: Agrumes | H114: NDI | I114: non dispo | J114: 049 | K114: 30 | L114: 029 | M114: 15L | P114: DTI | Q114: 1/2 tige | X114: A15607 | Y114: AA607015 | Z114: UNI | AA114: 1 | AB114: VRA | AC114: Vrac | AD114: 1 | AE114: ML | AF114: 96.444 | AG114: CAM | AH114: 13.5 | AI114: 1301.994 | AJ114: 3 | AK114: 22.5 | AP114: FV | AQ114: Ferriol Viveros | AR114: 20 | AS114: FERRIOL VIVEROS | BH114: 25 | BK114: 1 | BQ114: 39.55 | BR114: 39.55 | BS114: 0 | BT114: 37.9 | BU114: 37.9 | BV114: 0 | BW114: 39.55 | BX114: 39.55 | BY114: 0 | BZ114: 37.9 | CA114: 37.9 | CB114: 0 | CE114: 0 | CF114: 38.45 | CG114: 1.318055996 | CH114: 1.264220425 | CI114: 1.3 | CJ114: 39.55 | CK114: 1.300387979 | CL114: 0.05183312263 | CM114: 0 | CN114: 0 | CO114: 37.5 | CP114: 1.331487005 | CR114: 0 | CS114: 1.20 | CT114: 37.9 | CU114: 1.268322067 | CV114: 34.605 | CW114: 0.01055408971 | CX114: 1301.994 | CY114: =INDEX('Données transport emballage'!$4:$19,MATCH('Calcul tarif Truf_JDR'!AB114,'Données transport emballage'!$M$4:$M$19,0),MATCH('Calcul tarif Truf_JDR'!AR114,'Données transport emballage'!$2:$2,0)+2) -> 0 | CZ114: =INDEX('Données transport emballage'!$4:$19,MATCH('Calcul tarif Truf_JDR'!AB114,'Données transport emballage'!$M$4:$M$19,0),MATCH('Calcul tarif Truf_JDR'!AR114,'Données transport emballage'!$2:$2,0)+5) -> 2400 | DA114: =INDEX('Données transport emballage'!$4:$19,MATCH('Calcul tarif Truf_JDR'!AB114,'Données transport emballage'!$M$4:$M$19,0),MATCH('Calcul tarif Truf_JDR'!AR114,'Données transport emballage'!$2:$2,0)+8) -> 2900 | DB114: 2.25 | DC114: 2.25 | DD114: 0 | DE114: =#REF!*$DE$1 ->  | DF114: =#REF!*$DF$1 ->  | DG114: =#REF!*$DG$1 ->  | DH114: =#REF!*$DH$1 ->  | DJ114: 2.25 | DK114: 2.25 | DL114: 0 | DM114: 0 | DN114: 0 | DO114: 0 | DP114: 0 | DQ114: 27.25 | DR114: 2.25 | DS114: 2.25 | DT114: 0 | DU114: 1.9225 | DV114: 0.96125 | DW114: 0.96125 | DX114: 0.57675 | DY114: 29.17175 | DZ114: 2.25 | EA114: 2.25 | EB114: 0 | EC114: 1.9775 | ED114: 0.791 | EE114: 0 | EF114: 0.3955 | EG114: 30.414 | EH114: 1.85 | EI114: 1.85 | EJ114: 0 | EK114: 0 | EL114: 0 | EM114: 0 | EN114: 0 | EO114: 26.85 | EP114: 1.85 | EQ114: 1.85 | ER114: 0 | ES114: 1.895 | ET114: 0.758 | EU114: 0 | EV114: 0.379 | EW114: 29.882
A115: 3834000057774 | B115: 5777 | C115: CITRUS | D115: mix | F115: AGRUM | G115: Agrumes | H115: NDI | I115: non dispo | J115: 060 | K115: 35 | L115: 036 | M115: 25L | P115: DTI | Q115: 1/2 tige | X115: A15607 | Y115: AA607015 | Z115: ETG | AA115: 12 | AB115: PS1 | AC115: Palette socle 100 x 120 | AD115: 1 | AE115: ML | AF115: 2 | AG115: CAM | AH115: 13 | AI115: 312 | AJ115: 3 | AK115: 40.5 | AP115: FV | AQ115: Ferriol Viveros | AR115: 20 | AS115: FERRIOL VIVEROS | BH115: 42 | BK115: 0 | BQ115: 78.5 | BR115: 78.5 | BS115: 0 | BT115: 74.25 | BU115: 74.25 | BV115: 0 | BW115: 78.5 | BX115: 78.5 | BY115: 0 | BZ115: 74.25 | CA115: 74.25 | CB115: 0 | CE115: 0 | CF115: 64.35 | CG115: 1.072495531 | CH115: 1.065750248 | CI115: 1.3 | CJ115: 78.5 | CK115: 1.300099371 | CL115: 0.1974522293 | CM115: 0 | CN115: 0 | CO115: 63 | CP115: 1.282312233 | CR115: 0 | CS115: 1.20 | CT115: 74.25 | CU115: 1.268363512 | CV115: 57.915 | CW115: 0.1515151515 | CX115: 312 | CY115: =INDEX('Données transport emballage'!$4:$19,MATCH('Calcul tarif Truf_JDR'!AB115,'Données transport emballage'!$M$4:$M$19,0),MATCH('Calcul tarif Truf_JDR'!AR115,'Données transport emballage'!$2:$2,0)+2) -> 10 | CZ115: =INDEX('Données transport emballage'!$4:$19,MATCH('Calcul tarif Truf_JDR'!AB115,'Données transport emballage'!$M$4:$M$19,0),MATCH('Calcul tarif Truf_JDR'!AR115,'Données transport emballage'!$2:$2,0)+5) -> 117 | DA115: =INDEX('Données transport emballage'!$4:$19,MATCH('Calcul tarif Truf_JDR'!AB115,'Données transport emballage'!$M$4:$M$19,0),MATCH('Calcul tarif Truf_JDR'!AR115,'Données transport emballage'!$2:$2,0)+8) -> 135 | DB115: 12.1 | DC115: 11.25 | DD115: 0.85 | DE115: =#REF!*$DE$1 ->  | DF115: =#REF!*$DF$1 ->  | DG115: =#REF!*$DG$1 ->  | DH115: =#REF!*$DH$1 ->  | DJ115: 12.1 | DK115: 11.25 | DL115: 0.85 | DM115: 0 | DN115: 0 | DO115: 0 | DP115: 0 | DQ115: 54.1 | DR115: 12.1 | DS115: 11.25 | DT115: 0.85 | DU115: 3.2175 | DV115: 1.60875 | DW115: 1.60875 | DX115: 0.96525 | DY115: 60.00025 | DZ115: 12.1 | EA115: 11.25 | EB115: 0.85 | EC115: 3.925 | ED115: 1.57 | EE115: 0 | EF115: 0.785 | EG115: 60.38 | EH115: 10.6 | EI115: 9.75 | EJ115: 0.85 | EK115: 0 | EL115: 0 | EM115: 0 | EN115: 0 | EO115: 52.6 | EP115: 10.6 | EQ115: 9.75 | ER115: 0.85 | ES115: 3.7125 | ET115: 1.485 | EU115: 0 | EV115: 0.7425 | EW115: 58.54
A116: 3834000057774 | B116: 5777 | C116: CITRUS | D116: mix | F116: AGRUM | G116: Agrumes | H116: NDI | I116: non dispo | J116: 060 | K116: 35 | L116: 036 | M116: 25L | P116: DTI | Q116: 1/2 tige | X116: A15607 | Y116: AA607015 | Z116: UNI | AA116: 1 | AB116: VRA | AC116: Vrac | AD116: 1 | AE116: ML | AF116: 60 | AG116: CAM | AH116: 13.5 | AI116: 810 | AJ116: 3 | AK116: 40.5 | AP116: FV | AQ116: Ferriol Viveros | AR116: 20 | AS116: FERRIOL VIVEROS | BH116: 42 | BK116: 1 | BQ116: 66.2 | BR116: 66.2 | BS116: 0 | BT116: 63.5 | BU116: 63.5 | BV116: 0 | BW116: 66.2 | BX116: 66.2 | BY116: 0 | BZ116: 63.5 | CA116: 63.5 | CB116: 0 | CE116: 0 | CF116: 64.35 | CG116: 1.249508498 | CH116: 1.264342974 | CI116: 1.3 | CJ116: 66.2 | CK116: 1.300691606 | CL116: 0.04833836858 | CM116: 0 | CN116: 0 | CO116: 63 | CP116: 1.332036536 | CR116: 0 | CS116: 1.20 | CT116: 63.5 | CU116: 1.267971246 | CV116: 57.915 | CW116: 0.007874015748 | CX116: 810 | CY116: =INDEX('Données transport emballage'!$4:$19,MATCH('Calcul tarif Truf_JDR'!AB116,'Données transport emballage'!$M$4:$M$19,0),MATCH('Calcul tarif Truf_JDR'!AR116,'Données transport emballage'!$2:$2,0)+2) -> 0 | CZ116: =INDEX('Données transport emballage'!$4:$19,MATCH('Calcul tarif Truf_JDR'!AB116,'Données transport emballage'!$M$4:$M$19,0),MATCH('Calcul tarif Truf_JDR'!AR116,'Données transport emballage'!$2:$2,0)+5) -> 2400 | DA116: =INDEX('Données transport emballage'!$4:$19,MATCH('Calcul tarif Truf_JDR'!AB116,'Données transport emballage'!$M$4:$M$19,0),MATCH('Calcul tarif Truf_JDR'!AR116,'Données transport emballage'!$2:$2,0)+8) -> 2900 | DB116: 3.6 | DC116: 3.6 | DD116: 0 | DE116: =#REF!*$DE$1 ->  | DF116: =#REF!*$DF$1 ->  | DG116: =#REF!*$DG$1 ->  | DH116: =#REF!*$DH$1 ->  | DJ116: 3.6 | DK116: 3.6 | DL116: 0 | DM116: 0 | DN116: 0 | DO116: 0 | DP116: 0 | DQ116: 45.6 | DR116: 3.6 | DS116: 3.6 | DT116: 0 | DU116: 3.2175 | DV116: 1.60875 | DW116: 1.60875 | DX116: 0.96525 | DY116: 51.50025 | DZ116: 3.6 | EA116: 3.6 | EB116: 0 | EC116: 3.31 | ED116: 1.324 | EE116: 0 | EF116: 0.662 | EG116: 50.896 | EH116: 3 | EI116: 3 | EJ116: 0 | EK116: 0 | EL116: 0 | EM116: 0 | EN116: 0 | EO116: 45 | EP116: 3 | EQ116: 3 | ER116: 0 | ES116: 3.175 | ET116: 1.27 | EU116: 0 | EV116: 0.635 | EW116: 50.08
A117: 3834000057781 | B117: 5778 | C117: CITRUS | D117: mix | F117: AGRUM | G117: Agrumes | H117: NDI | I117: non dispo | J117: 066 | K117: 40 | L117: 043 | M117: 40L | P117: DTI | Q117: 1/2 tige | X117: A15607 | Y117: AA607015 | Z117: ETG | AA117: 8 | AB117: PS1 | AC117: Palette socle 100 x 120 | AD117: 1 | AE117: ML | AF117: 2 | AG117: CAM | AH117: 13 | AI117: 208 | AJ117: 3 | AK117: 49.5 | AP117: FV | AQ117: Ferriol Viveros | AR117: 20 | AS117: FERRIOL VIVEROS | BH117: 55 | BK117: 0 | BQ117: 106.15 | BR117: 106.15 | BS117: 0 | BT117: 100.05 | BU117: 100.05 | BV117: 0 | BW117: 106.15 | BX117: 106.15 | BY117: 0 | BZ117: 100.05 | CA117: 100.05 | CB117: 0 | CE117: 0 | CF117: 84 | CG117: 1.08653473 | CH117: 1.028882193 | CI117: 1.3 | CJ117: 106.15 | CK117: 1.300188628 | CL117: 0.2227979275 | CM117: 0 | CN117: 0 | CO117: 82.5 | CP117: 1.274288715 | CR117: 0 | CS117: 1.20 | CT117: 100.05 | CU117: 1.267996553 | CV117: 75.6 | CW117: 0.1754122939 | CX117: 208 | CY117: =INDEX('Données transport emballage'!$4:$19,MATCH('Calcul tarif Truf_JDR'!AB117,'Données transport emballage'!$M$4:$M$19,0),MATCH('Calcul tarif Truf_JDR'!AR117,'Données transport emballage'!$2:$2,0)+2) -> 10 | CZ117: =INDEX('Données transport emballage'!$4:$19,MATCH('Calcul tarif Truf_JDR'!AB117,'Données transport emballage'!$M$4:$M$19,0),MATCH('Calcul tarif Truf_JDR'!AR117,'Données transport emballage'!$2:$2,0)+5) -> 117 | DA117: =INDEX('Données transport emballage'!$4:$19,MATCH('Calcul tarif Truf_JDR'!AB117,'Données transport emballage'!$M$4:$M$19,0),MATCH('Calcul tarif Truf_JDR'!AR117,'Données transport emballage'!$2:$2,0)+8) -> 135 | DB117: 18.15 | DC117: 16.9 | DD117: 1.25 | DE117: =#REF!*$DE$1 ->  | DF117: =#REF!*$DF$1 ->  | DG117: =#REF!*$DG$1 ->  | DH117: =#REF!*$DH$1 ->  | DJ117: 18.15 | DK117: 16.9 | DL117: 1.25 | DM117: 0 | DN117: 0 | DO117: 0 | DP117: 0 | DQ117: 73.15 | DR117: 18.15 | DS117: 16.9 | DT117: 1.25 | DU117: 4.2 | DV117: 2.1 | DW117: 2.1 | DX117: 1.26 | DY117: 77.31 | DZ117: 18.15 | EA117: 16.9 | EB117: 1.25 | EC117: 5.3075 | ED117: 2.123 | EE117: 0 | EF117: 1.0615 | EG117: 81.642 | EH117: 15.9 | EI117: 14.65 | EJ117: 1.25 | EK117: 0 | EL117: 0 | EM117: 0 | EN117: 0 | EO117: 70.9 | EP117: 15.9 | EQ117: 14.65 | ER117: 1.25 | ES117: 5.0025 | ET117: 2.001 | EU117: 0 | EV117: 1.0005 | EW117: 78.904
A118: 3834000057781 | B118: 5778 | C118: CITRUS | D118: mix | F118: AGRUM | G118: Agrumes | H118: NDI | I118: non dispo | J118: 066 | K118: 40 | L118: 043 | M118: 40L | P118: DTI | Q118: 1/2 tige | X118: A15607 | Y118: AA607015 | Z118: UNI | AA118: 1 | AB118: VRA | AC118: Vrac | AD118: 1 | AE118: ML | AF118: 48.148 | AG118: CAM | AH118: 13.5 | AI118: 649.998 | AJ118: 3 | AK118: 49.5 | AP118: FV | AQ118: Ferriol Viveros | AR118: 20 | AS118: FERRIOL VIVEROS | BH118: 55 | BK118: 1 | BQ118: 86.35 | BR118: 86.35 | BS118: 0 | BT118: 82.85 | BU118: 82.85 | BV118: 0 | BW118: 86.35 | BX118: 86.35 | BY118: 0 | BZ118: 82.85 | CA118: 82.85 | CB118: 0 | CE118: 0 | CF118: 84 | CG118: 1.319509896 | CH118: 1.264907842 | CI118: 1.3 | CJ118: 86.35 | CK118: 1.300295145 | CL118: 0.04458598726 | CM118: 0 | CN118: 0 | CO118: 82.5 | CP118: 1.332622601 | CR118: 0 | CS118: 1.20 | CT118: 82.85 | CU118: 1.268215773 | CV118: 75.6 | CW118: 0.004224502112 | CX118: 649.998 | CY118: =INDEX('Données transport emballage'!$4:$19,MATCH('Calcul tarif Truf_JDR'!AB118,'Données transport emballage'!$M$4:$M$19,0),MATCH('Calcul tarif Truf_JDR'!AR118,'Données transport emballage'!$2:$2,0)+2) -> 0 | CZ118: =INDEX('Données transport emballage'!$4:$19,MATCH('Calcul tarif Truf_JDR'!AB118,'Données transport emballage'!$M$4:$M$19,0),MATCH('Calcul tarif Truf_JDR'!AR118,'Données transport emballage'!$2:$2,0)+5) -> 2400 | DA118: =INDEX('Données transport emballage'!$4:$19,MATCH('Calcul tarif Truf_JDR'!AB118,'Données transport emballage'!$M$4:$M$19,0),MATCH('Calcul tarif Truf_JDR'!AR118,'Données transport emballage'!$2:$2,0)+8) -> 2900 | DB118: 4.5 | DC118: 4.5 | DD118: 0 | DE118: =#REF!*$DE$1 ->  | DF118: =#REF!*$DF$1 ->  | DG118: =#REF!*$DG$1 ->  | DH118: =#REF!*$DH$1 ->  | DJ118: 4.5 | DK118: 4.5 | DL118: 0 | DM118: 0 | DN118: 0 | DO118: 0 | DP118: 0 | DQ118: 59.5 | DR118: 4.5 | DS118: 4.5 | DT118: 0 | DU118: 4.2 | DV118: 2.1 | DW118: 2.1 | DX118: 1.26 | DY118: 63.66 | DZ118: 4.5 | EA118: 4.5 | EB118: 0 | EC118: 4.3175 | ED118: 1.727 | EE118: 0 | EF118: 0.8635 | EG118: 66.408 | EH118: 3.7 | EI118: 3.7 | EJ118: 0 | EK118: 0 | EL118: 0 | EM118: 0 | EN118: 0 | EO118: 58.7 | EP118: 3.7 | EQ118: 3.7 | ER118: 0 | ES118: 4.1425 | ET118: 1.657 | EU118: 0 | EV118: 0.8285 | EW118: 65.328
A119: 3834000057798 | B119: 5779 | C119: CITRUS | D119: microcitrus | F119: AGRUM | G119: Agrumes | H119: MAR | I119: mars | J119: 049 | K119: 30 | L119: 029 | M119: 15L | P119: DTI | Q119: 1/2 tige | X119: A15607 | Y119: AA607015 | Z119: ETG | AA119: 26 | AB119: PS1 | AC119: Palette socle 100 x 120 | AD119: 1 | AE119: ML | AF119: 2 | AG119: CAM | AH119: 13 | AI119: 676 | AJ119: 3 | AK119: 32.4 | AP119: FV | AQ119: Ferriol Viveros | AR119: 20 | AS119: FERRIOL VIVEROS | BH119: 36 | BK119: 0 | BQ119: 60.4 | BR119: 60.4 | BS119: 0 | BT119: 57.75 | BU119: 57.75 | BV119: 0 | BW119: 60.4 | BX119: 60.4 | BY119: 0 | BZ119: 57.75 | CA119: 57.75 | CB119: 0 | CE119: 0 | CF119: 54 | CG119: 1.221443112 | CH119: 1.162991041 | CI119: 1.3 | CJ119: 60.4 | CK119: 1.300827016 | CL119: 0.1059602649 | CM119: 0 | CN119: 0 | CO119: 54 | CP119: 1.309662398 | CR119: 0 | CS119: 1.20 | CT119: 57.75 | CU119: 1.268673111 | CV119: 48.6 | CW119: 0.06493506494 | CX119: 676 | CY119: =INDEX('Données transport emballage'!$4:$19,MATCH('Calcul tarif Truf_JDR'!AB119,'Données transport emballage'!$M$4:$M$19,0),MATCH('Calcul tarif Truf_JDR'!AR119,'Données transport emballage'!$2:$2,0)+2) -> 10 | CZ119: =INDEX('Données transport emballage'!$4:$19,MATCH('Calcul tarif Truf_JDR'!AB119,'Données transport emballage'!$M$4:$M$19,0),MATCH('Calcul tarif Truf_JDR'!AR119,'Données transport emballage'!$2:$2,0)+5) -> 117 | DA119: =INDEX('Données transport emballage'!$4:$19,MATCH('Calcul tarif Truf_JDR'!AB119,'Données transport emballage'!$M$4:$M$19,0),MATCH('Calcul tarif Truf_JDR'!AR119,'Données transport emballage'!$2:$2,0)+8) -> 135 | DB119: 5.6 | DC119: 5.2 | DD119: 0.4 | DE119: =#REF!*$DE$1 ->  | DF119: =#REF!*$DF$1 ->  | DG119: =#REF!*$DG$1 ->  | DH119: =#REF!*$DH$1 ->  | DJ119: 5.6 | DK119: 5.2 | DL119: 0.4 | DM119: 0 | DN119: 0 | DO119: 0 | DP119: 0 | DQ119: 41.6 | DR119: 5.6 | DS119: 5.2 | DT119: 0.4 | DU119: 2.7 | DV119: 1.35 | DW119: 1.35 | DX119: 0.81 | DY119: 44.21 | DZ119: 5.6 | EA119: 5.2 | EB119: 0.4 | EC119: 3.02 | ED119: 1.208 | EE119: 0 | EF119: 0.604 | EG119: 46.432 | EH119: 4.9 | EI119: 4.5 | EJ119: 0.4 | EK119: 0 | EL119: 0 | EM119: 0 | EN119: 0 | EO119: 40.9 | EP119: 4.9 | EQ119: 4.5 | ER119: 0.4 | ES119: 2.8875 | ET119: 1.155 | EU119: 0 | EV119: 0.5775 | EW119: 45.52
A120: 3834000057798 | B120: 5779 | C120: CITRUS | D120: microcitrus | F120: AGRUM | G120: Agrumes | H120: MAR | I120: mars | J120: 049 | K120: 30 | L120: 029 | M120: 15L | P120: DTI | Q120: 1/2 tige | X120: A15607 | Y120: AA607015 | Z120: UNI | AA120: 1 | AB120: VRA | AC120: Vrac | AD120: 1 | AE120: ML | AF120: 96.444 | AG120: CAM | AH120: 13.5 | AI120: 1301.994 | AJ120: 3 | AK120: 32.4 | AP120: FV | AQ120: Ferriol Viveros | AR120: 20 | AS120: FERRIOL VIVEROS | BH120: 36 | BK120: 1 | BQ120: 55.5 | BR120: 55.5 | BS120: 0 | BT120: 53.45 | BU120: 53.45 | BV120: 0 | BW120: 55.5 | BX120: 55.5 | BY120: 0 | BZ120: 53.45 | CA120: 53.45 | CB120: 0 | CE120: 0 | CF120: 54 | CG120: 1.321585903 | CH120: 1.26493324 | CI120: 1.3 | CJ120: 55.5 | CK120: 1.300070274 | CL120: 0.02702702703 | CM120: 0 | CN120: 0 | CO120: 54 | CP120: 1.335311573 | CR120: 0 | CS120: 1.20 | CT120: 53.45 | CU120: 1.26881261 | CV120: 48.6 | CW120: -0.01028999065 | CX120: 1301.994 | CY120: =INDEX('Données transport emballage'!$4:$19,MATCH('Calcul tarif Truf_JDR'!AB120,'Données transport emballage'!$M$4:$M$19,0),MATCH('Calcul tarif Truf_JDR'!AR120,'Données transport emballage'!$2:$2,0)+2) -> 0 | CZ120: =INDEX('Données transport emballage'!$4:$19,MATCH('Calcul tarif Truf_JDR'!AB120,'Données transport emballage'!$M$4:$M$19,0),MATCH('Calcul tarif Truf_JDR'!AR120,'Données transport emballage'!$2:$2,0)+5) -> 2400 | DA120: =INDEX('Données transport emballage'!$4:$19,MATCH('Calcul tarif Truf_JDR'!AB120,'Données transport emballage'!$M$4:$M$19,0),MATCH('Calcul tarif Truf_JDR'!AR120,'Données transport emballage'!$2:$2,0)+8) -> 2900 | DB120: 2.25 | DC120: 2.25 | DD120: 0 | DE120: =#REF!*$DE$1 ->  | DF120: =#REF!*$DF$1 ->  | DG120: =#REF!*$DG$1 ->  | DH120: =#REF!*$DH$1 ->  | DJ120: 2.25 | DK120: 2.25 | DL120: 0 | DM120: 0 | DN120: 0 | DO120: 0 | DP120: 0 | DQ120: 38.25 | DR120: 2.25 | DS120: 2.25 | DT120: 0 | DU120: 2.7 | DV120: 1.35 | DW120: 1.35 | DX120: 0.81 | DY120: 40.86 | DZ120: 2.25 | EA120: 2.25 | EB120: 0 | EC120: 2.775 | ED120: 1.11 | EE120: 0 | EF120: 0.555 | EG120: 42.69 | EH120: 1.85 | EI120: 1.85 | EJ120: 0 | EK120: 0 | EL120: 0 | EM120: 0 | EN120: 0 | EO120: 37.85 | EP120: 1.85 | EQ120: 1.85 | ER120: 0 | ES120: 2.6725 | ET120: 1.069 | EU120: 0 | EV120: 0.5345 | EW120: 42.126
A121: 3834000057804 | B121: 5780 | C121: CITRUS | D121: microcitrus | F121: AGRUM | G121: Agrumes | H121: NDI | I121: non dispo | J121: 037 | K121: 25 | L121: 023 | M121: 10L | P121: DTI | Q121: 1/2 tige | X121: A10405 | Y121: AA405010 | Z121: ETG | AA121: 34 | AB121: PS1 | AC121: Palette socle 100 x 120 | AD121: 1 | AE121: ML | AF121: 2 | AG121: CAM | AH121: 13 | AI121: 884 | AJ121: 3 | AK121: 22.5 | AP121: FV | AQ121: Ferriol Viveros | AR121: 20 | AS121: FERRIOL VIVEROS | BH121: 25 | BK121: 0 | BQ121: 42.55 | BR121: 42.55 | BS121: 0 | BT121: 40.6 | BU121: 40.6 | BV121: 0 | BW121: 42.55 | BX121: 42.55 | BY121: 0 | BZ121: 40.6 | CA121: 40.6 | CB121: 0 | CE121: 0 | CF121: 37.4 | CG121: 1.202533681 | CH121: 1.143590998 | CI121: 1.3 | CJ121: 42.55 | CK121: 1.30106409 | CL121: 0.1186839013 | CM121: 0 | CN121: 0 | CO121: 37.5 | CP121: 1.306438127 | CR121: 0 | CS121: 1.20 | CT121: 40.6 | CU121: 1.268829302 | CV121: 33.66 | CW121: 0.0763546798 | CX121: 884 | CY121: =INDEX('Données transport emballage'!$4:$19,MATCH('Calcul tarif Truf_JDR'!AB121,'Données transport emballage'!$M$4:$M$19,0),MATCH('Calcul tarif Truf_JDR'!AR121,'Données transport emballage'!$2:$2,0)+2) -> 10 | CZ121: =INDEX('Données transport emballage'!$4:$19,MATCH('Calcul tarif Truf_JDR'!AB121,'Données transport emballage'!$M$4:$M$19,0),MATCH('Calcul tarif Truf_JDR'!AR121,'Données transport emballage'!$2:$2,0)+5) -> 117 | DA121: =INDEX('Données transport emballage'!$4:$19,MATCH('Calcul tarif Truf_JDR'!AB121,'Données transport emballage'!$M$4:$M$19,0),MATCH('Calcul tarif Truf_JDR'!AR121,'Données transport emballage'!$2:$2,0)+8) -> 135 | DB121: 4.3 | DC121: 4 | DD121: 0.3 | DE121: =#REF!*$DE$1 ->  | DF121: =#REF!*$DF$1 ->  | DG121: =#REF!*$DG$1 ->  | DH121: =#REF!*$DH$1 ->  | DJ121: 4.3 | DK121: 4 | DL121: 0.3 | DM121: 0 | DN121: 0 | DO121: 0 | DP121: 0 | DQ121: 29.3 | DR121: 4.3 | DS121: 4 | DT121: 0.3 | DU121: 1.87 | DV121: 0.935 | DW121: 0.935 | DX121: 0.561 | DY121: 31.101 | DZ121: 4.3 | EA121: 4 | EB121: 0.3 | EC121: 2.1275 | ED121: 0.851 | EE121: 0 | EF121: 0.4255 | EG121: 32.704 | EH121: 3.75 | EI121: 3.45 | EJ121: 0.3 | EK121: 0 | EL121: 0 | EM121: 0 | EN121: 0 | EO121: 28.75 | EP121: 3.75 | EQ121: 3.45 | ER121: 0.3 | ES121: 2.03 | ET121: 0.812 | EU121: 0 | EV121: 0.406 | EW121: 31.998
A122: 3834000057804 | B122: 5780 | C122: CITRUS | D122: microcitrus | F122: AGRUM | G122: Agrumes | H122: NDI | I122: non dispo | J122: 037 | K122: 25 | L122: 023 | M122: 10L | P122: DTI | Q122: 1/2 tige | X122: A10405 | Y122: AA405010 | Z122: UNI | AA122: 1 | AB122: VRA | AC122: Vrac | AD122: 1 | AE122: ML | AF122: 148.148 | AG122: CAM | AH122: 13.5 | AI122: 1999.998 | AJ122: 3 | AK122: 22.5 | AP122: FV | AQ122: Ferriol Viveros | AR122: 20 | AS122: FERRIOL VIVEROS | BH122: 25 | BK122: 1 | BQ122: 38.45 | BR122: 38.45 | BS122: 0 | BT122: 37.05 | BU122: 37.05 | BV122: 0 | BW122: 38.45 | BX122: 38.45 | BY122: 0 | BZ122: 37.05 | CA122: 37.05 | CB122: 0 | CE122: 0 | CF122: 37.4 | CG122: 1.321508074 | CH122: 1.264538815 | CI122: 1.3 | CJ122: 38.45 | CK122: 1.300040573 | CL122: 0.02470741222 | CM122: 0 | CN122: 0 | CO122: 37.5 | CP122: 1.33566035 | CR122: 0 | CS122: 1.20 | CT122: 37.05 | CU122: 1.268227562 | CV122: 33.66 | CW122: -0.01214574899 | CX122: 1999.998 | CY122: =INDEX('Données transport emballage'!$4:$19,MATCH('Calcul tarif Truf_JDR'!AB122,'Données transport emballage'!$M$4:$M$19,0),MATCH('Calcul tarif Truf_JDR'!AR122,'Données transport emballage'!$2:$2,0)+2) -> 0 | CZ122: =INDEX('Données transport emballage'!$4:$19,MATCH('Calcul tarif Truf_JDR'!AB122,'Données transport emballage'!$M$4:$M$19,0),MATCH('Calcul tarif Truf_JDR'!AR122,'Données transport emballage'!$2:$2,0)+5) -> 2400 | DA122: =INDEX('Données transport emballage'!$4:$19,MATCH('Calcul tarif Truf_JDR'!AB122,'Données transport emballage'!$M$4:$M$19,0),MATCH('Calcul tarif Truf_JDR'!AR122,'Données transport emballage'!$2:$2,0)+8) -> 2900 | DB122: 1.5 | DC122: 1.5 | DD122: 0 | DE122: =#REF!*$DE$1 ->  | DF122: =#REF!*$DF$1 ->  | DG122: =#REF!*$DG$1 ->  | DH122: =#REF!*$DH$1 ->  | DJ122: 1.5 | DK122: 1.5 | DL122: 0 | DM122: 0 | DN122: 0 | DO122: 0 | DP122: 0 | DQ122: 26.5 | DR122: 1.5 | DS122: 1.5 | DT122: 0 | DU122: 1.87 | DV122: 0.935 | DW122: 0.935 | DX122: 0.561 | DY122: 28.301 | DZ122: 1.5 | EA122: 1.5 | EB122: 0 | EC122: 1.9225 | ED122: 0.769 | EE122: 0 | EF122: 0.3845 | EG122: 29.576 | EH122: 1.25 | EI122: 1.25 | EJ122: 0 | EK122: 0 | EL122: 0 | EM122: 0 | EN122: 0 | EO122: 26.25 | EP122: 1.25 | EQ122: 1.25 | ER122: 0 | ES122: 1.8525 | ET122: 0.741 | EU122: 0 | EV122: 0.3705 | EW122: 29.214
B123: 5789 | C123: BOX VF | F123: EMB | G123: Emballage | H123: NDI | I123: non dispo | L123: BX1 | M123: Box 100 x 120 | AJ123: 3 | AK123: 27 | AP123: FV | AQ123: Ferriol Viveros | AR123: 20 | AS123: FERRIOL VIVEROS | BH123: 31 | BS123: 0 | BV123: 0 | BY123: 0 | CB123: 0 | CI123: 1.3 | CM123: 0 | CO123: 46.5 | CS123: 1.20 | CX123: 0 | CY123: =INDEX('Données transport emballage'!$4:$19,MATCH('Calcul tarif Truf_JDR'!AB123,'Données transport emballage'!$M$4:$M$19,0),MATCH('Calcul tarif Truf_JDR'!AR123,'Données transport emballage'!$2:$2,0)+2) ->  | CZ123: =INDEX('Données transport emballage'!$4:$19,MATCH('Calcul tarif Truf_JDR'!AB123,'Données transport emballage'!$M$4:$M$19,0),MATCH('Calcul tarif Truf_JDR'!AR123,'Données transport emballage'!$2:$2,0)+5) ->  | DA123: =INDEX('Données transport emballage'!$4:$19,MATCH('Calcul tarif Truf_JDR'!AB123,'Données transport emballage'!$M$4:$M$19,0),MATCH('Calcul tarif Truf_JDR'!AR123,'Données transport emballage'!$2:$2,0)+8) ->  | DE123: =#REF!*$DE$1 ->  | DF123: =#REF!*$DF$1 ->  | DG123: =#REF!*$DG$1 ->  | DH123: =#REF!*$DH$1 ->  | DM123: 0 | DN123: 0 | DO123: 0 | DP123: 0 | EK123: 0 | EL123: 0 | EM123: 0 | EN123: 0
B124: 5790 | C124: BOX VF INCLUS | F124: EMB | G124: Emballage | H124: NDI | I124: non dispo | L124: BX1 | M124: Box 100 x 120 | AJ124: 3 | AK124: 27 | AP124: FV | AQ124: Ferriol Viveros | AR124: 20 | AS124: FERRIOL VIVEROS | AT124: INC | AU124: INCLUS | BS124: 0 | BV124: 0 | BY124: 0 | CB124: 0 | CI124: 1.3 | CM124: 0 | CO124: 0 | CS124: 1.20 | CX124: 0 | CY124: =INDEX('Données transport emballage'!$4:$19,MATCH('Calcul tarif Truf_JDR'!AB124,'Données transport emballage'!$M$4:$M$19,0),MATCH('Calcul tarif Truf_JDR'!AR124,'Données transport emballage'!$2:$2,0)+2) ->  | CZ124: =INDEX('Données transport emballage'!$4:$19,MATCH('Calcul tarif Truf_JDR'!AB124,'Données transport emballage'!$M$4:$M$19,0),MATCH('Calcul tarif Truf_JDR'!AR124,'Données transport emballage'!$2:$2,0)+5) ->  | DA124: =INDEX('Données transport emballage'!$4:$19,MATCH('Calcul tarif Truf_JDR'!AB124,'Données transport emballage'!$M$4:$M$19,0),MATCH('Calcul tarif Truf_JDR'!AR124,'Données transport emballage'!$2:$2,0)+8) ->  | DE124: =#REF!*$DE$1 ->  | DF124: =#REF!*$DF$1 ->  | DG124: =#REF!*$DG$1 ->  | DH124: =#REF!*$DH$1 ->  | DM124: 0 | DN124: 0 | DO124: 0 | DP124: 0 | EK124: 0 | EL124: 0 | EM124: 0 | EN124: 0
B125: 5791 | C125: PALETTE VF | F125: EMB | G125: Emballage | H125: NDI | I125: non dispo | L125: PA1 | M125: Palette 100 x 120 | AJ125: 3 | AK125: 4.5 | AP125: FV | AQ125: Ferriol Viveros | AR125: 20 | AS125: FERRIOL VIVEROS | BH125: 8 | BS125: 0 | BV125: 0 | BY125: 0 | CB125: 0 | CI125: 1.3 | CM125: 0 | CO125: 12 | CS125: 1.20 | CX125: 0 | CY125: =INDEX('Données transport emballage'!$4:$19,MATCH('Calcul tarif Truf_JDR'!AB125,'Données transport emballage'!$M$4:$M$19,0),MATCH('Calcul tarif Truf_JDR'!AR125,'Données transport emballage'!$2:$2,0)+2) ->  | CZ125: =INDEX('Données transport emballage'!$4:$19,MATCH('Calcul tarif Truf_JDR'!AB125,'Données transport emballage'!$M$4:$M$19,0),MATCH('Calcul tarif Truf_JDR'!AR125,'Données transport emballage'!$2:$2,0)+5) ->  | DA125: =INDEX('Données transport emballage'!$4:$19,MATCH('Calcul tarif Truf_JDR'!AB125,'Données transport emballage'!$M$4:$M$19,0),MATCH('Calcul tarif Truf_JDR'!AR125,'Données transport emballage'!$2:$2,0)+8) ->  | DE125: =#REF!*$DE$1 ->  | DF125: =#REF!*$DF$1 ->  | DG125: =#REF!*$DG$1 ->  | DH125: =#REF!*$DH$1 ->  | DM125: 0 | DN125: 0 | DO125: 0 | DP125: 0 | EK125: 0 | EL125: 0 | EM125: 0 | EN125: 0
B126: 5792 | C126: PALETTE VF INCLUS | F126: EMB | G126: Emballage | H126: NDI | I126: non dispo | L126: PA1 | M126: Palette 100 x 120 | AJ126: 3 | AK126: 4.5 | AP126: FV | AQ126: Ferriol Viveros | AR126: 20 | AS126: FERRIOL VIVEROS | AT126: INC | AU126: INCLUS | BS126: 0 | BV126: 0 | BY126: 0 | CB126: 0 | CI126: 1.3 | CM126: 0 | CO126: 0 | CS126: 1.20 | CX126: 0 | CY126: =INDEX('Données transport emballage'!$4:$19,MATCH('Calcul tarif Truf_JDR'!AB126,'Données transport emballage'!$M$4:$M$19,0),MATCH('Calcul tarif Truf_JDR'!AR126,'Données transport emballage'!$2:$2,0)+2) ->  | CZ126: =INDEX('Données transport emballage'!$4:$19,MATCH('Calcul tarif Truf_JDR'!AB126,'Données transport emballage'!$M$4:$M$19,0),MATCH('Calcul tarif Truf_JDR'!AR126,'Données transport emballage'!$2:$2,0)+5) ->  | DA126: =INDEX('Données transport emballage'!$4:$19,MATCH('Calcul tarif Truf_JDR'!AB126,'Données transport emballage'!$M$4:$M$19,0),MATCH('Calcul tarif Truf_JDR'!AR126,'Données transport emballage'!$2:$2,0)+8) ->  | DE126: =#REF!*$DE$1 ->  | DF126: =#REF!*$DF$1 ->  | DG126: =#REF!*$DG$1 ->  | DH126: =#REF!*$DH$1 ->  | DM126: 0 | DN126: 0 | DO126: 0 | DP126: 0 | EK126: 0 | EL126: 0 | EM126: 0 | EN126: 0
B127: 5793 | C127: ETAGERE VF | D127: bandeja | F127: EMB | G127: Emballage | H127: NDI | I127: non dispo | L127: ETG | M127: Etagère | AJ127: 3 | AK127: 4.3 | AP127: FV | AQ127: Ferriol Viveros | AR127: 20 | AS127: FERRIOL VIVEROS | BH127: 4.5 | BS127: 0 | BV127: 0 | BY127: 0 | CB127: 0 | CI127: 1.3 | CM127: 0 | CO127: 6.75 | CS127: 1.20 | CX127: 0 | CY127: =INDEX('Données transport emballage'!$4:$19,MATCH('Calcul tarif Truf_JDR'!AB127,'Données transport emballage'!$M$4:$M$19,0),MATCH('Calcul tarif Truf_JDR'!AR127,'Données transport emballage'!$2:$2,0)+2) ->  | CZ127: =INDEX('Données transport emballage'!$4:$19,MATCH('Calcul tarif Truf_JDR'!AB127,'Données transport emballage'!$M$4:$M$19,0),MATCH('Calcul tarif Truf_JDR'!AR127,'Données transport emballage'!$2:$2,0)+5) ->  | DA127: =INDEX('Données transport emballage'!$4:$19,MATCH('Calcul tarif Truf_JDR'!AB127,'Données transport emballage'!$M$4:$M$19,0),MATCH('Calcul tarif Truf_JDR'!AR127,'Données transport emballage'!$2:$2,0)+8) ->  | DE127: =#REF!*$DE$1 ->  | DF127: =#REF!*$DF$1 ->  | DG127: =#REF!*$DG$1 ->  | DH127: =#REF!*$DH$1 ->  | DM127: 0 | DN127: 0 | DO127: 0 | DP127: 0 | EK127: 0 | EL127: 0 | EM127: 0 | EN127: 0
B128: 5794 | C128: ETAGERE VF INCLUS | D128: bandeja | F128: EMB | G128: Emballage | H128: NDI | I128: non dispo | L128: ETG | M128: Etagère | AJ128: 3 | AK128: 4.3 | AP128: FV | AQ128: Ferriol Viveros | AR128: 20 | AS128: FERRIOL VIVEROS | AT128: INC | AU128: INCLUS | BS128: 0 | BV128: 0 | BY128: 0 | CB128: 0 | CI128: 1.3 | CM128: 0 | CO128: 0 | CS128: 1.20 | CX128: 0 | CY128: =INDEX('Données transport emballage'!$4:$19,MATCH('Calcul tarif Truf_JDR'!AB128,'Données transport emballage'!$M$4:$M$19,0),MATCH('Calcul tarif Truf_JDR'!AR128,'Données transport emballage'!$2:$2,0)+2) ->  | CZ128: =INDEX('Données transport emballage'!$4:$19,MATCH('Calcul tarif Truf_JDR'!AB128,'Données transport emballage'!$M$4:$M$19,0),MATCH('Calcul tarif Truf_JDR'!AR128,'Données transport emballage'!$2:$2,0)+5) ->  | DA128: =INDEX('Données transport emballage'!$4:$19,MATCH('Calcul tarif Truf_JDR'!AB128,'Données transport emballage'!$M$4:$M$19,0),MATCH('Calcul tarif Truf_JDR'!AR128,'Données transport emballage'!$2:$2,0)+8) ->  | DE128: =#REF!*$DE$1 ->  | DF128: =#REF!*$DF$1 ->  | DG128: =#REF!*$DG$1 ->  | DH128: =#REF!*$DH$1 ->  | DM128: 0 | DN128: 0 | DO128: 0 | DP128: 0 | EK128: 0 | EL128: 0 | EM128: 0 | EN128: 0
A129: 3834000057958 | B129: 5795 | C129: CITRUS | D129: kumquat | F129: AGRUM | G129: Agrumes | J129: 037 | K129: 25 | L129: 023 | M129: 10L | P129: DTI | Q129: 1/2 tige | X129: A10405 | Y129: AA405010 | Z129: ETG | AA129: 34 | AB129: PS1 | AC129: Palette socle 100 x 120 | AD129: 1 | AE129: ML | AF129: 2 | AG129: CAM | AH129: 13 | AI129: 884 | AJ129: 3 | AK129: 18 | AP129: FV | AQ129: Ferriol Viveros | AR129: 20 | AS129: FERRIOL VIVEROS | AX129: NST | AY129: Notre Sélection | BH129: 20 | BK129: 0 | BQ129: 35.3 | BR129: 35.3 | BS129: 0 | BT129: 33.55 | BU129: 33.55 | BV129: 0 | BW129: 35.3 | BX129: 35.3 | BY129: 0 | BZ129: 33.55 | CA129: 33.55 | CB129: 0 | CE129: 0 | CF129: 30.35 | CG129: 1.176801311 | CH129: 1.11893526 | CI129: 1.3 | CJ129: 35.3 | CK129: 1.301430467 | CL129: 0.1501416431 | CM129: 0 | CN129: 0 | CO129: 30 | CP129: 1.297353399 | CR129: 0 | CS129: 1.20 | CT129: 33.55 | CU129: 1.269198759 | CV129: 27.315 | CW129: 0.1058122206 | CX129: 884 | CY129: =INDEX('Données transport emballage'!$4:$19,MATCH('Calcul tarif Truf_JDR'!AB129,'Données transport emballage'!$M$4:$M$19,0),MATCH('Calcul tarif Truf_JDR'!AR129,'Données transport emballage'!$2:$2,0)+2) -> 10 | CZ129: =INDEX('Données transport emballage'!$4:$19,MATCH('Calcul tarif Truf_JDR'!AB129,'Données transport emballage'!$M$4:$M$19,0),MATCH('Calcul tarif Truf_JDR'!AR129,'Données transport emballage'!$2:$2,0)+5) -> 117 | DA129: =INDEX('Données transport emballage'!$4:$19,MATCH('Calcul tarif Truf_JDR'!AB129,'Données transport emballage'!$M$4:$M$19,0),MATCH('Calcul tarif Truf_JDR'!AR129,'Données transport emballage'!$2:$2,0)+8) -> 135 | DB129: 4.3 | DC129: 4 | DD129: 0.3 | DE129: =#REF!*$DE$1 ->  | DF129: =#REF!*$DF$1 ->  | DG129: =#REF!*$DG$1 ->  | DH129: =#REF!*$DH$1 ->  | DJ129: 4.3 | DK129: 4 | DL129: 0.3 | DM129: 0 | DN129: 0 | DO129: 0 | DP129: 0 | DQ129: 24.3 | DR129: 4.3 | DS129: 4 | DT129: 0.3 | DU129: 1.5175 | DV129: 0.75875 | DW129: 0.75875 | DX129: 0.45525 | DY129: 25.79025 | DZ129: 4.3 | EA129: 4 | EB129: 0.3 | EC129: 1.765 | ED129: 0.706 | EE129: 0 | EF129: 0.353 | EG129: 27.124 | EH129: 3.75 | EI129: 3.45 | EJ129: 0.3 | EK129: 0 | EL129: 0 | EM129: 0 | EN129: 0 | EO129: 23.75 | EP129: 3.75 | EQ129: 3.45 | ER129: 0.3 | ES129: 1.6775 | ET129: 0.671 | EU129: 0 | EV129: 0.3355 | EW129: 26.434
A130: 3834000057958 | B130: 5795 | C130: CITRUS | D130: kumquat | F130: AGRUM | G130: Agrumes | J130: 037 | K130: 25 | L130: 023 | M130: 10L | P130: DTI | Q130: 1/2 tige | X130: A10405 | Y130: AA405010 | Z130: UNI | AA130: 1 | AB130: VRA | AC130: Vrac | AD130: 1 | AE130: ML | AF130: 148.148 | AG130: CAM | AH130: 13.5 | AI130: 1999.998 | AJ130: 3 | AK130: 18 | AP130: FV | AQ130: Ferriol Viveros | AR130: 20 | AS130: FERRIOL VIVEROS | AX130: NST | AY130: Notre Sélection | BH130: 20 | BK130: 1 | BQ130: 31.2 | BR130: 31.2 | BS130: 0 | BT130: 30 | BU130: 30 | BV130: 0 | BW130: 31.2 | BX130: 31.2 | BY130: 0 | BZ130: 30 | CA130: 30 | CB130: 0 | CE130: 0 | CF130: 30.35 | CG130: 1.320124836 | CH130: 1.264794132 | CI130: 1.3 | CJ130: 31.2 | CK130: 1.300216703 | CL130: 0.03846153846 | CM130: 0 | CN130: 0 | CO130: 30 | CP130: 1.333570413 | CR130: 0 | CS130: 1.20 | CT130: 30 | CU130: 1.268498943 | CV130: 27.315 | CW130: 0 | CX130: 1999.998 | CY130: =INDEX('Données transport emballage'!$4:$19,MATCH('Calcul tarif Truf_JDR'!AB130,'Données transport emballage'!$M$4:$M$19,0),MATCH('Calcul tarif Truf_JDR'!AR130,'Données transport emballage'!$2:$2,0)+2) -> 0 | CZ130: =INDEX('Données transport emballage'!$4:$19,MATCH('Calcul tarif Truf_JDR'!AB130,'Données transport emballage'!$M$4:$M$19,0),MATCH('Calcul tarif Truf_JDR'!AR130,'Données transport emballage'!$2:$2,0)+5) -> 2400 | DA130: =INDEX('Données transport emballage'!$4:$19,MATCH('Calcul tarif Truf_JDR'!AB130,'Données transport emballage'!$M$4:$M$19,0),MATCH('Calcul tarif Truf_JDR'!AR130,'Données transport emballage'!$2:$2,0)+8) -> 2900 | DB130: 1.5 | DC130: 1.5 | DD130: 0 | DE130: =#REF!*$DE$1 ->  | DF130: =#REF!*$DF$1 ->  | DG130: =#REF!*$DG$1 ->  | DH130: =#REF!*$DH$1 ->  | DJ130: 1.5 | DK130: 1.5 | DL130: 0 | DM130: 0 | DN130: 0 | DO130: 0 | DP130: 0 | DQ130: 21.5 | DR130: 1.5 | DS130: 1.5 | DT130: 0 | DU130: 1.5175 | DV130: 0.75875 | DW130: 0.75875 | DX130: 0.45525 | DY130: 22.99025 | DZ130: 1.5 | EA130: 1.5 | EB130: 0 | EC130: 1.56 | ED130: 0.624 | EE130: 0 | EF130: 0.312 | EG130: 23.996 | EH130: 1.25 | EI130: 1.25 | EJ130: 0 | EK130: 0 | EL130: 0 | EM130: 0 | EN130: 0 | EO130: 21.25 | EP130: 1.25 | EQ130: 1.25 | ER130: 0 | ES130: 1.5 | ET130: 0.6 | EU130: 0 | EV130: 0.3 | EW130: 23.65
A131: 3834000057965 | B131: 5796 | C131: CITRUS | D131: limon | F131: AGRUM | G131: Agrumes | J131: 060 | K131: 35 | L131: 036 | M131: 25L | N131: 022 | O131: 8/10P | P131: DTI | Q131: 1/2 tige | X131: A15607 | Y131: AA607015 | Z131: ETG | AA131: 12 | AB131: PS1 | AC131: Palette socle 100 x 120 | AD131: 1 | AE131: ML | AF131: 2 | AG131: CAM | AH131: 13 | AI131: 312 | AJ131: 3 | AK131: 40.5 | AP131: FV | AQ131: Ferriol Viveros | AR131: 20 | AS131: FERRIOL VIVEROS | BH131: 42 | BK131: 0 | BN131: =INDEX(TarifTruffautSudT14,MATCH(B131,CodeTarifTruffautSudT14,0)) ->  | BO131: =INDEX(TarifTruffautNordT13,MATCH(B131,CodeTarifTruffautNordT13,0)) ->  | BP131: =CF131-BO131 ->  | BQ131: 78.5 | BR131: 78.5 | BS131: 0 | BT131: 74.25 | BU131: 74.25 | BV131: 0 | BW131: 78.5 | BX131: 78.5 | BY131: 0 | BZ131: 74.25 | CA131: 74.25 | CB131: 0 | CE131: 0 | CF131: =INDEX(TarifJdrNordT12,MATCH(B131,CodeTarifJdrNordT12,0)) -> 64.35 | CG131: 1.072495531 | CH131: 1.065750248 | CI131: 1.3 | CJ131: 78.5 | CK131: 1.300099371 | CL131: 0.1974522293 | CM131: =IF(CD131=0,0,IF(CD131>0,BH131*$CO$1)) -> 0 | CN131: 0 | CO131: =$BH131*$CO$1 -> 63 | CP131: 1.282312233 | CR131: 0 | CS131: 1.20 | CT131: =ROUNDUP((BH131+EQ131+ER131)*CS131/0.8505*20,0)/20 -> 74.25 | CU131: 1.268363512 | CV131: 57.915 | CW131: 0.1515151515 | CX131: =AI131 -> 312 | CY131: =INDEX('Données transport emballage'!$4:$19,MATCH('Calcul tarif Truf_JDR'!AB131,'Données transport emballage'!$M$4:$M$19,0),MATCH('Calcul tarif Truf_JDR'!AR131,'Données transport emballage'!$2:$2,0)+2) -> 10 | CZ131: =INDEX('Données transport emballage'!$4:$19,MATCH('Calcul tarif Truf_JDR'!AB131,'Données transport emballage'!$M$4:$M$19,0),MATCH('Calcul tarif Truf_JDR'!AR131,'Données transport emballage'!$2:$2,0)+5) -> 117 | DA131: =INDEX('Données transport emballage'!$4:$19,MATCH('Calcul tarif Truf_JDR'!AB131,'Données transport emballage'!$M$4:$M$19,0),MATCH('Calcul tarif Truf_JDR'!AR131,'Données transport emballage'!$2:$2,0)+8) -> 135 | DB131: 12.1 | DC131: =IF($AB131="VRA",ROUNDUP(($DA131/$AI131)*20,0)/20,IF($AB131="VRG",ROUNDUP(($DA131/$AI131)*20,0)/20,IF($AB131<>"VRA",ROUNDUP(($DA131/($AA131*$AD131))*20,0)/20,IF($AB131<>"VRG",ROUNDUP(($DA131/($AA131*$AD131))*20,0)/20)))) -> 11.25 | DD131: =IF($AB131="VRA",ROUNDUP(($CY131/$AI131)*20,0)/20,IF($AB131="VRG",ROUNDUP(($CY131/$AI131)*20,0)/20,IF($AB131<>"VRA",ROUNDUP(($CY131/($AA131*$AD131))*20,0)/20,IF($AB131<>"VRG",ROUNDUP(($CY131/($AA131*$AD131))*20,0)/20)))) -> 0.85 | DE131: =#REF!*$DE$1 ->  | DF131: =#REF!*$DF$1 ->  | DG131: =#REF!*$DG$1 ->  | DH131: =#REF!*$DH$1 ->  | DI131: =$AK131+DC131+DD131+DE131+DF131+DG131+DH131+$DP131 ->  | DJ131: 12.1 | DK131: =IF($AB131="VRA",ROUNDUP(($DA131/$AI131)*20,0)/20,IF($AB131="VRG",ROUNDUP(($DA131/$AI131)*20,0)/20,IF($AB131<>"VRA",ROUNDUP(($DA131/($AA131*$AD131))*20,0)/20,IF($AB131<>"VRG",ROUNDUP(($DA131/($AA131*$AD131))*20,0)/20)))) -> 11.25 | DL131: =IF($AB131="VRA",ROUNDUP(($CY131/$AI131)*20,0)/20,IF($AB131="VRG",ROUNDUP(($CY131/$AI131)*20,0)/20,IF($AB131<>"VRA",ROUNDUP(($CY131/($AA131*$AD131))*20,0)/20,IF($AB131<>"VRG",ROUNDUP(($CY131/($AA131*$AD131))*20,0)/20)))) -> 0.85 | DM131: 0 | DN131: 0 | DO131: 0 | DP131: 0 | DQ131: =$BH131+$DK131+$DL131+$DM131+$DN131+$DO131+$DP131 -> 54.1 | DR131: 12.1 | DS131: =IF($AB131="VRA",ROUNDUP(($DA131/$AI131)*20,0)/20,IF($AB131="VRG",ROUNDUP(($DA131/$AI131)*20,0)/20,IF($AB131<>"VRA",ROUNDUP(($DA131/($AA131*$AD131))*20,0)/20,IF($AB131<>"VRG",ROUNDUP(($DA131/($AA131*$AD131))*20,0)/20)))) -> 11.25 | DT131: =IF($AB131="VRA",ROUNDUP(($CY131/$AI131)*20,0)/20,IF($AB131="VRG",ROUNDUP(($CY131/$AI131)*20,0)/20,IF($AB131<>"VRA",ROUNDUP(($CY131/($AA131*$AD131))*20,0)/20,IF($AB131<>"VRG",ROUNDUP(($CY131/($AA131*$AD131))*20,0)/20)))) -> 0.85 | DU131: 3.2175 | DV131: 1.60875 | DW131: 1.60875 | DX131: 0.96525 | DY131: =AK131+DS131+DT131+DU131+DV131+DW131+DX131 -> 60.00025 | DZ131: 12.1 | EA131: =IF($AB131="VRA",ROUNDUP(($DA131/$AI131)*20,0)/20,IF($AB131="VRG",ROUNDUP(($DA131/$AI131)*20,0)/20,IF($AB131<>"VRA",ROUNDUP(($DA131/($AA131*$AD131))*20,0)/20,IF($AB131<>"VRG",ROUNDUP(($DA131/($AA131*$AD131))*20,0)/20)))) -> 11.25 | EB131: =IF($AB131="VRA",ROUNDUP(($CY131/$AI131)*20,0)/20,IF($AB131="VRG",ROUNDUP(($CY131/$AI131)*20,0)/20,IF($AB131<>"VRA",ROUNDUP(($CY131/($AA131*$AD131))*20,0)/20,IF($AB131<>"VRG",ROUNDUP(($CY131/($AA131*$AD131))*20,0)/20)))) -> 0.85 | EC131: 3.925 | ED131: 1.57 | EE131: 0 | EF131: 0.785 | EG131: =BH131+EA131+EB131+EC131+ED131+EE131+EF131 -> 60.38 | EH131: 10.6 | EI131: =IF($AB131="VRA",ROUNDUP(($CZ131/$AI131)*20,0)/20,IF($AB131="VRG",ROUNDUP(($CZ131/$AI131)*20,0)/20,IF($AB131<>"VRA",ROUNDUP(($CZ131/($AA131*$AD131))*20,0)/20,IF($AB131<>"VRG",ROUNDUP(($CZ131/($AA131*$AD131))*20,0)/20)))) -> 9.75 | EJ131: =IF($AB131="VRA",ROUNDUP(($CY131/$AI131)*20,0)/20,IF($AB131="VRG",ROUNDUP(($CY131/$AI131)*20,0)/20,IF($AB131<>"VRA",ROUNDUP(($CY131/($AA131*$AD131))*20,0)/20,IF($AB131<>"VRG",ROUNDUP(($CY131/($AA131*$AD131))*20,0)/20)))) -> 0.85 | EK131: 0 | EL131: 0 | EM131: 0 | EN131: 0 | EO131: =BH131+EI131+EJ131+EK131+EL131+EM131+EN131 -> 52.6 | EP131: 10.6 | EQ131: =IF($AB131="VRA",ROUNDUP(($CZ131/$AI131)*20,0)/20,IF($AB131="VRG",ROUNDUP(($CZ131/$AI131)*20,0)/20,IF($AB131<>"VRA",ROUNDUP(($CZ131/($AA131*$AD131))*20,0)/20,IF($AB131<>"VRG",ROUNDUP(($CZ131/($AA131*$AD131))*20,0)/20)))) -> 9.75 | ER131: =IF($AB131="VRA",ROUNDUP(($CY131/$AI131)*20,0)/20,IF($AB131="VRG",ROUNDUP(($CY131/$AI131)*20,0)/20,IF($AB131<>"VRA",ROUNDUP(($CY131/($AA131*$AD131))*20,0)/20,IF($AB131<>"VRG",ROUNDUP(($CY131/($AA131*$AD131))*20,0)/20)))) -> 0.85 | ES131: 3.7125 | ET131: 1.485 | EU131: 0 | EV131: 0.7425 | EW131: =BH131+EQ131+ER131+ES131+ET131+EU131+EV131 -> 58.54
A132: 3834000057965 | B132: 5796 | C132: CITRUS | D132: limon | F132: AGRUM | G132: Agrumes | J132: 060 | K132: 35 | L132: 036 | M132: 25L | N132: 022 | O132: 8/10P | P132: DTI | Q132: 1/2 tige | X132: A15607 | Y132: AA607015 | Z132: UNI | AA132: 1 | AB132: VRA | AC132: Vrac | AD132: 1 | AE132: ML | AF132: 60 | AG132: CAM | AH132: 13.5 | AI132: 810 | AJ132: 3 | AK132: 40.5 | AP132: FV | AQ132: Ferriol Viveros | AR132: 20 | AS132: FERRIOL VIVEROS | BH132: 42 | BK132: 1 | BQ132: =CJ132 -> 66.2 | BR132: =CJ132 -> 66.2 | BS132: =CD132 -> 0 | BT132: =CT132 -> 63.5 | BU132: =CT132 -> 63.5 | BV132: =CQ132 -> 0 | BW132: =CJ132 -> 66.2 | BX132: =CJ132 -> 66.2 | BY132: =CD132 -> 0 | BZ132: =CT132 -> 63.5 | CA132: =CT132 -> 63.5 | CB132: =CQ132 -> 0 | CE132: =CD132/DQ132 -> 0 | CF132: 64.35 | CG132: =CF132/DY132 -> 1.249508498 | CH132: =CF132/EG132 -> 1.264342974 | CI132: 1.3 | CJ132: 66.2 | CK132: =CJ132/EG132 -> 1.300691606 | CL132: =(CJ132-CO132)/CJ132 -> 0.04833836858 | CM132: 0 | CN132: =CM132/(DQ132-DK132) -> 0 | CO132: 63 | CP132: =CO132/($EG132-$EA132) -> 1.332036536 | CR132: =CQ132/EO132 -> 0 | CS132: =IF($AB132="VRA","1.20",IF($AB132="VRG","1.20",IF($AB132<>"VRA","1.20",IF($AB132<>"VRG","1.20")))) -> 1.20 | CT132: 63.5 | CU132: =CT132/EW132 -> 1.267971246 | CV132: =CF132*$CV$1 -> 57.915 | CW132: =(CT132-CO132)/CT132 -> 0.007874015748 | CX132: 810 | CY132: =INDEX('Données transport emballage'!$4:$19,MATCH('Calcul tarif Truf_JDR'!AB132,'Données transport emballage'!$M$4:$M$19,0),MATCH('Calcul tarif Truf_JDR'!AR132,'Données transport emballage'!$2:$2,0)+2) -> 0 | CZ132: =INDEX('Données transport emballage'!$4:$19,MATCH('Calcul tarif Truf_JDR'!AB132,'Données transport emballage'!$M$4:$M$19,0),MATCH('Calcul tarif Truf_JDR'!AR132,'Données transport emballage'!$2:$2,0)+5) -> 2400 | DA132: =INDEX('Données transport emballage'!$4:$19,MATCH('Calcul tarif Truf_JDR'!AB132,'Données transport emballage'!$M$4:$M$19,0),MATCH('Calcul tarif Truf_JDR'!AR132,'Données transport emballage'!$2:$2,0)+8) -> 2900 | DB132: =DC132+DD132 -> 3.6 | DC132: 3.6 | DD132: 0 | DE132: =#REF!*$DE$1 ->  | DF132: =#REF!*$DF$1 ->  | DG132: =#REF!*$DG$1 ->  | DH132: =#REF!*$DH$1 ->  | DJ132: =$DK132+$DL132 -> 3.6 | DK132: 3.6 | DL132: 0 | DM132: =$CD132*$DM$1 -> 0 | DN132: =$CD132*$DN$1 -> 0 | DO132: =$CD132*$DO$1 -> 0 | DP132: =$CD132*$DP$1 -> 0 | DQ132: 45.6 | DR132: =DS132+DT132 -> 3.6 | DS132: 3.6 | DT132: 0 | DU132: =CF132*$DU$1 -> 3.2175 | DV132: =CF132*$DV$1 -> 1.60875 | DW132: =CF132*$DW$1 -> 1.60875 | DX132: =CF132*$DX$1 -> 0.96525 | DY132: 51.50025 | DZ132: =$EA132+$EB132 -> 3.6 | EA132: 3.6 | EB132: 0 | EC132: =$CJ132*$EC$1 -> 3.31 | ED132: =$CJ132*$ED$1 -> 1.324 | EE132: =$CJ132*$EE$1 -> 0 | EF132: =$CJ132*$EF$1 -> 0.662 | EG132: 50.896 | EH132: =EI132+EJ132 -> 3 | EI132: 3 | EJ132: 0 | EK132: =$CQ132*$EK$1 -> 0 | EL132: =$CQ132*$EL$1 -> 0 | EM132: =$CQ132*$EM$1 -> 0 | EN132: =$CQ132*$EN$1 -> 0 | EO132: 45 | EP132: =EQ132+ER132 -> 3 | EQ132: 3 | ER132: 0 | ES132: =$CT132*$ES$1 -> 3.175 | ET132: =$CT132*$ET$1 -> 1.27 | EU132: =$CT132*$EU$1 -> 0 | EV132: =$CT132*$EV$1 -> 0.635 | EW132: 50.08
